Workbook

Sheet Information
A6: Income Optimization
A7: Accompanying Modelling Workbook for
A8: Primer on Retirement Income Strategy Design and Evaluation
A10: Authors | B10: Adam Butt, PhD, FIAA
B11: Associate Professor
B13: Gaurav Khemka, PhD, FIAA, CERA
B14: Senior Lecturer
B16: William Lim, AIAA
B17: Associate Lecturer
B19: Geoff Warren, PhD
B20: Associate Professor
B22: Research School of Finance, Actuarial Studies and Statistics
B23: College of Business and Economics
B24: AUSTRALIAN NATIONAL UNIVERSITY
A26: Sponsors | B26: Aging and Retirement Strategic Research Program Steering Committee
A28: Description
B29: This is an accompanying workbook to the Primer on Design and Evaluation of Retirement Strategies. This workbook provides a simple interactive model that evaluates the retirement strategies given the retiree’s details and decisions. The model assumes the retiree has an Income Optimization objective and adopts an affordable withdrawal strategy. These models are provided as a learning resource for educational purposes to supplement this Primer and are not, in any way, intended to be used for financial advice nor any commercial purpose. For ease of user customization, the workbook is not protected. Users are advised that changing cells other than the specified model inputs may result in the workbook no longer working.
A38: Disclaimer for Software
A39: Important: This Excel Model ("Software") is the property of the Society of Actuaries (SOA) Research Institute and is protected under U.S. and international copyright laws.
A40: The Software has been developed for the benefit of actuaries FOR EDUCATIONAL USE ONLY, although others may find it useful. SOA Research Institute and the authors make the Software available to individual users for their personal use on a non–exclusive basis. No commercial use, reproduction or distribution is permitted whatsoever.
A41: SOA Research Institute and the authors make no warranty, guarantee, or representation, either expressed or implied, regarding the Software, including its quality, accuracy, reliability, or suitability, and HEREBY DISCLAIM ANY WARRANTY REGARDING THE SOFTWARE'S MERCHANTABILITY OR FITNESS FOR ANY PARTICULAR PURPOSE. SOA Research Institute and the authors make no warranty that the Software is free from errors, defects, worms, viruses or other elements or codes that manifest contaminating or destructive properties. In no event shall SOA Research Institute or the authors be liable for any damages (including any lost profits, lost savings, or direct, indirect, incidental, consequential or other damages) in connection with or resulting from the use, misuse, reliance on, or performance of any aspect of the Software including any instructions or documentation accompanying the Software. SOA Research Institute and the authors make no representation or warranty of non–infringement of proprietary rights of others with respect to the Software. The entire risk as to the uses, outputs, analyses, results and performance of the Software is assumed by the user. This Disclaimer applies regardless of whether the Software is used alone or with other software.
A42: The model, accompanying documentation, and methodologies contained herein do not represent an official position, statement, or endorsement on behalf of the Society of Actuaries Research Institute or its members, nor should the material be construed to do so. It is the product of a research effort commissioned by the Society of Actuaries Research Institute to add to the library of resource tools. The model is neither intended to preclude the use of other methodologies for any purpose nor provide a statement or position on the use, application, or preferability of other methodologies as compared to the methodology described herein.
A44: Copyright © 2023 by the Society of Actuaries Research Institute. All rights reserved.

Sheet Instructions
A1: Instructions for use
A2: Please read the "Description" on the previous worksheet before proceeding
A4: Worksheet tab colours
A5: The following tab colours are used throughout the workbook to denote the purpose of a worksheet:
B6: Information or instruction worksheet.
B7: Additional interactive information on the utility function used for calculations. Does not directly interact with the rest of the workbook.
B8: Inputs to the modelling (excluding retiree decisions).
B9: Retiree decisions and simple output metrics.
B10: Detailed output metrics for a single input and decision set.
B11: Summary of output metrics matching an example in the Primer.
B12: Calculation worksheets used for the output metrics. Included for those interested in the mechanics behind the modelling although changing these worksheets may result in the model no longer working.
A14: Cell colours
A15: Two cell colours are used to denote the characteristics of a cell:
B16: Model inputs. This includes retiree details, assumptions, and decisions. These can be changed to investigate the impact on the model outputs. Excel data validation is used to ensure reasonable values are entered.
B17: Model outputs. A description of the outputs is included next to, or otherwise near, the output cell.
B18: It is not recommended to change cells with no highlighting as this may result in the model no longer working.
A20: List of worksheets
A21: The following worksheets are included in the workbook. You can click on the worksheet name to go straight to the worksheet.
A22: Information | B22: Background information on the project details and workbook authors.
A23: Instructions | B23: This worksheet.
A24: Utility shape | B24: Comparisons of the loss aversion utility function shape for different parameter sets. Does not directly affect the model.
A25: Retiree Details and Assumptions | B25: Enter retiree details and assumptions in this worksheet.
A26: Decisions and Outcomes | B26: Enter retiree decisions here. Simple output metrics from the "Retiree Details and Assumptions" and "Decisions and Outcomes" inputs are presented here.
A27: Detailed Outcomes | B27: Detailed output metrics from the "Retiree Details and Assumptions" and "Decisions and Outcomes" inputs are presented here.
A28: Strategy Comparison | B28: Summary of output metrics and the corresponding model inputs in the format of the Illustrative Examples of Section 4.4 of the Primer.
A29: RSABal | B29: Balance in the retirement savings account for each age across the 1,000 simulations.
A30: RSAInc | B30: Income by drawdown from the retirement savings account for each age across the 1,000 simulations.
A31: RSARet | B31: Investment return on the retirement savings account for each age across the 1,000 simulations.
A32: ILAInc | B32: Income from the investment-linked annuity for each age across the 1,000 simulations.
A33: ILARet | B33: Investment return underlying the investment-linked annuity for each age across the 1,000 simulations.
A34: IncomeTot | B34: Total income from all sources for each age across the 1,000 simulations.
A35: Utility | B35: Calculates the risk aversion utility as a total, and at each age, across the 1,000 simulations.
A36: GroRet | B36: Investment return on the growth portfolio for each age across the 1,000 simulations.
A37: GroRand | B37: A uniform random number between 0 and 1, used to determine the investment return on the growth portfolio for each age across the 1,000 simulations.

Sheet Utility shape
A1: Constant Relative Risk Aversion (CRRA) utility function
A2: See also the discussion in Section 4.2.3 and Appendix B.3 of the Primer
B4: Level of Risk Appetite | C4: High | D4: Low | E4: High (Shifted)
B5: Risk aversion (ρ) | C5: 2 | D5: 5
A7: Chart values
A8: Variation from Expected Income | B8: Income /Expected | C8: High Risk Appetite | D8: Low Risk Appetite | E8: Low Risk Appetite, Shifted
A9: =B9-1 -> -0.5 | B9: 0.5 | C9: =$B9^(1-C$5)/(1-C$5) -> -2 | D9: -4 | E9: =($C$34-$D$34)+D9 -> -4.75
A10: =B10-1 -> -0.48 | B10: 0.52 | C10: -1.923076923 | D10: -3.419216764 | E10: -4.169216764 | G10: Low/Typical vs. High Risk Aversion (shifted)
A11: -0.46 | B11: 0.54 | C11: -1.851851852 | D11: -2.940119411 | E11: -3.690119411
A12: =B12-1 -> -0.44 | B12: 0.56 | C12: -1.785714286 | D12: -2.542072314 | E12: -3.292072314
A13: -0.42 | B13: 0.58 | C13: -1.724137931 | D13: -2.209164392 | E13: -2.959164392
A14: -0.4 | B14: 0.6 | C14: -1.666666667 | D14: -1.929012346 | E14: -2.679012346
A15: -0.38 | B15: 0.62 | C15: -1.612903226 | D15: -1.691894391 | E15: -2.441894391
A16: -0.36 | B16: 0.64 | C16: -1.5625 | D16: -1.490116119 | E16: -2.240116119
A17: -0.34 | B17: 0.66 | C17: -1.515151515 | D17: -1.317541388 | E17: -2.067541388
A18: -0.32 | B18: 0.68 | C18: -1.470588235 | D18: -1.169241867 | E18: -1.919241867
A19: -0.3 | B19: 0.7 | C19: -1.428571429 | D19: -1.04123282 | E19: -1.79123282
A20: -0.28 | B20: 0.72 | C20: -1.388888889 | D20: -0.9302721574 | E20: -1.680272157
A21: -0.26 | B21: 0.74 | C21: -1.351351351 | D21: -0.8337063892 | E21: -1.583706389
A22: -0.24 | B22: 0.76 | C22: -1.315789474 | D22: -0.749351601 | E22: -1.499351601
A23: -0.22 | B23: 0.78 | C23: -1.282051282 | D23: -0.6754008423 | E23: -1.425400842
A24: -0.2 | B24: 0.8 | C24: -1.25 | D24: -0.6103515625 | E24: -1.360351562
A25: -0.18 | B25: 0.82 | C25: -1.219512195 | D25: -0.5529483916 | E25: -1.302948392
A26: -0.16 | B26: 0.84 | C26: -1.19047619 | D26: -0.502137741 | E26: -1.252137741
A27: -0.14 | B27: 0.86 | C27: -1.162790698 | D27: -0.4570315733 | E27: -1.207031573
A28: -0.12 | B28: 0.88 | C28: -1.136363636 | D28: -0.4168783297 | E28: -1.16687833
A29: -0.1 | B29: 0.9 | C29: =$B29^(1-C$5)/(1-C$5) -> -1.111111111 | D29: -0.3810394757 | E29: -1.131039476
A30: -0.08 | B30: 0.92 | C30: -1.086956522 | D30: -0.3489704868 | E30: -1.098970487
A31: -0.06 | B31: 0.94 | C31: -1.063829787 | D31: -0.3202053577 | E31: -1.070205358
A32: -0.04 | B32: 0.96 | C32: -1.041666667 | D32: -0.2943439248 | E32: -1.044343925
A33: -0.02 | B33: 0.98 | C33: -1.020408163 | D33: -0.2710414462 | E33: -1.021041446
A34: 0 | B34: 1 | C34: -1 | D34: -0.25 | E34: -1
A35: 0.02 | B35: 1.02 | C35: -0.9803921569 | D35: -0.2309613565 | E35: =($C$34-$D$34)+D35 -> -0.9809613565 | G35: Low/Typical vs. High Risk Aversion
A36: 0.04 | B36: 1.04 | C36: -0.9615384615 | D36: -0.2137010478 | E36: -0.9637010478
A37: 0.06 | B37: 1.06 | C37: -0.9433962264 | D37: -0.1980234158 | E37: -0.9480234158
A38: 0.08 | B38: 1.08 | C38: -0.9259259259 | D38: -0.1837574632 | E38: -0.9337574632
A39: 0.1 | B39: 1.1 | C39: -0.9090909091 | D39: -0.1707533638 | E39: -0.9207533638
A40: 0.12 | B40: 1.12 | C40: -0.8928571429 | D40: -0.1588795196 | E40: -0.9088795196
A41: 0.14 | B41: 1.14 | C41: -0.8771929825 | D41: -0.1480200693 | E41: -0.8980200693
A42: 0.16 | B42: 1.16 | C42: -0.8620689655 | D42: -0.1380727745 | E42: -0.8880727745
A43: 0.18 | B43: 1.18 | C43: -0.8474576271 | D43: -0.1289472188 | E43: -0.8789472188
A44: 0.2 | B44: 1.2 | C44: -0.8333333333 | D44: -0.1205632716 | E44: -0.8705632716
A45: 0.22 | B45: 1.22 | C45: -0.8196721311 | D45: -0.112849772 | E45: -0.862849772
A46: 0.24 | B46: 1.24 | C46: -0.8064516129 | D46: -0.1057433994 | E46: -0.8557433994
A47: 0.26 | B47: 1.26 | C47: -0.7936507937 | D47: -0.09918770192 | E47: -0.8491877019
A48: 0.28 | B48: 1.28 | C48: -0.78125 | D48: -0.09313225746 | E48: -0.8431322575
A49: 0.3 | B49: 1.3 | C49: -0.7692307692 | D49: -0.08753194916 | E49: -0.8375319492
A50: 0.32 | B50: 1.32 | C50: =$B50^(1-C$5)/(1-C$5) -> -0.7575757576 | D50: -0.08234633673 | E50: -0.8323463367
A51: 0.34 | B51: 1.34 | C51: -0.7462686567 | D51: -0.0775391106 | E51: -0.8275391106
A52: 0.36 | B52: 1.36 | C52: -0.7352941176 | D52: -0.07307761671 | E52: -0.8230776167
A53: 0.38 | B53: 1.38 | C53: -0.7246376812 | D53: -0.06893244184 | E53: -0.8189324418
A54: 0.4 | B54: 1.4 | C54: -0.7142857143 | D54: -0.06507705123 | E54: -0.8150770512
A55: 0.42 | B55: 1.42 | C55: -0.7042253521 | D55: -0.06148747106 | E55: -0.8114874711
A56: 0.44 | B56: 1.44 | C56: -0.6944444444 | D56: -0.05814200984 | E56: -0.8081420098
A57: 0.46 | B57: 1.46 | C57: -0.6849315068 | D57: -0.05502101345 | E57: -0.8050210134
A58: 0.48 | B58: 1.48 | C58: -0.6756756757 | D58: -0.05210664932 | E58: -0.8021066493
A59: 0.5 | B59: 1.5 | C59: -0.6666666667 | D59: -0.04938271605 | E59: -0.799382716

Sheet Retiree Details and Assumptions
A1: Retiree Details
A2: User to enter retiree details and assumptions (yellow cells).
A3: The default assumptions upon first using this workbook can be found in the Primer, specifically Appendix D.1. You are welcome to amend the assumptions within the boundaries allowed.
A4: Whilst inflation is not explicitly allowed for in the calculations, using "real" return and interest rate assumptions implicitly incorporates inflation into the modelling.
A6: Personal attributes
A7: (Retiree is assumed to be 65 years old)
A8: Assets (savings at retirement) | B8: 500000 | C8: (minimum of $50,000)
A9: Guaranteed income | B9: 20000 | C9: (annual, minimum of 0. This includes social security and define benefit pensions, etc.)
A10: Income floor | B10: 25000 | C10: (annual, minimum of 0)
A12: Risk aversion utility parameters
A13: Risk appetite | B13: Low
A14: Risk aversion (ρ) | B14: =IF(B$13="Low",5,2) -> 5 | C14: (this can also be changed manually but the option for Low/High above will no longer work if you do so, must be greater than 1)
A16: Assumptions
A18: Investment return (Growth) | C18: (assumed to be lognormally distributed, used for returns on the ILA and RSA as dependent on the "Growth allocation" - see below and the next worksheet)
A19: Mean | B19: 0.06 | C19: (per annum geometric net of any fees charged, between 0% and 25%)
A20: Standard Deviation | B20: 0.15 | C20: (per annum, between 0.001% and 50%) (NB: this is the sigma parameter for the lognormal distribution and hence the annual standard deviation will be a little higher)
A22: Investment Return (Risk-free) | C22: (assumed to be fixed throughout the projections, used to determine the income from the LA and for returns on the ILA and RSA as dependent on the "Growth allocation" - see below and the next worksheet)
A23: Return | B23: 0.01 | C23: (per annum, between 0% and 15%)
A25: Life Annuity (LA) assumptions
A26: Loading | B26: 0.08 | C26: (proportion of purchase price taken by provider for profit, capital requirements, etc., between 0% and 50%)
A27: Annuitisation Factor | B27: =SUMPRODUCT(E40:E85,F40:F85)/(1-B26) -> 22.13111368 | C27: (the annual income from the LA is equal to the assets allocated to the LA divided by this factor)
A29: Investment-Linked Life Annuity (ILA) assumptions
A30: Assumed Interest Rate (AIR) | B30: ='Decisions and Outcomes'!B13 -> 0.01 | C30: (per annum) (input is on next worksheet as a decision for the retiree)
A31: Loading | B31: 0.08 | C31: (proportion of purchase price taken by provider for profit, capital requirements, etc., between 0% and 50%)
A32: Annuitisation Factor | B32: =SUMPRODUCT(E40:E85,G40:G85)/(1-B31) -> 22.13111368 | C32: (the annual income from the ILA is equal to the assets allocated to the ILA divided by this factor)
A34: Retirement Savings Account (RSA) withdrawal assumptions
A35: Assumed Interest Rate (AIR) for annuitization | B35: =MAX(RiskFree,RSAGroAll*RetGroMean+(1-RSAGroAll)*RiskFree-1%) -> 0.0125 | C35: (set at expected return on RSA less 1%, subject to a minimum of the risk-free rate)
A38: Mortality Rate - baseline | D38: Retiree annuity calculations | I38: RSA assumptions
A39: Age | B39: Mortality rate | D39: Age | E39: Survival Probability | F39: Discount Factor (Life Annuity) | G39: Discount Factor (Investment-Linked Annuity) | H39: Future life expectation (years) | I39: Time horizon | J39: Annuitization Factor for withdrawal
A40: 65 | B40: 0.005664 | D40: =A40 -> 65 | E40: 1 | F40: =(1+RiskFree)^(D$40-D40) -> 1 | G40: =(1+B$30)^(D$40-D40) -> 1 | H40: =SUM(E40:E$85)/E40 -> 22.97458676 | I40: =H40+0.5*(110-H40-D40) -> 33.98729338 | J40: =(1-(1+B$35)^-I40)/B$35*(1+B$35) -> 27.89658053
A41: 66 | B41: 0.006241 | D41: =D40+1 -> 66 | E41: =E40*(1-LOOKUP(D40,A$40:A$85,B$40:B$85)) -> 0.994336 | F41: 0.9900990099 | G41: 0.9900990099 | H41: =SUM(E41:E$85)/E41 -> 22.0997598 | I41: =H41+0.5*(110-H41-D41) -> 33.0498799 | J41: =(1-(1+B$35)^-I41)/B$35*(1+B$35) -> 27.2745746
A42: 67 | B42: 0.006906 | D42: =D41+1 -> 67 | E42: 0.988130349 | F42: 0.9802960494 | G42: 0.9802960494 | H42: =SUM(E42:E$85)/E42 -> 21.2322704 | I42: 32.1161352 | J42: 26.64776023
A43: 68 | B43: 0.007681 | D43: 68 | E43: 0.9813063208 | F43: 0.9705901479 | G43: 0.9705901479 | H43: =SUM(E43:E$85)/E43 -> 20.37296611 | I43: 31.18648305 | J43: 26.01642824
A44: 69 | B44: 0.008554 | D44: 69 | E44: 0.973768907 | F44: 0.9609803445 | G44: 0.9609803445 | H44: =SUM(E44:E$85)/E44 -> 19.52292167 | I44: 30.26146083 | J44: 25.38096202
A45: 70 | B45: 0.009555 | D45: 70 | E45: 0.9654392878 | F45: 0.9514656876 | G45: 0.9514656876 | H45: =SUM(E45:E$85)/E45 -> 18.68273377 | I45: 29.34136689 | J45: 24.74159581
A46: 71 | B46: 0.010644 | D46: 71 | E46: 0.9562145154 | F46: 0.9420452353 | G46: 0.9420452353 | H46: =SUM(E46:E$85)/E46 -> 17.85332227 | I46: 28.42666113 | J46: 24.0986886
A47: 72 | B47: 0.01193 | D47: 72 | E47: 0.9460365681 | F47: 0.9327180547 | G47: 0.9327180547 | H47: =SUM(E47:E$85)/E47 -> 17.03463896 | I47: 27.51731948 | J47: =(1-(1+B$35)^-I47)/B$35*(1+B$35) -> 23.45226927
A48: 73 | B48: 0.013411 | D48: 73 | E48: 0.9347503518 | F48: 0.9234832225 | G48: 0.9234832225 | H48: =SUM(E48:E$85)/E48 -> 16.22824189 | I48: 26.61412094 | J48: 22.80294774
A49: 74 | B49: 0.014989 | D49: 74 | E49: 0.9222144148 | F49: 0.9143398242 | G49: 0.9143398242 | H49: =SUM(E49:E$85)/E49 -> 15.43524395 | I49: 25.71762197 | J49: 22.15119772
A50: 75 | B50: 0.016761 | D50: 75 | E50: 0.908391343 | F50: 0.9052869547 | G50: 0.9052869547 | H50: =SUM(E50:E$85)/E50 -> 14.65490634 | I50: 24.82745317 | J50: 21.49682805
A51: 76 | B51: 0.018922 | D51: 76 | E51: 0.8931657957 | F51: 0.8963237175 | G51: 0.8963237175 | H51: =SUM(E51:E$85)/E51 -> 13.8876777 | I51: 23.94383885 | J51: 20.84008073
A52: 77 | B52: 0.021373 | D52: 77 | E52: 0.8762653125 | F52: 0.8874492253 | G52: 0.8874492253 | H52: =SUM(E52:E$85)/E52 -> 13.13624167 | I52: 23.06812083 | J52: 20.18205081
A53: 78 | B53: 0.024306 | D53: 78 | E53: 0.857536894 | F53: 0.8786625993 | G53: 0.8786625993 | H53: =SUM(E53:E$85)/E53 -> 12.40129454 | I53: 22.20064727 | J53: 19.52311995
A54: 79 | B54: 0.02762 | D54: 79 | E54: 0.8366936022 | F54: 0.8699629696 | G54: 0.8699629696 | H54: =SUM(E54:E$85)/E54 -> 11.68531787 | I54: 21.34265894 | J54: 18.86437181
A55: 80 | B55: 0.031601 | D55: 80 | E55: 0.8135841249 | F55: 0.8613494748 | G55: 0.8613494748 | H55: =SUM(E55:E$85)/E55 -> 10.98882934 | I55: 20.49441467 | J55: 18.20616634
A56: 81 | B56: 0.036146 | D56: 81 | E56: 0.787874053 | F56: 0.8528212622 | G56: 0.8528212622 | H56: =SUM(E56:E$85)/E56 -> 10.31478692 | I56: 19.65739346 | J56: 17.54983521
A57: 82 | B57: 0.041437 | D57: 82 | E57: 0.7593955575 | F57: 0.8443774873 | G57: 0.8443774873 | H57: =SUM(E57:E$85)/E57 -> 9.664105684 | I57: 18.83205284 | J57: 16.89594634
A58: 83 | B58: 0.04756 | D58: 83 | E58: 0.7279284838 | F58: 0.8360173142 | G58: 0.8360173142 | H58: =SUM(E58:E$85)/E58 -> 9.038639801 | I58: 18.0193199 | J58: 16.24546137
A59: 84 | B59: 0.054686 | D59: 84 | E59: 0.6933082051 | F59: 0.827739915 | G59: 0.827739915 | H59: =SUM(E59:E$85)/E59 -> 8.440048508 | I59: 17.22002425 | J59: 15.59929364
A60: 85 | B60: 0.062792 | D60: 85 | E60: 0.6553939526 | F60: 0.8195444703 | G60: 0.8195444703 | H60: =SUM(E60:E$85)/E60 -> 7.870452049 | I60: 16.43522602 | J60: 14.95857275
A61: 86 | B61: 0.072134 | D61: 86 | E61: 0.6142404555 | F61: 0.8114301687 | G61: 0.8114301687 | H61: =SUM(E61:E$85)/E61 -> 7.330765475 | I61: 15.66538274 | J61: 14.32396291
A62: 87 | B62: 0.08258 | D62: 87 | E62: 0.5699328345 | F62: 0.8033962066 | G62: 0.8033962066 | H62: =SUM(E62:E$85)/E62 -> 6.822930762 | I62: 14.91146538 | J62: 13.69657158
A63: 88 | B63: 0.094456 | D63: 88 | E63: 0.522867781 | F63: 0.7954417887 | G63: 0.7954417887 | H63: =SUM(E63:E$85)/E63 -> 6.347071965 | I63: 14.17353598 | J63: 13.07676839
A64: 89 | B64: 0.107885 | D64: 89 | E64: 0.4734797819 | F64: 0.7875661274 | G64: 0.7875661274 | H64: =SUM(E64:E$85)/E64 -> 5.904817397 | I64: 13.4524087 | J64: 12.4655637
A65: 90 | B65: 0.122077 | D65: 90 | E65: 0.4223984156 | F65: 0.779768443 | G65: 0.779768443 | H65: =SUM(E65:E$85)/E65 -> 5.497965394 | I65: 12.7489827 | J65: 11.8640634
A66: 91 | B66: 0.138665 | D66: 91 | E66: 0.3708332842 | F66: 0.7720479634 | G66: 0.7720479634 | H66: =SUM(E66:E$85)/E66 -> 5.123416739 | I66: 12.06170837 | J66: 11.27127605
A67: 92 | B67: 0.154903 | D67: 92 | E67: 0.3194116869 | F67: 0.7644039241 | G67: 0.7644039241 | H67: =SUM(E67:E$85)/E67 -> 4.787239273 | I67: 11.39361964 | J67: 10.69016518
A68: 93 | B68: 0.17168 | D68: 93 | E68: 0.2699338583 | F68: 0.7568355684 | G68: 0.7568355684 | H68: =SUM(E68:E$85)/E68 -> 4.481425532 | I68: 10.74071277 | J68: 10.11758088
A69: 94 | B69: 0.187272 | D69: 94 | E69: 0.2235916135 | F69: 0.749342147 | G69: 0.749342147 | H69: =SUM(E69:E$85)/E69 -> 4.202995862 | I69: 10.10149793 | J69: 9.552487114
A70: 95 | B70: 0.204221 | D70: 95 | E70: 0.1817191649 | F70: 0.7419229178 | G70: 0.7419229178 | H70: =SUM(E70:E$85)/E70 -> 3.941042836 | I70: 9.470521418 | J70: 8.990258177
A71: 96 | B71: 0.221573 | D71: 96 | E71: 0.1446082953 | F71: 0.7345771463 | G71: 0.7345771463 | H71: =SUM(E71:E$85)/E71 -> 3.695803528 | I71: 8.847901764 | J71: 8.431138994
A72: 97 | B72: 0.242152 | D72: 97 | E72: 0.1125670015 | F72: 0.7273041053 | G72: 0.7273041053 | H72: =SUM(E72:E$85)/E72 -> 3.463142373 | I72: 8.231571186 | J72: 7.873391858
A73: 98 | B73: 0.263514 | D73: 98 | E73: 0.08530867695 | F73: 0.7201030745 | G73: 0.7201030745 | H73: =SUM(E73:E$85)/E73 -> 3.250179947 | I73: 7.625089974 | J73: 7.320373554
A74: 99 | B74: 0.285616 | D74: 99 | E74: 0.06282864625 | F74: 0.7129733411 | G74: 0.7129733411 | H74: =SUM(E74:E$85)/E74 -> 3.055292222 | I74: 7.027646111 | J74: 6.771506914
A75: 100 | B75: 0.308316 | D75: 100 | E75: 0.04488377963 | F75: 0.7059141991 | G75: 0.7059141991 | H75: =SUM(E75:E$85)/E75 -> 2.877013234 | I75: 6.438506617 | J75: 6.22626571
A76: 101 | B76: 0.331444 | D76: 101 | E76: 0.03104539223 | F76: 0.6989249496 | G76: 0.6989249496 | H76: =SUM(E76:E$85)/E76 -> 2.713686067 | I76: 5.856843034 | J76: 5.684014361
A77: 102 | B77: 0.354809 | D77: 102 | E77: 0.02075558325 | F77: 0.6920049006 | G77: 0.6920049006 | H77: =SUM(E77:E$85)/E77 -> 2.563264809 | I77: 5.281632404 | J77: 5.143911677
A78: 103 | B78: 0.378192 | D78: 103 | E78: 0.01339131551 | F78: 0.685153367 | G78: 0.685153367 | H78: =SUM(E78:E$85)/E78 -> 2.422948877 | I78: 4.711474438 | J78: 4.604731071
A79: 104 | B79: 0.401359 | D79: 104 | E79: 0.008326827114 | F79: 0.6783696702 | G79: 0.6783696702 | H79: =SUM(E79:E$85)/E79 -> 2.288405548 | I79: 4.144202774 | J79: 4.064476584
A80: 105 | B80: 0.424064 | D80: 105 | E80: 0.004984780111 | F80: 0.6716531389 | G80: 0.6716531389 | H80: =SUM(E80:E$85)/E80 -> 2.152217352 | I80: 3.576108676 | J80: 3.519609919
A81: 106 | B81: 0.446056 | D81: 106 | E81: 0.002870914318 | F81: 0.6650031078 | G81: 0.6650031078 | H81: =SUM(E81:E$85)/E81 -> 2.000599635 | I81: 3.000299818 | J81: 2.963406026
A82: 107 | B82: 0.467092 | D82: 107 | E82: 0.001590325761 | F82: 0.6584189186 | G82: 0.6584189186 | H82: =SUM(E82:E$85)/E82 -> 1.806319114 | I82: 2.403159557 | J82: 2.382379239
A83: 108 | B83: 0.486945 | D83: 108 | E83: 0.0008474973206 | F83: 0.6518999194 | G83: 0.6518999194 | H83: =SUM(E83:E$85)/E83 -> 1.513055 | I83: 1.7565275 | J83: 1.748316402
A84: 109 | B84: 0.505382 | D84: 109 | E84: 0.0004348127378 | F84: 0.6454454648 | G84: 0.6454454648 | H84: =SUM(E84:E$85)/E84 -> 1 | I84: 1 | J84: 1
A85: 110 | B85: 1 | D85: 110 | H85: 0
B86: (Source: Australian Life Tables 2015-17 Female, Australian Government Actuary
B87: (leave age 110 mortality rate as 1 so the retiree is guaranteed to die in the model)

Sheet Decisions and Outcomes
A1: Product Decisions
A2: User to enter the retiree decisions here (yellow cells). Simple output metrics from Section 4.3 of the Primer are reproduced below (orange cells).
A4: Life Annuity (LA)
A5: Proportion invested | B5: 0.75 | C5: (of Assets, between the minimum life annuity proportion - see below - and 100%)
A6: Minimum life annuity proportion | B6: =MAX(0,ROUNDUP((IncFloor-ExtInc)*'Retiree Details and Assumptions'!B27/'Retiree Details and Assumptions'!B8,2)) -> 0.23 | C6: (this is the minimum proportion that must be invested to ensure the life annuity and guaranteed income meet the income floor)
A7: Life annuity income | B7: =B5*'Retiree Details and Assumptions'!B8/'Retiree Details and Assumptions'!B27 -> 16944.47037 | C7: (annual)
A8: Minimum life annuity income | B8: =IncFloor-ExtInc -> 5000 | C8: (annual, this is the difference between the income floor and guaranteed income)
A10: Investment-Linked Life Annuity (ILA)
A11: Proportion invested | B11: 0 | C11: (of Assets, between 0% and 100% - Life Annuity%)
A12: Growth allocation | B12: 0 | C12: (proportion of Investment-Linked Annuity allocated to the Growth Portfolio, between 0% and 100%)
A13: Assumed Interest Rate (AIR) | B13: 0.01 | C13: (this is the interest rate used to calculate the initial annuity income - see Section 2.1 of the report for more information, between 0% and 10%)
A14: Initial annuity income | B14: =B11*'Retiree Details and Assumptions'!B8/'Retiree Details and Assumptions'!B32 -> 0 | C14: (annual)
A16: Retirement Savings Account (RSA)
A17: Percentage invested | B17: =1-B5-B11 -> 0.25 | C17: (of Assets)
A18: Growth allocation | B18: 0.25 | C18: (proportion of Retirement Savings Account allocated to the Growth Portfolio, between 0% and 100%)
A19: Initial balance | B19: =B17*'Retiree Details and Assumptions'!B8 -> 125000
A22: Outcome Summary | B22: (see above and "Retiree Details and Assumptions" / "Detailed Outcomes" worksheets for explanation of numbers)
A24: Attributes
A25: Assets (savings at retirement) | B25: ='Retiree Details and Assumptions'!B8 -> 500000
A26: Guaranteed income | B26: =ExtInc -> 20000
A27: Survival probability (age 75) | B27: ='Detailed Outcomes'!C21 -> 0.908391343
A28: Survival probability (age 85) | B28: ='Detailed Outcomes'!C23 -> 0.6553939526
A29: Survival probability (age 95) | B29: ='Detailed Outcomes'!C25 -> 0.1817191649
A31: Allocation decisions
A32: LA proportion invested | B32: =B5 -> 0.75
A33: ILA proportion invested | B33: =B11 -> 0
A34: RSA proportion invested | B34: =B17 -> 0.25
A36: Investment decisions
A37: ILA growth allocation | B37: =ILAGroAll -> 0
A38: ILA AIR | B38: =AIR -> 0.01
A39: RSA growth allocation | B39: =RSAGroAll -> 0.25
A41: Outcomes
A42: Expected income | B42: ='Detailed Outcomes'!$B$17 -> 41864.56426 | C42: #, +
A43: Median income at age 75 | B43: ='Detailed Outcomes'!G21 -> 41876.32625
A44: Median income at age 85 | B44: ='Detailed Outcomes'!G23 -> 42102.31536
A45: Median income at age 95 | B45: ='Detailed Outcomes'!G25 -> 41503.08858
A46: Minimum income | B46: ='Detailed Outcomes'!B10 -> 36944.47037
A47: Life annuity component | B47: =AnnInc -> 16944.47037
A48: Risk-Adjusted Income (RAI) | B48: ='Detailed Outcomes'!B14 -> 41830.88355 | C48: #
A49: Median flexible balance at age 75 | B49: ='Detailed Outcomes'!G33 -> 106019.2577
A50: Median flexible balance at age 85 | B50: ='Detailed Outcomes'!G35 -> 77153.99956
A51: Median flexible balance at age 95 | B51: ='Detailed Outcomes'!G37 -> 40983.15461
A53: # Survival probabilities are applied in estimating these metrics
A54: + Expected income can be higher than median income due to income being positively skewed

Sheet Detailed Outcomes
A1: Outcomes
A2: This worksheet shows detailed output metrics (orange cells) for a single input and decision sets specified in "Retiree Details and Assumptions" and "Decisions and Outcomes" worksheets. Note that all non-age metrics are survival weighted. See Appendix B and Appendix C for definitions of the utility and metrics, respectively.
A4: Attributes
A5: Assets (savings at retirement) | B5: ='Retiree Details and Assumptions'!B8 -> 500000 | C5: (this was input on the "Retiree Details and Assumptions" worksheet)
A6: Guaranteed income | B6: =ExtInc -> 20000 | C6: (this was input on the "Retiree Details and Assumptions" worksheet)
A8: Income Details
A9: Income floor | B9: =IncFloor -> 25000 | C9: (this was input on the "Retiree Details and Assumptions" worksheet)
A10: Minimum income | B10: =ExtInc+AnnInc -> 36944.47037 | C10: (this is the sum of the "Guaranteed income" which was input on the "Retiree Details and Assumptions" worksheet, and the "Life annuity income" which is calculated on the "Decisions and Outcomes" worksheet)
A12: Utility
A13: Expected Utility | B13: =AVERAGE(Utility!AW2:AW1001)/SUM('Retiree Details and Assumptions'!E40:E85) -> -8.164918563e-20 | C13: (Risk Aversion Utility; scaled by survival probability)
A14: Risk-Adjusted Income (RAI) | B14: =(B13*(1-Rho))^(1/(1-Rho)) -> 41830.88355 | C14: (this is the income the retiree would accept as equivalent to the output from this model)
A16: Distribution of income metrics
A17: Expected Income | B17: =AVERAGE(IncomeTot!AW2:AW1001) -> 41864.56426 | C17: (this is the average income earned by the retiree across retirement, weighted for survival)
A18: Income percentiles (by age): | B18: Age | C18: Survival Probability | D18: 1st Percentile | E18: 5th Percentile | F18: 25th Percentile | G18: Median | H18: 75th Percentile | I18: 95th Percentile | J18: 99th Percentile
B19: 65 | C19: =LOOKUP(B19,'Retiree Details and Assumptions'!D$40:D$85,'Retiree Details and Assumptions'!E$40:E$85) -> 1 | D19: =PERCENTILE(OFFSET(IncomeTot!$B$2:$B$1001,0,$B19-65),0.01) -> 41425.30629 | E19: =PERCENTILE(OFFSET(IncomeTot!$B$2:$B$1001,0,$B19-65),0.05) -> 41425.30629 | F19: =PERCENTILE(OFFSET(IncomeTot!$B$2:$B$1001,0,$B19-65),0.25) -> 41425.30629 | G19: =PERCENTILE(OFFSET(IncomeTot!$B$2:$B$1001,0,$B19-65),0.5) -> 41425.30629 | H19: =PERCENTILE(OFFSET(IncomeTot!$B$2:$B$1001,0,$B19-65),0.75) -> 41425.30629 | I19: =PERCENTILE(OFFSET(IncomeTot!$B$2:$B$1001,0,$B19-65),0.95) -> 41425.30629 | J19: =PERCENTILE(OFFSET(IncomeTot!$B$2:$B$1001,0,$B19-65),0.99) -> 41425.30629 | K19: (this is the Initial income)
B20: 70 | C20: =LOOKUP(B20,'Retiree Details and Assumptions'!D$40:D$85,'Retiree Details and Assumptions'!E$40:E$85) -> 0.9654392878 | D20: =PERCENTILE(OFFSET(IncomeTot!$B$2:$B$1001,0,$B20-65),0.01) -> 40868.87116 | E20: =PERCENTILE(OFFSET(IncomeTot!$B$2:$B$1001,0,$B20-65),0.05) -> 41055.75285 | F20: =PERCENTILE(OFFSET(IncomeTot!$B$2:$B$1001,0,$B20-65),0.25) -> 41395.57607 | G20: =PERCENTILE(OFFSET(IncomeTot!$B$2:$B$1001,0,$B20-65),0.5) -> 41644.64117 | H20: =PERCENTILE(OFFSET(IncomeTot!$B$2:$B$1001,0,$B20-65),0.75) -> 41933.34815 | I20: =PERCENTILE(OFFSET(IncomeTot!$B$2:$B$1001,0,$B20-65),0.95) -> 42397.34738 | J20: =PERCENTILE(OFFSET(IncomeTot!$B$2:$B$1001,0,$B20-65),0.99) -> 42755.27805
B21: 75 | C21: =LOOKUP(B21,'Retiree Details and Assumptions'!D$40:D$85,'Retiree Details and Assumptions'!E$40:E$85) -> 0.908391343 | D21: =PERCENTILE(OFFSET(IncomeTot!$B$2:$B$1001,0,$B21-65),0.01) -> 40616.07641 | E21: =PERCENTILE(OFFSET(IncomeTot!$B$2:$B$1001,0,$B21-65),0.05) -> 41000.55788 | F21: =PERCENTILE(OFFSET(IncomeTot!$B$2:$B$1001,0,$B21-65),0.25) -> 41441.38349 | G21: =PERCENTILE(OFFSET(IncomeTot!$B$2:$B$1001,0,$B21-65),0.5) -> 41876.32625 | H21: =PERCENTILE(OFFSET(IncomeTot!$B$2:$B$1001,0,$B21-65),0.75) -> 42299.47241 | I21: =PERCENTILE(OFFSET(IncomeTot!$B$2:$B$1001,0,$B21-65),0.95) -> 42937.06041 | J21: =PERCENTILE(OFFSET(IncomeTot!$B$2:$B$1001,0,$B21-65),0.99) -> 43597.66039
B22: 80 | C22: =LOOKUP(B22,'Retiree Details and Assumptions'!D$40:D$85,'Retiree Details and Assumptions'!E$40:E$85) -> 0.8135841249 | D22: =PERCENTILE(OFFSET(IncomeTot!$B$2:$B$1001,0,$B22-65),0.01) -> 40552.33443 | E22: =PERCENTILE(OFFSET(IncomeTot!$B$2:$B$1001,0,$B22-65),0.05) -> 40882.14169 | F22: =PERCENTILE(OFFSET(IncomeTot!$B$2:$B$1001,0,$B22-65),0.25) -> 41540.02403 | G22: =PERCENTILE(OFFSET(IncomeTot!$B$2:$B$1001,0,$B22-65),0.5) -> 42022.66713 | H22: =PERCENTILE(OFFSET(IncomeTot!$B$2:$B$1001,0,$B22-65),0.75) -> 42629.86045 | I22: =PERCENTILE(OFFSET(IncomeTot!$B$2:$B$1001,0,$B22-65),0.95) -> 43529.38682 | J22: =PERCENTILE(OFFSET(IncomeTot!$B$2:$B$1001,0,$B22-65),0.99) -> 44064.15217
B23: 85 | C23: =LOOKUP(B23,'Retiree Details and Assumptions'!D$40:D$85,'Retiree Details and Assumptions'!E$40:E$85) -> 0.6553939526 | D23: =PERCENTILE(OFFSET(IncomeTot!$B$2:$B$1001,0,$B23-65),0.01) -> 40412.29948 | E23: =PERCENTILE(OFFSET(IncomeTot!$B$2:$B$1001,0,$B23-65),0.05) -> 40769.98249 | F23: =PERCENTILE(OFFSET(IncomeTot!$B$2:$B$1001,0,$B23-65),0.25) -> 41538.22477 | G23: =PERCENTILE(OFFSET(IncomeTot!$B$2:$B$1001,0,$B23-65),0.5) -> 42102.31536 | H23: =PERCENTILE(OFFSET(IncomeTot!$B$2:$B$1001,0,$B23-65),0.75) -> 42760.69071 | I23: =PERCENTILE(OFFSET(IncomeTot!$B$2:$B$1001,0,$B23-65),0.95) -> 43877.42668 | J23: =PERCENTILE(OFFSET(IncomeTot!$B$2:$B$1001,0,$B23-65),0.99) -> 44802.40738
B24: 90 | C24: =LOOKUP(B24,'Retiree Details and Assumptions'!D$40:D$85,'Retiree Details and Assumptions'!E$40:E$85) -> 0.4223984156 | D24: =PERCENTILE(OFFSET(IncomeTot!$B$2:$B$1001,0,$B24-65),0.01) -> 40155.96891 | E24: =PERCENTILE(OFFSET(IncomeTot!$B$2:$B$1001,0,$B24-65),0.05) -> 40553.28263 | F24: =PERCENTILE(OFFSET(IncomeTot!$B$2:$B$1001,0,$B24-65),0.25) -> 41360.07892 | G24: =PERCENTILE(OFFSET(IncomeTot!$B$2:$B$1001,0,$B24-65),0.5) -> 41968.70013 | H24: =PERCENTILE(OFFSET(IncomeTot!$B$2:$B$1001,0,$B24-65),0.75) -> 42644.80237 | I24: =PERCENTILE(OFFSET(IncomeTot!$B$2:$B$1001,0,$B24-65),0.95) -> 43964.02919 | J24: =PERCENTILE(OFFSET(IncomeTot!$B$2:$B$1001,0,$B24-65),0.99) -> 45207.53675
B25: 95 | C25: =LOOKUP(B25,'Retiree Details and Assumptions'!D$40:D$85,'Retiree Details and Assumptions'!E$40:E$85) -> 0.1817191649 | D25: =PERCENTILE(OFFSET(IncomeTot!$B$2:$B$1001,0,$B25-65),0.01) -> 39729.92305 | E25: =PERCENTILE(OFFSET(IncomeTot!$B$2:$B$1001,0,$B25-65),0.05) -> 40120.11302 | F25: =PERCENTILE(OFFSET(IncomeTot!$B$2:$B$1001,0,$B25-65),0.25) -> 40955.60984 | G25: =PERCENTILE(OFFSET(IncomeTot!$B$2:$B$1001,0,$B25-65),0.5) -> 41503.08858 | H25: =PERCENTILE(OFFSET(IncomeTot!$B$2:$B$1001,0,$B25-65),0.75) -> 42161.09777 | I25: =PERCENTILE(OFFSET(IncomeTot!$B$2:$B$1001,0,$B25-65),0.95) -> 43429.35813 | J25: =PERCENTILE(OFFSET(IncomeTot!$B$2:$B$1001,0,$B25-65),0.99) -> 44730.41123
B26: 100 | C26: =LOOKUP(B26,'Retiree Details and Assumptions'!D$40:D$85,'Retiree Details and Assumptions'!E$40:E$85) -> 0.04488377963 | D26: =PERCENTILE(OFFSET(IncomeTot!$B$2:$B$1001,0,$B26-65),0.01) -> 39154.38685 | E26: =PERCENTILE(OFFSET(IncomeTot!$B$2:$B$1001,0,$B26-65),0.05) -> 39483.24701 | F26: =PERCENTILE(OFFSET(IncomeTot!$B$2:$B$1001,0,$B26-65),0.25) -> 40169.74815 | G26: =PERCENTILE(OFFSET(IncomeTot!$B$2:$B$1001,0,$B26-65),0.5) -> 40680.35373 | H26: =PERCENTILE(OFFSET(IncomeTot!$B$2:$B$1001,0,$B26-65),0.75) -> 41300.68284 | I26: =PERCENTILE(OFFSET(IncomeTot!$B$2:$B$1001,0,$B26-65),0.95) -> 42446.09588 | J26: =PERCENTILE(OFFSET(IncomeTot!$B$2:$B$1001,0,$B26-65),0.99) -> 43317.70007
B27: 105 | C27: =LOOKUP(B27,'Retiree Details and Assumptions'!D$40:D$85,'Retiree Details and Assumptions'!E$40:E$85) -> 0.004984780111 | D27: =PERCENTILE(OFFSET(IncomeTot!$B$2:$B$1001,0,$B27-65),0.01) -> 38346.48346 | E27: =PERCENTILE(OFFSET(IncomeTot!$B$2:$B$1001,0,$B27-65),0.05) -> 38572.02436 | F27: =PERCENTILE(OFFSET(IncomeTot!$B$2:$B$1001,0,$B27-65),0.25) -> 39029.20695 | G27: =PERCENTILE(OFFSET(IncomeTot!$B$2:$B$1001,0,$B27-65),0.5) -> 39400.49473 | H27: =PERCENTILE(OFFSET(IncomeTot!$B$2:$B$1001,0,$B27-65),0.75) -> 39858.26129 | I27: =PERCENTILE(OFFSET(IncomeTot!$B$2:$B$1001,0,$B27-65),0.95) -> 40681.71482 | J27: =PERCENTILE(OFFSET(IncomeTot!$B$2:$B$1001,0,$B27-65),0.99) -> 41350.24288
A29: Retirement Savings Account balance metrics
A30: Value of account balance (by age, and percentiles) | B30: Age | C30: Survival Probability | D30: 1st Percentile | E30: 5th Percentile | F30: 25th Percentile | G30: Median | H30: 75th Percentile | I30: 95th Percentile | J30: 99th Percentile
B31: 65 | C31: =LOOKUP(B31,'Retiree Details and Assumptions'!D$40:D$85,'Retiree Details and Assumptions'!E$40:E$85) -> 1 | D31: =PERCENTILE(OFFSET(RSABal!$B$2:$B$1001,0,$B31-65),0.01) -> 125000 | E31: =PERCENTILE(OFFSET(RSABal!$B$2:$B$1001,0,$B31-65),0.05) -> 125000 | F31: =PERCENTILE(OFFSET(RSABal!$B$2:$B$1001,0,$B31-65),0.25) -> 125000 | G31: =PERCENTILE(OFFSET(RSABal!$B$2:$B$1001,0,$B31-65),0.5) -> 125000 | H31: =PERCENTILE(OFFSET(RSABal!$B$2:$B$1001,0,$B31-65),0.75) -> 125000 | I31: =PERCENTILE(OFFSET(RSABal!$B$2:$B$1001,0,$B31-65),0.95) -> 125000 | J31: =PERCENTILE(OFFSET(RSABal!$B$2:$B$1001,0,$B31-65),0.99) -> 125000 | K31: (this is the initial assets allocated to the retirement savings account)
B32: 70 | C32: =LOOKUP(B32,'Retiree Details and Assumptions'!D$40:D$85,'Retiree Details and Assumptions'!E$40:E$85) -> 0.9654392878 | D32: =PERCENTILE(OFFSET(RSABal!$B$2:$B$1001,0,$B32-65),0.01) -> 97095.93819 | E32: =PERCENTILE(OFFSET(RSABal!$B$2:$B$1001,0,$B32-65),0.05) -> 101719.6893 | F32: =PERCENTILE(OFFSET(RSABal!$B$2:$B$1001,0,$B32-65),0.25) -> 110127.4582 | G32: =PERCENTILE(OFFSET(RSABal!$B$2:$B$1001,0,$B32-65),0.5) -> 116289.7262 | H32: =PERCENTILE(OFFSET(RSABal!$B$2:$B$1001,0,$B32-65),0.75) -> 123432.7975 | I32: =PERCENTILE(OFFSET(RSABal!$B$2:$B$1001,0,$B32-65),0.95) -> 134912.879 | J32: =PERCENTILE(OFFSET(RSABal!$B$2:$B$1001,0,$B32-65),0.99) -> 143768.6549
B33: 75 | C33: =LOOKUP(B33,'Retiree Details and Assumptions'!D$40:D$85,'Retiree Details and Assumptions'!E$40:E$85) -> 0.908391343 | D33: =PERCENTILE(OFFSET(RSABal!$B$2:$B$1001,0,$B33-65),0.01) -> 78927.88373 | E33: =PERCENTILE(OFFSET(RSABal!$B$2:$B$1001,0,$B33-65),0.05) -> 87193.01568 | F33: =PERCENTILE(OFFSET(RSABal!$B$2:$B$1001,0,$B33-65),0.25) -> 96669.36818 | G33: =PERCENTILE(OFFSET(RSABal!$B$2:$B$1001,0,$B33-65),0.5) -> 106019.2577 | H33: =PERCENTILE(OFFSET(RSABal!$B$2:$B$1001,0,$B33-65),0.75) -> 115115.558 | I33: =PERCENTILE(OFFSET(RSABal!$B$2:$B$1001,0,$B33-65),0.95) -> 128821.6778 | J33: =PERCENTILE(OFFSET(RSABal!$B$2:$B$1001,0,$B33-65),0.99) -> 143022.4818
B34: 80 | C34: =LOOKUP(B34,'Retiree Details and Assumptions'!D$40:D$85,'Retiree Details and Assumptions'!E$40:E$85) -> 0.8135841249 | D34: =PERCENTILE(OFFSET(RSABal!$B$2:$B$1001,0,$B34-65),0.01) -> 65685.37313 | E34: =PERCENTILE(OFFSET(RSABal!$B$2:$B$1001,0,$B34-65),0.05) -> 71689.89901 | F34: =PERCENTILE(OFFSET(RSABal!$B$2:$B$1001,0,$B34-65),0.25) -> 83667.4143 | G34: =PERCENTILE(OFFSET(RSABal!$B$2:$B$1001,0,$B34-65),0.5) -> 92454.49497 | H34: =PERCENTILE(OFFSET(RSABal!$B$2:$B$1001,0,$B34-65),0.75) -> 103509.1574 | I34: =PERCENTILE(OFFSET(RSABal!$B$2:$B$1001,0,$B34-65),0.95) -> 119886.0842 | J34: =PERCENTILE(OFFSET(RSABal!$B$2:$B$1001,0,$B34-65),0.99) -> 129622.111
B35: 85 | C35: =LOOKUP(B35,'Retiree Details and Assumptions'!D$40:D$85,'Retiree Details and Assumptions'!E$40:E$85) -> 0.6553939526 | D35: =PERCENTILE(OFFSET(RSABal!$B$2:$B$1001,0,$B35-65),0.01) -> 51873.77409 | E35: =PERCENTILE(OFFSET(RSABal!$B$2:$B$1001,0,$B35-65),0.05) -> 57224.20131 | F35: =PERCENTILE(OFFSET(RSABal!$B$2:$B$1001,0,$B35-65),0.25) -> 68716.00936 | G35: =PERCENTILE(OFFSET(RSABal!$B$2:$B$1001,0,$B35-65),0.5) -> 77153.99956 | H35: =PERCENTILE(OFFSET(RSABal!$B$2:$B$1001,0,$B35-65),0.75) -> 87002.35511 | I35: =PERCENTILE(OFFSET(RSABal!$B$2:$B$1001,0,$B35-65),0.95) -> 103707.1314 | J35: =PERCENTILE(OFFSET(RSABal!$B$2:$B$1001,0,$B35-65),0.99) -> 117543.5225
B36: 90 | C36: =LOOKUP(B36,'Retiree Details and Assumptions'!D$40:D$85,'Retiree Details and Assumptions'!E$40:E$85) -> 0.4223984156 | D36: =PERCENTILE(OFFSET(RSABal!$B$2:$B$1001,0,$B36-65),0.01) -> 38101.42235 | E36: =PERCENTILE(OFFSET(RSABal!$B$2:$B$1001,0,$B36-65),0.05) -> 42815.17747 | F36: =PERCENTILE(OFFSET(RSABal!$B$2:$B$1001,0,$B36-65),0.25) -> 52387.05974 | G36: =PERCENTILE(OFFSET(RSABal!$B$2:$B$1001,0,$B36-65),0.5) -> 59607.78046 | H36: =PERCENTILE(OFFSET(RSABal!$B$2:$B$1001,0,$B36-65),0.75) -> 67629.10031 | I36: =PERCENTILE(OFFSET(RSABal!$B$2:$B$1001,0,$B36-65),0.95) -> 83280.49095 | J36: =PERCENTILE(OFFSET(RSABal!$B$2:$B$1001,0,$B36-65),0.99) -> 98033.54345
B37: 95 | C37: =LOOKUP(B37,'Retiree Details and Assumptions'!D$40:D$85,'Retiree Details and Assumptions'!E$40:E$85) -> 0.1817191649 | D37: =PERCENTILE(OFFSET(RSABal!$B$2:$B$1001,0,$B37-65),0.01) -> 25041.93878 | E37: =PERCENTILE(OFFSET(RSABal!$B$2:$B$1001,0,$B37-65),0.05) -> 28549.84728 | F37: =PERCENTILE(OFFSET(RSABal!$B$2:$B$1001,0,$B37-65),0.25) -> 36061.17939 | G37: =PERCENTILE(OFFSET(RSABal!$B$2:$B$1001,0,$B37-65),0.5) -> 40983.15461 | H37: =PERCENTILE(OFFSET(RSABal!$B$2:$B$1001,0,$B37-65),0.75) -> 46898.82719 | I37: =PERCENTILE(OFFSET(RSABal!$B$2:$B$1001,0,$B37-65),0.95) -> 58300.81519 | J37: =PERCENTILE(OFFSET(RSABal!$B$2:$B$1001,0,$B37-65),0.99) -> 69997.61852
B38: 100 | C38: =LOOKUP(B38,'Retiree Details and Assumptions'!D$40:D$85,'Retiree Details and Assumptions'!E$40:E$85) -> 0.04488377963 | D38: =PERCENTILE(OFFSET(RSABal!$B$2:$B$1001,0,$B38-65),0.01) -> 13759.52721 | E38: =PERCENTILE(OFFSET(RSABal!$B$2:$B$1001,0,$B38-65),0.05) -> 15807.09797 | F38: =PERCENTILE(OFFSET(RSABal!$B$2:$B$1001,0,$B38-65),0.25) -> 20081.43644 | G38: =PERCENTILE(OFFSET(RSABal!$B$2:$B$1001,0,$B38-65),0.5) -> 23260.60249 | H38: =PERCENTILE(OFFSET(RSABal!$B$2:$B$1001,0,$B38-65),0.75) -> 27122.93635 | I38: =PERCENTILE(OFFSET(RSABal!$B$2:$B$1001,0,$B38-65),0.95) -> 34254.58226 | J38: =PERCENTILE(OFFSET(RSABal!$B$2:$B$1001,0,$B38-65),0.99) -> 39681.42152
B39: 105 | C39: =LOOKUP(B39,'Retiree Details and Assumptions'!D$40:D$85,'Retiree Details and Assumptions'!E$40:E$85) -> 0.004984780111 | D39: =PERCENTILE(OFFSET(RSABal!$B$2:$B$1001,0,$B39-65),0.01) -> 4934.539172 | E39: =PERCENTILE(OFFSET(RSABal!$B$2:$B$1001,0,$B39-65),0.05) -> 5728.355152 | F39: =PERCENTILE(OFFSET(RSABal!$B$2:$B$1001,0,$B39-65),0.25) -> 7337.459542 | G39: =PERCENTILE(OFFSET(RSABal!$B$2:$B$1001,0,$B39-65),0.5) -> 8644.247706 | H39: =PERCENTILE(OFFSET(RSABal!$B$2:$B$1001,0,$B39-65),0.75) -> 10255.40744 | I39: =PERCENTILE(OFFSET(RSABal!$B$2:$B$1001,0,$B39-65),0.95) -> 13153.64263 | J39: =PERCENTILE(OFFSET(RSABal!$B$2:$B$1001,0,$B39-65),0.99) -> 15506.60061
A41: Graphs
A43: Income - Median by Age | F43: Income - Percentiles by Age
A67: (This graph is cross-sectional; ie. the median is calculated across all sample paths and does not capture individual sample path volatility) | E67: (This graph is cross-sectional; ie. the percentiles are calculated across all sample paths and do not capture individual sample path volatility)
F69: Account Balance - Percentiles by Age
E93: (This graph is cross-sectional; ie. the percentiles are calculated across all sample paths and do not capture individual sample path volatility)

Sheet Strategy Comparison
A1: Metrics for Income Optimization Objective
A3: Compact list of all model inputs (excl. mortality table) for each strategy | E3: Full Address of the inputs (see cell reference for more information on allowed values)
A4: Risk appetite | C4: Low | D4: Low | E4: Retiree Details and Assumptions'!B13
A5: Assets | C5: 500000 | D5: 500000 | E5: Retiree Details and Assumptions'!B8
A6: External income | C6: 20000 | D6: 20000 | E6: Retiree Details and Assumptions'!B9
A7: Income floor | C7: 25000 | D7: 25000 | E7: Retiree Details and Assumptions'!B10
A8: Proportion invested in LA | C8: 0.25 | D8: 0.75 | E8: Decisions and Outcomes'!B5 - minimum can be found in row 62 below
A9: Proportion invested in ILA | C9: 0 | D9: 0 | E9: Decisions and Outcomes'!B11
A10: Growth allocation of ILA | C10: 0 | D10: 0 | E10: Decisions and Outcomes'!B12
A11: Assumed Interest Rate (AIR) | C11: 0.01 | D11: 0.01 | E11: Decisions and Outcomes'!B13
A12: Growth allocation in RSA | C12: 0.75 | D12: 0.25 | E12: Decisions and Outcomes'!B18
A13: Risky return mean | C13: 0.06 | D13: 0.06 | E13: Retiree Details and Assumptions'!B19
A14: Risky return std. dev. | C14: 0.15 | D14: 0.15 | E14: Retiree Details and Assumptions'!B20
A15: Risk-free return | C15: 0.01 | D15: 0.01 | E15: Retiree Details and Assumptions'!B23
A16: LA prem. loading | C16: 0.08 | D16: 0.08 | E16: Retiree Details and Assumptions'!B26
A17: ILLA prem. loading | C17: 0.08 | D17: 0.08 | E17: Retiree Details and Assumptions'!B31
A19: Strategy | B19: Link column (for VBA) | C19: See above | D19: See above
A20: Assumptions About Retiree
A21: Income floor | B21: =IncFloor -> 25000 | C21: 25000 | D21: 25000
A22: Risk appetite | B22: =IF(RiskAversion="Low","Low",IF(RiskAversion="High","High","Custom")) -> Low | C22: Low | D22: Low
A23: Savings at retirement (age 65) | B23: =Assets -> 500000 | C23: 500000 | D23: 500000
A24: Allocation of savings at retirement
A25: Lifetime income stream (life annuity) | B25: =TEXT(B$23*LAProp, "$#,##0")&" ("&TEXT(LAProp,"0%")&")" -> $375,000 (75%) | C25: $125,000 (25%) | D25: $375,000 (75%) | F25: This worksheet provides the illustrative metrics for the income optimization objective (see Section 4.4.2 of the Primer).
A26: Lifetime income stream (investment-linked) | B26: =TEXT(B$23*ILAProp, "$#,##0")&" ("&TEXT(ILAProp,"0%")&")" -> $0 (0%) | C26: $0 (0%) | D26: $0 (0%) | F26: The modelling inputs for each set are given in rows 4 to 17 of columns C and D; and their outputs in rows 20 to 56.
A27: Retirement savings account | B27: =TEXT(B$23*RSAProp, "$#,##0")&" ("&TEXT(RSAProp,"0%")&")" -> $125,000 (25%) | C27: $375,000 (75%) | D27: $125,000 (25%) | F27: For each column (C:D), the macro copies the model inputs (yellow cells) to their respective address in the workbooks for calculation.
A28: Total | B28: =TEXT(B$23, "$#,##0")&" ("&TEXT(1,"0%")&")" -> $500,000 (100%) | C28: $500,000 (100%) | D28: $500,000 (100%) | F28: The calculated outputs are then collated from "Detailed Outcomes" and pasted in each column accordingly.
A29: Growth weighting - investment-linked | B29: =TEXT(B$23*ILAProp*ILAGroAll, "$#,##0")&" ("&TEXT(ILAGroAll,"0%")&")" -> $0 (0%) | C29: $0 (0%) | D29: $0 (0%) | F29: Hence users can compare any two input and decision sets and generate output in the same format as Section 4.4.2 of the Primer.
A30: Growth weighting - retirement account | B30: =TEXT(B$23*RSAProp*RSAGroAll, "$#,##0")&" ("&TEXT(RSAGroAll,"0%")&")" -> $31,250 (25%) | C30: $281,250 (75%) | D30: $31,250 (25%)
A31: Income streams:
A32: Social security | B32: =ExtInc -> 20000 | C32: 20000 | D32: 20000
A33: Lifetime income stream (life annuity) | B33: =AnnInc -> 16944.47037 | C33: 5648.15679 | D33: 16944.47037
A34: Lifetime income stream (investment-linked, first year) | B34: =ILAInc -> 0 | C34: 0 | D34: 0
A35: Primary Metrics
A36: Expected income | B36: ='Detailed Outcomes'!$B$17 -> 41864.56426 | C36: 48390.50809 | D36: 41864.56426
A37: Median income at selected ages
A38: ="Age "&65&" (Survival probability "&TEXT(VLOOKUP(65,'Detailed Outcomes'!$B$19:$C$27,2,FALSE), "0%")&")" -> Age 65 (Survival probability 100%) | B38: ='Detailed Outcomes'!$G$19 -> 41425.30629 | C38: 44635.88501 | D38: 41425.30629
A39: ="Age "&70&" (Survival probability "&TEXT(VLOOKUP(70,'Detailed Outcomes'!$B$19:$C$27,2,FALSE), "0%")&")" -> Age 70 (Survival probability 97%) | B39: ='Detailed Outcomes'!$G$20 -> 41644.64117 | C39: 45565.74885 | D39: 41644.64117
A40: ="Age "&75&" (Survival probability "&TEXT(VLOOKUP(75,'Detailed Outcomes'!$B$19:$C$27,2,FALSE), "0%")&")" -> Age 75 (Survival probability 91%) | B40: ='Detailed Outcomes'!$G$21 -> 41876.32625 | C40: 46746.31869 | D40: 41876.32625
A41: ="Age "&80&" (Survival probability "&TEXT(VLOOKUP(80,'Detailed Outcomes'!$B$19:$C$27,2,FALSE), "0%")&")" -> Age 80 (Survival probability 81%) | B41: ='Detailed Outcomes'!$G$22 -> 42022.66713 | C41: 47398.19047 | D41: 42022.66713
A42: ="Age "&85&" (Survival probability "&TEXT(VLOOKUP(85,'Detailed Outcomes'!$B$19:$C$27,2,FALSE), "0%")&")" -> Age 85 (Survival probability 66%) | B42: ='Detailed Outcomes'!$G$23 -> 42102.31536 | C42: 47909.83397 | D42: 42102.31536
A43: ="Age "&90&" (Survival probability "&TEXT(VLOOKUP(90,'Detailed Outcomes'!$B$19:$C$27,2,FALSE), "0%")&")" -> Age 90 (Survival probability 42%) | B43: ='Detailed Outcomes'!$G$24 -> 41968.70013 | C43: 47669.66645 | D43: 41968.70013
A44: ="Age "&95&" (Survival probability "&TEXT(VLOOKUP(95,'Detailed Outcomes'!$B$19:$C$27,2,FALSE), "0%")&")" -> Age 95 (Survival probability 18%) | B44: ='Detailed Outcomes'!$G$25 -> 41503.08858 | C44: 45917.54158 | D44: 41503.08858
A45: ="Age "&100&" (Survival probability "&TEXT(VLOOKUP(100,'Detailed Outcomes'!$B$19:$C$27,2,FALSE), "0%")&")" -> Age 100 (Survival probability 4%) | B45: ='Detailed Outcomes'!$G$26 -> 40680.35373 | C45: 42571.07317 | D45: 40680.35373
A46: ="Age "&105&" (Survival probability "&TEXT(VLOOKUP(105,'Detailed Outcomes'!$B$19:$C$27,2,FALSE), "0.0%")&")" -> Age 105 (Survival probability 0.5%) | B46: ='Detailed Outcomes'!$G$27 -> 39400.49473 | C46: 37058.78883 | D46: 39400.49473
A47: Minimum 'guaranteed' income | B47: =ExtInc+AnnInc -> 36944.47037 | C47: 25648.15679 | D47: 36944.47037
A48: Probability of shortfall vs. income floor | B48: 0 | C48: 0 | D48: 0
A49: Utility-based metrics:
A50: Risk-adjusted income (RAI) | B50: ='Detailed Outcomes'!$B$14 -> 41830.88355 | C50: 44721.95525 | D50: 41830.88355
A51: Median account balance
A52: ="Age "&70&" (Survival probability "&TEXT(VLOOKUP(70,'Detailed Outcomes'!$B$19:$C$27,2,FALSE), "0%")&")" -> Age 70 (Survival probability 97%) | B52: ='Detailed Outcomes'!$G$32 -> 116289.7262 | C52: 363950.3571 | D52: 116289.7262
A53: ="Age "&75&" (Survival probability "&TEXT(VLOOKUP(75,'Detailed Outcomes'!$B$19:$C$27,2,FALSE), "0%")&")" -> Age 75 (Survival probability 91%) | B53: ='Detailed Outcomes'!$G$33 -> 106019.2577 | C53: 349693.3631 | D53: 106019.2577
A54: ="Age "&80&" (Survival probability "&TEXT(VLOOKUP(80,'Detailed Outcomes'!$B$19:$C$27,2,FALSE), "0%")&")" -> Age 80 (Survival probability 81%) | B54: ='Detailed Outcomes'!$G$34 -> 92454.49497 | C54: 318774.732 | D54: 92454.49497
A55: ="Age "&85&" (Survival probability "&TEXT(VLOOKUP(85,'Detailed Outcomes'!$B$19:$C$27,2,FALSE), "0%")&")" -> Age 85 (Survival probability 66%) | B55: ='Detailed Outcomes'!$G$35 -> 77153.99956 | C55: 279591.1271 | D55: 77153.99956
A56: ="Age "&90&" (Survival probability "&TEXT(VLOOKUP(90,'Detailed Outcomes'!$B$19:$C$27,2,FALSE), "0%")&")" -> Age 90 (Survival probability 42%) | B56: ='Detailed Outcomes'!$G$36 -> 59607.78046 | C56: 228220.6455 | D56: 59607.78046
A57: ="Age "&95&" (Survival probability "&TEXT(VLOOKUP(95,'Detailed Outcomes'!$B$19:$C$27,2,FALSE), "0%")&")" -> Age 95 (Survival probability 18%) | B57: ='Detailed Outcomes'!$G$37 -> 40983.15461 | C57: 165072.0437 | D57: 40983.15461
A58: ="Age "&100&" (Survival probability "&TEXT(VLOOKUP(100,'Detailed Outcomes'!$B$19:$C$27,2,FALSE), "0%")&")" -> Age 100 (Survival probability 4%) | B58: ='Detailed Outcomes'!$G$38 -> 23260.60249 | C58: 98804.40119 | D58: 23260.60249
A59: ="Age "&105&" (Survival probability "&TEXT(VLOOKUP(105,'Detailed Outcomes'!$B$19:$C$27,2,FALSE), "0.0%")&")" -> Age 105 (Survival probability 0.5%) | B59: ='Detailed Outcomes'!$G$39 -> 8644.247706 | C59: 38941.79112 | D59: 8644.247706
A61: Interim calculations for model input validation
A62: Minimum LA proportion | C62: =ROUNDUP((C7-C6)*C63/C5,2) -> 0.23 | D62: =ROUNDUP((D7-D6)*D63/D5,2) -> 0.23
A63: LA Annuitisation Factor | C63: =SUMPRODUCT('Retiree Details and Assumptions'!$E$40:$E$84,C65:C109)/(1-C16) -> 22.13111368 | D63: =SUMPRODUCT('Retiree Details and Assumptions'!$E$40:$E$84,D65:D109)/(1-D16) -> 22.13111368
A64: Discount Factor (Life Annuity) by age
A65: 65 | C65: =(1+C$15)^($A$65-$A65) -> 1 | D65: 1
A66: 66 | C66: 0.9900990099 | D66: 0.9900990099
A67: 67 | C67: 0.9802960494 | D67: 0.9802960494
A68: 68 | C68: 0.9705901479 | D68: 0.9705901479
A69: 69 | C69: 0.9609803445 | D69: 0.9609803445
A70: 70 | C70: 0.9514656876 | D70: 0.9514656876
A71: 71 | C71: 0.9420452353 | D71: 0.9420452353
A72: 72 | C72: 0.9327180547 | D72: 0.9327180547
A73: 73 | C73: 0.9234832225 | D73: 0.9234832225
A74: 74 | C74: 0.9143398242 | D74: 0.9143398242
A75: 75 | C75: 0.9052869547 | D75: 0.9052869547
A76: 76 | C76: 0.8963237175 | D76: 0.8963237175
A77: 77 | C77: 0.8874492253 | D77: 0.8874492253
A78: 78 | C78: 0.8786625993 | D78: 0.8786625993
A79: 79 | C79: 0.8699629696 | D79: 0.8699629696
A80: 80 | C80: 0.8613494748 | D80: 0.8613494748
A81: 81 | C81: 0.8528212622 | D81: 0.8528212622
A82: 82 | C82: 0.8443774873 | D82: 0.8443774873
A83: 83 | C83: 0.8360173142 | D83: 0.8360173142
A84: 84 | C84: 0.827739915 | D84: 0.827739915
A85: 85 | C85: =(1+C$15)^($A$65-$A85) -> 0.8195444703 | D85: 0.8195444703
A86: 86 | C86: 0.8114301687 | D86: 0.8114301687
A87: 87 | C87: 0.8033962066 | D87: 0.8033962066
A88: 88 | C88: 0.7954417887 | D88: 0.7954417887
A89: 89 | C89: 0.7875661274 | D89: 0.7875661274
A90: 90 | C90: 0.779768443 | D90: 0.779768443
A91: 91 | C91: 0.7720479634 | D91: 0.7720479634
A92: 92 | C92: 0.7644039241 | D92: 0.7644039241
A93: 93 | C93: 0.7568355684 | D93: 0.7568355684
A94: 94 | C94: 0.749342147 | D94: 0.749342147
A95: 95 | C95: 0.7419229178 | D95: 0.7419229178
A96: 96 | C96: 0.7345771463 | D96: 0.7345771463
A97: 97 | C97: 0.7273041053 | D97: 0.7273041053
A98: 98 | C98: 0.7201030745 | D98: 0.7201030745
A99: 99 | C99: 0.7129733411 | D99: 0.7129733411
A100: 100 | C100: 0.7059141991 | D100: 0.7059141991
A101: 101 | C101: 0.6989249496 | D101: 0.6989249496
A102: 102 | C102: 0.6920049006 | D102: 0.6920049006
A103: 103 | C103: 0.685153367 | D103: 0.685153367
A104: 104 | C104: 0.6783696702 | D104: 0.6783696702
A105: 105 | C105: 0.6716531389 | D105: 0.6716531389
A106: 106 | C106: 0.6650031078 | D106: 0.6650031078
A107: 107 | C107: 0.6584189186 | D107: 0.6584189186
A108: 108 | C108: 0.6518999194 | D108: 0.6518999194
A109: 109 | C109: 0.6454454648 | D109: 0.6454454648
B111: Lookup table for macros (VBA)
B112: Name Range
B113: RiskAversion
B114: Assets
B115: ExtInc
B116: IncFloor
B117: LAProp
B118: ILAProp
B119: ILAGroAll
B120: AIR
B121: RSAGroAll
B122: RetGroMean
B123: RetGroStDev
B124: RiskFree
B125: LALoad
B126: ILALoad
B127: Input ID
B128: 1
B129: 2
B130: 3
B131: 4
B132: 5
B133: 6
B134: 7
B135: 8
B136: 9
B137: 10
B138: 11
B139: 12
B140: 13
B141: 14

Sheet RSABal
A1: Simulation / Age | B1: 65 | C1: =B1+1 -> 66 | D1: =C1+1 -> 67 | E1: 68 | F1: 69 | G1: 70 | H1: 71 | I1: 72 | J1: 73 | K1: 74 | L1: 75 | M1: 76 | N1: 77 | O1: 78 | P1: 79 | Q1: 80 | R1: 81 | S1: 82 | T1: 83 | U1: 84 | V1: 85 | W1: 86 | X1: 87 | Y1: 88 | Z1: 89 | AA1: 90 | AB1: 91 | AC1: 92 | AD1: 93 | AE1: 94 | AF1: 95 | AG1: 96 | AH1: 97 | AI1: 98 | AJ1: 99 | AK1: 100 | AL1: 101 | AM1: 102 | AN1: 103 | AO1: 104 | AP1: 105 | AQ1: 106 | AR1: 107 | AS1: 108 | AT1: 109 | AU1: 110 | AW1: Exhaustion age | AX1: Prob survival | AY1: Expected years of shortfall
A2: 1 | B2: =RSABal -> 125000 | C2: =(B2-RSAInc!B2)*(1+RSARet!B2) -> 124500.1386 | D2: =(C2-RSAInc!C2)*(1+RSARet!C2) -> 117447.9156 | E2: =(D2-RSAInc!D2)*(1+RSARet!D2) -> 124977.688 | F2: =(E2-RSAInc!E2)*(1+RSARet!E2) -> 123172.705 | G2: =(F2-RSAInc!F2)*(1+RSARet!F2) -> 118478.0273 | H2: =(G2-RSAInc!G2)*(1+RSARet!G2) -> 121170.1229 | I2: =(H2-RSAInc!H2)*(1+RSARet!H2) -> 116615.7703 | J2: =(I2-RSAInc!I2)*(1+RSARet!I2) -> 111161.8692 | K2: =(J2-RSAInc!J2)*(1+RSARet!J2) -> 106928.8967 | L2: =(K2-RSAInc!K2)*(1+RSARet!K2) -> 106569.1521 | M2: =(L2-RSAInc!L2)*(1+RSARet!L2) -> 102808.2384 | N2: =(M2-RSAInc!M2)*(1+RSARet!M2) -> 104006.6133 | O2: =(N2-RSAInc!N2)*(1+RSARet!N2) -> 105319.7443 | P2: =(O2-RSAInc!O2)*(1+RSARet!O2) -> 101111.7111 | Q2: =(P2-RSAInc!P2)*(1+RSARet!P2) -> 100368.1695 | R2: =(Q2-RSAInc!Q2)*(1+RSARet!Q2) -> 96534.20177 | S2: =(R2-RSAInc!R2)*(1+RSARet!R2) -> 89367.58112 | T2: =(S2-RSAInc!S2)*(1+RSARet!S2) -> 89421.40847 | U2: =(T2-RSAInc!T2)*(1+RSARet!T2) -> 80852.08319 | V2: =(U2-RSAInc!U2)*(1+RSARet!U2) -> 77443.33622 | W2: =(V2-RSAInc!V2)*(1+RSARet!V2) -> 78021.58562 | X2: =(W2-RSAInc!W2)*(1+RSARet!W2) -> 78881.12091 | Y2: =(X2-RSAInc!X2)*(1+RSARet!X2) -> 77075.85329 | Z2: =(Y2-RSAInc!Y2)*(1+RSARet!Y2) -> 71906.51823 | AA2: =(Z2-RSAInc!Z2)*(1+RSARet!Z2) -> 63880.93401 | AB2: =(AA2-RSAInc!AA2)*(1+RSARet!AA2) -> 62659.59664 | AC2: =(AB2-RSAInc!AB2)*(1+RSARet!AB2) -> 57078.07728 | AD2: =(AC2-RSAInc!AC2)*(1+RSARet!AC2) -> 51901.14587 | AE2: =(AD2-RSAInc!AD2)*(1+RSARet!AD2) -> 49069.94888 | AF2: =(AE2-RSAInc!AE2)*(1+RSARet!AE2) -> 43448.1191 | AG2: =(AF2-RSAInc!AF2)*(1+RSARet!AF2) -> 39991.5142 | AH2: =(AG2-RSAInc!AG2)*(1+RSARet!AG2) -> 37741.19528 | AI2: =(AH2-RSAInc!AH2)*(1+RSARet!AH2) -> 31764.92331 | AJ2: =(AI2-RSAInc!AI2)*(1+RSARet!AI2) -> 27685.70978 | AK2: =(AJ2-RSAInc!AJ2)*(1+RSARet!AJ2) -> 23298.99744 | AL2: =(AK2-RSAInc!AK2)*(1+RSARet!AK2) -> 20219.78798 | AM2: =(AL2-RSAInc!AL2)*(1+RSARet!AL2) -> 17961.95463 | AN2: =(AM2-RSAInc!AM2)*(1+RSARet!AM2) -> 14859.00468 | AO2: =(AN2-RSAInc!AN2)*(1+RSARet!AN2) -> 12245.81994 | AP2: =(AO2-RSAInc!AO2)*(1+RSARet!AO2) -> 9159.078174 | AQ2: =(AP2-RSAInc!AP2)*(1+RSARet!AP2) -> 6798.454867 | AR2: =(AQ2-RSAInc!AQ2)*(1+RSARet!AQ2) -> 4894.140102 | AS2: =(AR2-RSAInc!AR2)*(1+RSARet!AR2) -> 2806.238157 | AT2: =(AS2-RSAInc!AS2)*(1+RSARet!AS2) -> 1132.368511 | AU2: =(AT2-RSAInc!AT2)*(1+RSARet!AT2) -> -4.975414849e-12 | AW2: =IF(65+COUNTIF(C2:AU2,">0")>109,"",65+COUNTIF(C2:AU2,">0")) -> 109 | AX2: =IF(AW2="",0,LOOKUP(AW2,'Retiree Details and Assumptions'!D$40:D$85,'Retiree Details and Assumptions'!E$40:E$85)) -> 0.0004348127378 | AY2: =IF(AW2="","",LOOKUP(AW2,'Retiree Details and Assumptions'!D$40:D$85,'Retiree Details and Assumptions'!H$40:H$85)) -> 1
A3: 2 | B3: 125000 | C3: =(B3-RSAInc!B3)*(1+RSARet!B3) -> 115789.7279 | D3: =(C3-RSAInc!C3)*(1+RSARet!C3) -> 105883.0111 | E3: =(D3-RSAInc!D3)*(1+RSARet!D3) -> 103522.5479 | F3: =(E3-RSAInc!E3)*(1+RSARet!E3) -> 106975.0688 | G3: =(F3-RSAInc!F3)*(1+RSARet!F3) -> 107358.3741 | H3: =(G3-RSAInc!G3)*(1+RSARet!G3) -> 99952.29722 | I3: =(H3-RSAInc!H3)*(1+RSARet!H3) -> 100970.9797 | J3: =(I3-RSAInc!I3)*(1+RSARet!I3) -> 99879.38247 | K3: =(J3-RSAInc!J3)*(1+RSARet!J3) -> 99689.6122 | L3: =(K3-RSAInc!K3)*(1+RSARet!K3) -> 93166.33532 | M3: =(L3-RSAInc!L3)*(1+RSARet!L3) -> 87356.32621 | N3: =(M3-RSAInc!M3)*(1+RSARet!M3) -> 77117.77896 | O3: =(N3-RSAInc!N3)*(1+RSARet!N3) -> 76859.63705 | P3: =(O3-RSAInc!O3)*(1+RSARet!O3) -> 74062.59229 | Q3: =(P3-RSAInc!P3)*(1+RSARet!P3) -> 74671.48402 | R3: =(Q3-RSAInc!Q3)*(1+RSARet!Q3) -> 69439.36561 | S3: =(R3-RSAInc!R3)*(1+RSARet!R3) -> 63637.01069 | T3: =(S3-RSAInc!S3)*(1+RSARet!S3) -> 58259.97306 | U3: =(T3-RSAInc!T3)*(1+RSARet!T3) -> 54322.52065 | V3: =(U3-RSAInc!U3)*(1+RSARet!U3) -> 52888.18782 | W3: =(V3-RSAInc!V3)*(1+RSARet!V3) -> 49434.36891 | X3: =(W3-RSAInc!W3)*(1+RSARet!W3) -> 45654.64471 | Y3: =(X3-RSAInc!X3)*(1+RSARet!X3) -> 45198.35916 | Z3: =(Y3-RSAInc!Y3)*(1+RSARet!Y3) -> 44480.54615 | AA3: =(Z3-RSAInc!Z3)*(1+RSARet!Z3) -> 41632.36995 | AB3: =(AA3-RSAInc!AA3)*(1+RSARet!AA3) -> 39273.7108 | AC3: =(AB3-RSAInc!AB3)*(1+RSARet!AB3) -> 34672.11338 | AD3: =(AC3-RSAInc!AC3)*(1+RSARet!AC3) -> 32687.49075 | AE3: =(AD3-RSAInc!AD3)*(1+RSARet!AD3) -> 32037.53466 | AF3: =(AE3-RSAInc!AE3)*(1+RSARet!AE3) -> 28984.34097 | AG3: =(AF3-RSAInc!AF3)*(1+RSARet!AF3) -> 27841.61162 | AH3: =(AG3-RSAInc!AG3)*(1+RSARet!AG3) -> 24419.34191 | AI3: =(AH3-RSAInc!AH3)*(1+RSARet!AH3) -> 21402.57307 | AJ3: =(AI3-RSAInc!AI3)*(1+RSARet!AI3) -> 19172.42487 | AK3: =(AJ3-RSAInc!AJ3)*(1+RSARet!AJ3) -> 17105.44667 | AL3: =(AK3-RSAInc!AK3)*(1+RSARet!AK3) -> 15462.69335 | AM3: =(AL3-RSAInc!AL3)*(1+RSARet!AL3) -> 12942.73316 | AN3: =(AM3-RSAInc!AM3)*(1+RSARet!AM3) -> 10273.14471 | AO3: =(AN3-RSAInc!AN3)*(1+RSARet!AN3) -> 8079.124035 | AP3: =(AO3-RSAInc!AO3)*(1+RSARet!AO3) -> 5885.208727 | AQ3: =(AP3-RSAInc!AP3)*(1+RSARet!AP3) -> 4435.980855 | AR3: =(AQ3-RSAInc!AQ3)*(1+RSARet!AQ3) -> 3003.873323 | AS3: =(AR3-RSAInc!AR3)*(1+RSARet!AR3) -> 1830.795883 | AT3: =(AS3-RSAInc!AS3)*(1+RSARet!AS3) -> 783.1421801 | AU3: =(AT3-RSAInc!AT3)*(1+RSARet!AT3) -> -3.642599267e-12 | AW3: =IF(65+COUNTIF(C3:AU3,">0")>109,"",65+COUNTIF(C3:AU3,">0")) -> 109 | AX3: =IF(AW3="",0,LOOKUP(AW3,'Retiree Details and Assumptions'!D$40:D$85,'Retiree Details and Assumptions'!E$40:E$85)) -> 0.0004348127378 | AY3: =IF(AW3="","",LOOKUP(AW3,'Retiree Details and Assumptions'!D$40:D$85,'Retiree Details and Assumptions'!H$40:H$85)) -> 1
A4: 3 | B4: 125000 | C4: =(B4-RSAInc!B4)*(1+RSARet!B4) -> 129636.2585 | D4: =(C4-RSAInc!C4)*(1+RSARet!C4) -> 126625.8045 | E4: =(D4-RSAInc!D4)*(1+RSARet!D4) -> 125551.7937 | F4: =(E4-RSAInc!E4)*(1+RSARet!E4) -> 127490.5532 | G4: =(F4-RSAInc!F4)*(1+RSARet!F4) -> 135006.1597 | H4: =(G4-RSAInc!G4)*(1+RSARet!G4) -> 128253.4841 | I4: =(H4-RSAInc!H4)*(1+RSARet!H4) -> 127783.6949 | J4: =(I4-RSAInc!I4)*(1+RSARet!I4) -> 130087.0615 | K4: =(J4-RSAInc!J4)*(1+RSARet!J4) -> 118994.5893 | L4: =(K4-RSAInc!K4)*(1+RSARet!K4) -> 116734.6728 | M4: =(L4-RSAInc!L4)*(1+RSARet!L4) -> 115985.5238 | N4: =(M4-RSAInc!M4)*(1+RSARet!M4) -> 114614.2183 | O4: =(N4-RSAInc!N4)*(1+RSARet!N4) -> 113648.3574 | P4: =(O4-RSAInc!O4)*(1+RSARet!O4) -> 111528.4348 | Q4: =(P4-RSAInc!P4)*(1+RSARet!P4) -> 105528.8517 | R4: =(Q4-RSAInc!Q4)*(1+RSARet!Q4) -> 107909.0332 | S4: =(R4-RSAInc!R4)*(1+RSARet!R4) -> 105568.1369 | T4: =(S4-RSAInc!S4)*(1+RSARet!S4) -> 103641.4171 | U4: =(T4-RSAInc!T4)*(1+RSARet!T4) -> 101848.9191 | V4: =(U4-RSAInc!U4)*(1+RSARet!U4) -> 101308.3988 | W4: =(V4-RSAInc!V4)*(1+RSARet!V4) -> 97067.16918 | X4: =(W4-RSAInc!W4)*(1+RSARet!W4) -> 88463.29581 | Y4: =(X4-RSAInc!X4)*(1+RSARet!X4) -> 79994.88382 | Z4: =(Y4-RSAInc!Y4)*(1+RSARet!Y4) -> 78710.30893 | AA4: =(Z4-RSAInc!Z4)*(1+RSARet!Z4) -> 72929.23634 | AB4: =(AA4-RSAInc!AA4)*(1+RSARet!AA4) -> 65528.30854 | AC4: =(AB4-RSAInc!AB4)*(1+RSARet!AB4) -> 61823.00853 | AD4: =(AC4-RSAInc!AC4)*(1+RSARet!AC4) -> 58940.60575 | AE4: =(AD4-RSAInc!AD4)*(1+RSARet!AD4) -> 52590.45783 | AF4: =(AE4-RSAInc!AE4)*(1+RSARet!AE4) -> 51280.33358 | AG4: =(AF4-RSAInc!AF4)*(1+RSARet!AF4) -> 47564.95508 | AH4: =(AG4-RSAInc!AG4)*(1+RSARet!AG4) -> 41370.80149 | AI4: =(AH4-RSAInc!AH4)*(1+RSARet!AH4) -> 34830.82295 | AJ4: =(AI4-RSAInc!AI4)*(1+RSARet!AI4) -> 31062.89554 | AK4: =(AJ4-RSAInc!AJ4)*(1+RSARet!AJ4) -> 28383.59066 | AL4: =(AK4-RSAInc!AK4)*(1+RSARet!AK4) -> 25106.16738 | AM4: =(AL4-RSAInc!AL4)*(1+RSARet!AL4) -> 19184.90199 | AN4: =(AM4-RSAInc!AM4)*(1+RSARet!AM4) -> 15002.32316 | AO4: =(AN4-RSAInc!AN4)*(1+RSARet!AN4) -> 12005.62205 | AP4: =(AO4-RSAInc!AO4)*(1+RSARet!AO4) -> 9755.337957 | AQ4: =(AP4-RSAInc!AP4)*(1+RSARet!AP4) -> 7838.217569 | AR4: =(AQ4-RSAInc!AQ4)*(1+RSARet!AQ4) -> 5346.147885 | AS4: =(AR4-RSAInc!AR4)*(1+RSARet!AR4) -> 2971.84486 | AT4: =(AS4-RSAInc!AS4)*(1+RSARet!AS4) -> 1249.914548 | AU4: =(AT4-RSAInc!AT4)*(1+RSARet!AT4) -> -5.927333004e-12 | AW4: 109 | AX4: =IF(AW4="",0,LOOKUP(AW4,'Retiree Details and Assumptions'!D$40:D$85,'Retiree Details and Assumptions'!E$40:E$85)) -> 0.0004348127378 | AY4: =IF(AW4="","",LOOKUP(AW4,'Retiree Details and Assumptions'!D$40:D$85,'Retiree Details and Assumptions'!H$40:H$85)) -> 1
A5: 4 | B5: 125000 | C5: =(B5-RSAInc!B5)*(1+RSARet!B5) -> 119584.7191 | D5: =(C5-RSAInc!C5)*(1+RSARet!C5) -> 124215.6025 | E5: =(D5-RSAInc!D5)*(1+RSARet!D5) -> 121788.1621 | F5: =(E5-RSAInc!E5)*(1+RSARet!E5) -> 118787.2517 | G5: =(F5-RSAInc!F5)*(1+RSARet!F5) -> 111439.1353 | H5: =(G5-RSAInc!G5)*(1+RSARet!G5) -> 107798.2905 | I5: =(H5-RSAInc!H5)*(1+RSARet!H5) -> 97528.65312 | J5: =(I5-RSAInc!I5)*(1+RSARet!I5) -> 98630.67681 | K5: =(J5-RSAInc!J5)*(1+RSARet!J5) -> 94059.68789 | L5: =(K5-RSAInc!K5)*(1+RSARet!K5) -> 95252.24023 | M5: =(L5-RSAInc!L5)*(1+RSARet!L5) -> 98983.5532 | N5: =(M5-RSAInc!M5)*(1+RSARet!M5) -> 94103.95411 | O5: =(N5-RSAInc!N5)*(1+RSARet!N5) -> 100925.7064 | P5: =(O5-RSAInc!O5)*(1+RSARet!O5) -> 92460.89766 | Q5: =(P5-RSAInc!P5)*(1+RSARet!P5) -> 99746.22277 | R5: =(Q5-RSAInc!Q5)*(1+RSARet!Q5) -> 90968.67107 | S5: =(R5-RSAInc!R5)*(1+RSARet!R5) -> 86390.83565 | T5: =(S5-RSAInc!S5)*(1+RSARet!S5) -> 81342.86323 | U5: =(T5-RSAInc!T5)*(1+RSARet!T5) -> 77988.75197 | V5: =(U5-RSAInc!U5)*(1+RSARet!U5) -> 73571.10695 | W5: =(V5-RSAInc!V5)*(1+RSARet!V5) -> 68947.08115 | X5: =(W5-RSAInc!W5)*(1+RSARet!W5) -> 68814.58374 | Y5: =(X5-RSAInc!X5)*(1+RSARet!X5) -> 72095.18523 | Z5: =(Y5-RSAInc!Y5)*(1+RSARet!Y5) -> 68738.61276 | AA5: =(Z5-RSAInc!Z5)*(1+RSARet!Z5) -> 66728.30908 | AB5: =(AA5-RSAInc!AA5)*(1+RSARet!AA5) -> 64920.98984 | AC5: =(AB5-RSAInc!AB5)*(1+RSARet!AB5) -> 64699.58158 | AD5: =(AC5-RSAInc!AC5)*(1+RSARet!AC5) -> 59442.48647 | AE5: =(AD5-RSAInc!AD5)*(1+RSARet!AD5) -> 53119.02414 | AF5: =(AE5-RSAInc!AE5)*(1+RSARet!AE5) -> 49524.45392 | AG5: =(AF5-RSAInc!AF5)*(1+RSARet!AF5) -> 44240.90054 | AH5: =(AG5-RSAInc!AG5)*(1+RSARet!AG5) -> 37491.31462 | AI5: =(AH5-RSAInc!AH5)*(1+RSARet!AH5) -> 33758.45426 | AJ5: =(AI5-RSAInc!AI5)*(1+RSARet!AI5) -> 29874.2093 | AK5: =(AJ5-RSAInc!AJ5)*(1+RSARet!AJ5) -> 25754.69967 | AL5: =(AK5-RSAInc!AK5)*(1+RSARet!AK5) -> 22107.88189 | AM5: =(AL5-RSAInc!AL5)*(1+RSARet!AL5) -> 18387.48084 | AN5: =(AM5-RSAInc!AM5)*(1+RSARet!AM5) -> 15880.37396 | AO5: =(AN5-RSAInc!AN5)*(1+RSARet!AN5) -> 12801.63713 | AP5: =(AO5-RSAInc!AO5)*(1+RSARet!AO5) -> 9818.077728 | AQ5: =(AP5-RSAInc!AP5)*(1+RSARet!AP5) -> 7178.646837 | AR5: =(AQ5-RSAInc!AQ5)*(1+RSARet!AQ5) -> 5234.797895 | AS5: =(AR5-RSAInc!AR5)*(1+RSARet!AR5) -> 3072.664006 | AT5: =(AS5-RSAInc!AS5)*(1+RSARet!AS5) -> 1352.671012 | AU5: =(AT5-RSAInc!AT5)*(1+RSARet!AT5) -> -5.870902607e-12 | AW5: 109 | AX5: =IF(AW5="",0,LOOKUP(AW5,'Retiree Details and Assumptions'!D$40:D$85,'Retiree Details and Assumptions'!E$40:E$85)) -> 0.0004348127378 | AY5: =IF(AW5="","",LOOKUP(AW5,'Retiree Details and Assumptions'!D$40:D$85,'Retiree Details and Assumptions'!H$40:H$85)) -> 1
A6: 5 | B6: 125000 | C6: =(B6-RSAInc!B6)*(1+RSARet!B6) -> 120178.1038 | D6: =(C6-RSAInc!C6)*(1+RSARet!C6) -> 119289.7473 | E6: =(D6-RSAInc!D6)*(1+RSARet!D6) -> 125718.0635 | F6: =(E6-RSAInc!E6)*(1+RSARet!E6) -> 125685.2512 | G6: =(F6-RSAInc!F6)*(1+RSARet!F6) -> 128724.2911 | H6: =(G6-RSAInc!G6)*(1+RSARet!G6) -> 124468.7524 | I6: =(H6-RSAInc!H6)*(1+RSARet!H6) -> 116143.7195 | J6: =(I6-RSAInc!I6)*(1+RSARet!I6) -> 112599.9389 | K6: =(J6-RSAInc!J6)*(1+RSARet!J6) -> 111702.7664 | L6: =(K6-RSAInc!K6)*(1+RSARet!K6) -> 108600.4367 | M6: =(L6-RSAInc!L6)*(1+RSARet!L6) -> 101965.0075 | N6: =(M6-RSAInc!M6)*(1+RSARet!M6) -> 102556.547 | O6: =(N6-RSAInc!N6)*(1+RSARet!N6) -> 104848.8109 | P6: =(O6-RSAInc!O6)*(1+RSARet!O6) -> 101013.586 | Q6: =(P6-RSAInc!P6)*(1+RSARet!P6) -> 101138.232 | R6: =(Q6-RSAInc!Q6)*(1+RSARet!Q6) -> 95503.91433 | S6: =(R6-RSAInc!R6)*(1+RSARet!R6) -> 92969.65572 | T6: =(S6-RSAInc!S6)*(1+RSARet!S6) -> 87385.13435 | U6: =(T6-RSAInc!T6)*(1+RSARet!T6) -> 84821.04296 | V6: =(U6-RSAInc!U6)*(1+RSARet!U6) -> 84314.43648 | W6: =(V6-RSAInc!V6)*(1+RSARet!V6) -> 78508.23569 | X6: =(W6-RSAInc!W6)*(1+RSARet!W6) -> 69897.16475 | Y6: =(X6-RSAInc!X6)*(1+RSARet!X6) -> 65953.50323 | Z6: =(Y6-RSAInc!Y6)*(1+RSARet!Y6) -> 60825.95959 | AA6: =(Z6-RSAInc!Z6)*(1+RSARet!Z6) -> 62298.11087 | AB6: =(AA6-RSAInc!AA6)*(1+RSARet!AA6) -> 60305.7978 | AC6: =(AB6-RSAInc!AB6)*(1+RSARet!AB6) -> 60685.46158 | AD6: =(AC6-RSAInc!AC6)*(1+RSARet!AC6) -> 57532.45061 | AE6: =(AD6-RSAInc!AD6)*(1+RSARet!AD6) -> 53072.14736 | AF6: =(AE6-RSAInc!AE6)*(1+RSARet!AE6) -> 46810.16043 | AG6: =(AF6-RSAInc!AF6)*(1+RSARet!AF6) -> 39391.56273 | AH6: =(AG6-RSAInc!AG6)*(1+RSARet!AG6) -> 35926.31208 | AI6: =(AH6-RSAInc!AH6)*(1+RSARet!AH6) -> 32120.7208 | AJ6: =(AI6-RSAInc!AI6)*(1+RSARet!AI6) -> 26969.22405 | AK6: =(AJ6-RSAInc!AJ6)*(1+RSARet!AJ6) -> 25000.39735 | AL6: =(AK6-RSAInc!AK6)*(1+RSARet!AK6) -> 21779.80794 | AM6: =(AL6-RSAInc!AL6)*(1+RSARet!AL6) -> 20002.70336 | AN6: =(AM6-RSAInc!AM6)*(1+RSARet!AM6) -> 17052.54633 | AO6: =(AN6-RSAInc!AN6)*(1+RSARet!AN6) -> 13682.39738 | AP6: =(AO6-RSAInc!AO6)*(1+RSARet!AO6) -> 10778.94837 | AQ6: =(AP6-RSAInc!AP6)*(1+RSARet!AP6) -> 7448.634623 | AR6: =(AQ6-RSAInc!AQ6)*(1+RSARet!AQ6) -> 5214.68177 | AS6: =(AR6-RSAInc!AR6)*(1+RSARet!AR6) -> 3046.264694 | AT6: =(AS6-RSAInc!AS6)*(1+RSARet!AS6) -> 1319.607558 | AU6: =(AT6-RSAInc!AT6)*(1+RSARet!AT6) -> -5.816124773e-12 | AW6: 109 | AX6: =IF(AW6="",0,LOOKUP(AW6,'Retiree Details and Assumptions'!D$40:D$85,'Retiree Details and Assumptions'!E$40:E$85)) -> 0.0004348127378 | AY6: =IF(AW6="","",LOOKUP(AW6,'Retiree Details and Assumptions'!D$40:D$85,'Retiree Details and Assumptions'!H$40:H$85)) -> 1
A7: 6 | B7: 125000 | C7: =(B7-RSAInc!B7)*(1+RSARet!B7) -> 124156.1057 | D7: =(C7-RSAInc!C7)*(1+RSARet!C7) -> 119802.3234 | E7: =(D7-RSAInc!D7)*(1+RSARet!D7) -> 121307.7562 | F7: =(E7-RSAInc!E7)*(1+RSARet!E7) -> 116838.4135 | G7: =(F7-RSAInc!F7)*(1+RSARet!F7) -> 112067.865 | H7: =(G7-RSAInc!G7)*(1+RSARet!G7) -> 120300.2597 | I7: =(H7-RSAInc!H7)*(1+RSARet!H7) -> 110783.3265 | J7: =(I7-RSAInc!I7)*(1+RSARet!I7) -> 105650.9473 | K7: =(J7-RSAInc!J7)*(1+RSARet!J7) -> 107100.8227 | L7: =(K7-RSAInc!K7)*(1+RSARet!K7) -> 113283.5922 | M7: =(L7-RSAInc!L7)*(1+RSARet!L7) -> 106545.4428 | N7: =(M7-RSAInc!M7)*(1+RSARet!M7) -> 97971.19931 | O7: =(N7-RSAInc!N7)*(1+RSARet!N7) -> 102382.7009 | P7: =(O7-RSAInc!O7)*(1+RSARet!O7) -> 94057.47298 | Q7: =(P7-RSAInc!P7)*(1+RSARet!P7) -> 90375.8832 | R7: =(Q7-RSAInc!Q7)*(1+RSARet!Q7) -> 89845.0666 | S7: =(R7-RSAInc!R7)*(1+RSARet!R7) -> 91858.02889 | T7: =(S7-RSAInc!S7)*(1+RSARet!S7) -> 93092.2324 | U7: =(T7-RSAInc!T7)*(1+RSARet!T7) -> 83315.26065 | V7: =(U7-RSAInc!U7)*(1+RSARet!U7) -> 81754.26954 | W7: =(V7-RSAInc!V7)*(1+RSARet!V7) -> 82918.10589 | X7: =(W7-RSAInc!W7)*(1+RSARet!W7) -> 79085.13771 | Y7: =(X7-RSAInc!X7)*(1+RSARet!X7) -> 73510.29028 | Z7: =(Y7-RSAInc!Y7)*(1+RSARet!Y7) -> 65769.64606 | AA7: =(Z7-RSAInc!Z7)*(1+RSARet!Z7) -> 63323.14475 | AB7: =(AA7-RSAInc!AA7)*(1+RSARet!AA7) -> 57722.30904 | AC7: =(AB7-RSAInc!AB7)*(1+RSARet!AB7) -> 53641.14688 | AD7: =(AC7-RSAInc!AC7)*(1+RSARet!AC7) -> 51362.86443 | AE7: =(AD7-RSAInc!AD7)*(1+RSARet!AD7) -> 49161.32714 | AF7: =(AE7-RSAInc!AE7)*(1+RSARet!AE7) -> 43160.22144 | AG7: =(AF7-RSAInc!AF7)*(1+RSARet!AF7) -> 40148.77717 | AH7: =(AG7-RSAInc!AG7)*(1+RSARet!AG7) -> 33505.48355 | AI7: =(AH7-RSAInc!AH7)*(1+RSARet!AH7) -> 31274.72039 | AJ7: =(AI7-RSAInc!AI7)*(1+RSARet!AI7) -> 27234.0411 | AK7: =(AJ7-RSAInc!AJ7)*(1+RSARet!AJ7) -> 23919.9432 | AL7: =(AK7-RSAInc!AK7)*(1+RSARet!AK7) -> 20256.43928 | AM7: =(AL7-RSAInc!AL7)*(1+RSARet!AL7) -> 16420.29329 | AN7: =(AM7-RSAInc!AM7)*(1+RSARet!AM7) -> 14523.35836 | AO7: =(AN7-RSAInc!AN7)*(1+RSARet!AN7) -> 11524.62292 | AP7: =(AO7-RSAInc!AO7)*(1+RSARet!AO7) -> 8794.078351 | AQ7: =(AP7-RSAInc!AP7)*(1+RSARet!AP7) -> 6172.217627 | AR7: =(AQ7-RSAInc!AQ7)*(1+RSARet!AQ7) -> 4123.6571 | AS7: =(AR7-RSAInc!AR7)*(1+RSARet!AR7) -> 2369.126599 | AT7: =(AS7-RSAInc!AS7)*(1+RSARet!AS7) -> 1042.328966 | AU7: =(AT7-RSAInc!AT7)*(1+RSARet!AT7) -> -4.532029696e-12 | AW7: 109 | AX7: =IF(AW7="",0,LOOKUP(AW7,'Retiree Details and Assumptions'!D$40:D$85,'Retiree Details and Assumptions'!E$40:E$85)) -> 0.0004348127378 | AY7: =IF(AW7="","",LOOKUP(AW7,'Retiree Details and Assumptions'!D$40:D$85,'Retiree Details and Assumptions'!H$40:H$85)) -> 1
A8: 7 | B8: 125000 | C8: =(B8-RSAInc!B8)*(1+RSARet!B8) -> 126523.6672 | D8: =(C8-RSAInc!C8)*(1+RSARet!C8) -> 133947.3807 | E8: =(D8-RSAInc!D8)*(1+RSARet!D8) -> 127446.9258 | F8: =(E8-RSAInc!E8)*(1+RSARet!E8) -> 120493.554 | G8: =(F8-RSAInc!F8)*(1+RSARet!F8) -> 127890.9261 | H8: =(G8-RSAInc!G8)*(1+RSARet!G8) -> 129849.2283 | I8: =(H8-RSAInc!H8)*(1+RSARet!H8) -> 126786.6365 | J8: =(I8-RSAInc!I8)*(1+RSARet!I8) -> 127248.5519 | K8: =(J8-RSAInc!J8)*(1+RSARet!J8) -> 126843.7312 | L8: =(K8-RSAInc!K8)*(1+RSARet!K8) -> 128814.3946 | M8: =(L8-RSAInc!L8)*(1+RSARet!L8) -> 121135.4166 | N8: =(M8-RSAInc!M8)*(1+RSARet!M8) -> 116977.4912 | O8: =(N8-RSAInc!N8)*(1+RSARet!N8) -> 120726.3673 | P8: =(O8-RSAInc!O8)*(1+RSARet!O8) -> 121863.6907 | Q8: =(P8-RSAInc!P8)*(1+RSARet!P8) -> 114189.8306 | R8: =(Q8-RSAInc!Q8)*(1+RSARet!Q8) -> 108469.7537 | S8: =(R8-RSAInc!R8)*(1+RSARet!R8) -> 106677.3768 | T8: =(S8-RSAInc!S8)*(1+RSARet!S8) -> 101000.5297 | U8: =(T8-RSAInc!T8)*(1+RSARet!T8) -> 104113.5418 | V8: =(U8-RSAInc!U8)*(1+RSARet!U8) -> 95834.78679 | W8: =(V8-RSAInc!V8)*(1+RSARet!V8) -> 93847.20489 | X8: =(W8-RSAInc!W8)*(1+RSARet!W8) -> 89290.05309 | Y8: =(X8-RSAInc!X8)*(1+RSARet!X8) -> 92327.82751 | Z8: =(Y8-RSAInc!Y8)*(1+RSARet!Y8) -> 91871.69623 | AA8: =(Z8-RSAInc!Z8)*(1+RSARet!Z8) -> 91378.6508 | AB8: =(AA8-RSAInc!AA8)*(1+RSARet!AA8) -> 90113.6254 | AC8: =(AB8-RSAInc!AB8)*(1+RSARet!AB8) -> 83766.64718 | AD8: =(AC8-RSAInc!AC8)*(1+RSARet!AC8) -> 80633.84608 | AE8: =(AD8-RSAInc!AD8)*(1+RSARet!AD8) -> 79975.81712 | AF8: =(AE8-RSAInc!AE8)*(1+RSARet!AE8) -> 80925.58264 | AG8: =(AF8-RSAInc!AF8)*(1+RSARet!AF8) -> 75151.38596 | AH8: =(AG8-RSAInc!AG8)*(1+RSARet!AG8) -> 66262.34287 | AI8: =(AH8-RSAInc!AH8)*(1+RSARet!AH8) -> 57583.54705 | AJ8: =(AI8-RSAInc!AI8)*(1+RSARet!AI8) -> 50178.7644 | AK8: =(AJ8-RSAInc!AJ8)*(1+RSARet!AJ8) -> 43255.10236 | AL8: =(AK8-RSAInc!AK8)*(1+RSARet!AK8) -> 36130.30509 | AM8: =(AL8-RSAInc!AL8)*(1+RSARet!AL8) -> 32111.98054 | AN8: =(AM8-RSAInc!AM8)*(1+RSARet!AM8) -> 25035.45431 | AO8: =(AN8-RSAInc!AN8)*(1+RSARet!AN8) -> 21570.61098 | AP8: =(AO8-RSAInc!AO8)*(1+RSARet!AO8) -> 16723.95679 | AQ8: =(AP8-RSAInc!AP8)*(1+RSARet!AP8) -> 12432.50376 | AR8: =(AQ8-RSAInc!AQ8)*(1+RSARet!AQ8) -> 7841.248145 | AS8: =(AR8-RSAInc!AR8)*(1+RSARet!AR8) -> 4735.851156 | AT8: =(AS8-RSAInc!AS8)*(1+RSARet!AS8) -> 2081.52875 | AU8: =(AT8-RSAInc!AT8)*(1+RSARet!AT8) -> -9.769537075e-12 | AW8: 109 | AX8: =IF(AW8="",0,LOOKUP(AW8,'Retiree Details and Assumptions'!D$40:D$85,'Retiree Details and Assumptions'!E$40:E$85)) -> 0.0004348127378 | AY8: =IF(AW8="","",LOOKUP(AW8,'Retiree Details and Assumptions'!D$40:D$85,'Retiree Details and Assumptions'!H$40:H$85)) -> 1
A9: 8 | B9: 125000 | C9: =(B9-RSAInc!B9)*(1+RSARet!B9) -> 125822.179 | D9: =(C9-RSAInc!C9)*(1+RSARet!C9) -> 122804.4619 | E9: =(D9-RSAInc!D9)*(1+RSARet!D9) -> 124622.2743 | F9: =(E9-RSAInc!E9)*(1+RSARet!E9) -> 115842.2854 | G9: =(F9-RSAInc!F9)*(1+RSARet!F9) -> 119426.0092 | H9: =(G9-RSAInc!G9)*(1+RSARet!G9) -> 109470.8645 | I9: =(H9-RSAInc!H9)*(1+RSARet!H9) -> 109480.8572 | J9: =(I9-RSAInc!I9)*(1+RSARet!I9) -> 106833.1837 | K9: =(J9-RSAInc!J9)*(1+RSARet!J9) -> 100885.0642 | L9: =(K9-RSAInc!K9)*(1+RSARet!K9) -> 97340.37143 | M9: =(L9-RSAInc!L9)*(1+RSARet!L9) -> 93978.7896 | N9: =(M9-RSAInc!M9)*(1+RSARet!M9) -> 89336.01451 | O9: =(N9-RSAInc!N9)*(1+RSARet!N9) -> 86689.18477 | P9: =(O9-RSAInc!O9)*(1+RSARet!O9) -> 87907.9146 | Q9: =(P9-RSAInc!P9)*(1+RSARet!P9) -> 85384.10749 | R9: =(Q9-RSAInc!Q9)*(1+RSARet!Q9) -> 83842.17462 | S9: =(R9-RSAInc!R9)*(1+RSARet!R9) -> 78233.15875 | T9: =(S9-RSAInc!S9)*(1+RSARet!S9) -> 70233.37706 | U9: =(T9-RSAInc!T9)*(1+RSARet!T9) -> 68436.09734 | V9: =(U9-RSAInc!U9)*(1+RSARet!U9) -> 66843.5869 | W9: =(V9-RSAInc!V9)*(1+RSARet!V9) -> 65066.10545 | X9: =(W9-RSAInc!W9)*(1+RSARet!W9) -> 63105.50714 | Y9: =(X9-RSAInc!X9)*(1+RSARet!X9) -> 60986.51171 | Z9: =(Y9-RSAInc!Y9)*(1+RSARet!Y9) -> 58034.22148 | AA9: =(Z9-RSAInc!Z9)*(1+RSARet!Z9) -> 53185.2165 | AB9: =(AA9-RSAInc!AA9)*(1+RSARet!AA9) -> 52608.86018 | AC9: =(AB9-RSAInc!AB9)*(1+RSARet!AB9) -> 44654.18843 | AD9: =(AC9-RSAInc!AC9)*(1+RSARet!AC9) -> 41273.36847 | AE9: =(AD9-RSAInc!AD9)*(1+RSARet!AD9) -> 39057.22795 | AF9: =(AE9-RSAInc!AE9)*(1+RSARet!AE9) -> 36537.58977 | AG9: =(AF9-RSAInc!AF9)*(1+RSARet!AF9) -> 35670.0396 | AH9: =(AG9-RSAInc!AG9)*(1+RSARet!AG9) -> 32057.79716 | AI9: =(AH9-RSAInc!AH9)*(1+RSARet!AH9) -> 26845.34676 | AJ9: =(AI9-RSAInc!AI9)*(1+RSARet!AI9) -> 22810.18337 | AK9: =(AJ9-RSAInc!AJ9)*(1+RSARet!AJ9) -> 19008.13245 | AL9: =(AK9-RSAInc!AK9)*(1+RSARet!AK9) -> 17162.2278 | AM9: =(AL9-RSAInc!AL9)*(1+RSARet!AL9) -> 13975.53797 | AN9: =(AM9-RSAInc!AM9)*(1+RSARet!AM9) -> 11373.26439 | AO9: =(AN9-RSAInc!AN9)*(1+RSARet!AN9) -> 8947.975074 | AP9: =(AO9-RSAInc!AO9)*(1+RSARet!AO9) -> 6500.064003 | AQ9: =(AP9-RSAInc!AP9)*(1+RSARet!AP9) -> 4698.768158 | AR9: =(AQ9-RSAInc!AQ9)*(1+RSARet!AQ9) -> 3376.261533 | AS9: =(AR9-RSAInc!AR9)*(1+RSARet!AR9) -> 2036.860998 | AT9: =(AS9-RSAInc!AS9)*(1+RSARet!AS9) -> 894.5441124 | AU9: =(AT9-RSAInc!AT9)*(1+RSARet!AT9) -> -3.954426685e-12 | AW9: 109 | AX9: =IF(AW9="",0,LOOKUP(AW9,'Retiree Details and Assumptions'!D$40:D$85,'Retiree Details and Assumptions'!E$40:E$85)) -> 0.0004348127378 | AY9: =IF(AW9="","",LOOKUP(AW9,'Retiree Details and Assumptions'!D$40:D$85,'Retiree Details and Assumptions'!H$40:H$85)) -> 1
A10: 9 | B10: 125000 | C10: =(B10-RSAInc!B10)*(1+RSARet!B10) -> 117276.9744 | D10: =(C10-RSAInc!C10)*(1+RSARet!C10) -> 114363.5147 | E10: =(D10-RSAInc!D10)*(1+RSARet!D10) -> 114518.8233 | F10: =(E10-RSAInc!E10)*(1+RSARet!E10) -> 120733.3793 | G10: =(F10-RSAInc!F10)*(1+RSARet!F10) -> 113799.0337 | H10: =(G10-RSAInc!G10)*(1+RSARet!G10) -> 114349.7799 | I10: =(H10-RSAInc!H10)*(1+RSARet!H10) -> 111079.937 | J10: =(I10-RSAInc!I10)*(1+RSARet!I10) -> 110970.5182 | K10: =(J10-RSAInc!J10)*(1+RSARet!J10) -> 113044.8899 | L10: =(K10-RSAInc!K10)*(1+RSARet!K10) -> 107550.3842 | M10: =(L10-RSAInc!L10)*(1+RSARet!L10) -> 104150.1511 | N10: =(M10-RSAInc!M10)*(1+RSARet!M10) -> 103322.6616 | O10: =(N10-RSAInc!N10)*(1+RSARet!N10) -> 97307.81728 | P10: =(O10-RSAInc!O10)*(1+RSARet!O10) -> 92476.6521 | Q10: =(P10-RSAInc!P10)*(1+RSARet!P10) -> 91215.81769 | R10: =(Q10-RSAInc!Q10)*(1+RSARet!Q10) -> 89383.1062 | S10: =(R10-RSAInc!R10)*(1+RSARet!R10) -> 93134.20957 | T10: =(S10-RSAInc!S10)*(1+RSARet!S10) -> 91203.10815 | U10: =(T10-RSAInc!T10)*(1+RSARet!T10) -> 85857.65211 | V10: =(U10-RSAInc!U10)*(1+RSARet!U10) -> 83733.17542 | W10: =(V10-RSAInc!V10)*(1+RSARet!V10) -> 82235.53399 | X10: =(W10-RSAInc!W10)*(1+RSARet!W10) -> 83984.45348 | Y10: =(X10-RSAInc!X10)*(1+RSARet!X10) -> 75217.58883 | Z10: =(Y10-RSAInc!Y10)*(1+RSARet!Y10) -> 64702.59608 | AA10: =(Z10-RSAInc!Z10)*(1+RSARet!Z10) -> 64268.65533 | AB10: =(AA10-RSAInc!AA10)*(1+RSARet!AA10) -> 62176.49592 | AC10: =(AB10-RSAInc!AB10)*(1+RSARet!AB10) -> 56820.08107 | AD10: =(AC10-RSAInc!AC10)*(1+RSARet!AC10) -> 58673.44184 | AE10: =(AD10-RSAInc!AD10)*(1+RSARet!AD10) -> 55273.336 | AF10: =(AE10-RSAInc!AE10)*(1+RSARet!AE10) -> 54055.44682 | AG10: =(AF10-RSAInc!AF10)*(1+RSARet!AF10) -> 50509.32652 | AH10: =(AG10-RSAInc!AG10)*(1+RSARet!AG10) -> 48609.48006 | AI10: =(AH10-RSAInc!AH10)*(1+RSARet!AH10) -> 44431.49925 | AJ10: =(AI10-RSAInc!AI10)*(1+RSARet!AI10) -> 40535.23087 | AK10: =(AJ10-RSAInc!AJ10)*(1+RSARet!AJ10) -> 35624.27503 | AL10: =(AK10-RSAInc!AK10)*(1+RSARet!AK10) -> 30861.70107 | AM10: =(AL10-RSAInc!AL10)*(1+RSARet!AL10) -> 28450.25602 | AN10: =(AM10-RSAInc!AM10)*(1+RSARet!AM10) -> 23255.03582 | AO10: =(AN10-RSAInc!AN10)*(1+RSARet!AN10) -> 19702.84616 | AP10: =(AO10-RSAInc!AO10)*(1+RSARet!AO10) -> 15427.98194 | AQ10: =(AP10-RSAInc!AP10)*(1+RSARet!AP10) -> 11178.98532 | AR10: =(AQ10-RSAInc!AQ10)*(1+RSARet!AQ10) -> 7455.158933 | AS10: =(AR10-RSAInc!AR10)*(1+RSARet!AR10) -> 4625.317201 | AT10: =(AS10-RSAInc!AS10)*(1+RSARet!AS10) -> 2072.591994 | AU10: =(AT10-RSAInc!AT10)*(1+RSARet!AT10) -> -9.782966147e-12 | AW10: 109 | AX10: =IF(AW10="",0,LOOKUP(AW10,'Retiree Details and Assumptions'!D$40:D$85,'Retiree Details and Assumptions'!E$40:E$85)) -> 0.0004348127378 | AY10: =IF(AW10="","",LOOKUP(AW10,'Retiree Details and Assumptions'!D$40:D$85,'Retiree Details and Assumptions'!H$40:H$85)) -> 1
A11: 10 | B11: 125000 | C11: =(B11-RSAInc!B11)*(1+RSARet!B11) -> 121577.1448 | D11: =(C11-RSAInc!C11)*(1+RSARet!C11) -> 118765.4073 | E11: =(D11-RSAInc!D11)*(1+RSARet!D11) -> 120947.2886 | F11: =(E11-RSAInc!E11)*(1+RSARet!E11) -> 127398.8626 | G11: =(F11-RSAInc!F11)*(1+RSARet!F11) -> 126226.6208 | H11: =(G11-RSAInc!G11)*(1+RSARet!G11) -> 131243.4299 | I11: =(H11-RSAInc!H11)*(1+RSARet!H11) -> 126072.7537 | J11: =(I11-RSAInc!I11)*(1+RSARet!I11) -> 126249.8545 | K11: =(J11-RSAInc!J11)*(1+RSARet!J11) -> 130361.4331 | L11: =(K11-RSAInc!K11)*(1+RSARet!K11) -> 122590.7849 | M11: =(L11-RSAInc!L11)*(1+RSARet!L11) -> 122727.5727 | N11: =(M11-RSAInc!M11)*(1+RSARet!M11) -> 113072.6525 | O11: =(N11-RSAInc!N11)*(1+RSARet!N11) -> 104937.424 | P11: =(O11-RSAInc!O11)*(1+RSARet!O11) -> 92735.77562 | Q11: =(P11-RSAInc!P11)*(1+RSARet!P11) -> 85205.44822 | R11: =(Q11-RSAInc!Q11)*(1+RSARet!Q11) -> 79430.73255 | S11: =(R11-RSAInc!R11)*(1+RSARet!R11) -> 77930.92815 | T11: =(S11-RSAInc!S11)*(1+RSARet!S11) -> 76535.61059 | U11: =(T11-RSAInc!T11)*(1+RSARet!T11) -> 72663.04143 | V11: =(U11-RSAInc!U11)*(1+RSARet!U11) -> 69916.31574 | W11: =(V11-RSAInc!V11)*(1+RSARet!V11) -> 66300.65228 | X11: =(W11-RSAInc!W11)*(1+RSARet!W11) -> 63669.61504 | Y11: =(X11-RSAInc!X11)*(1+RSARet!X11) -> 63069.66852 | Z11: =(Y11-RSAInc!Y11)*(1+RSARet!Y11) -> 58681.49046 | AA11: =(Z11-RSAInc!Z11)*(1+RSARet!Z11) -> 57433.75434 | AB11: =(AA11-RSAInc!AA11)*(1+RSARet!AA11) -> 51410.73086 | AC11: =(AB11-RSAInc!AB11)*(1+RSARet!AB11) -> 49010.85772 | AD11: =(AC11-RSAInc!AC11)*(1+RSARet!AC11) -> 45427.99252 | AE11: =(AD11-RSAInc!AD11)*(1+RSARet!AD11) -> 41251.91495 | AF11: =(AE11-RSAInc!AE11)*(1+RSARet!AE11) -> 38914.26886 | AG11: =(AF11-RSAInc!AF11)*(1+RSARet!AF11) -> 34371.84312 | AH11: =(AG11-RSAInc!AG11)*(1+RSARet!AG11) -> 33029.67294 | AI11: =(AH11-RSAInc!AH11)*(1+RSARet!AH11) -> 30481.67779 | AJ11: =(AI11-RSAInc!AI11)*(1+RSARet!AI11) -> 25785.1045 | AK11: =(AJ11-RSAInc!AJ11)*(1+RSARet!AJ11) -> 22610.7692 | AL11: =(AK11-RSAInc!AK11)*(1+RSARet!AK11) -> 19838.00657 | AM11: =(AL11-RSAInc!AL11)*(1+RSARet!AL11) -> 16803.98894 | AN11: =(AM11-RSAInc!AM11)*(1+RSARet!AM11) -> 14412.51747 | AO11: =(AN11-RSAInc!AN11)*(1+RSARet!AN11) -> 11979.43302 | AP11: =(AO11-RSAInc!AO11)*(1+RSARet!AO11) -> 9346.052949 | AQ11: =(AP11-RSAInc!AP11)*(1+RSARet!AP11) -> 6150.468645 | AR11: =(AQ11-RSAInc!AQ11)*(1+RSARet!AQ11) -> 4168.511941 | AS11: =(AR11-RSAInc!AR11)*(1+RSARet!AR11) -> 2583.708869 | AT11: =(AS11-RSAInc!AS11)*(1+RSARet!AS11) -> 1080.228136 | AU11: =(AT11-RSAInc!AT11)*(1+RSARet!AT11) -> -4.792332105e-12 | AW11: 109 | AX11: =IF(AW11="",0,LOOKUP(AW11,'Retiree Details and Assumptions'!D$40:D$85,'Retiree Details and Assumptions'!E$40:E$85)) -> 0.0004348127378 | AY11: =IF(AW11="","",LOOKUP(AW11,'Retiree Details and Assumptions'!D$40:D$85,'Retiree Details and Assumptions'!H$40:H$85)) -> 1
A12: 11 | B12: 125000 | C12: =(B12-RSAInc!B12)*(1+RSARet!B12) -> 120054.8569 | D12: =(C12-RSAInc!C12)*(1+RSARet!C12) -> 114854.7043 | E12: =(D12-RSAInc!D12)*(1+RSARet!D12) -> 116824.488 | F12: =(E12-RSAInc!E12)*(1+RSARet!E12) -> 108771.0507 | G12: =(F12-RSAInc!F12)*(1+RSARet!F12) -> 111631.2636 | H12: =(G12-RSAInc!G12)*(1+RSARet!G12) -> 109068.1461 | I12: =(H12-RSAInc!H12)*(1+RSARet!H12) -> 112958.0168 | J12: =(I12-RSAInc!I12)*(1+RSARet!I12) -> 110720.5548 | K12: =(J12-RSAInc!J12)*(1+RSARet!J12) -> 110722.0007 | L12: =(K12-RSAInc!K12)*(1+RSARet!K12) -> 113968.7073 | M12: =(L12-RSAInc!L12)*(1+RSARet!L12) -> 112291.5209 | N12: =(M12-RSAInc!M12)*(1+RSARet!M12) -> 108879.7392 | O12: =(N12-RSAInc!N12)*(1+RSARet!N12) -> 99461.29663 | P12: =(O12-RSAInc!O12)*(1+RSARet!O12) -> 101041.0149 | Q12: =(P12-RSAInc!P12)*(1+RSARet!P12) -> 96379.77453 | R12: =(Q12-RSAInc!Q12)*(1+RSARet!Q12) -> 95562.44136 | S12: =(R12-RSAInc!R12)*(1+RSARet!R12) -> 94473.90456 | T12: =(S12-RSAInc!S12)*(1+RSARet!S12) -> 98892.20117 | U12: =(T12-RSAInc!T12)*(1+RSARet!T12) -> 100042.4945 | V12: =(U12-RSAInc!U12)*(1+RSARet!U12) -> 93764.48007 | W12: =(V12-RSAInc!V12)*(1+RSARet!V12) -> 87697.02307 | X12: =(W12-RSAInc!W12)*(1+RSARet!W12) -> 77703.02289 | Y12: =(X12-RSAInc!X12)*(1+RSARet!X12) -> 70665.98179 | Z12: =(Y12-RSAInc!Y12)*(1+RSARet!Y12) -> 67552.05822 | AA12: =(Z12-RSAInc!Z12)*(1+RSARet!Z12) -> 65567.0316 | AB12: =(AA12-RSAInc!AA12)*(1+RSARet!AA12) -> 66749.29169 | AC12: =(AB12-RSAInc!AB12)*(1+RSARet!AB12) -> 64170.7541 | AD12: =(AC12-RSAInc!AC12)*(1+RSARet!AC12) -> 57344.75419 | AE12: =(AD12-RSAInc!AD12)*(1+RSARet!AD12) -> 48718.58447 | AF12: =(AE12-RSAInc!AE12)*(1+RSARet!AE12) -> 46237.7658 | AG12: =(AF12-RSAInc!AF12)*(1+RSARet!AF12) -> 44514.6389 | AH12: =(AG12-RSAInc!AG12)*(1+RSARet!AG12) -> 37619.81427 | AI12: =(AH12-RSAInc!AH12)*(1+RSARet!AH12) -> 30685.087 | AJ12: =(AI12-RSAInc!AI12)*(1+RSARet!AI12) -> 26415.38473 | AK12: =(AJ12-RSAInc!AJ12)*(1+RSARet!AJ12) -> 22311.98559 | AL12: =(AK12-RSAInc!AK12)*(1+RSARet!AK12) -> 18868.28112 | AM12: =(AL12-RSAInc!AL12)*(1+RSARet!AL12) -> 14875.25017 | AN12: =(AM12-RSAInc!AM12)*(1+RSARet!AM12) -> 11815.51979 | AO12: =(AN12-RSAInc!AN12)*(1+RSARet!AN12) -> 9501.013914 | AP12: =(AO12-RSAInc!AO12)*(1+RSARet!AO12) -> 7546.579331 | AQ12: =(AP12-RSAInc!AP12)*(1+RSARet!AP12) -> 5931.411768 | AR12: =(AQ12-RSAInc!AQ12)*(1+RSARet!AQ12) -> 3808.157311 | AS12: =(AR12-RSAInc!AR12)*(1+RSARet!AR12) -> 2294.878312 | AT12: =(AS12-RSAInc!AS12)*(1+RSARet!AS12) -> 983.885013 | AU12: =(AT12-RSAInc!AT12)*(1+RSARet!AT12) -> -4.613780091e-12 | AW12: 109 | AX12: =IF(AW12="",0,LOOKUP(AW12,'Retiree Details and Assumptions'!D$40:D$85,'Retiree Details and Assumptions'!E$40:E$85)) -> 0.0004348127378 | AY12: =IF(AW12="","",LOOKUP(AW12,'Retiree Details and Assumptions'!D$40:D$85,'Retiree Details and Assumptions'!H$40:H$85)) -> 1
A13: 12 | B13: 125000 | C13: =(B13-RSAInc!B13)*(1+RSARet!B13) -> 121035.8011 | D13: =(C13-RSAInc!C13)*(1+RSARet!C13) -> 114712.7633 | E13: =(D13-RSAInc!D13)*(1+RSARet!D13) -> 111443.7414 | F13: =(E13-RSAInc!E13)*(1+RSARet!E13) -> 110018.6505 | G13: =(F13-RSAInc!F13)*(1+RSARet!F13) -> 102277.5861 | H13: =(G13-RSAInc!G13)*(1+RSARet!G13) -> 98327.36739 | I13: =(H13-RSAInc!H13)*(1+RSARet!H13) -> 93364.18907 | J13: =(I13-RSAInc!I13)*(1+RSARet!I13) -> 92870.0287 | K13: =(J13-RSAInc!J13)*(1+RSARet!J13) -> 88141.30106 | L13: =(K13-RSAInc!K13)*(1+RSARet!K13) -> 88012.81954 | M13: =(L13-RSAInc!L13)*(1+RSARet!L13) -> 82719.13734 | N13: =(M13-RSAInc!M13)*(1+RSARet!M13) -> 78437.49057 | O13: =(N13-RSAInc!N13)*(1+RSARet!N13) -> 76202.40863 | P13: =(O13-RSAInc!O13)*(1+RSARet!O13) -> 71970.74592 | Q13: =(P13-RSAInc!P13)*(1+RSARet!P13) -> 70134.42049 | R13: =(Q13-RSAInc!Q13)*(1+RSARet!Q13) -> 67816.51733 | S13: =(R13-RSAInc!R13)*(1+RSARet!R13) -> 62063.30762 | T13: =(S13-RSAInc!S13)*(1+RSARet!S13) -> 61876.79272 | U13: =(T13-RSAInc!T13)*(1+RSARet!T13) -> 62612.21551 | V13: =(U13-RSAInc!U13)*(1+RSARet!U13) -> 64911.61813 | W13: =(V13-RSAInc!V13)*(1+RSARet!V13) -> 60627.24889 | X13: =(W13-RSAInc!W13)*(1+RSARet!W13) -> 59321.77789 | Y13: =(X13-RSAInc!X13)*(1+RSARet!X13) -> 53840.79544 | Z13: =(Y13-RSAInc!Y13)*(1+RSARet!Y13) -> 49714.93649 | AA13: =(Z13-RSAInc!Z13)*(1+RSARet!Z13) -> 48274.93013 | AB13: =(AA13-RSAInc!AA13)*(1+RSARet!AA13) -> 41893.33337 | AC13: =(AB13-RSAInc!AB13)*(1+RSARet!AB13) -> 39187.10565 | AD13: =(AC13-RSAInc!AC13)*(1+RSARet!AC13) -> 37457.95549 | AE13: =(AD13-RSAInc!AD13)*(1+RSARet!AD13) -> 35151.2399 | AF13: =(AE13-RSAInc!AE13)*(1+RSARet!AE13) -> 31766.67985 | AG13: =(AF13-RSAInc!AF13)*(1+RSARet!AF13) -> 27598.67382 | AH13: =(AG13-RSAInc!AG13)*(1+RSARet!AG13) -> 24827.87082 | AI13: =(AH13-RSAInc!AH13)*(1+RSARet!AH13) -> 21710.41703 | AJ13: =(AI13-RSAInc!AI13)*(1+RSARet!AI13) -> 20186.66417 | AK13: =(AJ13-RSAInc!AJ13)*(1+RSARet!AJ13) -> 17048.6838 | AL13: =(AK13-RSAInc!AK13)*(1+RSARet!AK13) -> 13996.45776 | AM13: =(AL13-RSAInc!AL13)*(1+RSARet!AL13) -> 11598.96125 | AN13: =(AM13-RSAInc!AM13)*(1+RSARet!AM13) -> 9319.731121 | AO13: =(AN13-RSAInc!AN13)*(1+RSARet!AN13) -> 7409.81977 | AP13: =(AO13-RSAInc!AO13)*(1+RSARet!AO13) -> 5991.921603 | AQ13: =(AP13-RSAInc!AP13)*(1+RSARet!AP13) -> 4475.593414 | AR13: =(AQ13-RSAInc!AQ13)*(1+RSARet!AQ13) -> 3014.577039 | AS13: =(AR13-RSAInc!AR13)*(1+RSARet!AR13) -> 1681.822929 | AT13: =(AS13-RSAInc!AS13)*(1+RSARet!AS13) -> 742.790295 | AU13: =(AT13-RSAInc!AT13)*(1+RSARet!AT13) -> -3.605563998e-12 | AW13: 109 | AX13: =IF(AW13="",0,LOOKUP(AW13,'Retiree Details and Assumptions'!D$40:D$85,'Retiree Details and Assumptions'!E$40:E$85)) -> 0.0004348127378 | AY13: =IF(AW13="","",LOOKUP(AW13,'Retiree Details and Assumptions'!D$40:D$85,'Retiree Details and Assumptions'!H$40:H$85)) -> 1
A14: 13 | B14: 125000 | C14: =(B14-RSAInc!B14)*(1+RSARet!B14) -> 125777.7181 | D14: =(C14-RSAInc!C14)*(1+RSARet!C14) -> 123621.7844 | E14: =(D14-RSAInc!D14)*(1+RSARet!D14) -> 126373.2528 | F14: =(E14-RSAInc!E14)*(1+RSARet!E14) -> 127636.4747 | G14: =(F14-RSAInc!F14)*(1+RSARet!F14) -> 130011.5637 | H14: =(G14-RSAInc!G14)*(1+RSARet!G14) -> 123247.6665 | I14: =(H14-RSAInc!H14)*(1+RSARet!H14) -> 124521.1989 | J14: =(I14-RSAInc!I14)*(1+RSARet!I14) -> 130216.6386 | K14: =(J14-RSAInc!J14)*(1+RSARet!J14) -> 124765.499 | L14: =(K14-RSAInc!K14)*(1+RSARet!K14) -> 118396.1436 | M14: =(L14-RSAInc!L14)*(1+RSARet!L14) -> 118053.4158 | N14: =(M14-RSAInc!M14)*(1+RSARet!M14) -> 108211.3586 | O14: =(N14-RSAInc!N14)*(1+RSARet!N14) -> 101963.3445 | P14: =(O14-RSAInc!O14)*(1+RSARet!O14) -> 102870.8387 | Q14: =(P14-RSAInc!P14)*(1+RSARet!P14) -> 97661.84992 | R14: =(Q14-RSAInc!Q14)*(1+RSARet!Q14) -> 102241.4525 | S14: =(R14-RSAInc!R14)*(1+RSARet!R14) -> 97941.68646 | T14: =(S14-RSAInc!S14)*(1+RSARet!S14) -> 99562.69819 | U14: =(T14-RSAInc!T14)*(1+RSARet!T14) -> 95559.6025 | V14: =(U14-RSAInc!U14)*(1+RSARet!U14) -> 91201.98465 | W14: =(V14-RSAInc!V14)*(1+RSARet!V14) -> 87744.585 | X14: =(W14-RSAInc!W14)*(1+RSARet!W14) -> 79842.04313 | Y14: =(X14-RSAInc!X14)*(1+RSARet!X14) -> 74127.51722 | Z14: =(Y14-RSAInc!Y14)*(1+RSARet!Y14) -> 69900.54098 | AA14: =(Z14-RSAInc!Z14)*(1+RSARet!Z14) -> 62848.0439 | AB14: =(AA14-RSAInc!AA14)*(1+RSARet!AA14) -> 58359.4127 | AC14: =(AB14-RSAInc!AB14)*(1+RSARet!AB14) -> 58951.31725 | AD14: =(AC14-RSAInc!AC14)*(1+RSARet!AC14) -> 53975.53127 | AE14: =(AD14-RSAInc!AD14)*(1+RSARet!AD14) -> 53110.46795 | AF14: =(AE14-RSAInc!AE14)*(1+RSARet!AE14) -> 47000.71725 | AG14: =(AF14-RSAInc!AF14)*(1+RSARet!AF14) -> 40177.97212 | AH14: =(AG14-RSAInc!AG14)*(1+RSARet!AG14) -> 34035.68155 | AI14: =(AH14-RSAInc!AH14)*(1+RSARet!AH14) -> 31650.83031 | AJ14: =(AI14-RSAInc!AI14)*(1+RSARet!AI14) -> 27816.2337 | AK14: =(AJ14-RSAInc!AJ14)*(1+RSARet!AJ14) -> 24221.78884 | AL14: =(AK14-RSAInc!AK14)*(1+RSARet!AK14) -> 20544.63463 | AM14: =(AL14-RSAInc!AL14)*(1+RSARet!AL14) -> 16518.50835 | AN14: =(AM14-RSAInc!AM14)*(1+RSARet!AM14) -> 13922.84741 | AO14: =(AN14-RSAInc!AN14)*(1+RSARet!AN14) -> 10746.52933 | AP14: =(AO14-RSAInc!AO14)*(1+RSARet!AO14) -> 8166.289219 | AQ14: =(AP14-RSAInc!AP14)*(1+RSARet!AP14) -> 6026.153613 | AR14: =(AQ14-RSAInc!AQ14)*(1+RSARet!AQ14) -> 4151.610407 | AS14: =(AR14-RSAInc!AR14)*(1+RSARet!AR14) -> 2497.77075 | AT14: =(AS14-RSAInc!AS14)*(1+RSARet!AS14) -> 1195.972173 | AU14: =(AT14-RSAInc!AT14)*(1+RSARet!AT14) -> -5.52262395e-12 | AW14: 109 | AX14: =IF(AW14="",0,LOOKUP(AW14,'Retiree Details and Assumptions'!D$40:D$85,'Retiree Details and Assumptions'!E$40:E$85)) -> 0.0004348127378 | AY14: =IF(AW14="","",LOOKUP(AW14,'Retiree Details and Assumptions'!D$40:D$85,'Retiree Details and Assumptions'!H$40:H$85)) -> 1
A15: 14 | B15: 125000 | C15: =(B15-RSAInc!B15)*(1+RSARet!B15) -> 121686.0115 | D15: =(C15-RSAInc!C15)*(1+RSARet!C15) -> 117280.5333 | E15: =(D15-RSAInc!D15)*(1+RSARet!D15) -> 114354.0353 | F15: =(E15-RSAInc!E15)*(1+RSARet!E15) -> 109915.6543 | G15: =(F15-RSAInc!F15)*(1+RSARet!F15) -> 111095.2739 | H15: =(G15-RSAInc!G15)*(1+RSARet!G15) -> 107722.4336 | I15: =(H15-RSAInc!H15)*(1+RSARet!H15) -> 100154.2871 | J15: =(I15-RSAInc!I15)*(1+RSARet!I15) -> 109512.1767 | K15: =(J15-RSAInc!J15)*(1+RSARet!J15) -> 105027.2545 | L15: =(K15-RSAInc!K15)*(1+RSARet!K15) -> 102557.2991 | M15: =(L15-RSAInc!L15)*(1+RSARet!L15) -> 104702.6121 | N15: =(M15-RSAInc!M15)*(1+RSARet!M15) -> 97292.39283 | O15: =(N15-RSAInc!N15)*(1+RSARet!N15) -> 96394.08074 | P15: =(O15-RSAInc!O15)*(1+RSARet!O15) -> 91093.82511 | Q15: =(P15-RSAInc!P15)*(1+RSARet!P15) -> 93951.18504 | R15: =(Q15-RSAInc!Q15)*(1+RSARet!Q15) -> 92461.62307 | S15: =(R15-RSAInc!R15)*(1+RSARet!R15) -> 87967.3017 | T15: =(S15-RSAInc!S15)*(1+RSARet!S15) -> 92401.45897 | U15: =(T15-RSAInc!T15)*(1+RSARet!T15) -> 90572.09129 | V15: =(U15-RSAInc!U15)*(1+RSARet!U15) -> 87684.82759 | W15: =(V15-RSAInc!V15)*(1+RSARet!V15) -> 82688.77476 | X15: =(W15-RSAInc!W15)*(1+RSARet!W15) -> 77482.44987 | Y15: =(X15-RSAInc!X15)*(1+RSARet!X15) -> 72513.58835 | Z15: =(Y15-RSAInc!Y15)*(1+RSARet!Y15) -> 71675.6362 | AA15: =(Z15-RSAInc!Z15)*(1+RSARet!Z15) -> 67491.39019 | AB15: =(AA15-RSAInc!AA15)*(1+RSARet!AA15) -> 63451.25345 | AC15: =(AB15-RSAInc!AB15)*(1+RSARet!AB15) -> 60822.96545 | AD15: =(AC15-RSAInc!AC15)*(1+RSARet!AC15) -> 56878.2153 | AE15: =(AD15-RSAInc!AD15)*(1+RSARet!AD15) -> 50095.31574 | AF15: =(AE15-RSAInc!AE15)*(1+RSARet!AE15) -> 47529.37431 | AG15: =(AF15-RSAInc!AF15)*(1+RSARet!AF15) -> 39346.19489 | AH15: =(AG15-RSAInc!AG15)*(1+RSARet!AG15) -> 34860.37301 | AI15: =(AH15-RSAInc!AH15)*(1+RSARet!AH15) -> 29260.30455 | AJ15: =(AI15-RSAInc!AI15)*(1+RSARet!AI15) -> 24940.56741 | AK15: =(AJ15-RSAInc!AJ15)*(1+RSARet!AJ15) -> 20306.15292 | AL15: =(AK15-RSAInc!AK15)*(1+RSARet!AK15) -> 16472.59997 | AM15: =(AL15-RSAInc!AL15)*(1+RSARet!AL15) -> 14594.66128 | AN15: =(AM15-RSAInc!AM15)*(1+RSARet!AM15) -> 12000.32852 | AO15: =(AN15-RSAInc!AN15)*(1+RSARet!AN15) -> 9400.759228 | AP15: =(AO15-RSAInc!AO15)*(1+RSARet!AO15) -> 7185.351396 | AQ15: =(AP15-RSAInc!AP15)*(1+RSARet!AP15) -> 5423.499214 | AR15: =(AQ15-RSAInc!AQ15)*(1+RSARet!AQ15) -> 3734.759804 | AS15: =(AR15-RSAInc!AR15)*(1+RSARet!AR15) -> 2152.660034 | AT15: =(AS15-RSAInc!AS15)*(1+RSARet!AS15) -> 1008.052685 | AU15: =(AT15-RSAInc!AT15)*(1+RSARet!AT15) -> -4.479374254e-12 | AW15: 109 | AX15: =IF(AW15="",0,LOOKUP(AW15,'Retiree Details and Assumptions'!D$40:D$85,'Retiree Details and Assumptions'!E$40:E$85)) -> 0.0004348127378 | AY15: =IF(AW15="","",LOOKUP(AW15,'Retiree Details and Assumptions'!D$40:D$85,'Retiree Details and Assumptions'!H$40:H$85)) -> 1
A16: 15 | B16: 125000 | C16: =(B16-RSAInc!B16)*(1+RSARet!B16) -> 122165.1079 | D16: =(C16-RSAInc!C16)*(1+RSARet!C16) -> 117956.1355 | E16: =(D16-RSAInc!D16)*(1+RSARet!D16) -> 121950.3583 | F16: =(E16-RSAInc!E16)*(1+RSARet!E16) -> 123025.8658 | G16: =(F16-RSAInc!F16)*(1+RSARet!F16) -> 119322.8821 | H16: =(G16-RSAInc!G16)*(1+RSARet!G16) -> 114442.9146 | I16: =(H16-RSAInc!H16)*(1+RSARet!H16) -> 108126.1181 | J16: =(I16-RSAInc!I16)*(1+RSARet!I16) -> 107981.7076 | K16: =(J16-RSAInc!J16)*(1+RSARet!J16) -> 97757.22059 | L16: =(K16-RSAInc!K16)*(1+RSARet!K16) -> 93398.73849 | M16: =(L16-RSAInc!L16)*(1+RSARet!L16) -> 93752.49553 | N16: =(M16-RSAInc!M16)*(1+RSARet!M16) -> 91409.27862 | O16: =(N16-RSAInc!N16)*(1+RSARet!N16) -> 87946.1955 | P16: =(O16-RSAInc!O16)*(1+RSARet!O16) -> 88494.42 | Q16: =(P16-RSAInc!P16)*(1+RSARet!P16) -> 86508.8838 | R16: =(Q16-RSAInc!Q16)*(1+RSARet!Q16) -> 89304.66297 | S16: =(R16-RSAInc!R16)*(1+RSARet!R16) -> 84870.35528 | T16: =(S16-RSAInc!S16)*(1+RSARet!S16) -> 82476.18868 | U16: =(T16-RSAInc!T16)*(1+RSARet!T16) -> 79136.94187 | V16: =(U16-RSAInc!U16)*(1+RSARet!U16) -> 70821.34019 | W16: =(V16-RSAInc!V16)*(1+RSARet!V16) -> 68053.61282 | X16: =(W16-RSAInc!W16)*(1+RSARet!W16) -> 64035.41967 | Y16: =(X16-RSAInc!X16)*(1+RSARet!X16) -> 62723.03048 | Z16: =(Y16-RSAInc!Y16)*(1+RSARet!Y16) -> 61840.85468 | AA16: =(Z16-RSAInc!Z16)*(1+RSARet!Z16) -> 57153.22091 | AB16: =(AA16-RSAInc!AA16)*(1+RSARet!AA16) -> 52024.57876 | AC16: =(AB16-RSAInc!AB16)*(1+RSARet!AB16) -> 46835.41918 | AD16: =(AC16-RSAInc!AC16)*(1+RSARet!AC16) -> 43934.66122 | AE16: =(AD16-RSAInc!AD16)*(1+RSARet!AD16) -> 40007.24028 | AF16: =(AE16-RSAInc!AE16)*(1+RSARet!AE16) -> 36079.23889 | AG16: =(AF16-RSAInc!AF16)*(1+RSARet!AF16) -> 31509.02553 | AH16: =(AG16-RSAInc!AG16)*(1+RSARet!AG16) -> 26681.97852 | AI16: =(AH16-RSAInc!AH16)*(1+RSARet!AH16) -> 23426.61354 | AJ16: =(AI16-RSAInc!AI16)*(1+RSARet!AI16) -> 21079.51476 | AK16: =(AJ16-RSAInc!AJ16)*(1+RSARet!AJ16) -> 18075.05081 | AL16: =(AK16-RSAInc!AK16)*(1+RSARet!AK16) -> 15961.65642 | AM16: =(AL16-RSAInc!AL16)*(1+RSARet!AL16) -> 13876.50754 | AN16: =(AM16-RSAInc!AM16)*(1+RSARet!AM16) -> 12655.86482 | AO16: =(AN16-RSAInc!AN16)*(1+RSARet!AN16) -> 10685.45053 | AP16: =(AO16-RSAInc!AO16)*(1+RSARet!AO16) -> 8548.471796 | AQ16: =(AP16-RSAInc!AP16)*(1+RSARet!AP16) -> 6036.467284 | AR16: =(AQ16-RSAInc!AQ16)*(1+RSARet!AQ16) -> 3799.353306 | AS16: =(AR16-RSAInc!AR16)*(1+RSARet!AR16) -> 2241.645635 | AT16: =(AS16-RSAInc!AS16)*(1+RSARet!AS16) -> 975.7921483 | AU16: =(AT16-RSAInc!AT16)*(1+RSARet!AT16) -> -4.890896215e-12 | AW16: 109 | AX16: =IF(AW16="",0,LOOKUP(AW16,'Retiree Details and Assumptions'!D$40:D$85,'Retiree Details and Assumptions'!E$40:E$85)) -> 0.0004348127378 | AY16: =IF(AW16="","",LOOKUP(AW16,'Retiree Details and Assumptions'!D$40:D$85,'Retiree Details and Assumptions'!H$40:H$85)) -> 1
A17: 16 | B17: 125000 | C17: =(B17-RSAInc!B17)*(1+RSARet!B17) -> 121854.4551 | D17: =(C17-RSAInc!C17)*(1+RSARet!C17) -> 126417.1537 | E17: =(D17-RSAInc!D17)*(1+RSARet!D17) -> 122679.9679 | F17: =(E17-RSAInc!E17)*(1+RSARet!E17) -> 116646.8986 | G17: =(F17-RSAInc!F17)*(1+RSARet!F17) -> 114700.8938 | H17: =(G17-RSAInc!G17)*(1+RSARet!G17) -> 111459.2345 | I17: =(H17-RSAInc!H17)*(1+RSARet!H17) -> 117031.2258 | J17: =(I17-RSAInc!I17)*(1+RSARet!I17) -> 105982.7267 | K17: =(J17-RSAInc!J17)*(1+RSARet!J17) -> 101936.5928 | L17: =(K17-RSAInc!K17)*(1+RSARet!K17) -> 104978.4791 | M17: =(L17-RSAInc!L17)*(1+RSARet!L17) -> 103706.5022 | N17: =(M17-RSAInc!M17)*(1+RSARet!M17) -> 106377.2692 | O17: =(N17-RSAInc!N17)*(1+RSARet!N17) -> 101560.7854 | P17: =(O17-RSAInc!O17)*(1+RSARet!O17) -> 102553.1913 | Q17: =(P17-RSAInc!P17)*(1+RSARet!P17) -> 103621.1355 | R17: =(Q17-RSAInc!Q17)*(1+RSARet!Q17) -> 97253.51427 | S17: =(R17-RSAInc!R17)*(1+RSARet!R17) -> 99954.30419 | T17: =(S17-RSAInc!S17)*(1+RSARet!S17) -> 100083.7522 | U17: =(T17-RSAInc!T17)*(1+RSARet!T17) -> 97986.67596 | V17: =(U17-RSAInc!U17)*(1+RSARet!U17) -> 93454.96904 | W17: =(V17-RSAInc!V17)*(1+RSARet!V17) -> 87370.53541 | X17: =(W17-RSAInc!W17)*(1+RSARet!W17) -> 87109.37921 | Y17: =(X17-RSAInc!X17)*(1+RSARet!X17) -> 89772.18986 | Z17: =(Y17-RSAInc!Y17)*(1+RSARet!Y17) -> 90053.38213 | AA17: =(Z17-RSAInc!Z17)*(1+RSARet!Z17) -> 89201.14021 | AB17: =(AA17-RSAInc!AA17)*(1+RSARet!AA17) -> 82781.94302 | AC17: =(AB17-RSAInc!AB17)*(1+RSARet!AB17) -> 74033.04672 | AD17: =(AC17-RSAInc!AC17)*(1+RSARet!AC17) -> 71883.61207 | AE17: =(AD17-RSAInc!AD17)*(1+RSARet!AD17) -> 73337.73546 | AF17: =(AE17-RSAInc!AE17)*(1+RSARet!AE17) -> 69309.36818 | AG17: =(AF17-RSAInc!AF17)*(1+RSARet!AF17) -> 63375.75343 | AH17: =(AG17-RSAInc!AG17)*(1+RSARet!AG17) -> 55264.10574 | AI17: =(AH17-RSAInc!AH17)*(1+RSARet!AH17) -> 49463.50671 | AJ17: =(AI17-RSAInc!AI17)*(1+RSARet!AI17) -> 45242.5636 | AK17: =(AJ17-RSAInc!AJ17)*(1+RSARet!AJ17) -> 38224.16638 | AL17: =(AK17-RSAInc!AK17)*(1+RSARet!AK17) -> 34227.48284 | AM17: =(AL17-RSAInc!AL17)*(1+RSARet!AL17) -> 29267.57588 | AN17: =(AM17-RSAInc!AM17)*(1+RSARet!AM17) -> 23072.71903 | AO17: =(AN17-RSAInc!AN17)*(1+RSARet!AN17) -> 17772.67206 | AP17: =(AO17-RSAInc!AO17)*(1+RSARet!AO17) -> 13320.28258 | AQ17: =(AP17-RSAInc!AP17)*(1+RSARet!AP17) -> 9355.135953 | AR17: =(AQ17-RSAInc!AQ17)*(1+RSARet!AQ17) -> 6202.549781 | AS17: =(AR17-RSAInc!AR17)*(1+RSARet!AR17) -> 3600.370737 | AT17: =(AS17-RSAInc!AS17)*(1+RSARet!AS17) -> 1531.868497 | AU17: =(AT17-RSAInc!AT17)*(1+RSARet!AT17) -> -7.084185278e-12 | AW17: 109 | AX17: =IF(AW17="",0,LOOKUP(AW17,'Retiree Details and Assumptions'!D$40:D$85,'Retiree Details and Assumptions'!E$40:E$85)) -> 0.0004348127378 | AY17: =IF(AW17="","",LOOKUP(AW17,'Retiree Details and Assumptions'!D$40:D$85,'Retiree Details and Assumptions'!H$40:H$85)) -> 1
A18: 17 | B18: 125000 | C18: =(B18-RSAInc!B18)*(1+RSARet!B18) -> 129983.5885 | D18: =(C18-RSAInc!C18)*(1+RSARet!C18) -> 130589.8049 | E18: =(D18-RSAInc!D18)*(1+RSARet!D18) -> 143983.2997 | F18: =(E18-RSAInc!E18)*(1+RSARet!E18) -> 134753.2298 | G18: =(F18-RSAInc!F18)*(1+RSARet!F18) -> 135946.2267 | H18: =(G18-RSAInc!G18)*(1+RSARet!G18) -> 133536.5661 | I18: =(H18-RSAInc!H18)*(1+RSARet!H18) -> 125275.3063 | J18: =(I18-RSAInc!I18)*(1+RSARet!I18) -> 113932.7849 | K18: =(J18-RSAInc!J18)*(1+RSARet!J18) -> 107915.7762 | L18: =(K18-RSAInc!K18)*(1+RSARet!K18) -> 107195.0059 | M18: =(L18-RSAInc!L18)*(1+RSARet!L18) -> 104259.6309 | N18: =(M18-RSAInc!M18)*(1+RSARet!M18) -> 114106.4233 | O18: =(N18-RSAInc!N18)*(1+RSARet!N18) -> 112128.3323 | P18: =(O18-RSAInc!O18)*(1+RSARet!O18) -> 108551.5411 | Q18: =(P18-RSAInc!P18)*(1+RSARet!P18) -> 108355.7766 | R18: =(Q18-RSAInc!Q18)*(1+RSARet!Q18) -> 109025.5164 | S18: =(R18-RSAInc!R18)*(1+RSARet!R18) -> 106730.093 | T18: =(S18-RSAInc!S18)*(1+RSARet!S18) -> 104733.1914 | U18: =(T18-RSAInc!T18)*(1+RSARet!T18) -> 105237.7431 | V18: =(U18-RSAInc!U18)*(1+RSARet!U18) -> 109964.4048 | W18: =(V18-RSAInc!V18)*(1+RSARet!V18) -> 98430.36338 | X18: =(W18-RSAInc!W18)*(1+RSARet!W18) -> 94721.40442 | Y18: =(X18-RSAInc!X18)*(1+RSARet!X18) -> 96449.00909 | Z18: =(Y18-RSAInc!Y18)*(1+RSARet!Y18) -> 84413.61651 | AA18: =(Z18-RSAInc!Z18)*(1+RSARet!Z18) -> 74045.48574 | AB18: =(AA18-RSAInc!AA18)*(1+RSARet!AA18) -> 71460.70472 | AC18: =(AB18-RSAInc!AB18)*(1+RSARet!AB18) -> 71398.88985 | AD18: =(AC18-RSAInc!AC18)*(1+RSARet!AC18) -> 68024.64347 | AE18: =(AD18-RSAInc!AD18)*(1+RSARet!AD18) -> 69172.48818 | AF18: =(AE18-RSAInc!AE18)*(1+RSARet!AE18) -> 71196.5972 | AG18: =(AF18-RSAInc!AF18)*(1+RSARet!AF18) -> 63011.71846 | AH18: =(AG18-RSAInc!AG18)*(1+RSARet!AG18) -> 57301.58073 | AI18: =(AH18-RSAInc!AH18)*(1+RSARet!AH18) -> 50776.00316 | AJ18: =(AI18-RSAInc!AI18)*(1+RSARet!AI18) -> 43249.84168 | AK18: =(AJ18-RSAInc!AJ18)*(1+RSARet!AJ18) -> 38238.05322 | AL18: =(AK18-RSAInc!AK18)*(1+RSARet!AK18) -> 32509.59657 | AM18: =(AL18-RSAInc!AL18)*(1+RSARet!AL18) -> 26004.98308 | AN18: =(AM18-RSAInc!AM18)*(1+RSARet!AM18) -> 20975.27817 | AO18: =(AN18-RSAInc!AN18)*(1+RSARet!AN18) -> 16048.13413 | AP18: =(AO18-RSAInc!AO18)*(1+RSARet!AO18) -> 12209.61211 | AQ18: =(AP18-RSAInc!AP18)*(1+RSARet!AP18) -> 8887.540951 | AR18: =(AQ18-RSAInc!AQ18)*(1+RSARet!AQ18) -> 5920.381434 | AS18: =(AR18-RSAInc!AR18)*(1+RSARet!AR18) -> 3503.572736 | AT18: =(AS18-RSAInc!AS18)*(1+RSARet!AS18) -> 1535.366975 | AU18: =(AT18-RSAInc!AT18)*(1+RSARet!AT18) -> -6.648757816e-12 | AW18: 109 | AX18: =IF(AW18="",0,LOOKUP(AW18,'Retiree Details and Assumptions'!D$40:D$85,'Retiree Details and Assumptions'!E$40:E$85)) -> 0.0004348127378 | AY18: =IF(AW18="","",LOOKUP(AW18,'Retiree Details and Assumptions'!D$40:D$85,'Retiree Details and Assumptions'!H$40:H$85)) -> 1
A19: 18 | B19: 125000 | C19: =(B19-RSAInc!B19)*(1+RSARet!B19) -> 122652.3027 | D19: =(C19-RSAInc!C19)*(1+RSARet!C19) -> 115168.1765 | E19: =(D19-RSAInc!D19)*(1+RSARet!D19) -> 121532.9593 | F19: =(E19-RSAInc!E19)*(1+RSARet!E19) -> 117313.8869 | G19: =(F19-RSAInc!F19)*(1+RSARet!F19) -> 113464.4021 | H19: =(G19-RSAInc!G19)*(1+RSARet!G19) -> 121561.3514 | I19: =(H19-RSAInc!H19)*(1+RSARet!H19) -> 123154.4733 | J19: =(I19-RSAInc!I19)*(1+RSARet!I19) -> 122144.1332 | K19: =(J19-RSAInc!J19)*(1+RSARet!J19) -> 116161.7828 | L19: =(K19-RSAInc!K19)*(1+RSARet!K19) -> 116690.5311 | M19: =(L19-RSAInc!L19)*(1+RSARet!L19) -> 110385.9635 | N19: =(M19-RSAInc!M19)*(1+RSARet!M19) -> 106887.0502 | O19: =(N19-RSAInc!N19)*(1+RSARet!N19) -> 102005.281 | P19: =(O19-RSAInc!O19)*(1+RSARet!O19) -> 98436.18505 | Q19: =(P19-RSAInc!P19)*(1+RSARet!P19) -> 94932.33983 | R19: =(Q19-RSAInc!Q19)*(1+RSARet!Q19) -> 91857.71128 | S19: =(R19-RSAInc!R19)*(1+RSARet!R19) -> 87678.02102 | T19: =(S19-RSAInc!S19)*(1+RSARet!S19) -> 88813.03242 | U19: =(T19-RSAInc!T19)*(1+RSARet!T19) -> 82360.13349 | V19: =(U19-RSAInc!U19)*(1+RSARet!U19) -> 75278.17686 | W19: =(V19-RSAInc!V19)*(1+RSARet!V19) -> 74033.76306 | X19: =(W19-RSAInc!W19)*(1+RSARet!W19) -> 70986.65578 | Y19: =(X19-RSAInc!X19)*(1+RSARet!X19) -> 68091.29644 | Z19: =(Y19-RSAInc!Y19)*(1+RSARet!Y19) -> 66812.5564 | AA19: =(Z19-RSAInc!Z19)*(1+RSARet!Z19) -> 62807.94287 | AB19: =(AA19-RSAInc!AA19)*(1+RSARet!AA19) -> 57931.69113 | AC19: =(AB19-RSAInc!AB19)*(1+RSARet!AB19) -> 51930.47244 | AD19: =(AC19-RSAInc!AC19)*(1+RSARet!AC19) -> 47566.08537 | AE19: =(AD19-RSAInc!AD19)*(1+RSARet!AD19) -> 45266.59259 | AF19: =(AE19-RSAInc!AE19)*(1+RSARet!AE19) -> 43210.29238 | AG19: =(AF19-RSAInc!AF19)*(1+RSARet!AF19) -> 38655.51059 | AH19: =(AG19-RSAInc!AG19)*(1+RSARet!AG19) -> 33188.9787 | AI19: =(AH19-RSAInc!AH19)*(1+RSARet!AH19) -> 28705.84943 | AJ19: =(AI19-RSAInc!AI19)*(1+RSARet!AI19) -> 25171.87518 | AK19: =(AJ19-RSAInc!AJ19)*(1+RSARet!AJ19) -> 21758.1547 | AL19: =(AK19-RSAInc!AK19)*(1+RSARet!AK19) -> 18851.26856 | AM19: =(AL19-RSAInc!AL19)*(1+RSARet!AL19) -> 15957.03344 | AN19: =(AM19-RSAInc!AM19)*(1+RSARet!AM19) -> 13708.25214 | AO19: =(AN19-RSAInc!AN19)*(1+RSARet!AN19) -> 10720.0138 | AP19: =(AO19-RSAInc!AO19)*(1+RSARet!AO19) -> 8483.016613 | AQ19: =(AP19-RSAInc!AP19)*(1+RSARet!AP19) -> 6618.577517 | AR19: =(AQ19-RSAInc!AQ19)*(1+RSARet!AQ19) -> 4451.521513 | AS19: =(AR19-RSAInc!AR19)*(1+RSARet!AR19) -> 2597.277268 | AT19: =(AS19-RSAInc!AS19)*(1+RSARet!AS19) -> 1136.094018 | AU19: =(AT19-RSAInc!AT19)*(1+RSARet!AT19) -> -5.258338616e-12 | AW19: 109 | AX19: =IF(AW19="",0,LOOKUP(AW19,'Retiree Details and Assumptions'!D$40:D$85,'Retiree Details and Assumptions'!E$40:E$85)) -> 0.0004348127378 | AY19: =IF(AW19="","",LOOKUP(AW19,'Retiree Details and Assumptions'!D$40:D$85,'Retiree Details and Assumptions'!H$40:H$85)) -> 1
A20: 19 | B20: 125000 | C20: =(B20-RSAInc!B20)*(1+RSARet!B20) -> 120524.5847 | D20: =(C20-RSAInc!C20)*(1+RSARet!C20) -> 109458.9751 | E20: =(D20-RSAInc!D20)*(1+RSARet!D20) -> 111695.4031 | F20: =(E20-RSAInc!E20)*(1+RSARet!E20) -> 110431.8625 | G20: =(F20-RSAInc!F20)*(1+RSARet!F20) -> 119891.4842 | H20: =(G20-RSAInc!G20)*(1+RSARet!G20) -> 118102.8836 | I20: =(H20-RSAInc!H20)*(1+RSARet!H20) -> 118225.1383 | J20: =(I20-RSAInc!I20)*(1+RSARet!I20) -> 119961.7209 | K20: =(J20-RSAInc!J20)*(1+RSARet!J20) -> 119375.2693 | L20: =(K20-RSAInc!K20)*(1+RSARet!K20) -> 111772.8214 | M20: =(L20-RSAInc!L20)*(1+RSARet!L20) -> 102936.1679 | N20: =(M20-RSAInc!M20)*(1+RSARet!M20) -> 99586.49425 | O20: =(N20-RSAInc!N20)*(1+RSARet!N20) -> 97439.46256 | P20: =(O20-RSAInc!O20)*(1+RSARet!O20) -> 94349.53846 | Q20: =(P20-RSAInc!P20)*(1+RSARet!P20) -> 90051.30867 | R20: =(Q20-RSAInc!Q20)*(1+RSARet!Q20) -> 87870.81445 | S20: =(R20-RSAInc!R20)*(1+RSARet!R20) -> 93987.66153 | T20: =(S20-RSAInc!S20)*(1+RSARet!S20) -> 97176.0982 | U20: =(T20-RSAInc!T20)*(1+RSARet!T20) -> 91038.318 | V20: =(U20-RSAInc!U20)*(1+RSARet!U20) -> 89458.82296 | W20: =(V20-RSAInc!V20)*(1+RSARet!V20) -> 84008.16398 | X20: =(W20-RSAInc!W20)*(1+RSARet!W20) -> 80758.08072 | Y20: =(X20-RSAInc!X20)*(1+RSARet!X20) -> 79221.69667 | Z20: =(Y20-RSAInc!Y20)*(1+RSARet!Y20) -> 82216.79643 | AA20: =(Z20-RSAInc!Z20)*(1+RSARet!Z20) -> 75090.0937 | AB20: =(AA20-RSAInc!AA20)*(1+RSARet!AA20) -> 70366.34136 | AC20: =(AB20-RSAInc!AB20)*(1+RSARet!AB20) -> 63883.65912 | AD20: =(AC20-RSAInc!AC20)*(1+RSARet!AC20) -> 62362.48843 | AE20: =(AD20-RSAInc!AD20)*(1+RSARet!AD20) -> 54788.91962 | AF20: =(AE20-RSAInc!AE20)*(1+RSARet!AE20) -> 49810.40439 | AG20: =(AF20-RSAInc!AF20)*(1+RSARet!AF20) -> 45219.76162 | AH20: =(AG20-RSAInc!AG20)*(1+RSARet!AG20) -> 38650.99115 | AI20: =(AH20-RSAInc!AH20)*(1+RSARet!AH20) -> 33329.24455 | AJ20: =(AI20-RSAInc!AI20)*(1+RSARet!AI20) -> 29462.58159 | AK20: =(AJ20-RSAInc!AJ20)*(1+RSARet!AJ20) -> 25613.08784 | AL20: =(AK20-RSAInc!AK20)*(1+RSARet!AK20) -> 21703.21743 | AM20: =(AL20-RSAInc!AL20)*(1+RSARet!AL20) -> 18572.39701 | AN20: =(AM20-RSAInc!AM20)*(1+RSARet!AM20) -> 15520.02096 | AO20: =(AN20-RSAInc!AN20)*(1+RSARet!AN20) -> 11997.70221 | AP20: =(AO20-RSAInc!AO20)*(1+RSARet!AO20) -> 9644.577163 | AQ20: =(AP20-RSAInc!AP20)*(1+RSARet!AP20) -> 7053.160013 | AR20: =(AQ20-RSAInc!AQ20)*(1+RSARet!AQ20) -> 4756.707118 | AS20: =(AR20-RSAInc!AR20)*(1+RSARet!AR20) -> 2853.932365 | AT20: =(AS20-RSAInc!AS20)*(1+RSARet!AS20) -> 1179.854401 | AU20: =(AT20-RSAInc!AT20)*(1+RSARet!AT20) -> -5.24929062e-12 | AW20: 109 | AX20: =IF(AW20="",0,LOOKUP(AW20,'Retiree Details and Assumptions'!D$40:D$85,'Retiree Details and Assumptions'!E$40:E$85)) -> 0.0004348127378 | AY20: =IF(AW20="","",LOOKUP(AW20,'Retiree Details and Assumptions'!D$40:D$85,'Retiree Details and Assumptions'!H$40:H$85)) -> 1
A21: 20 | B21: 125000 | C21: =(B21-RSAInc!B21)*(1+RSARet!B21) -> 126540.0946 | D21: =(C21-RSAInc!C21)*(1+RSARet!C21) -> 122636.8214 | E21: =(D21-RSAInc!D21)*(1+RSARet!D21) -> 129780.0792 | F21: =(E21-RSAInc!E21)*(1+RSARet!E21) -> 124210.2703 | G21: =(F21-RSAInc!F21)*(1+RSARet!F21) -> 124790.5547 | H21: =(G21-RSAInc!G21)*(1+RSARet!G21) -> 120797.9999 | I21: =(H21-RSAInc!H21)*(1+RSARet!H21) -> 120476.7292 | J21: =(I21-RSAInc!I21)*(1+RSARet!I21) -> 121149.1984 | K21: =(J21-RSAInc!J21)*(1+RSARet!J21) -> 116428.7893 | L21: =(K21-RSAInc!K21)*(1+RSARet!K21) -> 109661.3844 | M21: =(L21-RSAInc!L21)*(1+RSARet!L21) -> 105603.8272 | N21: =(M21-RSAInc!M21)*(1+RSARet!M21) -> 106456.9422 | O21: =(N21-RSAInc!N21)*(1+RSARet!N21) -> 112864.8402 | P21: =(O21-RSAInc!O21)*(1+RSARet!O21) -> 109031.8745 | Q21: =(P21-RSAInc!P21)*(1+RSARet!P21) -> 110885.7062 | R21: =(Q21-RSAInc!Q21)*(1+RSARet!Q21) -> 106298.7861 | S21: =(R21-RSAInc!R21)*(1+RSARet!R21) -> 100429.3562 | T21: =(S21-RSAInc!S21)*(1+RSARet!S21) -> 90108.78535 | U21: =(T21-RSAInc!T21)*(1+RSARet!T21) -> 87364.39062 | V21: =(U21-RSAInc!U21)*(1+RSARet!U21) -> 80839.87041 | W21: =(V21-RSAInc!V21)*(1+RSARet!V21) -> 73699.43533 | X21: =(W21-RSAInc!W21)*(1+RSARet!W21) -> 69265.9609 | Y21: =(X21-RSAInc!X21)*(1+RSARet!X21) -> 69377.66367 | Z21: =(Y21-RSAInc!Y21)*(1+RSARet!Y21) -> 67996.17641 | AA21: =(Z21-RSAInc!Z21)*(1+RSARet!Z21) -> 60334.28063 | AB21: =(AA21-RSAInc!AA21)*(1+RSARet!AA21) -> 57328.64956 | AC21: =(AB21-RSAInc!AB21)*(1+RSARet!AB21) -> 51261.52073 | AD21: =(AC21-RSAInc!AC21)*(1+RSARet!AC21) -> 46827.34163 | AE21: =(AD21-RSAInc!AD21)*(1+RSARet!AD21) -> 46599.01329 | AF21: =(AE21-RSAInc!AE21)*(1+RSARet!AE21) -> 41345.67391 | AG21: =(AF21-RSAInc!AF21)*(1+RSARet!AF21) -> 37024.79776 | AH21: =(AG21-RSAInc!AG21)*(1+RSARet!AG21) -> 33584.22365 | AI21: =(AH21-RSAInc!AH21)*(1+RSARet!AH21) -> 28157.35347 | AJ21: =(AI21-RSAInc!AI21)*(1+RSARet!AI21) -> 26030.34974 | AK21: =(AJ21-RSAInc!AJ21)*(1+RSARet!AJ21) -> 23745.74235 | AL21: =(AK21-RSAInc!AK21)*(1+RSARet!AK21) -> 20235.62489 | AM21: =(AL21-RSAInc!AL21)*(1+RSARet!AL21) -> 17262.49314 | AN21: =(AM21-RSAInc!AM21)*(1+RSARet!AM21) -> 14008.99777 | AO21: =(AN21-RSAInc!AN21)*(1+RSARet!AN21) -> 11529.72988 | AP21: =(AO21-RSAInc!AO21)*(1+RSARet!AO21) -> 8275.199118 | AQ21: =(AP21-RSAInc!AP21)*(1+RSARet!AP21) -> 6295.152111 | AR21: =(AQ21-RSAInc!AQ21)*(1+RSARet!AQ21) -> 4340.828657 | AS21: =(AR21-RSAInc!AR21)*(1+RSARet!AR21) -> 2672.161067 | AT21: =(AS21-RSAInc!AS21)*(1+RSARet!AS21) -> 1258.82754 | AU21: =(AT21-RSAInc!AT21)*(1+RSARet!AT21) -> -5.450355719e-12 | AW21: 109 | AX21: =IF(AW21="",0,LOOKUP(AW21,'Retiree Details and Assumptions'!D$40:D$85,'Retiree Details and Assumptions'!E$40:E$85)) -> 0.0004348127378 | AY21: =IF(AW21="","",LOOKUP(AW21,'Retiree Details and Assumptions'!D$40:D$85,'Retiree Details and Assumptions'!H$40:H$85)) -> 1
A22: 21 | B22: 125000 | C22: =(B22-RSAInc!B22)*(1+RSARet!B22) -> 119125.4352 | D22: =(C22-RSAInc!C22)*(1+RSARet!C22) -> 125255.6177 | E22: =(D22-RSAInc!D22)*(1+RSARet!D22) -> 126863.8992 | F22: =(E22-RSAInc!E22)*(1+RSARet!E22) -> 122202.8435 | G22: =(F22-RSAInc!F22)*(1+RSARet!F22) -> 119361.7126 | H22: =(G22-RSAInc!G22)*(1+RSARet!G22) -> 117303.4128 | I22: =(H22-RSAInc!H22)*(1+RSARet!H22) -> 119519.866 | J22: =(I22-RSAInc!I22)*(1+RSARet!I22) -> 116155.646 | K22: =(J22-RSAInc!J22)*(1+RSARet!J22) -> 111789.2666 | L22: =(K22-RSAInc!K22)*(1+RSARet!K22) -> 107222.3522 | M22: =(L22-RSAInc!L22)*(1+RSARet!L22) -> 103418.0756 | N22: =(M22-RSAInc!M22)*(1+RSARet!M22) -> 99800.23468 | O22: =(N22-RSAInc!N22)*(1+RSARet!N22) -> 99378.45059 | P22: =(O22-RSAInc!O22)*(1+RSARet!O22) -> 94972.95318 | Q22: =(P22-RSAInc!P22)*(1+RSARet!P22) -> 89814.43428 | R22: =(Q22-RSAInc!Q22)*(1+RSARet!Q22) -> 87258.23319 | S22: =(R22-RSAInc!R22)*(1+RSARet!R22) -> 86522.37682 | T22: =(S22-RSAInc!S22)*(1+RSARet!S22) -> 86951.78999 | U22: =(T22-RSAInc!T22)*(1+RSARet!T22) -> 83817.66774 | V22: =(U22-RSAInc!U22)*(1+RSARet!U22) -> 81954.55093 | W22: =(V22-RSAInc!V22)*(1+RSARet!V22) -> 79701.32178 | X22: =(W22-RSAInc!W22)*(1+RSARet!W22) -> 78930.74889 | Y22: =(X22-RSAInc!X22)*(1+RSARet!X22) -> 73721.60617 | Z22: =(Y22-RSAInc!Y22)*(1+RSARet!Y22) -> 72929.39305 | AA22: =(Z22-RSAInc!Z22)*(1+RSARet!Z22) -> 71765.06742 | AB22: =(AA22-RSAInc!AA22)*(1+RSARet!AA22) -> 67402.43616 | AC22: =(AB22-RSAInc!AB22)*(1+RSARet!AB22) -> 66476.82419 | AD22: =(AC22-RSAInc!AC22)*(1+RSARet!AC22) -> 62749.5575 | AE22: =(AD22-RSAInc!AD22)*(1+RSARet!AD22) -> 59742.28155 | AF22: =(AE22-RSAInc!AE22)*(1+RSARet!AE22) -> 54742.38333 | AG22: =(AF22-RSAInc!AF22)*(1+RSARet!AF22) -> 49114.60967 | AH22: =(AG22-RSAInc!AG22)*(1+RSARet!AG22) -> 44798.75435 | AI22: =(AH22-RSAInc!AH22)*(1+RSARet!AH22) -> 38104.63055 | AJ22: =(AI22-RSAInc!AI22)*(1+RSARet!AI22) -> 32041.34051 | AK22: =(AJ22-RSAInc!AJ22)*(1+RSARet!AJ22) -> 27259.78834 | AL22: =(AK22-RSAInc!AK22)*(1+RSARet!AK22) -> 24601.13429 | AM22: =(AL22-RSAInc!AL22)*(1+RSARet!AL22) -> 21899.15269 | AN22: =(AM22-RSAInc!AM22)*(1+RSARet!AM22) -> 19088.2132 | AO22: =(AN22-RSAInc!AN22)*(1+RSARet!AN22) -> 14281.5332 | AP22: =(AO22-RSAInc!AO22)*(1+RSARet!AO22) -> 12190.49047 | AQ22: =(AP22-RSAInc!AP22)*(1+RSARet!AP22) -> 9146.48788 | AR22: =(AQ22-RSAInc!AQ22)*(1+RSARet!AQ22) -> 6047.61755 | AS22: =(AR22-RSAInc!AR22)*(1+RSARet!AR22) -> 3558.797055 | AT22: =(AS22-RSAInc!AS22)*(1+RSARet!AS22) -> 1542.536713 | AU22: =(AT22-RSAInc!AT22)*(1+RSARet!AT22) -> -7.159203852e-12 | AW22: 109 | AX22: =IF(AW22="",0,LOOKUP(AW22,'Retiree Details and Assumptions'!D$40:D$85,'Retiree Details and Assumptions'!E$40:E$85)) -> 0.0004348127378 | AY22: =IF(AW22="","",LOOKUP(AW22,'Retiree Details and Assumptions'!D$40:D$85,'Retiree Details and Assumptions'!H$40:H$85)) -> 1
A23: 22 | B23: 125000 | C23: =(B23-RSAInc!B23)*(1+RSARet!B23) -> 122818.7217 | D23: =(C23-RSAInc!C23)*(1+RSARet!C23) -> 123377.1887 | E23: =(D23-RSAInc!D23)*(1+RSARet!D23) -> 123812.8795 | F23: =(E23-RSAInc!E23)*(1+RSARet!E23) -> 123753.0211 | G23: =(F23-RSAInc!F23)*(1+RSARet!F23) -> 125465.533 | H23: =(G23-RSAInc!G23)*(1+RSARet!G23) -> 117180.6942 | I23: =(H23-RSAInc!H23)*(1+RSARet!H23) -> 107869.1515 | J23: =(I23-RSAInc!I23)*(1+RSARet!I23) -> 108808.15 | K23: =(J23-RSAInc!J23)*(1+RSARet!J23) -> 105508.6934 | L23: =(K23-RSAInc!K23)*(1+RSARet!K23) -> 113514.4699 | M23: =(L23-RSAInc!L23)*(1+RSARet!L23) -> 116588.5651 | N23: =(M23-RSAInc!M23)*(1+RSARet!M23) -> 110974.9891 | O23: =(N23-RSAInc!N23)*(1+RSARet!N23) -> 104773.4676 | P23: =(O23-RSAInc!O23)*(1+RSARet!O23) -> 110268.3619 | Q23: =(P23-RSAInc!P23)*(1+RSARet!P23) -> 107508.9989 | R23: =(Q23-RSAInc!Q23)*(1+RSARet!Q23) -> 108926.0947 | S23: =(R23-RSAInc!R23)*(1+RSARet!R23) -> 101859.7826 | T23: =(S23-RSAInc!S23)*(1+RSARet!S23) -> 102651.2202 | U23: =(T23-RSAInc!T23)*(1+RSARet!T23) -> 97695.65187 | V23: =(U23-RSAInc!U23)*(1+RSARet!U23) -> 87776.72318 | W23: =(V23-RSAInc!V23)*(1+RSARet!V23) -> 83075.90634 | X23: =(W23-RSAInc!W23)*(1+RSARet!W23) -> 78032.03319 | Y23: =(X23-RSAInc!X23)*(1+RSARet!X23) -> 77956.70736 | Z23: =(Y23-RSAInc!Y23)*(1+RSARet!Y23) -> 73141.83578 | AA23: =(Z23-RSAInc!Z23)*(1+RSARet!Z23) -> 67749.25742 | AB23: =(AA23-RSAInc!AA23)*(1+RSARet!AA23) -> 64916.7496 | AC23: =(AB23-RSAInc!AB23)*(1+RSARet!AB23) -> 61645.26507 | AD23: =(AC23-RSAInc!AC23)*(1+RSARet!AC23) -> 55844.69779 | AE23: =(AD23-RSAInc!AD23)*(1+RSARet!AD23) -> 51621.59101 | AF23: =(AE23-RSAInc!AE23)*(1+RSARet!AE23) -> 43836.80224 | AG23: =(AF23-RSAInc!AF23)*(1+RSARet!AF23) -> 40132.43309 | AH23: =(AG23-RSAInc!AG23)*(1+RSARet!AG23) -> 38179.59059 | AI23: =(AH23-RSAInc!AH23)*(1+RSARet!AH23) -> 32551.09815 | AJ23: =(AI23-RSAInc!AI23)*(1+RSARet!AI23) -> 27976.7677 | AK23: =(AJ23-RSAInc!AJ23)*(1+RSARet!AJ23) -> 24142.57041 | AL23: =(AK23-RSAInc!AK23)*(1+RSARet!AK23) -> 21896.3918 | AM23: =(AL23-RSAInc!AL23)*(1+RSARet!AL23) -> 16900.04586 | AN23: =(AM23-RSAInc!AM23)*(1+RSARet!AM23) -> 13313.43786 | AO23: =(AN23-RSAInc!AN23)*(1+RSARet!AN23) -> 10668.65476 | AP23: =(AO23-RSAInc!AO23)*(1+RSARet!AO23) -> 8260.008225 | AQ23: =(AP23-RSAInc!AP23)*(1+RSARet!AP23) -> 5982.197609 | AR23: =(AQ23-RSAInc!AQ23)*(1+RSARet!AQ23) -> 4024.286732 | AS23: =(AR23-RSAInc!AR23)*(1+RSARet!AR23) -> 2614.946496 | AT23: =(AS23-RSAInc!AS23)*(1+RSARet!AS23) -> 1278.337522 | AU23: =(AT23-RSAInc!AT23)*(1+RSARet!AT23) -> -5.581200199e-12 | AW23: 109 | AX23: =IF(AW23="",0,LOOKUP(AW23,'Retiree Details and Assumptions'!D$40:D$85,'Retiree Details and Assumptions'!E$40:E$85)) -> 0.0004348127378 | AY23: =IF(AW23="","",LOOKUP(AW23,'Retiree Details and Assumptions'!D$40:D$85,'Retiree Details and Assumptions'!H$40:H$85)) -> 1
A24: 23 | B24: 125000 | C24: =(B24-RSAInc!B24)*(1+RSARet!B24) -> 127365.6969 | D24: =(C24-RSAInc!C24)*(1+RSARet!C24) -> 125993.8424 | E24: =(D24-RSAInc!D24)*(1+RSARet!D24) -> 125721.9056 | F24: =(E24-RSAInc!E24)*(1+RSARet!E24) -> 126268.6771 | G24: =(F24-RSAInc!F24)*(1+RSARet!F24) -> 126251.0296 | H24: =(G24-RSAInc!G24)*(1+RSARet!G24) -> 129743.305 | I24: =(H24-RSAInc!H24)*(1+RSARet!H24) -> 128655.3006 | J24: =(I24-RSAInc!I24)*(1+RSARet!I24) -> 128174.461 | K24: =(J24-RSAInc!J24)*(1+RSARet!J24) -> 121311.7664 | L24: =(K24-RSAInc!K24)*(1+RSARet!K24) -> 118679.1491 | M24: =(L24-RSAInc!L24)*(1+RSARet!L24) -> 115575.038 | N24: =(M24-RSAInc!M24)*(1+RSARet!M24) -> 115693.6381 | O24: =(N24-RSAInc!N24)*(1+RSARet!N24) -> 112320.4338 | P24: =(O24-RSAInc!O24)*(1+RSARet!O24) -> 108316.9202 | Q24: =(P24-RSAInc!P24)*(1+RSARet!P24) -> 107255.065 | R24: =(Q24-RSAInc!Q24)*(1+RSARet!Q24) -> 110636.4995 | S24: =(R24-RSAInc!R24)*(1+RSARet!R24) -> 103797.6944 | T24: =(S24-RSAInc!S24)*(1+RSARet!S24) -> 93822.17484 | U24: =(T24-RSAInc!T24)*(1+RSARet!T24) -> 96250.75278 | V24: =(U24-RSAInc!U24)*(1+RSARet!U24) -> 92998.3495 | W24: =(V24-RSAInc!V24)*(1+RSARet!V24) -> 86171.70856 | X24: =(W24-RSAInc!W24)*(1+RSARet!W24) -> 82968.41897 | Y24: =(X24-RSAInc!X24)*(1+RSARet!X24) -> 75632.85274 | Z24: =(Y24-RSAInc!Y24)*(1+RSARet!Y24) -> 76072.67873 | AA24: =(Z24-RSAInc!Z24)*(1+RSARet!Z24) -> 75685.36425 | AB24: =(AA24-RSAInc!AA24)*(1+RSARet!AA24) -> 68743.09401 | AC24: =(AB24-RSAInc!AB24)*(1+RSARet!AB24) -> 63149.85113 | AD24: =(AC24-RSAInc!AC24)*(1+RSARet!AC24) -> 60567.06613 | AE24: =(AD24-RSAInc!AD24)*(1+RSARet!AD24) -> 56982.37781 | AF24: =(AE24-RSAInc!AE24)*(1+RSARet!AE24) -> 54485.33726 | AG24: =(AF24-RSAInc!AF24)*(1+RSARet!AF24) -> 47965.04702 | AH24: =(AG24-RSAInc!AG24)*(1+RSARet!AG24) -> 40956.33357 | AI24: =(AH24-RSAInc!AH24)*(1+RSARet!AH24) -> 36539.36831 | AJ24: =(AI24-RSAInc!AI24)*(1+RSARet!AI24) -> 34213.98359 | AK24: =(AJ24-RSAInc!AJ24)*(1+RSARet!AJ24) -> 28561.43063 | AL24: =(AK24-RSAInc!AK24)*(1+RSARet!AK24) -> 25551.67221 | AM24: =(AL24-RSAInc!AL24)*(1+RSARet!AL24) -> 21590.24914 | AN24: =(AM24-RSAInc!AM24)*(1+RSARet!AM24) -> 18067.52594 | AO24: =(AN24-RSAInc!AN24)*(1+RSARet!AN24) -> 15012.48635 | AP24: =(AO24-RSAInc!AO24)*(1+RSARet!AO24) -> 11770.91546 | AQ24: =(AP24-RSAInc!AP24)*(1+RSARet!AP24) -> 8484.308721 | AR24: =(AQ24-RSAInc!AQ24)*(1+RSARet!AQ24) -> 5898.300172 | AS24: =(AR24-RSAInc!AR24)*(1+RSARet!AR24) -> 3718.693601 | AT24: =(AS24-RSAInc!AS24)*(1+RSARet!AS24) -> 1676.34754 | AU24: =(AT24-RSAInc!AT24)*(1+RSARet!AT24) -> -7.455130226e-12 | AW24: 109 | AX24: =IF(AW24="",0,LOOKUP(AW24,'Retiree Details and Assumptions'!D$40:D$85,'Retiree Details and Assumptions'!E$40:E$85)) -> 0.0004348127378 | AY24: =IF(AW24="","",LOOKUP(AW24,'Retiree Details and Assumptions'!D$40:D$85,'Retiree Details and Assumptions'!H$40:H$85)) -> 1
A25: 24 | B25: 125000 | C25: =(B25-RSAInc!B25)*(1+RSARet!B25) -> 123200.8383 | D25: =(C25-RSAInc!C25)*(1+RSARet!C25) -> 124516.5532 | E25: =(D25-RSAInc!D25)*(1+RSARet!D25) -> 119016.4985 | F25: =(E25-RSAInc!E25)*(1+RSARet!E25) -> 107185.756 | G25: =(F25-RSAInc!F25)*(1+RSARet!F25) -> 104195.5517 | H25: =(G25-RSAInc!G25)*(1+RSARet!G25) -> 107122.1007 | I25: =(H25-RSAInc!H25)*(1+RSARet!H25) -> 101893.401 | J25: =(I25-RSAInc!I25)*(1+RSARet!I25) -> 102408.7556 | K25: =(J25-RSAInc!J25)*(1+RSARet!J25) -> 108945.0803 | L25: =(K25-RSAInc!K25)*(1+RSARet!K25) -> 100830.7093 | M25: =(L25-RSAInc!L25)*(1+RSARet!L25) -> 97003.5202 | N25: =(M25-RSAInc!M25)*(1+RSARet!M25) -> 94934.96583 | O25: =(N25-RSAInc!N25)*(1+RSARet!N25) -> 92193.89596 | P25: =(O25-RSAInc!O25)*(1+RSARet!O25) -> 87144.62034 | Q25: =(P25-RSAInc!P25)*(1+RSARet!P25) -> 82447.68251 | R25: =(Q25-RSAInc!Q25)*(1+RSARet!Q25) -> 79183.09506 | S25: =(R25-RSAInc!R25)*(1+RSARet!R25) -> 76251.09106 | T25: =(S25-RSAInc!S25)*(1+RSARet!S25) -> 70782.70239 | U25: =(T25-RSAInc!T25)*(1+RSARet!T25) -> 68029.7803 | V25: =(U25-RSAInc!U25)*(1+RSARet!U25) -> 64839.54947 | W25: =(V25-RSAInc!V25)*(1+RSARet!V25) -> 61563.92723 | X25: =(W25-RSAInc!W25)*(1+RSARet!W25) -> 58070.67289 | Y25: =(X25-RSAInc!X25)*(1+RSARet!X25) -> 55713.88222 | Z25: =(Y25-RSAInc!Y25)*(1+RSARet!Y25) -> 50628.96842 | AA25: =(Z25-RSAInc!Z25)*(1+RSARet!Z25) -> 49257.05542 | AB25: =(AA25-RSAInc!AA25)*(1+RSARet!AA25) -> 48153.22991 | AC25: =(AB25-RSAInc!AB25)*(1+RSARet!AB25) -> 48347.40675 | AD25: =(AC25-RSAInc!AC25)*(1+RSARet!AC25) -> 43925.38673 | AE25: =(AD25-RSAInc!AD25)*(1+RSARet!AD25) -> 40587.64083 | AF25: =(AE25-RSAInc!AE25)*(1+RSARet!AE25) -> 36992.65912 | AG25: =(AF25-RSAInc!AF25)*(1+RSARet!AF25) -> 32967.2611 | AH25: =(AG25-RSAInc!AG25)*(1+RSARet!AG25) -> 28653.9915 | AI25: =(AH25-RSAInc!AH25)*(1+RSARet!AH25) -> 25026.60464 | AJ25: =(AI25-RSAInc!AI25)*(1+RSARet!AI25) -> 21780.09883 | AK25: =(AJ25-RSAInc!AJ25)*(1+RSARet!AJ25) -> 17799.52435 | AL25: =(AK25-RSAInc!AK25)*(1+RSARet!AK25) -> 16074.75808 | AM25: =(AL25-RSAInc!AL25)*(1+RSARet!AL25) -> 13567.92592 | AN25: =(AM25-RSAInc!AM25)*(1+RSARet!AM25) -> 11280.81406 | AO25: =(AN25-RSAInc!AN25)*(1+RSARet!AN25) -> 8395.18912 | AP25: =(AO25-RSAInc!AO25)*(1+RSARet!AO25) -> 6182.851872 | AQ25: =(AP25-RSAInc!AP25)*(1+RSARet!AP25) -> 4386.921304 | AR25: =(AQ25-RSAInc!AQ25)*(1+RSARet!AQ25) -> 3242.154788 | AS25: =(AR25-RSAInc!AR25)*(1+RSARet!AR25) -> 2071.643834 | AT25: =(AS25-RSAInc!AS25)*(1+RSARet!AS25) -> 925.1796065 | AU25: =(AT25-RSAInc!AT25)*(1+RSARet!AT25) -> -3.927500447e-12 | AW25: 109 | AX25: =IF(AW25="",0,LOOKUP(AW25,'Retiree Details and Assumptions'!D$40:D$85,'Retiree Details and Assumptions'!E$40:E$85)) -> 0.0004348127378 | AY25: =IF(AW25="","",LOOKUP(AW25,'Retiree Details and Assumptions'!D$40:D$85,'Retiree Details and Assumptions'!H$40:H$85)) -> 1
A26: 25 | B26: 125000 | C26: =(B26-RSAInc!B26)*(1+RSARet!B26) -> 126606.2208 | D26: =(C26-RSAInc!C26)*(1+RSARet!C26) -> 123822.5622 | E26: =(D26-RSAInc!D26)*(1+RSARet!D26) -> 116724.2091 | F26: =(E26-RSAInc!E26)*(1+RSARet!E26) -> 119644.5356 | G26: =(F26-RSAInc!F26)*(1+RSARet!F26) -> 113287.8708 | H26: =(G26-RSAInc!G26)*(1+RSARet!G26) -> 111498.5649 | I26: =(H26-RSAInc!H26)*(1+RSARet!H26) -> 103859.586 | J26: =(I26-RSAInc!I26)*(1+RSARet!I26) -> 102768.8444 | K26: =(J26-RSAInc!J26)*(1+RSARet!J26) -> 110286.388 | L26: =(K26-RSAInc!K26)*(1+RSARet!K26) -> 108820.0024 | M26: =(L26-RSAInc!L26)*(1+RSARet!L26) -> 106770.3862 | N26: =(M26-RSAInc!M26)*(1+RSARet!M26) -> 110304.6098 | O26: =(N26-RSAInc!N26)*(1+RSARet!N26) -> 107937.3865 | P26: =(O26-RSAInc!O26)*(1+RSARet!O26) -> 110367.9016 | Q26: =(P26-RSAInc!P26)*(1+RSARet!P26) -> 116195.8169 | R26: =(Q26-RSAInc!Q26)*(1+RSARet!Q26) -> 114314.6271 | S26: =(R26-RSAInc!R26)*(1+RSARet!R26) -> 112478.1493 | T26: =(S26-RSAInc!S26)*(1+RSARet!S26) -> 107151.092 | U26: =(T26-RSAInc!T26)*(1+RSARet!T26) -> 97340.23479 | V26: =(U26-RSAInc!U26)*(1+RSARet!U26) -> 92461.25399 | W26: =(V26-RSAInc!V26)*(1+RSARet!V26) -> 87063.53086 | X26: =(W26-RSAInc!W26)*(1+RSARet!W26) -> 84163.24763 | Y26: =(X26-RSAInc!X26)*(1+RSARet!X26) -> 81894.83068 | Z26: =(Y26-RSAInc!Y26)*(1+RSARet!Y26) -> 75502.79708 | AA26: =(Z26-RSAInc!Z26)*(1+RSARet!Z26) -> 70956.59351 | AB26: =(AA26-RSAInc!AA26)*(1+RSARet!AA26) -> 66447.46249 | AC26: =(AB26-RSAInc!AB26)*(1+RSARet!AB26) -> 60475.37093 | AD26: =(AC26-RSAInc!AC26)*(1+RSARet!AC26) -> 57497.63091 | AE26: =(AD26-RSAInc!AD26)*(1+RSARet!AD26) -> 55042.29663 | AF26: =(AE26-RSAInc!AE26)*(1+RSARet!AE26) -> 52420.94086 | AG26: =(AF26-RSAInc!AF26)*(1+RSARet!AF26) -> 48230.00505 | AH26: =(AG26-RSAInc!AG26)*(1+RSARet!AG26) -> 44422.29281 | AI26: =(AH26-RSAInc!AH26)*(1+RSARet!AH26) -> 38950.48192 | AJ26: =(AI26-RSAInc!AI26)*(1+RSARet!AI26) -> 33186.39267 | AK26: =(AJ26-RSAInc!AJ26)*(1+RSARet!AJ26) -> 28359.39324 | AL26: =(AK26-RSAInc!AK26)*(1+RSARet!AK26) -> 24921.13584 | AM26: =(AL26-RSAInc!AL26)*(1+RSARet!AL26) -> 22040.42313 | AN26: =(AM26-RSAInc!AM26)*(1+RSARet!AM26) -> 18271.18532 | AO26: =(AN26-RSAInc!AN26)*(1+RSARet!AN26) -> 15340.59194 | AP26: =(AO26-RSAInc!AO26)*(1+RSARet!AO26) -> 11828.25312 | AQ26: =(AP26-RSAInc!AP26)*(1+RSARet!AP26) -> 8759.161469 | AR26: =(AQ26-RSAInc!AQ26)*(1+RSARet!AQ26) -> 5983.381177 | AS26: =(AR26-RSAInc!AR26)*(1+RSARet!AR26) -> 3355.317655 | AT26: =(AS26-RSAInc!AS26)*(1+RSARet!AS26) -> 1588.800452 | AU26: =(AT26-RSAInc!AT26)*(1+RSARet!AT26) -> -7.390279278e-12 | AW26: 109 | AX26: =IF(AW26="",0,LOOKUP(AW26,'Retiree Details and Assumptions'!D$40:D$85,'Retiree Details and Assumptions'!E$40:E$85)) -> 0.0004348127378 | AY26: =IF(AW26="","",LOOKUP(AW26,'Retiree Details and Assumptions'!D$40:D$85,'Retiree Details and Assumptions'!H$40:H$85)) -> 1
A27: 26 | B27: 125000 | C27: =(B27-RSAInc!B27)*(1+RSARet!B27) -> 125332.0215 | D27: =(C27-RSAInc!C27)*(1+RSARet!C27) -> 131587.7067 | E27: =(D27-RSAInc!D27)*(1+RSARet!D27) -> 129279.103 | F27: =(E27-RSAInc!E27)*(1+RSARet!E27) -> 125326.0646 | G27: =(F27-RSAInc!F27)*(1+RSARet!F27) -> 123685.5787 | H27: =(G27-RSAInc!G27)*(1+RSARet!G27) -> 123208.131 | I27: =(H27-RSAInc!H27)*(1+RSARet!H27) -> 119509.5548 | J27: =(I27-RSAInc!I27)*(1+RSARet!I27) -> 117016.5133 | K27: =(J27-RSAInc!J27)*(1+RSARet!J27) -> 114008.6405 | L27: =(K27-RSAInc!K27)*(1+RSARet!K27) -> 109619.2574 | M27: =(L27-RSAInc!L27)*(1+RSARet!L27) -> 108928.2994 | N27: =(M27-RSAInc!M27)*(1+RSARet!M27) -> 111418.2514 | O27: =(N27-RSAInc!N27)*(1+RSARet!N27) -> 114547.5453 | P27: =(O27-RSAInc!O27)*(1+RSARet!O27) -> 116135.3502 | Q27: =(P27-RSAInc!P27)*(1+RSARet!P27) -> 106545.9379 | R27: =(Q27-RSAInc!Q27)*(1+RSARet!Q27) -> 98787.13637 | S27: =(R27-RSAInc!R27)*(1+RSARet!R27) -> 104437.246 | T27: =(S27-RSAInc!S27)*(1+RSARet!S27) -> 102435.6708 | U27: =(T27-RSAInc!T27)*(1+RSARet!T27) -> 101342.4464 | V27: =(U27-RSAInc!U27)*(1+RSARet!U27) -> 108650.6704 | W27: =(V27-RSAInc!V27)*(1+RSARet!V27) -> 105319.142 | X27: =(W27-RSAInc!W27)*(1+RSARet!W27) -> 96741.92306 | Y27: =(X27-RSAInc!X27)*(1+RSARet!X27) -> 91943.66859 | Z27: =(Y27-RSAInc!Y27)*(1+RSARet!Y27) -> 86742.89295 | AA27: =(Z27-RSAInc!Z27)*(1+RSARet!Z27) -> 83781.07981 | AB27: =(AA27-RSAInc!AA27)*(1+RSARet!AA27) -> 75546.10787 | AC27: =(AB27-RSAInc!AB27)*(1+RSARet!AB27) -> 73095.59868 | AD27: =(AC27-RSAInc!AC27)*(1+RSARet!AC27) -> 68950.34406 | AE27: =(AD27-RSAInc!AD27)*(1+RSARet!AD27) -> 62599.32628 | AF27: =(AE27-RSAInc!AE27)*(1+RSARet!AE27) -> 57994.38129 | AG27: =(AF27-RSAInc!AF27)*(1+RSARet!AF27) -> 52834.9901 | AH27: =(AG27-RSAInc!AG27)*(1+RSARet!AG27) -> 48652.07394 | AI27: =(AH27-RSAInc!AH27)*(1+RSARet!AH27) -> 44228.70617 | AJ27: =(AI27-RSAInc!AI27)*(1+RSARet!AI27) -> 40022.86246 | AK27: =(AJ27-RSAInc!AJ27)*(1+RSARet!AJ27) -> 34642.20736 | AL27: =(AK27-RSAInc!AK27)*(1+RSARet!AK27) -> 31813.53604 | AM27: =(AL27-RSAInc!AL27)*(1+RSARet!AL27) -> 28467.22164 | AN27: =(AM27-RSAInc!AM27)*(1+RSARet!AM27) -> 23644.34288 | AO27: =(AN27-RSAInc!AN27)*(1+RSARet!AN27) -> 20092.29674 | AP27: =(AO27-RSAInc!AO27)*(1+RSARet!AO27) -> 14813.80454 | AQ27: =(AP27-RSAInc!AP27)*(1+RSARet!AP27) -> 10699.03267 | AR27: =(AQ27-RSAInc!AQ27)*(1+RSARet!AQ27) -> 7509.590799 | AS27: =(AR27-RSAInc!AR27)*(1+RSARet!AR27) -> 4615.488124 | AT27: =(AS27-RSAInc!AS27)*(1+RSARet!AS27) -> 2079.189002 | AU27: =(AT27-RSAInc!AT27)*(1+RSARet!AT27) -> -9.763026901e-12 | AW27: 109 | AX27: =IF(AW27="",0,LOOKUP(AW27,'Retiree Details and Assumptions'!D$40:D$85,'Retiree Details and Assumptions'!E$40:E$85)) -> 0.0004348127378 | AY27: =IF(AW27="","",LOOKUP(AW27,'Retiree Details and Assumptions'!D$40:D$85,'Retiree Details and Assumptions'!H$40:H$85)) -> 1
A28: 27 | B28: 125000 | C28: =(B28-RSAInc!B28)*(1+RSARet!B28) -> 126002.6557 | D28: =(C28-RSAInc!C28)*(1+RSARet!C28) -> 124546.7913 | E28: =(D28-RSAInc!D28)*(1+RSARet!D28) -> 129887.002 | F28: =(E28-RSAInc!E28)*(1+RSARet!E28) -> 134568.1046 | G28: =(F28-RSAInc!F28)*(1+RSARet!F28) -> 135279.3606 | H28: =(G28-RSAInc!G28)*(1+RSARet!G28) -> 129400.2873 | I28: =(H28-RSAInc!H28)*(1+RSARet!H28) -> 125847.0389 | J28: =(I28-RSAInc!I28)*(1+RSARet!I28) -> 129136.2188 | K28: =(J28-RSAInc!J28)*(1+RSARet!J28) -> 121862.5578 | L28: =(K28-RSAInc!K28)*(1+RSARet!K28) -> 125312.6543 | M28: =(L28-RSAInc!L28)*(1+RSARet!L28) -> 124965.0748 | N28: =(M28-RSAInc!M28)*(1+RSARet!M28) -> 123830.9575 | O28: =(N28-RSAInc!N28)*(1+RSARet!N28) -> 118187.5627 | P28: =(O28-RSAInc!O28)*(1+RSARet!O28) -> 123481.4533 | Q28: =(P28-RSAInc!P28)*(1+RSARet!P28) -> 126741.7903 | R28: =(Q28-RSAInc!Q28)*(1+RSARet!Q28) -> 117435.0053 | S28: =(R28-RSAInc!R28)*(1+RSARet!R28) -> 117883.325 | T28: =(S28-RSAInc!S28)*(1+RSARet!S28) -> 111734.3033 | U28: =(T28-RSAInc!T28)*(1+RSARet!T28) -> 103588.0295 | V28: =(U28-RSAInc!U28)*(1+RSARet!U28) -> 98873.89095 | W28: =(V28-RSAInc!V28)*(1+RSARet!V28) -> 87710.97249 | X28: =(W28-RSAInc!W28)*(1+RSARet!W28) -> 89119.34175 | Y28: =(X28-RSAInc!X28)*(1+RSARet!X28) -> 83437.29619 | Z28: =(Y28-RSAInc!Y28)*(1+RSARet!Y28) -> 76625.67711 | AA28: =(Z28-RSAInc!Z28)*(1+RSARet!Z28) -> 74794.95928 | AB28: =(AA28-RSAInc!AA28)*(1+RSARet!AA28) -> 70443.84299 | AC28: =(AB28-RSAInc!AB28)*(1+RSARet!AB28) -> 65577.69139 | AD28: =(AC28-RSAInc!AC28)*(1+RSARet!AC28) -> 60536.44281 | AE28: =(AD28-RSAInc!AD28)*(1+RSARet!AD28) -> 57415.73602 | AF28: =(AE28-RSAInc!AE28)*(1+RSARet!AE28) -> 52935.02141 | AG28: =(AF28-RSAInc!AF28)*(1+RSARet!AF28) -> 51350.74477 | AH28: =(AG28-RSAInc!AG28)*(1+RSARet!AG28) -> 46878.135 | AI28: =(AH28-RSAInc!AH28)*(1+RSARet!AH28) -> 41571.8641 | AJ28: =(AI28-RSAInc!AI28)*(1+RSARet!AI28) -> 37503.47528 | AK28: =(AJ28-RSAInc!AJ28)*(1+RSARet!AJ28) -> 33485.13565 | AL28: =(AK28-RSAInc!AK28)*(1+RSARet!AK28) -> 29639.44145 | AM28: =(AL28-RSAInc!AL28)*(1+RSARet!AL28) -> 25151.81067 | AN28: =(AM28-RSAInc!AM28)*(1+RSARet!AM28) -> 20229.76083 | AO28: =(AN28-RSAInc!AN28)*(1+RSARet!AN28) -> 15881.21181 | AP28: =(AO28-RSAInc!AO28)*(1+RSARet!AO28) -> 12577.00767 | AQ28: =(AP28-RSAInc!AP28)*(1+RSARet!AP28) -> 9176.279589 | AR28: =(AQ28-RSAInc!AQ28)*(1+RSARet!AQ28) -> 6563.952946 | AS28: =(AR28-RSAInc!AR28)*(1+RSARet!AR28) -> 3870.90293 | AT28: =(AS28-RSAInc!AS28)*(1+RSARet!AS28) -> 1646.184943 | AU28: =(AT28-RSAInc!AT28)*(1+RSARet!AT28) -> -7.298792334e-12 | AW28: 109 | AX28: =IF(AW28="",0,LOOKUP(AW28,'Retiree Details and Assumptions'!D$40:D$85,'Retiree Details and Assumptions'!E$40:E$85)) -> 0.0004348127378 | AY28: =IF(AW28="","",LOOKUP(AW28,'Retiree Details and Assumptions'!D$40:D$85,'Retiree Details and Assumptions'!H$40:H$85)) -> 1
A29: 28 | B29: 125000 | C29: =(B29-RSAInc!B29)*(1+RSARet!B29) -> 121123.146 | D29: =(C29-RSAInc!C29)*(1+RSARet!C29) -> 111277.5205 | E29: =(D29-RSAInc!D29)*(1+RSARet!D29) -> 108298.9442 | F29: =(E29-RSAInc!E29)*(1+RSARet!E29) -> 103442.3355 | G29: =(F29-RSAInc!F29)*(1+RSARet!F29) -> 97097.77594 | H29: =(G29-RSAInc!G29)*(1+RSARet!G29) -> 98266.86502 | I29: =(H29-RSAInc!H29)*(1+RSARet!H29) -> 96520.60463 | J29: =(I29-RSAInc!I29)*(1+RSARet!I29) -> 89840.70422 | K29: =(J29-RSAInc!J29)*(1+RSARet!J29) -> 83422.39884 | L29: =(K29-RSAInc!K29)*(1+RSARet!K29) -> 79394.88138 | M29: =(L29-RSAInc!L29)*(1+RSARet!L29) -> 74131.45952 | N29: =(M29-RSAInc!M29)*(1+RSARet!M29) -> 69304.73829 | O29: =(N29-RSAInc!N29)*(1+RSARet!N29) -> 68018.42012 | P29: =(O29-RSAInc!O29)*(1+RSARet!O29) -> 66827.23695 | Q29: =(P29-RSAInc!P29)*(1+RSARet!P29) -> 66196.21895 | R29: =(Q29-RSAInc!Q29)*(1+RSARet!Q29) -> 64480.9246 | S29: =(R29-RSAInc!R29)*(1+RSARet!R29) -> 62434.97521 | T29: =(S29-RSAInc!S29)*(1+RSARet!S29) -> 63352.56772 | U29: =(T29-RSAInc!T29)*(1+RSARet!T29) -> 58984.60903 | V29: =(U29-RSAInc!U29)*(1+RSARet!U29) -> 58092.18678 | W29: =(V29-RSAInc!V29)*(1+RSARet!V29) -> 57279.70342 | X29: =(W29-RSAInc!W29)*(1+RSARet!W29) -> 54124.12945 | Y29: =(X29-RSAInc!X29)*(1+RSARet!X29) -> 51712.79123 | Z29: =(Y29-RSAInc!Y29)*(1+RSARet!Y29) -> 50456.42571 | AA29: =(Z29-RSAInc!Z29)*(1+RSARet!Z29) -> 45872.0724 | AB29: =(AA29-RSAInc!AA29)*(1+RSARet!AA29) -> 41405.20898 | AC29: =(AB29-RSAInc!AB29)*(1+RSARet!AB29) -> 36505.68123 | AD29: =(AC29-RSAInc!AC29)*(1+RSARet!AC29) -> 33886.60693 | AE29: =(AD29-RSAInc!AD29)*(1+RSARet!AD29) -> 30915.09515 | AF29: =(AE29-RSAInc!AE29)*(1+RSARet!AE29) -> 28108.65545 | AG29: =(AF29-RSAInc!AF29)*(1+RSARet!AF29) -> 24851.13996 | AH29: =(AG29-RSAInc!AG29)*(1+RSARet!AG29) -> 21445.59825 | AI29: =(AH29-RSAInc!AH29)*(1+RSARet!AH29) -> 19704.18617 | AJ29: =(AI29-RSAInc!AI29)*(1+RSARet!AI29) -> 18433.69606 | AK29: =(AJ29-RSAInc!AJ29)*(1+RSARet!AJ29) -> 16039.20189 | AL29: =(AK29-RSAInc!AK29)*(1+RSARet!AK29) -> 13554.08201 | AM29: =(AL29-RSAInc!AL29)*(1+RSARet!AL29) -> 11322.02821 | AN29: =(AM29-RSAInc!AM29)*(1+RSARet!AM29) -> 8587.291694 | AO29: =(AN29-RSAInc!AN29)*(1+RSARet!AN29) -> 6861.974396 | AP29: =(AO29-RSAInc!AO29)*(1+RSARet!AO29) -> 5646.973891 | AQ29: =(AP29-RSAInc!AP29)*(1+RSARet!AP29) -> 4226.473441 | AR29: =(AQ29-RSAInc!AQ29)*(1+RSARet!AQ29) -> 2910.134665 | AS29: =(AR29-RSAInc!AR29)*(1+RSARet!AR29) -> 1763.74761 | AT29: =(AS29-RSAInc!AS29)*(1+RSARet!AS29) -> 788.8895409 | AU29: =(AT29-RSAInc!AT29)*(1+RSARet!AT29) -> -3.523684337e-12 | AW29: 109 | AX29: =IF(AW29="",0,LOOKUP(AW29,'Retiree Details and Assumptions'!D$40:D$85,'Retiree Details and Assumptions'!E$40:E$85)) -> 0.0004348127378 | AY29: =IF(AW29="","",LOOKUP(AW29,'Retiree Details and Assumptions'!D$40:D$85,'Retiree Details and Assumptions'!H$40:H$85)) -> 1
A30: 29 | B30: 125000 | C30: =(B30-RSAInc!B30)*(1+RSARet!B30) -> 120245.7881 | D30: =(C30-RSAInc!C30)*(1+RSARet!C30) -> 113414.9475 | E30: =(D30-RSAInc!D30)*(1+RSARet!D30) -> 107552.2375 | F30: =(E30-RSAInc!E30)*(1+RSARet!E30) -> 109457.8659 | G30: =(F30-RSAInc!F30)*(1+RSARet!F30) -> 107047.7561 | H30: =(G30-RSAInc!G30)*(1+RSARet!G30) -> 102194.7103 | I30: =(H30-RSAInc!H30)*(1+RSARet!H30) -> 103869.1921 | J30: =(I30-RSAInc!I30)*(1+RSARet!I30) -> 100050.976 | K30: =(J30-RSAInc!J30)*(1+RSARet!J30) -> 91977.82301 | L30: =(K30-RSAInc!K30)*(1+RSARet!K30) -> 88137.97933 | M30: =(L30-RSAInc!L30)*(1+RSARet!L30) -> 82499.91996 | N30: =(M30-RSAInc!M30)*(1+RSARet!M30) -> 82628.93617 | O30: =(N30-RSAInc!N30)*(1+RSARet!N30) -> 85502.50169 | P30: =(O30-RSAInc!O30)*(1+RSARet!O30) -> 84467.17847 | Q30: =(P30-RSAInc!P30)*(1+RSARet!P30) -> 84584.06994 | R30: =(Q30-RSAInc!Q30)*(1+RSARet!Q30) -> 76320.47859 | S30: =(R30-RSAInc!R30)*(1+RSARet!R30) -> 75007.26129 | T30: =(S30-RSAInc!S30)*(1+RSARet!S30) -> 70965.14316 | U30: =(T30-RSAInc!T30)*(1+RSARet!T30) -> 67841.24337 | V30: =(U30-RSAInc!U30)*(1+RSARet!U30) -> 63397.68474 | W30: =(V30-RSAInc!V30)*(1+RSARet!V30) -> 59595.13586 | X30: =(W30-RSAInc!W30)*(1+RSARet!W30) -> 53603.90841 | Y30: =(X30-RSAInc!X30)*(1+RSARet!X30) -> 50245.72302 | Z30: =(Y30-RSAInc!Y30)*(1+RSARet!Y30) -> 50667.5224 | AA30: =(Z30-RSAInc!Z30)*(1+RSARet!Z30) -> 50341.05188 | AB30: =(AA30-RSAInc!AA30)*(1+RSARet!AA30) -> 51030.61397 | AC30: =(AB30-RSAInc!AB30)*(1+RSARet!AB30) -> 47805.37994 | AD30: =(AC30-RSAInc!AC30)*(1+RSARet!AC30) -> 43096.17322 | AE30: =(AD30-RSAInc!AD30)*(1+RSARet!AD30) -> 37594.89826 | AF30: =(AE30-RSAInc!AE30)*(1+RSARet!AE30) -> 34062.32016 | AG30: =(AF30-RSAInc!AF30)*(1+RSARet!AF30) -> 33285.97566 | AH30: =(AG30-RSAInc!AG30)*(1+RSARet!AG30) -> 28284.81551 | AI30: =(AH30-RSAInc!AH30)*(1+RSARet!AH30) -> 24866.67861 | AJ30: =(AI30-RSAInc!AI30)*(1+RSARet!AI30) -> 21144.53961 | AK30: =(AJ30-RSAInc!AJ30)*(1+RSARet!AJ30) -> 17999.10675 | AL30: =(AK30-RSAInc!AK30)*(1+RSARet!AK30) -> 15901.05307 | AM30: =(AL30-RSAInc!AL30)*(1+RSARet!AL30) -> 14545.75166 | AN30: =(AM30-RSAInc!AM30)*(1+RSARet!AM30) -> 11635.67982 | AO30: =(AN30-RSAInc!AN30)*(1+RSARet!AN30) -> 9119.017647 | AP30: =(AO30-RSAInc!AO30)*(1+RSARet!AO30) -> 6809.273052 | AQ30: =(AP30-RSAInc!AP30)*(1+RSARet!AP30) -> 5284.960944 | AR30: =(AQ30-RSAInc!AQ30)*(1+RSARet!AQ30) -> 3435.81049 | AS30: =(AR30-RSAInc!AR30)*(1+RSARet!AR30) -> 2051.517925 | AT30: =(AS30-RSAInc!AS30)*(1+RSARet!AS30) -> 869.5325403 | AU30: =(AT30-RSAInc!AT30)*(1+RSARet!AT30) -> -3.776389651e-12 | AW30: 109 | AX30: =IF(AW30="",0,LOOKUP(AW30,'Retiree Details and Assumptions'!D$40:D$85,'Retiree Details and Assumptions'!E$40:E$85)) -> 0.0004348127378 | AY30: =IF(AW30="","",LOOKUP(AW30,'Retiree Details and Assumptions'!D$40:D$85,'Retiree Details and Assumptions'!H$40:H$85)) -> 1
A31: 30 | B31: 125000 | C31: =(B31-RSAInc!B31)*(1+RSARet!B31) -> 119540.3293 | D31: =(C31-RSAInc!C31)*(1+RSARet!C31) -> 113049.9353 | E31: =(D31-RSAInc!D31)*(1+RSARet!D31) -> 108753.1955 | F31: =(E31-RSAInc!E31)*(1+RSARet!E31) -> 104300.6356 | G31: =(F31-RSAInc!F31)*(1+RSARet!F31) -> 99150.31 | H31: =(G31-RSAInc!G31)*(1+RSARet!G31) -> 101610.686 | I31: =(H31-RSAInc!H31)*(1+RSARet!H31) -> 89531.218 | J31: =(I31-RSAInc!I31)*(1+RSARet!I31) -> 96444.51128 | K31: =(J31-RSAInc!J31)*(1+RSARet!J31) -> 93337.51328 | L31: =(K31-RSAInc!K31)*(1+RSARet!K31) -> 88749.80667 | M31: =(L31-RSAInc!L31)*(1+RSARet!L31) -> 88860.39777 | N31: =(M31-RSAInc!M31)*(1+RSARet!M31) -> 85046.59802 | O31: =(N31-RSAInc!N31)*(1+RSARet!N31) -> 78206.13963 | P31: =(O31-RSAInc!O31)*(1+RSARet!O31) -> 72830.67863 | Q31: =(P31-RSAInc!P31)*(1+RSARet!P31) -> 70258.67446 | R31: =(Q31-RSAInc!Q31)*(1+RSARet!Q31) -> 66424.18281 | S31: =(R31-RSAInc!R31)*(1+RSARet!R31) -> 70146.2461 | T31: =(S31-RSAInc!S31)*(1+RSARet!S31) -> 67032.60605 | U31: =(T31-RSAInc!T31)*(1+RSARet!T31) -> 61569.55021 | V31: =(U31-RSAInc!U31)*(1+RSARet!U31) -> 59014.16931 | W31: =(V31-RSAInc!V31)*(1+RSARet!V31) -> 56152.37173 | X31: =(W31-RSAInc!W31)*(1+RSARet!W31) -> 54275.79947 | Y31: =(X31-RSAInc!X31)*(1+RSARet!X31) -> 54854.61104 | Z31: =(Y31-RSAInc!Y31)*(1+RSARet!Y31) -> 51027.73016 | AA31: =(Z31-RSAInc!Z31)*(1+RSARet!Z31) -> 52451.63126 | AB31: =(AA31-RSAInc!AA31)*(1+RSARet!AA31) -> 49084.9732 | AC31: =(AB31-RSAInc!AB31)*(1+RSARet!AB31) -> 45402.79047 | AD31: =(AC31-RSAInc!AC31)*(1+RSARet!AC31) -> 41467.06344 | AE31: =(AD31-RSAInc!AD31)*(1+RSARet!AD31) -> 39538.81621 | AF31: =(AE31-RSAInc!AE31)*(1+RSARet!AE31) -> 35802.48054 | AG31: =(AF31-RSAInc!AF31)*(1+RSARet!AF31) -> 31824.99958 | AH31: =(AG31-RSAInc!AG31)*(1+RSARet!AG31) -> 28499.79436 | AI31: =(AH31-RSAInc!AH31)*(1+RSARet!AH31) -> 27638.88386 | AJ31: =(AI31-RSAInc!AI31)*(1+RSARet!AI31) -> 25610.55846 | AK31: =(AJ31-RSAInc!AJ31)*(1+RSARet!AJ31) -> 22500.88539 | AL31: =(AK31-RSAInc!AK31)*(1+RSARet!AK31) -> 19617.31973 | AM31: =(AL31-RSAInc!AL31)*(1+RSARet!AL31) -> 16132.94738 | AN31: =(AM31-RSAInc!AM31)*(1+RSARet!AM31) -> 12051.65854 | AO31: =(AN31-RSAInc!AN31)*(1+RSARet!AN31) -> 9474.867717 | AP31: =(AO31-RSAInc!AO31)*(1+RSARet!AO31) -> 7272.984623 | AQ31: =(AP31-RSAInc!AP31)*(1+RSARet!AP31) -> 5327.611094 | AR31: =(AQ31-RSAInc!AQ31)*(1+RSARet!AQ31) -> 3648.684251 | AS31: =(AR31-RSAInc!AR31)*(1+RSARet!AR31) -> 2125.34927 | AT31: =(AS31-RSAInc!AS31)*(1+RSARet!AS31) -> 937.5271138 | AU31: =(AT31-RSAInc!AT31)*(1+RSARet!AT31) -> -4.260532494e-12 | AW31: 109 | AX31: =IF(AW31="",0,LOOKUP(AW31,'Retiree Details and Assumptions'!D$40:D$85,'Retiree Details and Assumptions'!E$40:E$85)) -> 0.0004348127378 | AY31: =IF(AW31="","",LOOKUP(AW31,'Retiree Details and Assumptions'!D$40:D$85,'Retiree Details and Assumptions'!H$40:H$85)) -> 1
A32: 31 | B32: 125000 | C32: =(B32-RSAInc!B32)*(1+RSARet!B32) -> 116078.8312 | D32: =(C32-RSAInc!C32)*(1+RSARet!C32) -> 111037.4145 | E32: =(D32-RSAInc!D32)*(1+RSARet!D32) -> 113111.8148 | F32: =(E32-RSAInc!E32)*(1+RSARet!E32) -> 113823.5819 | G32: =(F32-RSAInc!F32)*(1+RSARet!F32) -> 115123.5103 | H32: =(G32-RSAInc!G32)*(1+RSARet!G32) -> 109787.1522 | I32: =(H32-RSAInc!H32)*(1+RSARet!H32) -> 105899.2517 | J32: =(I32-RSAInc!I32)*(1+RSARet!I32) -> 103008.3536 | K32: =(J32-RSAInc!J32)*(1+RSARet!J32) -> 99315.95473 | L32: =(K32-RSAInc!K32)*(1+RSARet!K32) -> 97208.40911 | M32: =(L32-RSAInc!L32)*(1+RSARet!L32) -> 89600.39517 | N32: =(M32-RSAInc!M32)*(1+RSARet!M32) -> 95739.28537 | O32: =(N32-RSAInc!N32)*(1+RSARet!N32) -> 93367.35593 | P32: =(O32-RSAInc!O32)*(1+RSARet!O32) -> 92331.86358 | Q32: =(P32-RSAInc!P32)*(1+RSARet!P32) -> 83179.8068 | R32: =(Q32-RSAInc!Q32)*(1+RSARet!Q32) -> 79053.55892 | S32: =(R32-RSAInc!R32)*(1+RSARet!R32) -> 74295.86207 | T32: =(S32-RSAInc!S32)*(1+RSARet!S32) -> 68158.73329 | U32: =(T32-RSAInc!T32)*(1+RSARet!T32) -> 67256.06094 | V32: =(U32-RSAInc!U32)*(1+RSARet!U32) -> 67341.89716 | W32: =(V32-RSAInc!V32)*(1+RSARet!V32) -> 61888.10029 | X32: =(W32-RSAInc!W32)*(1+RSARet!W32) -> 58216.77685 | Y32: =(X32-RSAInc!X32)*(1+RSARet!X32) -> 57347.13828 | Z32: =(Y32-RSAInc!Y32)*(1+RSARet!Y32) -> 54262.00065 | AA32: =(Z32-RSAInc!Z32)*(1+RSARet!Z32) -> 47161.74273 | AB32: =(AA32-RSAInc!AA32)*(1+RSARet!AA32) -> 41794.59054 | AC32: =(AB32-RSAInc!AB32)*(1+RSARet!AB32) -> 39819.4244 | AD32: =(AC32-RSAInc!AC32)*(1+RSARet!AC32) -> 37651.8181 | AE32: =(AD32-RSAInc!AD32)*(1+RSARet!AD32) -> 33130.80349 | AF32: =(AE32-RSAInc!AE32)*(1+RSARet!AE32) -> 30857.43329 | AG32: =(AF32-RSAInc!AF32)*(1+RSARet!AF32) -> 26846.99566 | AH32: =(AG32-RSAInc!AG32)*(1+RSARet!AG32) -> 22900.03918 | AI32: =(AH32-RSAInc!AH32)*(1+RSARet!AH32) -> 20313.82761 | AJ32: =(AI32-RSAInc!AI32)*(1+RSARet!AI32) -> 18403.17323 | AK32: =(AJ32-RSAInc!AJ32)*(1+RSARet!AJ32) -> 15383.39959 | AL32: =(AK32-RSAInc!AK32)*(1+RSARet!AK32) -> 14276.26485 | AM32: =(AL32-RSAInc!AL32)*(1+RSARet!AL32) -> 12041.6508 | AN32: =(AM32-RSAInc!AM32)*(1+RSARet!AM32) -> 9970.36343 | AO32: =(AN32-RSAInc!AN32)*(1+RSARet!AN32) -> 7785.666385 | AP32: =(AO32-RSAInc!AO32)*(1+RSARet!AO32) -> 5824.612645 | AQ32: =(AP32-RSAInc!AP32)*(1+RSARet!AP32) -> 4316.936773 | AR32: =(AQ32-RSAInc!AQ32)*(1+RSARet!AQ32) -> 2918.154199 | AS32: =(AR32-RSAInc!AR32)*(1+RSARet!AR32) -> 1706.248066 | AT32: =(AS32-RSAInc!AS32)*(1+RSARet!AS32) -> 752.8077291 | AU32: =(AT32-RSAInc!AT32)*(1+RSARet!AT32) -> -3.403357758e-12 | AW32: 109 | AX32: =IF(AW32="",0,LOOKUP(AW32,'Retiree Details and Assumptions'!D$40:D$85,'Retiree Details and Assumptions'!E$40:E$85)) -> 0.0004348127378 | AY32: =IF(AW32="","",LOOKUP(AW32,'Retiree Details and Assumptions'!D$40:D$85,'Retiree Details and Assumptions'!H$40:H$85)) -> 1
A33: 32 | B33: 125000 | C33: =(B33-RSAInc!B33)*(1+RSARet!B33) -> 126860.4818 | D33: =(C33-RSAInc!C33)*(1+RSARet!C33) -> 127941.4082 | E33: =(D33-RSAInc!D33)*(1+RSARet!D33) -> 126512.8862 | F33: =(E33-RSAInc!E33)*(1+RSARet!E33) -> 119979.4479 | G33: =(F33-RSAInc!F33)*(1+RSARet!F33) -> 121674.8708 | H33: =(G33-RSAInc!G33)*(1+RSARet!G33) -> 121766.0269 | I33: =(H33-RSAInc!H33)*(1+RSARet!H33) -> 122738.1352 | J33: =(I33-RSAInc!I33)*(1+RSARet!I33) -> 121001.5906 | K33: =(J33-RSAInc!J33)*(1+RSARet!J33) -> 115236.2077 | L33: =(K33-RSAInc!K33)*(1+RSARet!K33) -> 114276.0402 | M33: =(L33-RSAInc!L33)*(1+RSARet!L33) -> 112712.1164 | N33: =(M33-RSAInc!M33)*(1+RSARet!M33) -> 111080.6699 | O33: =(N33-RSAInc!N33)*(1+RSARet!N33) -> 112668.6409 | P33: =(O33-RSAInc!O33)*(1+RSARet!O33) -> 116857.9031 | Q33: =(P33-RSAInc!P33)*(1+RSARet!P33) -> 111511.8752 | R33: =(Q33-RSAInc!Q33)*(1+RSARet!Q33) -> 108733.3761 | S33: =(R33-RSAInc!R33)*(1+RSARet!R33) -> 105771.9744 | T33: =(S33-RSAInc!S33)*(1+RSARet!S33) -> 100653.9109 | U33: =(T33-RSAInc!T33)*(1+RSARet!T33) -> 102409.7797 | V33: =(U33-RSAInc!U33)*(1+RSARet!U33) -> 97030.41868 | W33: =(V33-RSAInc!V33)*(1+RSARet!V33) -> 94308.62592 | X33: =(W33-RSAInc!W33)*(1+RSARet!W33) -> 86420.97187 | Y33: =(X33-RSAInc!X33)*(1+RSARet!X33) -> 82740.36878 | Z33: =(Y33-RSAInc!Y33)*(1+RSARet!Y33) -> 78576.49757 | AA33: =(Z33-RSAInc!Z33)*(1+RSARet!Z33) -> 77514.50045 | AB33: =(AA33-RSAInc!AA33)*(1+RSARet!AA33) -> 77625.92875 | AC33: =(AB33-RSAInc!AB33)*(1+RSARet!AB33) -> 75885.43354 | AD33: =(AC33-RSAInc!AC33)*(1+RSARet!AC33) -> 74668.75672 | AE33: =(AD33-RSAInc!AD33)*(1+RSARet!AD33) -> 70967.16875 | AF33: =(AE33-RSAInc!AE33)*(1+RSARet!AE33) -> 63568.36117 | AG33: =(AF33-RSAInc!AF33)*(1+RSARet!AF33) -> 60634.3474 | AH33: =(AG33-RSAInc!AG33)*(1+RSARet!AG33) -> 51900.69192 | AI33: =(AH33-RSAInc!AH33)*(1+RSARet!AH33) -> 46182.24027 | AJ33: =(AI33-RSAInc!AI33)*(1+RSARet!AI33) -> 41769.68068 | AK33: =(AJ33-RSAInc!AJ33)*(1+RSARet!AJ33) -> 34938.45859 | AL33: =(AK33-RSAInc!AK33)*(1+RSARet!AK33) -> 32198.58101 | AM33: =(AL33-RSAInc!AL33)*(1+RSARet!AL33) -> 26357.01653 | AN33: =(AM33-RSAInc!AM33)*(1+RSARet!AM33) -> 22329.17651 | AO33: =(AN33-RSAInc!AN33)*(1+RSARet!AN33) -> 16767.46505 | AP33: =(AO33-RSAInc!AO33)*(1+RSARet!AO33) -> 12918.36535 | AQ33: =(AP33-RSAInc!AP33)*(1+RSARet!AP33) -> 10068.46484 | AR33: =(AQ33-RSAInc!AQ33)*(1+RSARet!AQ33) -> 6848.811564 | AS33: =(AR33-RSAInc!AR33)*(1+RSARet!AR33) -> 3973.780576 | AT33: =(AS33-RSAInc!AS33)*(1+RSARet!AS33) -> 1749.718067 | AU33: =(AT33-RSAInc!AT33)*(1+RSARet!AT33) -> -7.453187085e-12 | AW33: 109 | AX33: =IF(AW33="",0,LOOKUP(AW33,'Retiree Details and Assumptions'!D$40:D$85,'Retiree Details and Assumptions'!E$40:E$85)) -> 0.0004348127378 | AY33: =IF(AW33="","",LOOKUP(AW33,'Retiree Details and Assumptions'!D$40:D$85,'Retiree Details and Assumptions'!H$40:H$85)) -> 1
A34: 33 | B34: 125000 | C34: =(B34-RSAInc!B34)*(1+RSARet!B34) -> 117611.4858 | D34: =(C34-RSAInc!C34)*(1+RSARet!C34) -> 112530.8007 | E34: =(D34-RSAInc!D34)*(1+RSARet!D34) -> 108146.5901 | F34: =(E34-RSAInc!E34)*(1+RSARet!E34) -> 107776.3267 | G34: =(F34-RSAInc!F34)*(1+RSARet!F34) -> 115700.5428 | H34: =(G34-RSAInc!G34)*(1+RSARet!G34) -> 116755.4242 | I34: =(H34-RSAInc!H34)*(1+RSARet!H34) -> 117593.7365 | J34: =(I34-RSAInc!I34)*(1+RSARet!I34) -> 121482.5496 | K34: =(J34-RSAInc!J34)*(1+RSARet!J34) -> 117349.3466 | L34: =(K34-RSAInc!K34)*(1+RSARet!K34) -> 115550.6162 | M34: =(L34-RSAInc!L34)*(1+RSARet!L34) -> 107234.362 | N34: =(M34-RSAInc!M34)*(1+RSARet!M34) -> 99830.52505 | O34: =(N34-RSAInc!N34)*(1+RSARet!N34) -> 107236.9067 | P34: =(O34-RSAInc!O34)*(1+RSARet!O34) -> 101748.6668 | Q34: =(P34-RSAInc!P34)*(1+RSARet!P34) -> 97556.49861 | R34: =(Q34-RSAInc!Q34)*(1+RSARet!Q34) -> 88402.89192 | S34: =(R34-RSAInc!R34)*(1+RSARet!R34) -> 89867.16667 | T34: =(S34-RSAInc!S34)*(1+RSARet!S34) -> 90330.55407 | U34: =(T34-RSAInc!T34)*(1+RSARet!T34) -> 84755.58229 | V34: =(U34-RSAInc!U34)*(1+RSARet!U34) -> 86819.64586 | W34: =(V34-RSAInc!V34)*(1+RSARet!V34) -> 84241.54056 | X34: =(W34-RSAInc!W34)*(1+RSARet!W34) -> 80578.91896 | Y34: =(X34-RSAInc!X34)*(1+RSARet!X34) -> 73340.42812 | Z34: =(Y34-RSAInc!Y34)*(1+RSARet!Y34) -> 64943.90568 | AA34: =(Z34-RSAInc!Z34)*(1+RSARet!Z34) -> 58583.80906 | AB34: =(AA34-RSAInc!AA34)*(1+RSARet!AA34) -> 55720.19986 | AC34: =(AB34-RSAInc!AB34)*(1+RSARet!AB34) -> 50419.97048 | AD34: =(AC34-RSAInc!AC34)*(1+RSARet!AC34) -> 47413.69222 | AE34: =(AD34-RSAInc!AD34)*(1+RSARet!AD34) -> 47660.83618 | AF34: =(AE34-RSAInc!AE34)*(1+RSARet!AE34) -> 42916.0627 | AG34: =(AF34-RSAInc!AF34)*(1+RSARet!AF34) -> 37278.35479 | AH34: =(AG34-RSAInc!AG34)*(1+RSARet!AG34) -> 34294.50555 | AI34: =(AH34-RSAInc!AH34)*(1+RSARet!AH34) -> 30713.06377 | AJ34: =(AI34-RSAInc!AI34)*(1+RSARet!AI34) -> 25540.50977 | AK34: =(AJ34-RSAInc!AJ34)*(1+RSARet!AJ34) -> 23393.94407 | AL34: =(AK34-RSAInc!AK34)*(1+RSARet!AK34) -> 20849.4739 | AM34: =(AL34-RSAInc!AL34)*(1+RSARet!AL34) -> 19751.86114 | AN34: =(AM34-RSAInc!AM34)*(1+RSARet!AM34) -> 15515.93776 | AO34: =(AN34-RSAInc!AN34)*(1+RSARet!AN34) -> 11940.89592 | AP34: =(AO34-RSAInc!AO34)*(1+RSARet!AO34) -> 9022.738016 | AQ34: =(AP34-RSAInc!AP34)*(1+RSARet!AP34) -> 6849.226785 | AR34: =(AQ34-RSAInc!AQ34)*(1+RSARet!AQ34) -> 4482.456706 | AS34: =(AR34-RSAInc!AR34)*(1+RSARet!AR34) -> 2750.760861 | AT34: =(AS34-RSAInc!AS34)*(1+RSARet!AS34) -> 1228.611816 | AU34: =(AT34-RSAInc!AT34)*(1+RSARet!AT34) -> -5.541724612e-12 | AW34: 109 | AX34: =IF(AW34="",0,LOOKUP(AW34,'Retiree Details and Assumptions'!D$40:D$85,'Retiree Details and Assumptions'!E$40:E$85)) -> 0.0004348127378 | AY34: =IF(AW34="","",LOOKUP(AW34,'Retiree Details and Assumptions'!D$40:D$85,'Retiree Details and Assumptions'!H$40:H$85)) -> 1
A35: 34 | B35: 125000 | C35: =(B35-RSAInc!B35)*(1+RSARet!B35) -> 120218.7792 | D35: =(C35-RSAInc!C35)*(1+RSARet!C35) -> 112646.784 | E35: =(D35-RSAInc!D35)*(1+RSARet!D35) -> 112649.0181 | F35: =(E35-RSAInc!E35)*(1+RSARet!E35) -> 106770.8814 | G35: =(F35-RSAInc!F35)*(1+RSARet!F35) -> 97198.60189 | H35: =(G35-RSAInc!G35)*(1+RSARet!G35) -> 91287.97475 | I35: =(H35-RSAInc!H35)*(1+RSARet!H35) -> 95329.71021 | J35: =(I35-RSAInc!I35)*(1+RSARet!I35) -> 88250.8827 | K35: =(J35-RSAInc!J35)*(1+RSARet!J35) -> 83065.8602 | L35: =(K35-RSAInc!K35)*(1+RSARet!K35) -> 78927.93993 | M35: =(L35-RSAInc!L35)*(1+RSARet!L35) -> 75939.66608 | N35: =(M35-RSAInc!M35)*(1+RSARet!M35) -> 72635.63667 | O35: =(N35-RSAInc!N35)*(1+RSARet!N35) -> 71005.39819 | P35: =(O35-RSAInc!O35)*(1+RSARet!O35) -> 65125.35414 | Q35: =(P35-RSAInc!P35)*(1+RSARet!P35) -> 71617.56782 | R35: =(Q35-RSAInc!Q35)*(1+RSARet!Q35) -> 70546.71624 | S35: =(R35-RSAInc!R35)*(1+RSARet!R35) -> 68846.76531 | T35: =(S35-RSAInc!S35)*(1+RSARet!S35) -> 64725.47889 | U35: =(T35-RSAInc!T35)*(1+RSARet!T35) -> 63428.97225 | V35: =(U35-RSAInc!U35)*(1+RSARet!U35) -> 56894.93096 | W35: =(V35-RSAInc!V35)*(1+RSARet!V35) -> 55349.83995 | X35: =(W35-RSAInc!W35)*(1+RSARet!W35) -> 55836.69453 | Y35: =(X35-RSAInc!X35)*(1+RSARet!X35) -> 53553.61877 | Z35: =(Y35-RSAInc!Y35)*(1+RSARet!Y35) -> 53045.17967 | AA35: =(Z35-RSAInc!Z35)*(1+RSARet!Z35) -> 54082.99078 | AB35: =(AA35-RSAInc!AA35)*(1+RSARet!AA35) -> 50033.63875 | AC35: =(AB35-RSAInc!AB35)*(1+RSARet!AB35) -> 48087.14831 | AD35: =(AC35-RSAInc!AC35)*(1+RSARet!AC35) -> 46652.79218 | AE35: =(AD35-RSAInc!AD35)*(1+RSARet!AD35) -> 42221.95314 | AF35: =(AE35-RSAInc!AE35)*(1+RSARet!AE35) -> 39225.0068 | AG35: =(AF35-RSAInc!AF35)*(1+RSARet!AF35) -> 35054.61542 | AH35: =(AG35-RSAInc!AG35)*(1+RSARet!AG35) -> 32681.36752 | AI35: =(AH35-RSAInc!AH35)*(1+RSARet!AH35) -> 28968.00989 | AJ35: =(AI35-RSAInc!AI35)*(1+RSARet!AI35) -> 28222.29635 | AK35: =(AJ35-RSAInc!AJ35)*(1+RSARet!AJ35) -> 24859.39245 | AL35: =(AK35-RSAInc!AK35)*(1+RSARet!AK35) -> 23099.57668 | AM35: =(AL35-RSAInc!AL35)*(1+RSARet!AL35) -> 20475.63833 | AN35: =(AM35-RSAInc!AM35)*(1+RSARet!AM35) -> 16977.41739 | AO35: =(AN35-RSAInc!AN35)*(1+RSARet!AN35) -> 13417.81142 | AP35: =(AO35-RSAInc!AO35)*(1+RSARet!AO35) -> 10231.67771 | AQ35: =(AP35-RSAInc!AP35)*(1+RSARet!AP35) -> 7443.445931 | AR35: =(AQ35-RSAInc!AQ35)*(1+RSARet!AQ35) -> 4777.713016 | AS35: =(AR35-RSAInc!AR35)*(1+RSARet!AR35) -> 2843.133247 | AT35: =(AS35-RSAInc!AS35)*(1+RSARet!AS35) -> 1156.033225 | AU35: =(AT35-RSAInc!AT35)*(1+RSARet!AT35) -> -5.266513622e-12 | AW35: 109 | AX35: =IF(AW35="",0,LOOKUP(AW35,'Retiree Details and Assumptions'!D$40:D$85,'Retiree Details and Assumptions'!E$40:E$85)) -> 0.0004348127378 | AY35: =IF(AW35="","",LOOKUP(AW35,'Retiree Details and Assumptions'!D$40:D$85,'Retiree Details and Assumptions'!H$40:H$85)) -> 1
A36: 35 | B36: 125000 | C36: =(B36-RSAInc!B36)*(1+RSARet!B36) -> 117810.4595 | D36: =(C36-RSAInc!C36)*(1+RSARet!C36) -> 120682.6531 | E36: =(D36-RSAInc!D36)*(1+RSARet!D36) -> 115295.7337 | F36: =(E36-RSAInc!E36)*(1+RSARet!E36) -> 110112.046 | G36: =(F36-RSAInc!F36)*(1+RSARet!F36) -> 113277.9602 | H36: =(G36-RSAInc!G36)*(1+RSARet!G36) -> 111313.6651 | I36: =(H36-RSAInc!H36)*(1+RSARet!H36) -> 113030.3822 | J36: =(I36-RSAInc!I36)*(1+RSARet!I36) -> 104517.7554 | K36: =(J36-RSAInc!J36)*(1+RSARet!J36) -> 106321.6171 | L36: =(K36-RSAInc!K36)*(1+RSARet!K36) -> 96511.87866 | M36: =(L36-RSAInc!L36)*(1+RSARet!L36) -> 89149.74515 | N36: =(M36-RSAInc!M36)*(1+RSARet!M36) -> 88350.66925 | O36: =(N36-RSAInc!N36)*(1+RSARet!N36) -> 84970.13979 | P36: =(O36-RSAInc!O36)*(1+RSARet!O36) -> 84536.70643 | Q36: =(P36-RSAInc!P36)*(1+RSARet!P36) -> 80798.40193 | R36: =(Q36-RSAInc!Q36)*(1+RSARet!Q36) -> 80795.24895 | S36: =(R36-RSAInc!R36)*(1+RSARet!R36) -> 72743.35886 | T36: =(S36-RSAInc!S36)*(1+RSARet!S36) -> 69784.3707 | U36: =(T36-RSAInc!T36)*(1+RSARet!T36) -> 70918.28282 | V36: =(U36-RSAInc!U36)*(1+RSARet!U36) -> 69633.91953 | W36: =(V36-RSAInc!V36)*(1+RSARet!V36) -> 69994.53849 | X36: =(W36-RSAInc!W36)*(1+RSARet!W36) -> 69601.30476 | Y36: =(X36-RSAInc!X36)*(1+RSARet!X36) -> 70975.45809 | Z36: =(Y36-RSAInc!Y36)*(1+RSARet!Y36) -> 67769.46205 | AA36: =(Z36-RSAInc!Z36)*(1+RSARet!Z36) -> 62422.97384 | AB36: =(AA36-RSAInc!AA36)*(1+RSARet!AA36) -> 55348.40304 | AC36: =(AB36-RSAInc!AB36)*(1+RSARet!AB36) -> 49688.27402 | AD36: =(AC36-RSAInc!AC36)*(1+RSARet!AC36) -> 48970.12184 | AE36: =(AD36-RSAInc!AD36)*(1+RSARet!AD36) -> 47468.38997 | AF36: =(AE36-RSAInc!AE36)*(1+RSARet!AE36) -> 45768.57152 | AG36: =(AF36-RSAInc!AF36)*(1+RSARet!AF36) -> 39827.10339 | AH36: =(AG36-RSAInc!AG36)*(1+RSARet!AG36) -> 36542.10462 | AI36: =(AH36-RSAInc!AH36)*(1+RSARet!AH36) -> 34043.76765 | AJ36: =(AI36-RSAInc!AI36)*(1+RSARet!AI36) -> 29945.34903 | AK36: =(AJ36-RSAInc!AJ36)*(1+RSARet!AJ36) -> 25656.26478 | AL36: =(AK36-RSAInc!AK36)*(1+RSARet!AK36) -> 23054.05237 | AM36: =(AL36-RSAInc!AL36)*(1+RSARet!AL36) -> 18911.79341 | AN36: =(AM36-RSAInc!AM36)*(1+RSARet!AM36) -> 15709.38533 | AO36: =(AN36-RSAInc!AN36)*(1+RSARet!AN36) -> 12442.62245 | AP36: =(AO36-RSAInc!AO36)*(1+RSARet!AO36) -> 9334.33118 | AQ36: =(AP36-RSAInc!AP36)*(1+RSARet!AP36) -> 6914.523776 | AR36: =(AQ36-RSAInc!AQ36)*(1+RSARet!AQ36) -> 4768.455935 | AS36: =(AR36-RSAInc!AR36)*(1+RSARet!AR36) -> 3029.70199 | AT36: =(AS36-RSAInc!AS36)*(1+RSARet!AS36) -> 1276.569404 | AU36: =(AT36-RSAInc!AT36)*(1+RSARet!AT36) -> -5.902192267e-12 | AW36: 109 | AX36: =IF(AW36="",0,LOOKUP(AW36,'Retiree Details and Assumptions'!D$40:D$85,'Retiree Details and Assumptions'!E$40:E$85)) -> 0.0004348127378 | AY36: =IF(AW36="","",LOOKUP(AW36,'Retiree Details and Assumptions'!D$40:D$85,'Retiree Details and Assumptions'!H$40:H$85)) -> 1
A37: 36 | B37: 125000 | C37: =(B37-RSAInc!B37)*(1+RSARet!B37) -> 129487.4528 | D37: =(C37-RSAInc!C37)*(1+RSARet!C37) -> 121026.382 | E37: =(D37-RSAInc!D37)*(1+RSARet!D37) -> 117140.397 | F37: =(E37-RSAInc!E37)*(1+RSARet!E37) -> 112319.0854 | G37: =(F37-RSAInc!F37)*(1+RSARet!F37) -> 118091.6266 | H37: =(G37-RSAInc!G37)*(1+RSARet!G37) -> 112370.2855 | I37: =(H37-RSAInc!H37)*(1+RSARet!H37) -> 108180.2613 | J37: =(I37-RSAInc!I37)*(1+RSARet!I37) -> 105482.2697 | K37: =(J37-RSAInc!J37)*(1+RSARet!J37) -> 98865.20533 | L37: =(K37-RSAInc!K37)*(1+RSARet!K37) -> 94628.66345 | M37: =(L37-RSAInc!L37)*(1+RSARet!L37) -> 90753.11173 | N37: =(M37-RSAInc!M37)*(1+RSARet!M37) -> 84055.9884 | O37: =(N37-RSAInc!N37)*(1+RSARet!N37) -> 79727.72956 | P37: =(O37-RSAInc!O37)*(1+RSARet!O37) -> 82036.55547 | Q37: =(P37-RSAInc!P37)*(1+RSARet!P37) -> 82224.77904 | R37: =(Q37-RSAInc!Q37)*(1+RSARet!Q37) -> 81283.53881 | S37: =(R37-RSAInc!R37)*(1+RSARet!R37) -> 80491.82903 | T37: =(S37-RSAInc!S37)*(1+RSARet!S37) -> 74979.93845 | U37: =(T37-RSAInc!T37)*(1+RSARet!T37) -> 66623.59046 | V37: =(U37-RSAInc!U37)*(1+RSARet!U37) -> 62677.99565 | W37: =(V37-RSAInc!V37)*(1+RSARet!V37) -> 62090.10525 | X37: =(W37-RSAInc!W37)*(1+RSARet!W37) -> 59109.67243 | Y37: =(X37-RSAInc!X37)*(1+RSARet!X37) -> 57151.38103 | Z37: =(Y37-RSAInc!Y37)*(1+RSARet!Y37) -> 56144.77322 | AA37: =(Z37-RSAInc!Z37)*(1+RSARet!Z37) -> 52104.49829 | AB37: =(AA37-RSAInc!AA37)*(1+RSARet!AA37) -> 48637.21977 | AC37: =(AB37-RSAInc!AB37)*(1+RSARet!AB37) -> 46839.9499 | AD37: =(AC37-RSAInc!AC37)*(1+RSARet!AC37) -> 46147.82746 | AE37: =(AD37-RSAInc!AD37)*(1+RSARet!AD37) -> 42942.57378 | AF37: =(AE37-RSAInc!AE37)*(1+RSARet!AE37) -> 40855.73595 | AG37: =(AF37-RSAInc!AF37)*(1+RSARet!AF37) -> 34186.6607 | AH37: =(AG37-RSAInc!AG37)*(1+RSARet!AG37) -> 30001.91682 | AI37: =(AH37-RSAInc!AH37)*(1+RSARet!AH37) -> 26497.18504 | AJ37: =(AI37-RSAInc!AI37)*(1+RSARet!AI37) -> 23402.54687 | AK37: =(AJ37-RSAInc!AJ37)*(1+RSARet!AJ37) -> 20101.49097 | AL37: =(AK37-RSAInc!AK37)*(1+RSARet!AK37) -> 17861.11517 | AM37: =(AL37-RSAInc!AL37)*(1+RSARet!AL37) -> 14813.6865 | AN37: =(AM37-RSAInc!AM37)*(1+RSARet!AM37) -> 12243.69137 | AO37: =(AN37-RSAInc!AN37)*(1+RSARet!AN37) -> 9712.812012 | AP37: =(AO37-RSAInc!AO37)*(1+RSARet!AO37) -> 7564.241072 | AQ37: =(AP37-RSAInc!AP37)*(1+RSARet!AP37) -> 5443.883125 | AR37: =(AQ37-RSAInc!AQ37)*(1+RSARet!AQ37) -> 3763.781226 | AS37: =(AR37-RSAInc!AR37)*(1+RSARet!AR37) -> 2266.153996 | AT37: =(AS37-RSAInc!AS37)*(1+RSARet!AS37) -> 1058.294708 | AU37: =(AT37-RSAInc!AT37)*(1+RSARet!AT37) -> -4.815802034e-12 | AW37: 109 | AX37: =IF(AW37="",0,LOOKUP(AW37,'Retiree Details and Assumptions'!D$40:D$85,'Retiree Details and Assumptions'!E$40:E$85)) -> 0.0004348127378 | AY37: =IF(AW37="","",LOOKUP(AW37,'Retiree Details and Assumptions'!D$40:D$85,'Retiree Details and Assumptions'!H$40:H$85)) -> 1
A38: 37 | B38: 125000 | C38: =(B38-RSAInc!B38)*(1+RSARet!B38) -> 119844.9968 | D38: =(C38-RSAInc!C38)*(1+RSARet!C38) -> 114054.4251 | E38: =(D38-RSAInc!D38)*(1+RSARet!D38) -> 114782.8433 | F38: =(E38-RSAInc!E38)*(1+RSARet!E38) -> 113236.6064 | G38: =(F38-RSAInc!F38)*(1+RSARet!F38) -> 112882.2333 | H38: =(G38-RSAInc!G38)*(1+RSARet!G38) -> 108648.3592 | I38: =(H38-RSAInc!H38)*(1+RSARet!H38) -> 111370.7544 | J38: =(I38-RSAInc!I38)*(1+RSARet!I38) -> 114139.6516 | K38: =(J38-RSAInc!J38)*(1+RSARet!J38) -> 110375.8983 | L38: =(K38-RSAInc!K38)*(1+RSARet!K38) -> 107654.3431 | M38: =(L38-RSAInc!L38)*(1+RSARet!L38) -> 105819.2634 | N38: =(M38-RSAInc!M38)*(1+RSARet!M38) -> 98348.84159 | O38: =(N38-RSAInc!N38)*(1+RSARet!N38) -> 92658.63837 | P38: =(O38-RSAInc!O38)*(1+RSARet!O38) -> 92002.04444 | Q38: =(P38-RSAInc!P38)*(1+RSARet!P38) -> 86858.77736 | R38: =(Q38-RSAInc!Q38)*(1+RSARet!Q38) -> 87215.86714 | S38: =(R38-RSAInc!R38)*(1+RSARet!R38) -> 85844.96085 | T38: =(S38-RSAInc!S38)*(1+RSARet!S38) -> 81334.32505 | U38: =(T38-RSAInc!T38)*(1+RSARet!T38) -> 77731.38373 | V38: =(U38-RSAInc!U38)*(1+RSARet!U38) -> 72976.68915 | W38: =(V38-RSAInc!V38)*(1+RSARet!V38) -> 72929.43372 | X38: =(W38-RSAInc!W38)*(1+RSARet!W38) -> 67202.44472 | Y38: =(X38-RSAInc!X38)*(1+RSARet!X38) -> 59706.0934 | Z38: =(Y38-RSAInc!Y38)*(1+RSARet!Y38) -> 52996.38723 | AA38: =(Z38-RSAInc!Z38)*(1+RSARet!Z38) -> 50318.67234 | AB38: =(AA38-RSAInc!AA38)*(1+RSARet!AA38) -> 48015.30027 | AC38: =(AB38-RSAInc!AB38)*(1+RSARet!AB38) -> 43111.32643 | AD38: =(AC38-RSAInc!AC38)*(1+RSARet!AC38) -> 40607.48075 | AE38: =(AD38-RSAInc!AD38)*(1+RSARet!AD38) -> 36981.13488 | AF38: =(AE38-RSAInc!AE38)*(1+RSARet!AE38) -> 33244.82303 | AG38: =(AF38-RSAInc!AF38)*(1+RSARet!AF38) -> 29959.23336 | AH38: =(AG38-RSAInc!AG38)*(1+RSARet!AG38) -> 25918.414 | AI38: =(AH38-RSAInc!AH38)*(1+RSARet!AH38) -> 22582.76688 | AJ38: =(AI38-RSAInc!AI38)*(1+RSARet!AI38) -> 21227.73091 | AK38: =(AJ38-RSAInc!AJ38)*(1+RSARet!AJ38) -> 17878.83798 | AL38: =(AK38-RSAInc!AK38)*(1+RSARet!AK38) -> 14788.57169 | AM38: =(AL38-RSAInc!AL38)*(1+RSARet!AL38) -> 13245.77447 | AN38: =(AM38-RSAInc!AM38)*(1+RSARet!AM38) -> 11430.14786 | AO38: =(AN38-RSAInc!AN38)*(1+RSARet!AN38) -> 8831.174143 | AP38: =(AO38-RSAInc!AO38)*(1+RSARet!AO38) -> 6668.733293 | AQ38: =(AP38-RSAInc!AP38)*(1+RSARet!AP38) -> 4924.076275 | AR38: =(AQ38-RSAInc!AQ38)*(1+RSARet!AQ38) -> 3313.763686 | AS38: =(AR38-RSAInc!AR38)*(1+RSARet!AR38) -> 1965.601133 | AT38: =(AS38-RSAInc!AS38)*(1+RSARet!AS38) -> 877.2085324 | AU38: =(AT38-RSAInc!AT38)*(1+RSARet!AT38) -> -4.104767675e-12 | AW38: 109 | AX38: =IF(AW38="",0,LOOKUP(AW38,'Retiree Details and Assumptions'!D$40:D$85,'Retiree Details and Assumptions'!E$40:E$85)) -> 0.0004348127378 | AY38: =IF(AW38="","",LOOKUP(AW38,'Retiree Details and Assumptions'!D$40:D$85,'Retiree Details and Assumptions'!H$40:H$85)) -> 1
A39: 38 | B39: 125000 | C39: =(B39-RSAInc!B39)*(1+RSARet!B39) -> 125689.5449 | D39: =(C39-RSAInc!C39)*(1+RSARet!C39) -> 130032.9896 | E39: =(D39-RSAInc!D39)*(1+RSARet!D39) -> 120810.2502 | F39: =(E39-RSAInc!E39)*(1+RSARet!E39) -> 122147.0012 | G39: =(F39-RSAInc!F39)*(1+RSARet!F39) -> 122482.8841 | H39: =(G39-RSAInc!G39)*(1+RSARet!G39) -> 117677.0491 | I39: =(H39-RSAInc!H39)*(1+RSARet!H39) -> 116339.8046 | J39: =(I39-RSAInc!I39)*(1+RSARet!I39) -> 110583.2746 | K39: =(J39-RSAInc!J39)*(1+RSARet!J39) -> 112118.7096 | L39: =(K39-RSAInc!K39)*(1+RSARet!K39) -> 112736.4838 | M39: =(L39-RSAInc!L39)*(1+RSARet!L39) -> 117908.4572 | N39: =(M39-RSAInc!M39)*(1+RSARet!M39) -> 116798.8336 | O39: =(N39-RSAInc!N39)*(1+RSARet!N39) -> 112130.7934 | P39: =(O39-RSAInc!O39)*(1+RSARet!O39) -> 111121.1831 | Q39: =(P39-RSAInc!P39)*(1+RSARet!P39) -> 103271.6105 | R39: =(Q39-RSAInc!Q39)*(1+RSARet!Q39) -> 102077.0263 | S39: =(R39-RSAInc!R39)*(1+RSARet!R39) -> 102944.3974 | T39: =(S39-RSAInc!S39)*(1+RSARet!S39) -> 92468.42883 | U39: =(T39-RSAInc!T39)*(1+RSARet!T39) -> 90488.75016 | V39: =(U39-RSAInc!U39)*(1+RSARet!U39) -> 84855.36438 | W39: =(V39-RSAInc!V39)*(1+RSARet!V39) -> 81663.574 | X39: =(W39-RSAInc!W39)*(1+RSARet!W39) -> 76864.42053 | Y39: =(X39-RSAInc!X39)*(1+RSARet!X39) -> 72380.21811 | Z39: =(Y39-RSAInc!Y39)*(1+RSARet!Y39) -> 71117.66195 | AA39: =(Z39-RSAInc!Z39)*(1+RSARet!Z39) -> 60131.51624 | AB39: =(AA39-RSAInc!AA39)*(1+RSARet!AA39) -> 59560.82359 | AC39: =(AB39-RSAInc!AB39)*(1+RSARet!AB39) -> 53515.99146 | AD39: =(AC39-RSAInc!AC39)*(1+RSARet!AC39) -> 49215.50627 | AE39: =(AD39-RSAInc!AD39)*(1+RSARet!AD39) -> 46264.63139 | AF39: =(AE39-RSAInc!AE39)*(1+RSARet!AE39) -> 41115.41986 | AG39: =(AF39-RSAInc!AF39)*(1+RSARet!AF39) -> 38824.82962 | AH39: =(AG39-RSAInc!AG39)*(1+RSARet!AG39) -> 35833.83201 | AI39: =(AH39-RSAInc!AH39)*(1+RSARet!AH39) -> 31179.88934 | AJ39: =(AI39-RSAInc!AI39)*(1+RSARet!AI39) -> 27143.32123 | AK39: =(AJ39-RSAInc!AJ39)*(1+RSARet!AJ39) -> 25105.31596 | AL39: =(AK39-RSAInc!AK39)*(1+RSARet!AK39) -> 20867.71121 | AM39: =(AL39-RSAInc!AL39)*(1+RSARet!AL39) -> 18264.56328 | AN39: =(AM39-RSAInc!AM39)*(1+RSARet!AM39) -> 15266.09047 | AO39: =(AN39-RSAInc!AN39)*(1+RSARet!AN39) -> 11989.54477 | AP39: =(AO39-RSAInc!AO39)*(1+RSARet!AO39) -> 9145.256139 | AQ39: =(AP39-RSAInc!AP39)*(1+RSARet!AP39) -> 6982.765861 | AR39: =(AQ39-RSAInc!AQ39)*(1+RSARet!AQ39) -> 5124.870473 | AS39: =(AR39-RSAInc!AR39)*(1+RSARet!AR39) -> 3235.336742 | AT39: =(AS39-RSAInc!AS39)*(1+RSARet!AS39) -> 1405.891339 | AU39: =(AT39-RSAInc!AT39)*(1+RSARet!AT39) -> -6.22596311e-12 | AW39: 109 | AX39: =IF(AW39="",0,LOOKUP(AW39,'Retiree Details and Assumptions'!D$40:D$85,'Retiree Details and Assumptions'!E$40:E$85)) -> 0.0004348127378 | AY39: =IF(AW39="","",LOOKUP(AW39,'Retiree Details and Assumptions'!D$40:D$85,'Retiree Details and Assumptions'!H$40:H$85)) -> 1
A40: 39 | B40: 125000 | C40: =(B40-RSAInc!B40)*(1+RSARet!B40) -> 114111.7966 | D40: =(C40-RSAInc!C40)*(1+RSARet!C40) -> 108870.2607 | E40: =(D40-RSAInc!D40)*(1+RSARet!D40) -> 105503.1537 | F40: =(E40-RSAInc!E40)*(1+RSARet!E40) -> 106713.4453 | G40: =(F40-RSAInc!F40)*(1+RSARet!F40) -> 104566.1831 | H40: =(G40-RSAInc!G40)*(1+RSARet!G40) -> 94595.71868 | I40: =(H40-RSAInc!H40)*(1+RSARet!H40) -> 91702.01575 | J40: =(I40-RSAInc!I40)*(1+RSARet!I40) -> 89233.28205 | K40: =(J40-RSAInc!J40)*(1+RSARet!J40) -> 83340.81923 | L40: =(K40-RSAInc!K40)*(1+RSARet!K40) -> 78922.3199 | M40: =(L40-RSAInc!L40)*(1+RSARet!L40) -> 80760.90219 | N40: =(M40-RSAInc!M40)*(1+RSARet!M40) -> 76659.37558 | O40: =(N40-RSAInc!N40)*(1+RSARet!N40) -> 72784.63038 | P40: =(O40-RSAInc!O40)*(1+RSARet!O40) -> 69972.31265 | Q40: =(P40-RSAInc!P40)*(1+RSARet!P40) -> 73306.43673 | R40: =(Q40-RSAInc!Q40)*(1+RSARet!Q40) -> 71450.61057 | S40: =(R40-RSAInc!R40)*(1+RSARet!R40) -> 68751.51769 | T40: =(S40-RSAInc!S40)*(1+RSARet!S40) -> 66614.11168 | U40: =(T40-RSAInc!T40)*(1+RSARet!T40) -> 70005.52975 | V40: =(U40-RSAInc!U40)*(1+RSARet!U40) -> 65940.27955 | W40: =(V40-RSAInc!V40)*(1+RSARet!V40) -> 64886.71048 | X40: =(W40-RSAInc!W40)*(1+RSARet!W40) -> 61991.38723 | Y40: =(X40-RSAInc!X40)*(1+RSARet!X40) -> 53287.09718 | Z40: =(Y40-RSAInc!Y40)*(1+RSARet!Y40) -> 50092.88946 | AA40: =(Z40-RSAInc!Z40)*(1+RSARet!Z40) -> 45577.81059 | AB40: =(AA40-RSAInc!AA40)*(1+RSARet!AA40) -> 40299.87349 | AC40: =(AB40-RSAInc!AB40)*(1+RSARet!AB40) -> 35705.30452 | AD40: =(AC40-RSAInc!AC40)*(1+RSARet!AC40) -> 33730.36947 | AE40: =(AD40-RSAInc!AD40)*(1+RSARet!AD40) -> 33215.57537 | AF40: =(AE40-RSAInc!AE40)*(1+RSARet!AE40) -> 30580.36444 | AG40: =(AF40-RSAInc!AF40)*(1+RSARet!AF40) -> 26486.3711 | AH40: =(AG40-RSAInc!AG40)*(1+RSARet!AG40) -> 23473.89329 | AI40: =(AH40-RSAInc!AH40)*(1+RSARet!AH40) -> 20662.04373 | AJ40: =(AI40-RSAInc!AI40)*(1+RSARet!AI40) -> 18928.95959 | AK40: =(AJ40-RSAInc!AJ40)*(1+RSARet!AJ40) -> 16867.63622 | AL40: =(AK40-RSAInc!AK40)*(1+RSARet!AK40) -> 14994.62531 | AM40: =(AL40-RSAInc!AL40)*(1+RSARet!AL40) -> 13247.08046 | AN40: =(AM40-RSAInc!AM40)*(1+RSARet!AM40) -> 10818.58751 | AO40: =(AN40-RSAInc!AN40)*(1+RSARet!AN40) -> 8650.007953 | AP40: =(AO40-RSAInc!AO40)*(1+RSARet!AO40) -> 6339.414979 | AQ40: =(AP40-RSAInc!AP40)*(1+RSARet!AP40) -> 4347.672449 | AR40: =(AQ40-RSAInc!AQ40)*(1+RSARet!AQ40) -> 2838.565262 | AS40: =(AR40-RSAInc!AR40)*(1+RSARet!AR40) -> 1626.493631 | AT40: =(AS40-RSAInc!AS40)*(1+RSARet!AS40) -> 700.44946 | AU40: =(AT40-RSAInc!AT40)*(1+RSARet!AT40) -> -3.23372033e-12 | AW40: 109 | AX40: =IF(AW40="",0,LOOKUP(AW40,'Retiree Details and Assumptions'!D$40:D$85,'Retiree Details and Assumptions'!E$40:E$85)) -> 0.0004348127378 | AY40: =IF(AW40="","",LOOKUP(AW40,'Retiree Details and Assumptions'!D$40:D$85,'Retiree Details and Assumptions'!H$40:H$85)) -> 1
A41: 40 | B41: 125000 | C41: =(B41-RSAInc!B41)*(1+RSARet!B41) -> 128426.0861 | D41: =(C41-RSAInc!C41)*(1+RSARet!C41) -> 125773.0973 | E41: =(D41-RSAInc!D41)*(1+RSARet!D41) -> 119113.7342 | F41: =(E41-RSAInc!E41)*(1+RSARet!E41) -> 116890.5639 | G41: =(F41-RSAInc!F41)*(1+RSARet!F41) -> 111104.0558 | H41: =(G41-RSAInc!G41)*(1+RSARet!G41) -> 107495.6835 | I41: =(H41-RSAInc!H41)*(1+RSARet!H41) -> 103939.5348 | J41: =(I41-RSAInc!I41)*(1+RSARet!I41) -> 101190.3714 | K41: =(J41-RSAInc!J41)*(1+RSARet!J41) -> 105987.6335 | L41: =(K41-RSAInc!K41)*(1+RSARet!K41) -> 104172.6885 | M41: =(L41-RSAInc!L41)*(1+RSARet!L41) -> 104938.3774 | N41: =(M41-RSAInc!M41)*(1+RSARet!M41) -> 109391.6604 | O41: =(N41-RSAInc!N41)*(1+RSARet!N41) -> 107383.528 | P41: =(O41-RSAInc!O41)*(1+RSARet!O41) -> 103214.1913 | Q41: =(P41-RSAInc!P41)*(1+RSARet!P41) -> 96104.03797 | R41: =(Q41-RSAInc!Q41)*(1+RSARet!Q41) -> 101222.9159 | S41: =(R41-RSAInc!R41)*(1+RSARet!R41) -> 98315.83869 | T41: =(S41-RSAInc!S41)*(1+RSARet!S41) -> 96859.43116 | U41: =(T41-RSAInc!T41)*(1+RSARet!T41) -> 94601.47141 | V41: =(U41-RSAInc!U41)*(1+RSARet!U41) -> 91643.71476 | W41: =(V41-RSAInc!V41)*(1+RSARet!V41) -> 88602.7041 | X41: =(W41-RSAInc!W41)*(1+RSARet!W41) -> 79508.46365 | Y41: =(X41-RSAInc!X41)*(1+RSARet!X41) -> 73825.67166 | Z41: =(Y41-RSAInc!Y41)*(1+RSARet!Y41) -> 67766.48068 | AA41: =(Z41-RSAInc!Z41)*(1+RSARet!Z41) -> 65765.72852 | AB41: =(AA41-RSAInc!AA41)*(1+RSARet!AA41) -> 60542.88649 | AC41: =(AB41-RSAInc!AB41)*(1+RSARet!AB41) -> 55677.95741 | AD41: =(AC41-RSAInc!AC41)*(1+RSARet!AC41) -> 51018.74858 | AE41: =(AD41-RSAInc!AD41)*(1+RSARet!AD41) -> 47712.12178 | AF41: =(AE41-RSAInc!AE41)*(1+RSARet!AE41) -> 43710.49927 | AG41: =(AF41-RSAInc!AF41)*(1+RSARet!AF41) -> 39798.39439 | AH41: =(AG41-RSAInc!AG41)*(1+RSARet!AG41) -> 34332.54847 | AI41: =(AH41-RSAInc!AH41)*(1+RSARet!AH41) -> 31331.87977 | AJ41: =(AI41-RSAInc!AI41)*(1+RSARet!AI41) -> 28113.30714 | AK41: =(AJ41-RSAInc!AJ41)*(1+RSARet!AJ41) -> 27449.21617 | AL41: =(AK41-RSAInc!AK41)*(1+RSARet!AK41) -> 22604.3317 | AM41: =(AL41-RSAInc!AL41)*(1+RSARet!AL41) -> 18757.11582 | AN41: =(AM41-RSAInc!AM41)*(1+RSARet!AM41) -> 18006.0689 | AO41: =(AN41-RSAInc!AN41)*(1+RSARet!AN41) -> 14021.84303 | AP41: =(AO41-RSAInc!AO41)*(1+RSARet!AO41) -> 11371.74623 | AQ41: =(AP41-RSAInc!AP41)*(1+RSARet!AP41) -> 8262.403786 | AR41: =(AQ41-RSAInc!AQ41)*(1+RSARet!AQ41) -> 5534.366393 | AS41: =(AR41-RSAInc!AR41)*(1+RSARet!AR41) -> 3233.342125 | AT41: =(AS41-RSAInc!AS41)*(1+RSARet!AS41) -> 1355.468138 | AU41: =(AT41-RSAInc!AT41)*(1+RSARet!AT41) -> -5.742474856e-12 | AW41: 109 | AX41: =IF(AW41="",0,LOOKUP(AW41,'Retiree Details and Assumptions'!D$40:D$85,'Retiree Details and Assumptions'!E$40:E$85)) -> 0.0004348127378 | AY41: =IF(AW41="","",LOOKUP(AW41,'Retiree Details and Assumptions'!D$40:D$85,'Retiree Details and Assumptions'!H$40:H$85)) -> 1
A42: 41 | B42: 125000 | C42: =(B42-RSAInc!B42)*(1+RSARet!B42) -> 123333.0872 | D42: =(C42-RSAInc!C42)*(1+RSARet!C42) -> 113770.9301 | E42: =(D42-RSAInc!D42)*(1+RSARet!D42) -> 111699.0288 | F42: =(E42-RSAInc!E42)*(1+RSARet!E42) -> 106248.0367 | G42: =(F42-RSAInc!F42)*(1+RSARet!F42) -> 101442.7215 | H42: =(G42-RSAInc!G42)*(1+RSARet!G42) -> 99654.38635 | I42: =(H42-RSAInc!H42)*(1+RSARet!H42) -> 99913.60074 | J42: =(I42-RSAInc!I42)*(1+RSARet!I42) -> 93554.22967 | K42: =(J42-RSAInc!J42)*(1+RSARet!J42) -> 84217.55796 | L42: =(K42-RSAInc!K42)*(1+RSARet!K42) -> 83543.43451 | M42: =(L42-RSAInc!L42)*(1+RSARet!L42) -> 79078.30703 | N42: =(M42-RSAInc!M42)*(1+RSARet!M42) -> 80179.89647 | O42: =(N42-RSAInc!N42)*(1+RSARet!N42) -> 77353.13244 | P42: =(O42-RSAInc!O42)*(1+RSARet!O42) -> 79036.86582 | Q42: =(P42-RSAInc!P42)*(1+RSARet!P42) -> 73124.48271 | R42: =(Q42-RSAInc!Q42)*(1+RSARet!Q42) -> 77390.20573 | S42: =(R42-RSAInc!R42)*(1+RSARet!R42) -> 73926.65225 | T42: =(S42-RSAInc!S42)*(1+RSARet!S42) -> 67197.14466 | U42: =(T42-RSAInc!T42)*(1+RSARet!T42) -> 68778.14211 | V42: =(U42-RSAInc!U42)*(1+RSARet!U42) -> 64901.72855 | W42: =(V42-RSAInc!V42)*(1+RSARet!V42) -> 64692.41133 | X42: =(W42-RSAInc!W42)*(1+RSARet!W42) -> 61235.19432 | Y42: =(X42-RSAInc!X42)*(1+RSARet!X42) -> 58342.31628 | Z42: =(Y42-RSAInc!Y42)*(1+RSARet!Y42) -> 60338.08972 | AA42: =(Z42-RSAInc!Z42)*(1+RSARet!Z42) -> 56655.42259 | AB42: =(AA42-RSAInc!AA42)*(1+RSARet!AA42) -> 52145.39126 | AC42: =(AB42-RSAInc!AB42)*(1+RSARet!AB42) -> 48997.81747 | AD42: =(AC42-RSAInc!AC42)*(1+RSARet!AC42) -> 45495.87716 | AE42: =(AD42-RSAInc!AD42)*(1+RSARet!AD42) -> 42645.98303 | AF42: =(AE42-RSAInc!AE42)*(1+RSARet!AE42) -> 39357.7953 | AG42: =(AF42-RSAInc!AF42)*(1+RSARet!AF42) -> 35685.42559 | AH42: =(AG42-RSAInc!AG42)*(1+RSARet!AG42) -> 31953.76812 | AI42: =(AH42-RSAInc!AH42)*(1+RSARet!AH42) -> 27516.10185 | AJ42: =(AI42-RSAInc!AI42)*(1+RSARet!AI42) -> 23750.57986 | AK42: =(AJ42-RSAInc!AJ42)*(1+RSARet!AJ42) -> 19962.33023 | AL42: =(AK42-RSAInc!AK42)*(1+RSARet!AK42) -> 17127.35649 | AM42: =(AL42-RSAInc!AL42)*(1+RSARet!AL42) -> 14184.83931 | AN42: =(AM42-RSAInc!AM42)*(1+RSARet!AM42) -> 11249.17556 | AO42: =(AN42-RSAInc!AN42)*(1+RSARet!AN42) -> 8745.419351 | AP42: =(AO42-RSAInc!AO42)*(1+RSARet!AO42) -> 6814.383781 | AQ42: =(AP42-RSAInc!AP42)*(1+RSARet!AP42) -> 4939.579032 | AR42: =(AQ42-RSAInc!AQ42)*(1+RSARet!AQ42) -> 3375.949997 | AS42: =(AR42-RSAInc!AR42)*(1+RSARet!AR42) -> 1851.0701 | AT42: =(AS42-RSAInc!AS42)*(1+RSARet!AS42) -> 766.9646798 | AU42: =(AT42-RSAInc!AT42)*(1+RSARet!AT42) -> -3.671212298e-12 | AW42: 109 | AX42: =IF(AW42="",0,LOOKUP(AW42,'Retiree Details and Assumptions'!D$40:D$85,'Retiree Details and Assumptions'!E$40:E$85)) -> 0.0004348127378 | AY42: =IF(AW42="","",LOOKUP(AW42,'Retiree Details and Assumptions'!D$40:D$85,'Retiree Details and Assumptions'!H$40:H$85)) -> 1
A43: 42 | B43: 125000 | C43: =(B43-RSAInc!B43)*(1+RSARet!B43) -> 124346.1245 | D43: =(C43-RSAInc!C43)*(1+RSARet!C43) -> 126389.5524 | E43: =(D43-RSAInc!D43)*(1+RSARet!D43) -> 116262.8238 | F43: =(E43-RSAInc!E43)*(1+RSARet!E43) -> 106488.1624 | G43: =(F43-RSAInc!F43)*(1+RSARet!F43) -> 108316.4414 | H43: =(G43-RSAInc!G43)*(1+RSARet!G43) -> 102750.274 | I43: =(H43-RSAInc!H43)*(1+RSARet!H43) -> 103208.7921 | J43: =(I43-RSAInc!I43)*(1+RSARet!I43) -> 98876.54001 | K43: =(J43-RSAInc!J43)*(1+RSARet!J43) -> 95322.71328 | L43: =(K43-RSAInc!K43)*(1+RSARet!K43) -> 90445.59269 | M43: =(L43-RSAInc!L43)*(1+RSARet!L43) -> 90395.91946 | N43: =(M43-RSAInc!M43)*(1+RSARet!M43) -> 88809.24937 | O43: =(N43-RSAInc!N43)*(1+RSARet!N43) -> 88898.89727 | P43: =(O43-RSAInc!O43)*(1+RSARet!O43) -> 84733.19091 | Q43: =(P43-RSAInc!P43)*(1+RSARet!P43) -> 84131.36548 | R43: =(Q43-RSAInc!Q43)*(1+RSARet!Q43) -> 81876.58817 | S43: =(R43-RSAInc!R43)*(1+RSARet!R43) -> 73794.04658 | T43: =(S43-RSAInc!S43)*(1+RSARet!S43) -> 68324.34031 | U43: =(T43-RSAInc!T43)*(1+RSARet!T43) -> 67150.99409 | V43: =(U43-RSAInc!U43)*(1+RSARet!U43) -> 61499.89777 | W43: =(V43-RSAInc!V43)*(1+RSARet!V43) -> 59850.57032 | X43: =(W43-RSAInc!W43)*(1+RSARet!W43) -> 54968.79264 | Y43: =(X43-RSAInc!X43)*(1+RSARet!X43) -> 53371.97827 | Z43: =(Y43-RSAInc!Y43)*(1+RSARet!Y43) -> 50950.49571 | AA43: =(Z43-RSAInc!Z43)*(1+RSARet!Z43) -> 47321.60984 | AB43: =(AA43-RSAInc!AA43)*(1+RSARet!AA43) -> 44699.78664 | AC43: =(AB43-RSAInc!AB43)*(1+RSARet!AB43) -> 41237.87976 | AD43: =(AC43-RSAInc!AC43)*(1+RSARet!AC43) -> 37715.98807 | AE43: =(AD43-RSAInc!AD43)*(1+RSARet!AD43) -> 34351.24884 | AF43: =(AE43-RSAInc!AE43)*(1+RSARet!AE43) -> 29313.38831 | AG43: =(AF43-RSAInc!AF43)*(1+RSARet!AF43) -> 26320.68729 | AH43: =(AG43-RSAInc!AG43)*(1+RSARet!AG43) -> 22721.59328 | AI43: =(AH43-RSAInc!AH43)*(1+RSARet!AH43) -> 19579.70352 | AJ43: =(AI43-RSAInc!AI43)*(1+RSARet!AI43) -> 18373.99903 | AK43: =(AJ43-RSAInc!AJ43)*(1+RSARet!AJ43) -> 17055.93394 | AL43: =(AK43-RSAInc!AK43)*(1+RSARet!AK43) -> 14282.50433 | AM43: =(AL43-RSAInc!AL43)*(1+RSARet!AL43) -> 11863.5817 | AN43: =(AM43-RSAInc!AM43)*(1+RSARet!AM43) -> 10530.02153 | AO43: =(AN43-RSAInc!AN43)*(1+RSARet!AN43) -> 8174.252302 | AP43: =(AO43-RSAInc!AO43)*(1+RSARet!AO43) -> 6189.526945 | AQ43: =(AP43-RSAInc!AP43)*(1+RSARet!AP43) -> 4667.934363 | AR43: =(AQ43-RSAInc!AQ43)*(1+RSARet!AQ43) -> 3122.375708 | AS43: =(AR43-RSAInc!AR43)*(1+RSARet!AR43) -> 1887.096556 | AT43: =(AS43-RSAInc!AS43)*(1+RSARet!AS43) -> 765.4622639 | AU43: =(AT43-RSAInc!AT43)*(1+RSARet!AT43) -> -3.2961131e-12 | AW43: 109 | AX43: =IF(AW43="",0,LOOKUP(AW43,'Retiree Details and Assumptions'!D$40:D$85,'Retiree Details and Assumptions'!E$40:E$85)) -> 0.0004348127378 | AY43: =IF(AW43="","",LOOKUP(AW43,'Retiree Details and Assumptions'!D$40:D$85,'Retiree Details and Assumptions'!H$40:H$85)) -> 1
A44: 43 | B44: 125000 | C44: =(B44-RSAInc!B44)*(1+RSARet!B44) -> 126877.8065 | D44: =(C44-RSAInc!C44)*(1+RSARet!C44) -> 124280.8861 | E44: =(D44-RSAInc!D44)*(1+RSARet!D44) -> 126544.8931 | F44: =(E44-RSAInc!E44)*(1+RSARet!E44) -> 123294.5512 | G44: =(F44-RSAInc!F44)*(1+RSARet!F44) -> 125277.3393 | H44: =(G44-RSAInc!G44)*(1+RSARet!G44) -> 126912.9667 | I44: =(H44-RSAInc!H44)*(1+RSARet!H44) -> 125393.9477 | J44: =(I44-RSAInc!I44)*(1+RSARet!I44) -> 118876.8357 | K44: =(J44-RSAInc!J44)*(1+RSARet!J44) -> 116916.7847 | L44: =(K44-RSAInc!K44)*(1+RSARet!K44) -> 120529.8113 | M44: =(L44-RSAInc!L44)*(1+RSARet!L44) -> 117491.5413 | N44: =(M44-RSAInc!M44)*(1+RSARet!M44) -> 113943.8351 | O44: =(N44-RSAInc!N44)*(1+RSARet!N44) -> 108326.3866 | P44: =(O44-RSAInc!O44)*(1+RSARet!O44) -> 103885.7802 | Q44: =(P44-RSAInc!P44)*(1+RSARet!P44) -> 101523.5609 | R44: =(Q44-RSAInc!Q44)*(1+RSARet!Q44) -> 95466.73147 | S44: =(R44-RSAInc!R44)*(1+RSARet!R44) -> 92631.53204 | T44: =(S44-RSAInc!S44)*(1+RSARet!S44) -> 90429.77567 | U44: =(T44-RSAInc!T44)*(1+RSARet!T44) -> 85795.10456 | V44: =(U44-RSAInc!U44)*(1+RSARet!U44) -> 83007.92609 | W44: =(V44-RSAInc!V44)*(1+RSARet!V44) -> 79910.1647 | X44: =(W44-RSAInc!W44)*(1+RSARet!W44) -> 81987.31356 | Y44: =(X44-RSAInc!X44)*(1+RSARet!X44) -> 77844.37154 | Z44: =(Y44-RSAInc!Y44)*(1+RSARet!Y44) -> 75875.81865 | AA44: =(Z44-RSAInc!Z44)*(1+RSARet!Z44) -> 72774.53988 | AB44: =(AA44-RSAInc!AA44)*(1+RSARet!AA44) -> 70333.81394 | AC44: =(AB44-RSAInc!AB44)*(1+RSARet!AB44) -> 64434.74857 | AD44: =(AC44-RSAInc!AC44)*(1+RSARet!AC44) -> 61653.16537 | AE44: =(AD44-RSAInc!AD44)*(1+RSARet!AD44) -> 59183.3763 | AF44: =(AE44-RSAInc!AE44)*(1+RSARet!AE44) -> 54098.38603 | AG44: =(AF44-RSAInc!AF44)*(1+RSARet!AF44) -> 49305.00515 | AH44: =(AG44-RSAInc!AG44)*(1+RSARet!AG44) -> 45228.02245 | AI44: =(AH44-RSAInc!AH44)*(1+RSARet!AH44) -> 39766.36116 | AJ44: =(AI44-RSAInc!AI44)*(1+RSARet!AI44) -> 35170.12397 | AK44: =(AJ44-RSAInc!AJ44)*(1+RSARet!AJ44) -> 30906.01221 | AL44: =(AK44-RSAInc!AK44)*(1+RSARet!AK44) -> 28523.65819 | AM44: =(AL44-RSAInc!AL44)*(1+RSARet!AL44) -> 23988.78535 | AN44: =(AM44-RSAInc!AM44)*(1+RSARet!AM44) -> 19184.83235 | AO44: =(AN44-RSAInc!AN44)*(1+RSARet!AN44) -> 15064.05826 | AP44: =(AO44-RSAInc!AO44)*(1+RSARet!AO44) -> 11670.02539 | AQ44: =(AP44-RSAInc!AP44)*(1+RSARet!AP44) -> 8267.514014 | AR44: =(AQ44-RSAInc!AQ44)*(1+RSARet!AQ44) -> 5708.677277 | AS44: =(AR44-RSAInc!AR44)*(1+RSARet!AR44) -> 3477.50257 | AT44: =(AS44-RSAInc!AS44)*(1+RSARet!AS44) -> 1516.404099 | AU44: =(AT44-RSAInc!AT44)*(1+RSARet!AT44) -> -6.915716062e-12 | AW44: 109 | AX44: =IF(AW44="",0,LOOKUP(AW44,'Retiree Details and Assumptions'!D$40:D$85,'Retiree Details and Assumptions'!E$40:E$85)) -> 0.0004348127378 | AY44: =IF(AW44="","",LOOKUP(AW44,'Retiree Details and Assumptions'!D$40:D$85,'Retiree Details and Assumptions'!H$40:H$85)) -> 1
A45: 44 | B45: 125000 | C45: =(B45-RSAInc!B45)*(1+RSARet!B45) -> 115353.3538 | D45: =(C45-RSAInc!C45)*(1+RSARet!C45) -> 108040.274 | E45: =(D45-RSAInc!D45)*(1+RSARet!D45) -> 101122.5645 | F45: =(E45-RSAInc!E45)*(1+RSARet!E45) -> 100962.2143 | G45: =(F45-RSAInc!F45)*(1+RSARet!F45) -> 97145.13964 | H45: =(G45-RSAInc!G45)*(1+RSARet!G45) -> 93676.28999 | I45: =(H45-RSAInc!H45)*(1+RSARet!H45) -> 88215.4908 | J45: =(I45-RSAInc!I45)*(1+RSARet!I45) -> 89441.23375 | K45: =(J45-RSAInc!J45)*(1+RSARet!J45) -> 89619.3512 | L45: =(K45-RSAInc!K45)*(1+RSARet!K45) -> 89813.75185 | M45: =(L45-RSAInc!L45)*(1+RSARet!L45) -> 90678.72516 | N45: =(M45-RSAInc!M45)*(1+RSARet!M45) -> 83817.27684 | O45: =(N45-RSAInc!N45)*(1+RSARet!N45) -> 78051.95987 | P45: =(O45-RSAInc!O45)*(1+RSARet!O45) -> 73178.00241 | Q45: =(P45-RSAInc!P45)*(1+RSARet!P45) -> 67448.97944 | R45: =(Q45-RSAInc!Q45)*(1+RSARet!Q45) -> 64200.73642 | S45: =(R45-RSAInc!R45)*(1+RSARet!R45) -> 60604.07176 | T45: =(S45-RSAInc!S45)*(1+RSARet!S45) -> 60609.57041 | U45: =(T45-RSAInc!T45)*(1+RSARet!T45) -> 56730.55418 | V45: =(U45-RSAInc!U45)*(1+RSARet!U45) -> 54354.72022 | W45: =(V45-RSAInc!V45)*(1+RSARet!V45) -> 50003.21277 | X45: =(W45-RSAInc!W45)*(1+RSARet!W45) -> 45682.8395 | Y45: =(X45-RSAInc!X45)*(1+RSARet!X45) -> 42537.81283 | Z45: =(Y45-RSAInc!Y45)*(1+RSARet!Y45) -> 40038.3339 | AA45: =(Z45-RSAInc!Z45)*(1+RSARet!Z45) -> 37903.26966 | AB45: =(AA45-RSAInc!AA45)*(1+RSARet!AA45) -> 35203.05672 | AC45: =(AB45-RSAInc!AB45)*(1+RSARet!AB45) -> 31967.20455 | AD45: =(AC45-RSAInc!AC45)*(1+RSARet!AC45) -> 29228.32498 | AE45: =(AD45-RSAInc!AD45)*(1+RSARet!AD45) -> 25401.97187 | AF45: =(AE45-RSAInc!AE45)*(1+RSARet!AE45) -> 22818.91695 | AG45: =(AF45-RSAInc!AF45)*(1+RSARet!AF45) -> 20657.69245 | AH45: =(AG45-RSAInc!AG45)*(1+RSARet!AG45) -> 18133.20359 | AI45: =(AH45-RSAInc!AH45)*(1+RSARet!AH45) -> 16093.1321 | AJ45: =(AI45-RSAInc!AI45)*(1+RSARet!AI45) -> 14147.50875 | AK45: =(AJ45-RSAInc!AJ45)*(1+RSARet!AJ45) -> 12865.82475 | AL45: =(AK45-RSAInc!AK45)*(1+RSARet!AK45) -> 10864.66876 | AM45: =(AL45-RSAInc!AL45)*(1+RSARet!AL45) -> 8492.020894 | AN45: =(AM45-RSAInc!AM45)*(1+RSARet!AM45) -> 6746.230347 | AO45: =(AN45-RSAInc!AN45)*(1+RSARet!AN45) -> 5660.560793 | AP45: =(AO45-RSAInc!AO45)*(1+RSARet!AO45) -> 4498.645945 | AQ45: =(AP45-RSAInc!AP45)*(1+RSARet!AP45) -> 3356.3109 | AR45: =(AQ45-RSAInc!AQ45)*(1+RSARet!AQ45) -> 2203.730739 | AS45: =(AR45-RSAInc!AR45)*(1+RSARet!AR45) -> 1299.46099 | AT45: =(AS45-RSAInc!AS45)*(1+RSARet!AS45) -> 527.9672952 | AU45: =(AT45-RSAInc!AT45)*(1+RSARet!AT45) -> -2.476223439e-12 | AW45: 109 | AX45: =IF(AW45="",0,LOOKUP(AW45,'Retiree Details and Assumptions'!D$40:D$85,'Retiree Details and Assumptions'!E$40:E$85)) -> 0.0004348127378 | AY45: =IF(AW45="","",LOOKUP(AW45,'Retiree Details and Assumptions'!D$40:D$85,'Retiree Details and Assumptions'!H$40:H$85)) -> 1
A46: 45 | B46: 125000 | C46: =(B46-RSAInc!B46)*(1+RSARet!B46) -> 118779.549 | D46: =(C46-RSAInc!C46)*(1+RSARet!C46) -> 111992.9629 | E46: =(D46-RSAInc!D46)*(1+RSARet!D46) -> 107677.2931 | F46: =(E46-RSAInc!E46)*(1+RSARet!E46) -> 106991.8817 | G46: =(F46-RSAInc!F46)*(1+RSARet!F46) -> 113926.5301 | H46: =(G46-RSAInc!G46)*(1+RSARet!G46) -> 110015.6646 | I46: =(H46-RSAInc!H46)*(1+RSARet!H46) -> 103868.2431 | J46: =(I46-RSAInc!I46)*(1+RSARet!I46) -> 102440.1314 | K46: =(J46-RSAInc!J46)*(1+RSARet!J46) -> 98619.27252 | L46: =(K46-RSAInc!K46)*(1+RSARet!K46) -> 101362.5679 | M46: =(L46-RSAInc!L46)*(1+RSARet!L46) -> 95555.15597 | N46: =(M46-RSAInc!M46)*(1+RSARet!M46) -> 90722.80583 | O46: =(N46-RSAInc!N46)*(1+RSARet!N46) -> 87234.38706 | P46: =(O46-RSAInc!O46)*(1+RSARet!O46) -> 80378.13683 | Q46: =(P46-RSAInc!P46)*(1+RSARet!P46) -> 77667.45078 | R46: =(Q46-RSAInc!Q46)*(1+RSARet!Q46) -> 73693.20706 | S46: =(R46-RSAInc!R46)*(1+RSARet!R46) -> 69892.46113 | T46: =(S46-RSAInc!S46)*(1+RSARet!S46) -> 65262.03665 | U46: =(T46-RSAInc!T46)*(1+RSARet!T46) -> 60552.68303 | V46: =(U46-RSAInc!U46)*(1+RSARet!U46) -> 58381.09987 | W46: =(V46-RSAInc!V46)*(1+RSARet!V46) -> 55340.49829 | X46: =(W46-RSAInc!W46)*(1+RSARet!W46) -> 54185.55654 | Y46: =(X46-RSAInc!X46)*(1+RSARet!X46) -> 52353.98651 | Z46: =(Y46-RSAInc!Y46)*(1+RSARet!Y46) -> 50020.59753 | AA46: =(Z46-RSAInc!Z46)*(1+RSARet!Z46) -> 50866.37682 | AB46: =(AA46-RSAInc!AA46)*(1+RSARet!AA46) -> 46340.24082 | AC46: =(AB46-RSAInc!AB46)*(1+RSARet!AB46) -> 41576.98797 | AD46: =(AC46-RSAInc!AC46)*(1+RSARet!AC46) -> 37614.84527 | AE46: =(AD46-RSAInc!AD46)*(1+RSARet!AD46) -> 32473.64796 | AF46: =(AE46-RSAInc!AE46)*(1+RSARet!AE46) -> 28569.06339 | AG46: =(AF46-RSAInc!AF46)*(1+RSARet!AF46) -> 25042.5827 | AH46: =(AG46-RSAInc!AG46)*(1+RSARet!AG46) -> 22421.68197 | AI46: =(AH46-RSAInc!AH46)*(1+RSARet!AH46) -> 19390.51881 | AJ46: =(AI46-RSAInc!AI46)*(1+RSARet!AI46) -> 16686.72128 | AK46: =(AJ46-RSAInc!AJ46)*(1+RSARet!AJ46) -> 13760.3369 | AL46: =(AK46-RSAInc!AK46)*(1+RSARet!AK46) -> 11463.55517 | AM46: =(AL46-RSAInc!AL46)*(1+RSARet!AL46) -> 9845.186992 | AN46: =(AM46-RSAInc!AM46)*(1+RSARet!AM46) -> 8247.045498 | AO46: =(AN46-RSAInc!AN46)*(1+RSARet!AN46) -> 6761.381892 | AP46: =(AO46-RSAInc!AO46)*(1+RSARet!AO46) -> 5322.163826 | AQ46: =(AP46-RSAInc!AP46)*(1+RSARet!AP46) -> 3772.874039 | AR46: =(AQ46-RSAInc!AQ46)*(1+RSARet!AQ46) -> 2456.293293 | AS46: =(AR46-RSAInc!AR46)*(1+RSARet!AR46) -> 1451.759446 | AT46: =(AS46-RSAInc!AS46)*(1+RSARet!AS46) -> 656.8788069 | AU46: =(AT46-RSAInc!AT46)*(1+RSARet!AT46) -> -3.136881046e-12 | AW46: 109 | AX46: =IF(AW46="",0,LOOKUP(AW46,'Retiree Details and Assumptions'!D$40:D$85,'Retiree Details and Assumptions'!E$40:E$85)) -> 0.0004348127378 | AY46: =IF(AW46="","",LOOKUP(AW46,'Retiree Details and Assumptions'!D$40:D$85,'Retiree Details and Assumptions'!H$40:H$85)) -> 1
A47: 46 | B47: 125000 | C47: =(B47-RSAInc!B47)*(1+RSARet!B47) -> 121842.4556 | D47: =(C47-RSAInc!C47)*(1+RSARet!C47) -> 121701.527 | E47: =(D47-RSAInc!D47)*(1+RSARet!D47) -> 115962.6547 | F47: =(E47-RSAInc!E47)*(1+RSARet!E47) -> 113380.0778 | G47: =(F47-RSAInc!F47)*(1+RSARet!F47) -> 114021.4531 | H47: =(G47-RSAInc!G47)*(1+RSARet!G47) -> 105346.2365 | I47: =(H47-RSAInc!H47)*(1+RSARet!H47) -> 100924.3393 | J47: =(I47-RSAInc!I47)*(1+RSARet!I47) -> 107334.867 | K47: =(J47-RSAInc!J47)*(1+RSARet!J47) -> 105178.4401 | L47: =(K47-RSAInc!K47)*(1+RSARet!K47) -> 105063.4571 | M47: =(L47-RSAInc!L47)*(1+RSARet!L47) -> 97796.75379 | N47: =(M47-RSAInc!M47)*(1+RSARet!M47) -> 100123.8928 | O47: =(N47-RSAInc!N47)*(1+RSARet!N47) -> 94914.98129 | P47: =(O47-RSAInc!O47)*(1+RSARet!O47) -> 86519.42121 | Q47: =(P47-RSAInc!P47)*(1+RSARet!P47) -> 88700.45921 | R47: =(Q47-RSAInc!Q47)*(1+RSARet!Q47) -> 86965.28083 | S47: =(R47-RSAInc!R47)*(1+RSARet!R47) -> 83753.25266 | T47: =(S47-RSAInc!S47)*(1+RSARet!S47) -> 79614.28966 | U47: =(T47-RSAInc!T47)*(1+RSARet!T47) -> 74459.84293 | V47: =(U47-RSAInc!U47)*(1+RSARet!U47) -> 73871.21426 | W47: =(V47-RSAInc!V47)*(1+RSARet!V47) -> 68868.17325 | X47: =(W47-RSAInc!W47)*(1+RSARet!W47) -> 67278.14467 | Y47: =(X47-RSAInc!X47)*(1+RSARet!X47) -> 65710.89671 | Z47: =(Y47-RSAInc!Y47)*(1+RSARet!Y47) -> 63660.1736 | AA47: =(Z47-RSAInc!Z47)*(1+RSARet!Z47) -> 61551.26661 | AB47: =(AA47-RSAInc!AA47)*(1+RSARet!AA47) -> 55828.04366 | AC47: =(AB47-RSAInc!AB47)*(1+RSARet!AB47) -> 53904.43611 | AD47: =(AC47-RSAInc!AC47)*(1+RSARet!AC47) -> 50042.00231 | AE47: =(AD47-RSAInc!AD47)*(1+RSARet!AD47) -> 45854.1439 | AF47: =(AE47-RSAInc!AE47)*(1+RSARet!AE47) -> 46767.86122 | AG47: =(AF47-RSAInc!AF47)*(1+RSARet!AF47) -> 42657.67288 | AH47: =(AG47-RSAInc!AG47)*(1+RSARet!AG47) -> 39060.53836 | AI47: =(AH47-RSAInc!AH47)*(1+RSARet!AH47) -> 33517.44674 | AJ47: =(AI47-RSAInc!AI47)*(1+RSARet!AI47) -> 33268.27657 | AK47: =(AJ47-RSAInc!AJ47)*(1+RSARet!AJ47) -> 29707.43218 | AL47: =(AK47-RSAInc!AK47)*(1+RSARet!AK47) -> 25886.12563 | AM47: =(AL47-RSAInc!AL47)*(1+RSARet!AL47) -> 21412.26972 | AN47: =(AM47-RSAInc!AM47)*(1+RSARet!AM47) -> 16891.85964 | AO47: =(AN47-RSAInc!AN47)*(1+RSARet!AN47) -> 13640.59046 | AP47: =(AO47-RSAInc!AO47)*(1+RSARet!AO47) -> 10697.64049 | AQ47: =(AP47-RSAInc!AP47)*(1+RSARet!AP47) -> 7396.840993 | AR47: =(AQ47-RSAInc!AQ47)*(1+RSARet!AQ47) -> 5014.715644 | AS47: =(AR47-RSAInc!AR47)*(1+RSARet!AR47) -> 3051.630285 | AT47: =(AS47-RSAInc!AS47)*(1+RSARet!AS47) -> 1339.811341 | AU47: =(AT47-RSAInc!AT47)*(1+RSARet!AT47) -> -6.232254447e-12 | AW47: 109 | AX47: =IF(AW47="",0,LOOKUP(AW47,'Retiree Details and Assumptions'!D$40:D$85,'Retiree Details and Assumptions'!E$40:E$85)) -> 0.0004348127378 | AY47: =IF(AW47="","",LOOKUP(AW47,'Retiree Details and Assumptions'!D$40:D$85,'Retiree Details and Assumptions'!H$40:H$85)) -> 1
A48: 47 | B48: 125000 | C48: =(B48-RSAInc!B48)*(1+RSARet!B48) -> 127879.2483 | D48: =(C48-RSAInc!C48)*(1+RSARet!C48) -> 129870.1758 | E48: =(D48-RSAInc!D48)*(1+RSARet!D48) -> 133755.716 | F48: =(E48-RSAInc!E48)*(1+RSARet!E48) -> 131195.6199 | G48: =(F48-RSAInc!F48)*(1+RSARet!F48) -> 126032.232 | H48: =(G48-RSAInc!G48)*(1+RSARet!G48) -> 125923.8739 | I48: =(H48-RSAInc!H48)*(1+RSARet!H48) -> 131641.5808 | J48: =(I48-RSAInc!I48)*(1+RSARet!I48) -> 124453.076 | K48: =(J48-RSAInc!J48)*(1+RSARet!J48) -> 118564.0802 | L48: =(K48-RSAInc!K48)*(1+RSARet!K48) -> 116522.0394 | M48: =(L48-RSAInc!L48)*(1+RSARet!L48) -> 114384.9392 | N48: =(M48-RSAInc!M48)*(1+RSARet!M48) -> 106034.1324 | O48: =(N48-RSAInc!N48)*(1+RSARet!N48) -> 100795.715 | P48: =(O48-RSAInc!O48)*(1+RSARet!O48) -> 96229.96686 | Q48: =(P48-RSAInc!P48)*(1+RSARet!P48) -> 95195.08109 | R48: =(Q48-RSAInc!Q48)*(1+RSARet!Q48) -> 86069.44605 | S48: =(R48-RSAInc!R48)*(1+RSARet!R48) -> 79549.36447 | T48: =(S48-RSAInc!S48)*(1+RSARet!S48) -> 83639.19433 | U48: =(T48-RSAInc!T48)*(1+RSARet!T48) -> 83842.56995 | V48: =(U48-RSAInc!U48)*(1+RSARet!U48) -> 80354.89832 | W48: =(V48-RSAInc!V48)*(1+RSARet!V48) -> 79196.14617 | X48: =(W48-RSAInc!W48)*(1+RSARet!W48) -> 78375.72173 | Y48: =(X48-RSAInc!X48)*(1+RSARet!X48) -> 74291.75627 | Z48: =(Y48-RSAInc!Y48)*(1+RSARet!Y48) -> 69445.70937 | AA48: =(Z48-RSAInc!Z48)*(1+RSARet!Z48) -> 65024.14969 | AB48: =(AA48-RSAInc!AA48)*(1+RSARet!AA48) -> 61711.54671 | AC48: =(AB48-RSAInc!AB48)*(1+RSARet!AB48) -> 62214.01462 | AD48: =(AC48-RSAInc!AC48)*(1+RSARet!AC48) -> 60286.21121 | AE48: =(AD48-RSAInc!AD48)*(1+RSARet!AD48) -> 55042.75554 | AF48: =(AE48-RSAInc!AE48)*(1+RSARet!AE48) -> 49414.54536 | AG48: =(AF48-RSAInc!AF48)*(1+RSARet!AF48) -> 45616.26047 | AH48: =(AG48-RSAInc!AG48)*(1+RSARet!AG48) -> 44733.73159 | AI48: =(AH48-RSAInc!AH48)*(1+RSARet!AH48) -> 40026.60243 | AJ48: =(AI48-RSAInc!AI48)*(1+RSARet!AI48) -> 36153.09159 | AK48: =(AJ48-RSAInc!AJ48)*(1+RSARet!AJ48) -> 31617.2776 | AL48: =(AK48-RSAInc!AK48)*(1+RSARet!AK48) -> 28034.49417 | AM48: =(AL48-RSAInc!AL48)*(1+RSARet!AL48) -> 23956.44022 | AN48: =(AM48-RSAInc!AM48)*(1+RSARet!AM48) -> 21105.92044 | AO48: =(AN48-RSAInc!AN48)*(1+RSARet!AN48) -> 16612.0033 | AP48: =(AO48-RSAInc!AO48)*(1+RSARet!AO48) -> 13883.69217 | AQ48: =(AP48-RSAInc!AP48)*(1+RSARet!AP48) -> 10581.67027 | AR48: =(AQ48-RSAInc!AQ48)*(1+RSARet!AQ48) -> 7579.378075 | AS48: =(AR48-RSAInc!AR48)*(1+RSARet!AR48) -> 4532.503751 | AT48: =(AS48-RSAInc!AS48)*(1+RSARet!AS48) -> 1928.697568 | AU48: =(AT48-RSAInc!AT48)*(1+RSARet!AT48) -> -8.954816607e-12 | AW48: 109 | AX48: =IF(AW48="",0,LOOKUP(AW48,'Retiree Details and Assumptions'!D$40:D$85,'Retiree Details and Assumptions'!E$40:E$85)) -> 0.0004348127378 | AY48: =IF(AW48="","",LOOKUP(AW48,'Retiree Details and Assumptions'!D$40:D$85,'Retiree Details and Assumptions'!H$40:H$85)) -> 1
A49: 48 | B49: 125000 | C49: =(B49-RSAInc!B49)*(1+RSARet!B49) -> 128222.2484 | D49: =(C49-RSAInc!C49)*(1+RSARet!C49) -> 132019.8509 | E49: =(D49-RSAInc!D49)*(1+RSARet!D49) -> 138905.0668 | F49: =(E49-RSAInc!E49)*(1+RSARet!E49) -> 127780.5069 | G49: =(F49-RSAInc!F49)*(1+RSARet!F49) -> 124906.4598 | H49: =(G49-RSAInc!G49)*(1+RSARet!G49) -> 117491.6176 | I49: =(H49-RSAInc!H49)*(1+RSARet!H49) -> 111784.2076 | J49: =(I49-RSAInc!I49)*(1+RSARet!I49) -> 114828.6337 | K49: =(J49-RSAInc!J49)*(1+RSARet!J49) -> 113360.9383 | L49: =(K49-RSAInc!K49)*(1+RSARet!K49) -> 104668.6441 | M49: =(L49-RSAInc!L49)*(1+RSARet!L49) -> 109232.4466 | N49: =(M49-RSAInc!M49)*(1+RSARet!M49) -> 110580.6124 | O49: =(N49-RSAInc!N49)*(1+RSARet!N49) -> 112628.2049 | P49: =(O49-RSAInc!O49)*(1+RSARet!O49) -> 102742.3876 | Q49: =(P49-RSAInc!P49)*(1+RSARet!P49) -> 106537.1039 | R49: =(Q49-RSAInc!Q49)*(1+RSARet!Q49) -> 99767.45674 | S49: =(R49-RSAInc!R49)*(1+RSARet!R49) -> 95710.78379 | T49: =(S49-RSAInc!S49)*(1+RSARet!S49) -> 98138.70095 | U49: =(T49-RSAInc!T49)*(1+RSARet!T49) -> 94248.03822 | V49: =(U49-RSAInc!U49)*(1+RSARet!U49) -> 90496.43408 | W49: =(V49-RSAInc!V49)*(1+RSARet!V49) -> 85516.39358 | X49: =(W49-RSAInc!W49)*(1+RSARet!W49) -> 82778.59492 | Y49: =(X49-RSAInc!X49)*(1+RSARet!X49) -> 75505.39702 | Z49: =(Y49-RSAInc!Y49)*(1+RSARet!Y49) -> 74772.54631 | AA49: =(Z49-RSAInc!Z49)*(1+RSARet!Z49) -> 75037.37498 | AB49: =(AA49-RSAInc!AA49)*(1+RSARet!AA49) -> 70071.19264 | AC49: =(AB49-RSAInc!AB49)*(1+RSARet!AB49) -> 67831.97786 | AD49: =(AC49-RSAInc!AC49)*(1+RSARet!AC49) -> 65666.57307 | AE49: =(AD49-RSAInc!AD49)*(1+RSARet!AD49) -> 60270.30122 | AF49: =(AE49-RSAInc!AE49)*(1+RSARet!AE49) -> 53120.06735 | AG49: =(AF49-RSAInc!AF49)*(1+RSARet!AF49) -> 50186.02528 | AH49: =(AG49-RSAInc!AG49)*(1+RSARet!AG49) -> 46296.90364 | AI49: =(AH49-RSAInc!AH49)*(1+RSARet!AH49) -> 40856.47805 | AJ49: =(AI49-RSAInc!AI49)*(1+RSARet!AI49) -> 33714.08584 | AK49: =(AJ49-RSAInc!AJ49)*(1+RSARet!AJ49) -> 29073.64038 | AL49: =(AK49-RSAInc!AK49)*(1+RSARet!AK49) -> 24787.97518 | AM49: =(AL49-RSAInc!AL49)*(1+RSARet!AL49) -> 22036.72428 | AN49: =(AM49-RSAInc!AM49)*(1+RSARet!AM49) -> 18058.15171 | AO49: =(AN49-RSAInc!AN49)*(1+RSARet!AN49) -> 14558.67934 | AP49: =(AO49-RSAInc!AO49)*(1+RSARet!AO49) -> 11934.49841 | AQ49: =(AP49-RSAInc!AP49)*(1+RSARet!AP49) -> 8379.124832 | AR49: =(AQ49-RSAInc!AQ49)*(1+RSARet!AQ49) -> 5387.613391 | AS49: =(AR49-RSAInc!AR49)*(1+RSARet!AR49) -> 3358.801262 | AT49: =(AS49-RSAInc!AS49)*(1+RSARet!AS49) -> 1539.951506 | AU49: =(AT49-RSAInc!AT49)*(1+RSARet!AT49) -> -7.157360374e-12 | AW49: 109 | AX49: =IF(AW49="",0,LOOKUP(AW49,'Retiree Details and Assumptions'!D$40:D$85,'Retiree Details and Assumptions'!E$40:E$85)) -> 0.0004348127378 | AY49: =IF(AW49="","",LOOKUP(AW49,'Retiree Details and Assumptions'!D$40:D$85,'Retiree Details and Assumptions'!H$40:H$85)) -> 1
A50: 49 | B50: 125000 | C50: =(B50-RSAInc!B50)*(1+RSARet!B50) -> 116473.4058 | D50: =(C50-RSAInc!C50)*(1+RSARet!C50) -> 114923.9247 | E50: =(D50-RSAInc!D50)*(1+RSARet!D50) -> 118658.6703 | F50: =(E50-RSAInc!E50)*(1+RSARet!E50) -> 116682.0143 | G50: =(F50-RSAInc!F50)*(1+RSARet!F50) -> 113560.1385 | H50: =(G50-RSAInc!G50)*(1+RSARet!G50) -> 111060.2504 | I50: =(H50-RSAInc!H50)*(1+RSARet!H50) -> 109630.8161 | J50: =(I50-RSAInc!I50)*(1+RSARet!I50) -> 106586.3361 | K50: =(J50-RSAInc!J50)*(1+RSARet!J50) -> 99039.66233 | L50: =(K50-RSAInc!K50)*(1+RSARet!K50) -> 99102.97566 | M50: =(L50-RSAInc!L50)*(1+RSARet!L50) -> 95717.94755 | N50: =(M50-RSAInc!M50)*(1+RSARet!M50) -> 90294.19272 | O50: =(N50-RSAInc!N50)*(1+RSARet!N50) -> 86788.13171 | P50: =(O50-RSAInc!O50)*(1+RSARet!O50) -> 82247.37321 | Q50: =(P50-RSAInc!P50)*(1+RSARet!P50) -> 80319.55179 | R50: =(Q50-RSAInc!Q50)*(1+RSARet!Q50) -> 75911.29846 | S50: =(R50-RSAInc!R50)*(1+RSARet!R50) -> 74613.71699 | T50: =(S50-RSAInc!S50)*(1+RSARet!S50) -> 67898.16811 | U50: =(T50-RSAInc!T50)*(1+RSARet!T50) -> 60211.17919 | V50: =(U50-RSAInc!U50)*(1+RSARet!U50) -> 57454.34826 | W50: =(V50-RSAInc!V50)*(1+RSARet!V50) -> 54811.74245 | X50: =(W50-RSAInc!W50)*(1+RSARet!W50) -> 52956.59621 | Y50: =(X50-RSAInc!X50)*(1+RSARet!X50) -> 50012.31003 | Z50: =(Y50-RSAInc!Y50)*(1+RSARet!Y50) -> 45880.02914 | AA50: =(Z50-RSAInc!Z50)*(1+RSARet!Z50) -> 45000.78768 | AB50: =(AA50-RSAInc!AA50)*(1+RSARet!AA50) -> 43442.07831 | AC50: =(AB50-RSAInc!AB50)*(1+RSARet!AB50) -> 39457.90183 | AD50: =(AC50-RSAInc!AC50)*(1+RSARet!AC50) -> 36659.37994 | AE50: =(AD50-RSAInc!AD50)*(1+RSARet!AD50) -> 33944.24766 | AF50: =(AE50-RSAInc!AE50)*(1+RSARet!AE50) -> 31586.84796 | AG50: =(AF50-RSAInc!AF50)*(1+RSARet!AF50) -> 28356.43213 | AH50: =(AG50-RSAInc!AG50)*(1+RSARet!AG50) -> 26252.02008 | AI50: =(AH50-RSAInc!AH50)*(1+RSARet!AH50) -> 24191.36874 | AJ50: =(AI50-RSAInc!AI50)*(1+RSARet!AI50) -> 21389.01616 | AK50: =(AJ50-RSAInc!AJ50)*(1+RSARet!AJ50) -> 18701.82811 | AL50: =(AK50-RSAInc!AK50)*(1+RSARet!AK50) -> 16811.85848 | AM50: =(AL50-RSAInc!AL50)*(1+RSARet!AL50) -> 14601.20346 | AN50: =(AM50-RSAInc!AM50)*(1+RSARet!AM50) -> 12055.00296 | AO50: =(AN50-RSAInc!AN50)*(1+RSARet!AN50) -> 9917.597504 | AP50: =(AO50-RSAInc!AO50)*(1+RSARet!AO50) -> 7291.404268 | AQ50: =(AP50-RSAInc!AP50)*(1+RSARet!AP50) -> 5217.145279 | AR50: =(AQ50-RSAInc!AQ50)*(1+RSARet!AQ50) -> 3569.6913 | AS50: =(AR50-RSAInc!AR50)*(1+RSARet!AR50) -> 2132.101588 | AT50: =(AS50-RSAInc!AS50)*(1+RSARet!AS50) -> 909.795864 | AU50: =(AT50-RSAInc!AT50)*(1+RSARet!AT50) -> -4.20944234e-12 | AW50: 109 | AX50: =IF(AW50="",0,LOOKUP(AW50,'Retiree Details and Assumptions'!D$40:D$85,'Retiree Details and Assumptions'!E$40:E$85)) -> 0.0004348127378 | AY50: =IF(AW50="","",LOOKUP(AW50,'Retiree Details and Assumptions'!D$40:D$85,'Retiree Details and Assumptions'!H$40:H$85)) -> 1
A51: 50 | B51: 125000 | C51: =(B51-RSAInc!B51)*(1+RSARet!B51) -> 125530.3576 | D51: =(C51-RSAInc!C51)*(1+RSARet!C51) -> 118990.3727 | E51: =(D51-RSAInc!D51)*(1+RSARet!D51) -> 114017.9935 | F51: =(E51-RSAInc!E51)*(1+RSARet!E51) -> 112875.4559 | G51: =(F51-RSAInc!F51)*(1+RSARet!F51) -> 121696.6139 | H51: =(G51-RSAInc!G51)*(1+RSARet!G51) -> 127051.8471 | I51: =(H51-RSAInc!H51)*(1+RSARet!H51) -> 137634.1098 | J51: =(I51-RSAInc!I51)*(1+RSARet!I51) -> 128660.2898 | K51: =(J51-RSAInc!J51)*(1+RSARet!J51) -> 129892.1828 | L51: =(K51-RSAInc!K51)*(1+RSARet!K51) -> 121349.7961 | M51: =(L51-RSAInc!L51)*(1+RSARet!L51) -> 127155.7702 | N51: =(M51-RSAInc!M51)*(1+RSARet!M51) -> 125462.2374 | O51: =(N51-RSAInc!N51)*(1+RSARet!N51) -> 124792.768 | P51: =(O51-RSAInc!O51)*(1+RSARet!O51) -> 114076.3246 | Q51: =(P51-RSAInc!P51)*(1+RSARet!P51) -> 108955.729 | R51: =(Q51-RSAInc!Q51)*(1+RSARet!Q51) -> 107413.7531 | S51: =(R51-RSAInc!R51)*(1+RSARet!R51) -> 99564.3787 | T51: =(S51-RSAInc!S51)*(1+RSARet!S51) -> 96636.11466 | U51: =(T51-RSAInc!T51)*(1+RSARet!T51) -> 101251.5485 | V51: =(U51-RSAInc!U51)*(1+RSARet!U51) -> 99193.23749 | W51: =(V51-RSAInc!V51)*(1+RSARet!V51) -> 89762.75071 | X51: =(W51-RSAInc!W51)*(1+RSARet!W51) -> 84161.75623 | Y51: =(X51-RSAInc!X51)*(1+RSARet!X51) -> 77114.80646 | Z51: =(Y51-RSAInc!Y51)*(1+RSARet!Y51) -> 72802.389 | AA51: =(Z51-RSAInc!Z51)*(1+RSARet!Z51) -> 67730.65827 | AB51: =(AA51-RSAInc!AA51)*(1+RSARet!AA51) -> 61922.5218 | AC51: =(AB51-RSAInc!AB51)*(1+RSARet!AB51) -> 60370.80384 | AD51: =(AC51-RSAInc!AC51)*(1+RSARet!AC51) -> 56734.42065 | AE51: =(AD51-RSAInc!AD51)*(1+RSARet!AD51) -> 50031.62413 | AF51: =(AE51-RSAInc!AE51)*(1+RSARet!AE51) -> 45670.88514 | AG51: =(AF51-RSAInc!AF51)*(1+RSARet!AF51) -> 39293.01402 | AH51: =(AG51-RSAInc!AG51)*(1+RSARet!AG51) -> 34649.10703 | AI51: =(AH51-RSAInc!AH51)*(1+RSARet!AH51) -> 30882.31776 | AJ51: =(AI51-RSAInc!AI51)*(1+RSARet!AI51) -> 26791.7529 | AK51: =(AJ51-RSAInc!AJ51)*(1+RSARet!AJ51) -> 22914.0559 | AL51: =(AK51-RSAInc!AK51)*(1+RSARet!AK51) -> 19467.9531 | AM51: =(AL51-RSAInc!AL51)*(1+RSARet!AL51) -> 15945.58886 | AN51: =(AM51-RSAInc!AM51)*(1+RSARet!AM51) -> 13052.80498 | AO51: =(AN51-RSAInc!AN51)*(1+RSARet!AN51) -> 10216.39236 | AP51: =(AO51-RSAInc!AO51)*(1+RSARet!AO51) -> 7337.229121 | AQ51: =(AP51-RSAInc!AP51)*(1+RSARet!AP51) -> 5701.703031 | AR51: =(AQ51-RSAInc!AQ51)*(1+RSARet!AQ51) -> 3650.851915 | AS51: =(AR51-RSAInc!AR51)*(1+RSARet!AR51) -> 2012.418933 | AT51: =(AS51-RSAInc!AS51)*(1+RSARet!AS51) -> 878.4737118 | AU51: =(AT51-RSAInc!AT51)*(1+RSARet!AT51) -> -4.029777259e-12 | AW51: 109 | AX51: =IF(AW51="",0,LOOKUP(AW51,'Retiree Details and Assumptions'!D$40:D$85,'Retiree Details and Assumptions'!E$40:E$85)) -> 0.0004348127378 | AY51: =IF(AW51="","",LOOKUP(AW51,'Retiree Details and Assumptions'!D$40:D$85,'Retiree Details and Assumptions'!H$40:H$85)) -> 1
A52: 51 | B52: 125000 | C52: =(B52-RSAInc!B52)*(1+RSARet!B52) -> 125473.221 | D52: =(C52-RSAInc!C52)*(1+RSARet!C52) -> 124507.8489 | E52: =(D52-RSAInc!D52)*(1+RSARet!D52) -> 121649.4976 | F52: =(E52-RSAInc!E52)*(1+RSARet!E52) -> 119101.6673 | G52: =(F52-RSAInc!F52)*(1+RSARet!F52) -> 117601.2413 | H52: =(G52-RSAInc!G52)*(1+RSARet!G52) -> 111959.2721 | I52: =(H52-RSAInc!H52)*(1+RSARet!H52) -> 108587.7234 | J52: =(I52-RSAInc!I52)*(1+RSARet!I52) -> 106922.2221 | K52: =(J52-RSAInc!J52)*(1+RSARet!J52) -> 99329.24314 | L52: =(K52-RSAInc!K52)*(1+RSARet!K52) -> 95022.53678 | M52: =(L52-RSAInc!L52)*(1+RSARet!L52) -> 94577.69638 | N52: =(M52-RSAInc!M52)*(1+RSARet!M52) -> 98950.39139 | O52: =(N52-RSAInc!N52)*(1+RSARet!N52) -> 99807.17744 | P52: =(O52-RSAInc!O52)*(1+RSARet!O52) -> 94688.89502 | Q52: =(P52-RSAInc!P52)*(1+RSARet!P52) -> 89445.94414 | R52: =(Q52-RSAInc!Q52)*(1+RSARet!Q52) -> 83025.446 | S52: =(R52-RSAInc!R52)*(1+RSARet!R52) -> 81987.2666 | T52: =(S52-RSAInc!S52)*(1+RSARet!S52) -> 74292.87925 | U52: =(T52-RSAInc!T52)*(1+RSARet!T52) -> 72495.84995 | V52: =(U52-RSAInc!U52)*(1+RSARet!U52) -> 71778.04179 | W52: =(V52-RSAInc!V52)*(1+RSARet!V52) -> 72185.24473 | X52: =(W52-RSAInc!W52)*(1+RSARet!W52) -> 68069.42175 | Y52: =(X52-RSAInc!X52)*(1+RSARet!X52) -> 62484.44924 | Z52: =(Y52-RSAInc!Y52)*(1+RSARet!Y52) -> 59898.08289 | AA52: =(Z52-RSAInc!Z52)*(1+RSARet!Z52) -> 51939.10214 | AB52: =(AA52-RSAInc!AA52)*(1+RSARet!AA52) -> 46475.22237 | AC52: =(AB52-RSAInc!AB52)*(1+RSARet!AB52) -> 44332.91336 | AD52: =(AC52-RSAInc!AC52)*(1+RSARet!AC52) -> 40026.4149 | AE52: =(AD52-RSAInc!AD52)*(1+RSARet!AD52) -> 37978.57355 | AF52: =(AE52-RSAInc!AE52)*(1+RSARet!AE52) -> 36307.39038 | AG52: =(AF52-RSAInc!AF52)*(1+RSARet!AF52) -> 34551.13751 | AH52: =(AG52-RSAInc!AG52)*(1+RSARet!AG52) -> 30167.7895 | AI52: =(AH52-RSAInc!AH52)*(1+RSARet!AH52) -> 27740.93617 | AJ52: =(AI52-RSAInc!AI52)*(1+RSARet!AI52) -> 24434.42291 | AK52: =(AJ52-RSAInc!AJ52)*(1+RSARet!AJ52) -> 21333.12721 | AL52: =(AK52-RSAInc!AK52)*(1+RSARet!AK52) -> 17852.09506 | AM52: =(AL52-RSAInc!AL52)*(1+RSARet!AL52) -> 15303.96996 | AN52: =(AM52-RSAInc!AM52)*(1+RSARet!AM52) -> 12661.44676 | AO52: =(AN52-RSAInc!AN52)*(1+RSARet!AN52) -> 9676.368721 | AP52: =(AO52-RSAInc!AO52)*(1+RSARet!AO52) -> 7574.42539 | AQ52: =(AP52-RSAInc!AP52)*(1+RSARet!AP52) -> 5635.761463 | AR52: =(AQ52-RSAInc!AQ52)*(1+RSARet!AQ52) -> 3857.316606 | AS52: =(AR52-RSAInc!AR52)*(1+RSARet!AR52) -> 2254.242379 | AT52: =(AS52-RSAInc!AS52)*(1+RSARet!AS52) -> 1006.491362 | AU52: =(AT52-RSAInc!AT52)*(1+RSARet!AT52) -> -4.360114223e-12 | AW52: 109 | AX52: =IF(AW52="",0,LOOKUP(AW52,'Retiree Details and Assumptions'!D$40:D$85,'Retiree Details and Assumptions'!E$40:E$85)) -> 0.0004348127378 | AY52: =IF(AW52="","",LOOKUP(AW52,'Retiree Details and Assumptions'!D$40:D$85,'Retiree Details and Assumptions'!H$40:H$85)) -> 1
A53: 52 | B53: 125000 | C53: =(B53-RSAInc!B53)*(1+RSARet!B53) -> 125416.4653 | D53: =(C53-RSAInc!C53)*(1+RSARet!C53) -> 126788.4139 | E53: =(D53-RSAInc!D53)*(1+RSARet!D53) -> 128244.5331 | F53: =(E53-RSAInc!E53)*(1+RSARet!E53) -> 123226.569 | G53: =(F53-RSAInc!F53)*(1+RSARet!F53) -> 119765.3663 | H53: =(G53-RSAInc!G53)*(1+RSARet!G53) -> 111098.2609 | I53: =(H53-RSAInc!H53)*(1+RSARet!H53) -> 112373.6849 | J53: =(I53-RSAInc!I53)*(1+RSARet!I53) -> 103018.2078 | K53: =(J53-RSAInc!J53)*(1+RSARet!J53) -> 104706.5253 | L53: =(K53-RSAInc!K53)*(1+RSARet!K53) -> 109251.961 | M53: =(L53-RSAInc!L53)*(1+RSARet!L53) -> 108843.8831 | N53: =(M53-RSAInc!M53)*(1+RSARet!M53) -> 108257.6655 | O53: =(N53-RSAInc!N53)*(1+RSARet!N53) -> 107614.2662 | P53: =(O53-RSAInc!O53)*(1+RSARet!O53) -> 109414.0754 | Q53: =(P53-RSAInc!P53)*(1+RSARet!P53) -> 101635.5335 | R53: =(Q53-RSAInc!Q53)*(1+RSARet!Q53) -> 102467.0623 | S53: =(R53-RSAInc!R53)*(1+RSARet!R53) -> 96768.01745 | T53: =(S53-RSAInc!S53)*(1+RSARet!S53) -> 95766.09519 | U53: =(T53-RSAInc!T53)*(1+RSARet!T53) -> 93163.64788 | V53: =(U53-RSAInc!U53)*(1+RSARet!U53) -> 87592.24689 | W53: =(V53-RSAInc!V53)*(1+RSARet!V53) -> 83482.19685 | X53: =(W53-RSAInc!W53)*(1+RSARet!W53) -> 82409.75291 | Y53: =(X53-RSAInc!X53)*(1+RSARet!X53) -> 76543.97441 | Z53: =(Y53-RSAInc!Y53)*(1+RSARet!Y53) -> 73209.85277 | AA53: =(Z53-RSAInc!Z53)*(1+RSARet!Z53) -> 71204.6264 | AB53: =(AA53-RSAInc!AA53)*(1+RSARet!AA53) -> 66647.26175 | AC53: =(AB53-RSAInc!AB53)*(1+RSARet!AB53) -> 63252.35999 | AD53: =(AC53-RSAInc!AC53)*(1+RSARet!AC53) -> 57527.4505 | AE53: =(AD53-RSAInc!AD53)*(1+RSARet!AD53) -> 53706.28568 | AF53: =(AE53-RSAInc!AE53)*(1+RSARet!AE53) -> 48792.95855 | AG53: =(AF53-RSAInc!AF53)*(1+RSARet!AF53) -> 44983.49117 | AH53: =(AG53-RSAInc!AG53)*(1+RSARet!AG53) -> 41392.66463 | AI53: =(AH53-RSAInc!AH53)*(1+RSARet!AH53) -> 36206.82347 | AJ53: =(AI53-RSAInc!AI53)*(1+RSARet!AI53) -> 31619.58058 | AK53: =(AJ53-RSAInc!AJ53)*(1+RSARet!AJ53) -> 26974.57237 | AL53: =(AK53-RSAInc!AK53)*(1+RSARet!AK53) -> 23479.28747 | AM53: =(AL53-RSAInc!AL53)*(1+RSARet!AL53) -> 19868.59246 | AN53: =(AM53-RSAInc!AM53)*(1+RSARet!AM53) -> 15788.45671 | AO53: =(AN53-RSAInc!AN53)*(1+RSARet!AN53) -> 12158.02498 | AP53: =(AO53-RSAInc!AO53)*(1+RSARet!AO53) -> 9953.705817 | AQ53: =(AP53-RSAInc!AP53)*(1+RSARet!AP53) -> 7723.182208 | AR53: =(AQ53-RSAInc!AQ53)*(1+RSARet!AQ53) -> 5205.045292 | AS53: =(AR53-RSAInc!AR53)*(1+RSARet!AR53) -> 2966.373098 | AT53: =(AS53-RSAInc!AS53)*(1+RSARet!AS53) -> 1350.822493 | AU53: =(AT53-RSAInc!AT53)*(1+RSARet!AT53) -> -5.895651988e-12 | AW53: 109 | AX53: =IF(AW53="",0,LOOKUP(AW53,'Retiree Details and Assumptions'!D$40:D$85,'Retiree Details and Assumptions'!E$40:E$85)) -> 0.0004348127378 | AY53: =IF(AW53="","",LOOKUP(AW53,'Retiree Details and Assumptions'!D$40:D$85,'Retiree Details and Assumptions'!H$40:H$85)) -> 1
A54: 53 | B54: 125000 | C54: =(B54-RSAInc!B54)*(1+RSARet!B54) -> 121613.4898 | D54: =(C54-RSAInc!C54)*(1+RSARet!C54) -> 115529.4174 | E54: =(D54-RSAInc!D54)*(1+RSARet!D54) -> 111865.5441 | F54: =(E54-RSAInc!E54)*(1+RSARet!E54) -> 101847.0377 | G54: =(F54-RSAInc!F54)*(1+RSARet!F54) -> 108682.7697 | H54: =(G54-RSAInc!G54)*(1+RSARet!G54) -> 100379.2617 | I54: =(H54-RSAInc!H54)*(1+RSARet!H54) -> 96576.28842 | J54: =(I54-RSAInc!I54)*(1+RSARet!I54) -> 97027.13007 | K54: =(J54-RSAInc!J54)*(1+RSARet!J54) -> 89293.22482 | L54: =(K54-RSAInc!K54)*(1+RSARet!K54) -> 89498.48201 | M54: =(L54-RSAInc!L54)*(1+RSARet!L54) -> 84437.55419 | N54: =(M54-RSAInc!M54)*(1+RSARet!M54) -> 87548.27736 | O54: =(N54-RSAInc!N54)*(1+RSARet!N54) -> 88349.71746 | P54: =(O54-RSAInc!O54)*(1+RSARet!O54) -> 86979.88349 | Q54: =(P54-RSAInc!P54)*(1+RSARet!P54) -> 81144.99252 | R54: =(Q54-RSAInc!Q54)*(1+RSARet!Q54) -> 79237.58739 | S54: =(R54-RSAInc!R54)*(1+RSARet!R54) -> 76400.11859 | T54: =(S54-RSAInc!S54)*(1+RSARet!S54) -> 67455.56252 | U54: =(T54-RSAInc!T54)*(1+RSARet!T54) -> 71667.28536 | V54: =(U54-RSAInc!U54)*(1+RSARet!U54) -> 70990.09567 | W54: =(V54-RSAInc!V54)*(1+RSARet!V54) -> 71173.80675 | X54: =(W54-RSAInc!W54)*(1+RSARet!W54) -> 66786.12579 | Y54: =(X54-RSAInc!X54)*(1+RSARet!X54) -> 63140.20508 | Z54: =(Y54-RSAInc!Y54)*(1+RSARet!Y54) -> 59580.27747 | AA54: =(Z54-RSAInc!Z54)*(1+RSARet!Z54) -> 54589.56509 | AB54: =(AA54-RSAInc!AA54)*(1+RSARet!AA54) -> 50452.24697 | AC54: =(AB54-RSAInc!AB54)*(1+RSARet!AB54) -> 44574.62797 | AD54: =(AC54-RSAInc!AC54)*(1+RSARet!AC54) -> 42965.29354 | AE54: =(AD54-RSAInc!AD54)*(1+RSARet!AD54) -> 38840.21004 | AF54: =(AE54-RSAInc!AE54)*(1+RSARet!AE54) -> 37089.44782 | AG54: =(AF54-RSAInc!AF54)*(1+RSARet!AF54) -> 33118.91058 | AH54: =(AG54-RSAInc!AG54)*(1+RSARet!AG54) -> 28939.20916 | AI54: =(AH54-RSAInc!AH54)*(1+RSARet!AH54) -> 25316.26901 | AJ54: =(AI54-RSAInc!AI54)*(1+RSARet!AI54) -> 22488.04764 | AK54: =(AJ54-RSAInc!AJ54)*(1+RSARet!AJ54) -> 19668.61164 | AL54: =(AK54-RSAInc!AK54)*(1+RSARet!AK54) -> 17843.49128 | AM54: =(AL54-RSAInc!AL54)*(1+RSARet!AL54) -> 16545.1435 | AN54: =(AM54-RSAInc!AM54)*(1+RSARet!AM54) -> 12529.97817 | AO54: =(AN54-RSAInc!AN54)*(1+RSARet!AN54) -> 10527.08082 | AP54: =(AO54-RSAInc!AO54)*(1+RSARet!AO54) -> 8434.292108 | AQ54: =(AP54-RSAInc!AP54)*(1+RSARet!AP54) -> 6096.379024 | AR54: =(AQ54-RSAInc!AQ54)*(1+RSARet!AQ54) -> 4024.98151 | AS54: =(AR54-RSAInc!AR54)*(1+RSARet!AR54) -> 2429.857733 | AT54: =(AS54-RSAInc!AS54)*(1+RSARet!AS54) -> 1047.266993 | AU54: =(AT54-RSAInc!AT54)*(1+RSARet!AT54) -> -5.157933509e-12 | AW54: 109 | AX54: =IF(AW54="",0,LOOKUP(AW54,'Retiree Details and Assumptions'!D$40:D$85,'Retiree Details and Assumptions'!E$40:E$85)) -> 0.0004348127378 | AY54: =IF(AW54="","",LOOKUP(AW54,'Retiree Details and Assumptions'!D$40:D$85,'Retiree Details and Assumptions'!H$40:H$85)) -> 1
A55: 54 | B55: 125000 | C55: =(B55-RSAInc!B55)*(1+RSARet!B55) -> 124708.5998 | D55: =(C55-RSAInc!C55)*(1+RSARet!C55) -> 134681.6705 | E55: =(D55-RSAInc!D55)*(1+RSARet!D55) -> 141277.4324 | F55: =(E55-RSAInc!E55)*(1+RSARet!E55) -> 134608.6062 | G55: =(F55-RSAInc!F55)*(1+RSARet!F55) -> 132233.775 | H55: =(G55-RSAInc!G55)*(1+RSARet!G55) -> 127314.018 | I55: =(H55-RSAInc!H55)*(1+RSARet!H55) -> 129675.8605 | J55: =(I55-RSAInc!I55)*(1+RSARet!I55) -> 128448.4999 | K55: =(J55-RSAInc!J55)*(1+RSARet!J55) -> 132360.7531 | L55: =(K55-RSAInc!K55)*(1+RSARet!K55) -> 128373.3232 | M55: =(L55-RSAInc!L55)*(1+RSARet!L55) -> 116361.2837 | N55: =(M55-RSAInc!M55)*(1+RSARet!M55) -> 123568.417 | O55: =(N55-RSAInc!N55)*(1+RSARet!N55) -> 132149.3036 | P55: =(O55-RSAInc!O55)*(1+RSARet!O55) -> 129945.9393 | Q55: =(P55-RSAInc!P55)*(1+RSARet!P55) -> 129621.3382 | R55: =(Q55-RSAInc!Q55)*(1+RSARet!Q55) -> 127407.9759 | S55: =(R55-RSAInc!R55)*(1+RSARet!R55) -> 111412.3567 | T55: =(S55-RSAInc!S55)*(1+RSARet!S55) -> 109844.1721 | U55: =(T55-RSAInc!T55)*(1+RSARet!T55) -> 103449.347 | V55: =(U55-RSAInc!U55)*(1+RSARet!U55) -> 99729.26993 | W55: =(V55-RSAInc!V55)*(1+RSARet!V55) -> 92374.7235 | X55: =(W55-RSAInc!W55)*(1+RSARet!W55) -> 86740.46096 | Y55: =(X55-RSAInc!X55)*(1+RSARet!X55) -> 80042.14308 | Z55: =(Y55-RSAInc!Y55)*(1+RSARet!Y55) -> 73551.00556 | AA55: =(Z55-RSAInc!Z55)*(1+RSARet!Z55) -> 70091.5298 | AB55: =(AA55-RSAInc!AA55)*(1+RSARet!AA55) -> 64445.44014 | AC55: =(AB55-RSAInc!AB55)*(1+RSARet!AB55) -> 59778.80433 | AD55: =(AC55-RSAInc!AC55)*(1+RSARet!AC55) -> 52706.32857 | AE55: =(AD55-RSAInc!AD55)*(1+RSARet!AD55) -> 48985.09204 | AF55: =(AE55-RSAInc!AE55)*(1+RSARet!AE55) -> 43128.36256 | AG55: =(AF55-RSAInc!AF55)*(1+RSARet!AF55) -> 37635.61598 | AH55: =(AG55-RSAInc!AG55)*(1+RSARet!AG55) -> 33526.04048 | AI55: =(AH55-RSAInc!AH55)*(1+RSARet!AH55) -> 33427.8927 | AJ55: =(AI55-RSAInc!AI55)*(1+RSARet!AI55) -> 28580.1033 | AK55: =(AJ55-RSAInc!AJ55)*(1+RSARet!AJ55) -> 23870.50896 | AL55: =(AK55-RSAInc!AK55)*(1+RSARet!AK55) -> 19761.50333 | AM55: =(AL55-RSAInc!AL55)*(1+RSARet!AL55) -> 16684.63757 | AN55: =(AM55-RSAInc!AM55)*(1+RSARet!AM55) -> 14144.44378 | AO55: =(AN55-RSAInc!AN55)*(1+RSARet!AN55) -> 11235.96918 | AP55: =(AO55-RSAInc!AO55)*(1+RSARet!AO55) -> 8457.981411 | AQ55: =(AP55-RSAInc!AP55)*(1+RSARet!AP55) -> 6540.55544 | AR55: =(AQ55-RSAInc!AQ55)*(1+RSARet!AQ55) -> 4335.987333 | AS55: =(AR55-RSAInc!AR55)*(1+RSARet!AR55) -> 2462.496754 | AT55: =(AS55-RSAInc!AS55)*(1+RSARet!AS55) -> 1114.541101 | AU55: =(AT55-RSAInc!AT55)*(1+RSARet!AT55) -> -5.45374942e-12 | AW55: 109 | AX55: =IF(AW55="",0,LOOKUP(AW55,'Retiree Details and Assumptions'!D$40:D$85,'Retiree Details and Assumptions'!E$40:E$85)) -> 0.0004348127378 | AY55: =IF(AW55="","",LOOKUP(AW55,'Retiree Details and Assumptions'!D$40:D$85,'Retiree Details and Assumptions'!H$40:H$85)) -> 1
A56: 55 | B56: 125000 | C56: =(B56-RSAInc!B56)*(1+RSARet!B56) -> 123176.8523 | D56: =(C56-RSAInc!C56)*(1+RSARet!C56) -> 126924.9835 | E56: =(D56-RSAInc!D56)*(1+RSARet!D56) -> 133999.7676 | F56: =(E56-RSAInc!E56)*(1+RSARet!E56) -> 133483.8505 | G56: =(F56-RSAInc!F56)*(1+RSARet!F56) -> 135177.1017 | H56: =(G56-RSAInc!G56)*(1+RSARet!G56) -> 134773.7182 | I56: =(H56-RSAInc!H56)*(1+RSARet!H56) -> 132417.7447 | J56: =(I56-RSAInc!I56)*(1+RSARet!I56) -> 135936.2941 | K56: =(J56-RSAInc!J56)*(1+RSARet!J56) -> 134897.2036 | L56: =(K56-RSAInc!K56)*(1+RSARet!K56) -> 126705.4951 | M56: =(L56-RSAInc!L56)*(1+RSARet!L56) -> 125607.835 | N56: =(M56-RSAInc!M56)*(1+RSARet!M56) -> 131613.1062 | O56: =(N56-RSAInc!N56)*(1+RSARet!N56) -> 124946.9506 | P56: =(O56-RSAInc!O56)*(1+RSARet!O56) -> 131318.8381 | Q56: =(P56-RSAInc!P56)*(1+RSARet!P56) -> 124497.356 | R56: =(Q56-RSAInc!Q56)*(1+RSARet!Q56) -> 110608.5064 | S56: =(R56-RSAInc!R56)*(1+RSARet!R56) -> 104104.2956 | T56: =(S56-RSAInc!S56)*(1+RSARet!S56) -> 101854.0847 | U56: =(T56-RSAInc!T56)*(1+RSARet!T56) -> 102937.5579 | V56: =(U56-RSAInc!U56)*(1+RSARet!U56) -> 105534.0378 | W56: =(V56-RSAInc!V56)*(1+RSARet!V56) -> 101816.6819 | X56: =(W56-RSAInc!W56)*(1+RSARet!W56) -> 94712.80528 | Y56: =(X56-RSAInc!X56)*(1+RSARet!X56) -> 92744.40312 | Z56: =(Y56-RSAInc!Y56)*(1+RSARet!Y56) -> 90558.28383 | AA56: =(Z56-RSAInc!Z56)*(1+RSARet!Z56) -> 88742.31873 | AB56: =(AA56-RSAInc!AA56)*(1+RSARet!AA56) -> 77542.2545 | AC56: =(AB56-RSAInc!AB56)*(1+RSARet!AB56) -> 72891.49303 | AD56: =(AC56-RSAInc!AC56)*(1+RSARet!AC56) -> 67715.06376 | AE56: =(AD56-RSAInc!AD56)*(1+RSARet!AD56) -> 59147.40278 | AF56: =(AE56-RSAInc!AE56)*(1+RSARet!AE56) -> 54872.09241 | AG56: =(AF56-RSAInc!AF56)*(1+RSARet!AF56) -> 50571.59822 | AH56: =(AG56-RSAInc!AG56)*(1+RSARet!AG56) -> 45503.23275 | AI56: =(AH56-RSAInc!AH56)*(1+RSARet!AH56) -> 41724.7262 | AJ56: =(AI56-RSAInc!AI56)*(1+RSARet!AI56) -> 38815.19853 | AK56: =(AJ56-RSAInc!AJ56)*(1+RSARet!AJ56) -> 31378.86411 | AL56: =(AK56-RSAInc!AK56)*(1+RSARet!AK56) -> 25342.55517 | AM56: =(AL56-RSAInc!AL56)*(1+RSARet!AL56) -> 21235.10551 | AN56: =(AM56-RSAInc!AM56)*(1+RSARet!AM56) -> 18756.17431 | AO56: =(AN56-RSAInc!AN56)*(1+RSARet!AN56) -> 14272.29627 | AP56: =(AO56-RSAInc!AO56)*(1+RSARet!AO56) -> 10322.18499 | AQ56: =(AP56-RSAInc!AP56)*(1+RSARet!AP56) -> 7764.681103 | AR56: =(AQ56-RSAInc!AQ56)*(1+RSARet!AQ56) -> 5497.38704 | AS56: =(AR56-RSAInc!AR56)*(1+RSARet!AR56) -> 3184.763059 | AT56: =(AS56-RSAInc!AS56)*(1+RSARet!AS56) -> 1435.066117 | AU56: =(AT56-RSAInc!AT56)*(1+RSARet!AT56) -> -6.513836794e-12 | AW56: 109 | AX56: =IF(AW56="",0,LOOKUP(AW56,'Retiree Details and Assumptions'!D$40:D$85,'Retiree Details and Assumptions'!E$40:E$85)) -> 0.0004348127378 | AY56: =IF(AW56="","",LOOKUP(AW56,'Retiree Details and Assumptions'!D$40:D$85,'Retiree Details and Assumptions'!H$40:H$85)) -> 1
A57: 56 | B57: 125000 | C57: =(B57-RSAInc!B57)*(1+RSARet!B57) -> 130664.7274 | D57: =(C57-RSAInc!C57)*(1+RSARet!C57) -> 127431.1602 | E57: =(D57-RSAInc!D57)*(1+RSARet!D57) -> 125858.4644 | F57: =(E57-RSAInc!E57)*(1+RSARet!E57) -> 122577.8586 | G57: =(F57-RSAInc!F57)*(1+RSARet!F57) -> 127938.7219 | H57: =(G57-RSAInc!G57)*(1+RSARet!G57) -> 126679.0875 | I57: =(H57-RSAInc!H57)*(1+RSARet!H57) -> 125137.4021 | J57: =(I57-RSAInc!I57)*(1+RSARet!I57) -> 119936.1766 | K57: =(J57-RSAInc!J57)*(1+RSARet!J57) -> 114694.0959 | L57: =(K57-RSAInc!K57)*(1+RSARet!K57) -> 116318.8867 | M57: =(L57-RSAInc!L57)*(1+RSARet!L57) -> 114382.8032 | N57: =(M57-RSAInc!M57)*(1+RSARet!M57) -> 109740.2707 | O57: =(N57-RSAInc!N57)*(1+RSARet!N57) -> 107770.4453 | P57: =(O57-RSAInc!O57)*(1+RSARet!O57) -> 108123.4223 | Q57: =(P57-RSAInc!P57)*(1+RSARet!P57) -> 109269.7649 | R57: =(Q57-RSAInc!Q57)*(1+RSARet!Q57) -> 104226.3828 | S57: =(R57-RSAInc!R57)*(1+RSARet!R57) -> 97772.31341 | T57: =(S57-RSAInc!S57)*(1+RSARet!S57) -> 98353.10293 | U57: =(T57-RSAInc!T57)*(1+RSARet!T57) -> 95618.87696 | V57: =(U57-RSAInc!U57)*(1+RSARet!U57) -> 92747.76786 | W57: =(V57-RSAInc!V57)*(1+RSARet!V57) -> 87712.34059 | X57: =(W57-RSAInc!W57)*(1+RSARet!W57) -> 81142.07269 | Y57: =(X57-RSAInc!X57)*(1+RSARet!X57) -> 74893.45681 | Z57: =(Y57-RSAInc!Y57)*(1+RSARet!Y57) -> 71888.31708 | AA57: =(Z57-RSAInc!Z57)*(1+RSARet!Z57) -> 69335.53649 | AB57: =(AA57-RSAInc!AA57)*(1+RSARet!AA57) -> 66372.14986 | AC57: =(AB57-RSAInc!AB57)*(1+RSARet!AB57) -> 59289.39035 | AD57: =(AC57-RSAInc!AC57)*(1+RSARet!AC57) -> 54805.83428 | AE57: =(AD57-RSAInc!AD57)*(1+RSARet!AD57) -> 49342.61955 | AF57: =(AE57-RSAInc!AE57)*(1+RSARet!AE57) -> 44164.77019 | AG57: =(AF57-RSAInc!AF57)*(1+RSARet!AF57) -> 39683.24294 | AH57: =(AG57-RSAInc!AG57)*(1+RSARet!AG57) -> 36936.3303 | AI57: =(AH57-RSAInc!AH57)*(1+RSARet!AH57) -> 33451.63945 | AJ57: =(AI57-RSAInc!AI57)*(1+RSARet!AI57) -> 30232.94067 | AK57: =(AJ57-RSAInc!AJ57)*(1+RSARet!AJ57) -> 26956.99611 | AL57: =(AK57-RSAInc!AK57)*(1+RSARet!AK57) -> 21075.958 | AM57: =(AL57-RSAInc!AL57)*(1+RSARet!AL57) -> 17279.01675 | AN57: =(AM57-RSAInc!AM57)*(1+RSARet!AM57) -> 14235.17542 | AO57: =(AN57-RSAInc!AN57)*(1+RSARet!AN57) -> 11665.00429 | AP57: =(AO57-RSAInc!AO57)*(1+RSARet!AO57) -> 9227.250345 | AQ57: =(AP57-RSAInc!AP57)*(1+RSARet!AP57) -> 6897.869283 | AR57: =(AQ57-RSAInc!AQ57)*(1+RSARet!AQ57) -> 4475.398287 | AS57: =(AR57-RSAInc!AR57)*(1+RSARet!AR57) -> 2582.330327 | AT57: =(AS57-RSAInc!AS57)*(1+RSARet!AS57) -> 1136.357756 | AU57: =(AT57-RSAInc!AT57)*(1+RSARet!AT57) -> -5.134637852e-12 | AW57: 109 | AX57: =IF(AW57="",0,LOOKUP(AW57,'Retiree Details and Assumptions'!D$40:D$85,'Retiree Details and Assumptions'!E$40:E$85)) -> 0.0004348127378 | AY57: =IF(AW57="","",LOOKUP(AW57,'Retiree Details and Assumptions'!D$40:D$85,'Retiree Details and Assumptions'!H$40:H$85)) -> 1
A58: 57 | B58: 125000 | C58: =(B58-RSAInc!B58)*(1+RSARet!B58) -> 123709.5041 | D58: =(C58-RSAInc!C58)*(1+RSARet!C58) -> 134278.3521 | E58: =(D58-RSAInc!D58)*(1+RSARet!D58) -> 141115.5908 | F58: =(E58-RSAInc!E58)*(1+RSARet!E58) -> 149268.7368 | G58: =(F58-RSAInc!F58)*(1+RSARet!F58) -> 151290.9084 | H58: =(G58-RSAInc!G58)*(1+RSARet!G58) -> 149663.5125 | I58: =(H58-RSAInc!H58)*(1+RSARet!H58) -> 145369.688 | J58: =(I58-RSAInc!I58)*(1+RSARet!I58) -> 149137.7745 | K58: =(J58-RSAInc!J58)*(1+RSARet!J58) -> 150039.3437 | L58: =(K58-RSAInc!K58)*(1+RSARet!K58) -> 145123.3566 | M58: =(L58-RSAInc!L58)*(1+RSARet!L58) -> 142577.0595 | N58: =(M58-RSAInc!M58)*(1+RSARet!M58) -> 140483.6107 | O58: =(N58-RSAInc!N58)*(1+RSARet!N58) -> 130147.0954 | P58: =(O58-RSAInc!O58)*(1+RSARet!O58) -> 123539.82 | Q58: =(P58-RSAInc!P58)*(1+RSARet!P58) -> 110771.1841 | R58: =(Q58-RSAInc!Q58)*(1+RSARet!Q58) -> 101285.3353 | S58: =(R58-RSAInc!R58)*(1+RSARet!R58) -> 103258.9222 | T58: =(S58-RSAInc!S58)*(1+RSARet!S58) -> 102135.0772 | U58: =(T58-RSAInc!T58)*(1+RSARet!T58) -> 96426.95815 | V58: =(U58-RSAInc!U58)*(1+RSARet!U58) -> 87005.81929 | W58: =(V58-RSAInc!V58)*(1+RSARet!V58) -> 80599.42061 | X58: =(W58-RSAInc!W58)*(1+RSARet!W58) -> 74683.69056 | Y58: =(X58-RSAInc!X58)*(1+RSARet!X58) -> 69330.9725 | Z58: =(Y58-RSAInc!Y58)*(1+RSARet!Y58) -> 66468.47313 | AA58: =(Z58-RSAInc!Z58)*(1+RSARet!Z58) -> 61145.6875 | AB58: =(AA58-RSAInc!AA58)*(1+RSARet!AA58) -> 55276.76884 | AC58: =(AB58-RSAInc!AB58)*(1+RSARet!AB58) -> 51179.74857 | AD58: =(AC58-RSAInc!AC58)*(1+RSARet!AC58) -> 47076.15445 | AE58: =(AD58-RSAInc!AD58)*(1+RSARet!AD58) -> 43494.70974 | AF58: =(AE58-RSAInc!AE58)*(1+RSARet!AE58) -> 40376.81718 | AG58: =(AF58-RSAInc!AF58)*(1+RSARet!AF58) -> 36595.17043 | AH58: =(AG58-RSAInc!AG58)*(1+RSARet!AG58) -> 34928.86168 | AI58: =(AH58-RSAInc!AH58)*(1+RSARet!AH58) -> 34044.53142 | AJ58: =(AI58-RSAInc!AI58)*(1+RSARet!AI58) -> 30374.27574 | AK58: =(AJ58-RSAInc!AJ58)*(1+RSARet!AJ58) -> 25903.84537 | AL58: =(AK58-RSAInc!AK58)*(1+RSARet!AK58) -> 22647.52406 | AM58: =(AL58-RSAInc!AL58)*(1+RSARet!AL58) -> 18522.95211 | AN58: =(AM58-RSAInc!AM58)*(1+RSARet!AM58) -> 14541.80597 | AO58: =(AN58-RSAInc!AN58)*(1+RSARet!AN58) -> 11001.64453 | AP58: =(AO58-RSAInc!AO58)*(1+RSARet!AO58) -> 9577.475482 | AQ58: =(AP58-RSAInc!AP58)*(1+RSARet!AP58) -> 6815.517775 | AR58: =(AQ58-RSAInc!AQ58)*(1+RSARet!AQ58) -> 4829.163281 | AS58: =(AR58-RSAInc!AR58)*(1+RSARet!AR58) -> 2966.228894 | AT58: =(AS58-RSAInc!AS58)*(1+RSARet!AS58) -> 1298.238164 | AU58: =(AT58-RSAInc!AT58)*(1+RSARet!AT58) -> -6.365576977e-12 | AW58: 109 | AX58: =IF(AW58="",0,LOOKUP(AW58,'Retiree Details and Assumptions'!D$40:D$85,'Retiree Details and Assumptions'!E$40:E$85)) -> 0.0004348127378 | AY58: =IF(AW58="","",LOOKUP(AW58,'Retiree Details and Assumptions'!D$40:D$85,'Retiree Details and Assumptions'!H$40:H$85)) -> 1
A59: 58 | B59: 125000 | C59: =(B59-RSAInc!B59)*(1+RSARet!B59) -> 120027.2084 | D59: =(C59-RSAInc!C59)*(1+RSARet!C59) -> 116873.0414 | E59: =(D59-RSAInc!D59)*(1+RSARet!D59) -> 119888.8001 | F59: =(E59-RSAInc!E59)*(1+RSARet!E59) -> 124429.365 | G59: =(F59-RSAInc!F59)*(1+RSARet!F59) -> 115765.9137 | H59: =(G59-RSAInc!G59)*(1+RSARet!G59) -> 109846.1439 | I59: =(H59-RSAInc!H59)*(1+RSARet!H59) -> 107651.6989 | J59: =(I59-RSAInc!I59)*(1+RSARet!I59) -> 114762.1503 | K59: =(J59-RSAInc!J59)*(1+RSARet!J59) -> 107282.6958 | L59: =(K59-RSAInc!K59)*(1+RSARet!K59) -> 108227.0015 | M59: =(L59-RSAInc!L59)*(1+RSARet!L59) -> 102455.1155 | N59: =(M59-RSAInc!M59)*(1+RSARet!M59) -> 94154.08956 | O59: =(N59-RSAInc!N59)*(1+RSARet!N59) -> 95308.80409 | P59: =(O59-RSAInc!O59)*(1+RSARet!O59) -> 93155.8017 | Q59: =(P59-RSAInc!P59)*(1+RSARet!P59) -> 87066.9459 | R59: =(Q59-RSAInc!Q59)*(1+RSARet!Q59) -> 80018.90175 | S59: =(R59-RSAInc!R59)*(1+RSARet!R59) -> 76227.70256 | T59: =(S59-RSAInc!S59)*(1+RSARet!S59) -> 74000.97071 | U59: =(T59-RSAInc!T59)*(1+RSARet!T59) -> 72284.0501 | V59: =(U59-RSAInc!U59)*(1+RSARet!U59) -> 66369.30615 | W59: =(V59-RSAInc!V59)*(1+RSARet!V59) -> 63820.80757 | X59: =(W59-RSAInc!W59)*(1+RSARet!W59) -> 64976.3498 | Y59: =(X59-RSAInc!X59)*(1+RSARet!X59) -> 60254.6491 | Z59: =(Y59-RSAInc!Y59)*(1+RSARet!Y59) -> 54890.40801 | AA59: =(Z59-RSAInc!Z59)*(1+RSARet!Z59) -> 50228.31368 | AB59: =(AA59-RSAInc!AA59)*(1+RSARet!AA59) -> 51352.44448 | AC59: =(AB59-RSAInc!AB59)*(1+RSARet!AB59) -> 44769.40532 | AD59: =(AC59-RSAInc!AC59)*(1+RSARet!AC59) -> 41223.80035 | AE59: =(AD59-RSAInc!AD59)*(1+RSARet!AD59) -> 37839.82306 | AF59: =(AE59-RSAInc!AE59)*(1+RSARet!AE59) -> 34428.13321 | AG59: =(AF59-RSAInc!AF59)*(1+RSARet!AF59) -> 31058.80882 | AH59: =(AG59-RSAInc!AG59)*(1+RSARet!AG59) -> 27973.21626 | AI59: =(AH59-RSAInc!AH59)*(1+RSARet!AH59) -> 24729.69127 | AJ59: =(AI59-RSAInc!AI59)*(1+RSARet!AI59) -> 22124.22531 | AK59: =(AJ59-RSAInc!AJ59)*(1+RSARet!AJ59) -> 18726.78879 | AL59: =(AK59-RSAInc!AK59)*(1+RSARet!AK59) -> 17212.06507 | AM59: =(AL59-RSAInc!AL59)*(1+RSARet!AL59) -> 14813.28729 | AN59: =(AM59-RSAInc!AM59)*(1+RSARet!AM59) -> 12005.58858 | AO59: =(AN59-RSAInc!AN59)*(1+RSARet!AN59) -> 9340.225305 | AP59: =(AO59-RSAInc!AO59)*(1+RSARet!AO59) -> 6976.233966 | AQ59: =(AP59-RSAInc!AP59)*(1+RSARet!AP59) -> 5139.647057 | AR59: =(AQ59-RSAInc!AQ59)*(1+RSARet!AQ59) -> 3319.85119 | AS59: =(AR59-RSAInc!AR59)*(1+RSARet!AR59) -> 1998.431879 | AT59: =(AS59-RSAInc!AS59)*(1+RSARet!AS59) -> 856.6067822 | AU59: =(AT59-RSAInc!AT59)*(1+RSARet!AT59) -> -3.894594365e-12 | AW59: 109 | AX59: =IF(AW59="",0,LOOKUP(AW59,'Retiree Details and Assumptions'!D$40:D$85,'Retiree Details and Assumptions'!E$40:E$85)) -> 0.0004348127378 | AY59: =IF(AW59="","",LOOKUP(AW59,'Retiree Details and Assumptions'!D$40:D$85,'Retiree Details and Assumptions'!H$40:H$85)) -> 1
A60: 59 | B60: 125000 | C60: =(B60-RSAInc!B60)*(1+RSARet!B60) -> 122985.5129 | D60: =(C60-RSAInc!C60)*(1+RSARet!C60) -> 117440.6882 | E60: =(D60-RSAInc!D60)*(1+RSARet!D60) -> 115979.8272 | F60: =(E60-RSAInc!E60)*(1+RSARet!E60) -> 125321.6756 | G60: =(F60-RSAInc!F60)*(1+RSARet!F60) -> 124888.7665 | H60: =(G60-RSAInc!G60)*(1+RSARet!G60) -> 116515.397 | I60: =(H60-RSAInc!H60)*(1+RSARet!H60) -> 118202.6274 | J60: =(I60-RSAInc!I60)*(1+RSARet!I60) -> 117245.4331 | K60: =(J60-RSAInc!J60)*(1+RSARet!J60) -> 112325.3963 | L60: =(K60-RSAInc!K60)*(1+RSARet!K60) -> 110291.1386 | M60: =(L60-RSAInc!L60)*(1+RSARet!L60) -> 106575.9647 | N60: =(M60-RSAInc!M60)*(1+RSARet!M60) -> 100261.7156 | O60: =(N60-RSAInc!N60)*(1+RSARet!N60) -> 110028.8649 | P60: =(O60-RSAInc!O60)*(1+RSARet!O60) -> 102349.0162 | Q60: =(P60-RSAInc!P60)*(1+RSARet!P60) -> 100737.9732 | R60: =(Q60-RSAInc!Q60)*(1+RSARet!Q60) -> 101599.9848 | S60: =(R60-RSAInc!R60)*(1+RSARet!R60) -> 97109.78784 | T60: =(S60-RSAInc!S60)*(1+RSARet!S60) -> 91396.07161 | U60: =(T60-RSAInc!T60)*(1+RSARet!T60) -> 88484.59293 | V60: =(U60-RSAInc!U60)*(1+RSARet!U60) -> 81640.25564 | W60: =(V60-RSAInc!V60)*(1+RSARet!V60) -> 79610.38789 | X60: =(W60-RSAInc!W60)*(1+RSARet!W60) -> 72121.2733 | Y60: =(X60-RSAInc!X60)*(1+RSARet!X60) -> 64476.06777 | Z60: =(Y60-RSAInc!Y60)*(1+RSARet!Y60) -> 58501.91828 | AA60: =(Z60-RSAInc!Z60)*(1+RSARet!Z60) -> 58970.43724 | AB60: =(AA60-RSAInc!AA60)*(1+RSARet!AA60) -> 54801.37532 | AC60: =(AB60-RSAInc!AB60)*(1+RSARet!AB60) -> 51546.29532 | AD60: =(AC60-RSAInc!AC60)*(1+RSARet!AC60) -> 48154.01636 | AE60: =(AD60-RSAInc!AD60)*(1+RSARet!AD60) -> 44645.53203 | AF60: =(AE60-RSAInc!AE60)*(1+RSARet!AE60) -> 39488.30522 | AG60: =(AF60-RSAInc!AF60)*(1+RSARet!AF60) -> 36075.17523 | AH60: =(AG60-RSAInc!AG60)*(1+RSARet!AG60) -> 31695.6078 | AI60: =(AH60-RSAInc!AH60)*(1+RSARet!AH60) -> 28023.20747 | AJ60: =(AI60-RSAInc!AI60)*(1+RSARet!AI60) -> 25336.22489 | AK60: =(AJ60-RSAInc!AJ60)*(1+RSARet!AJ60) -> 21389.58615 | AL60: =(AK60-RSAInc!AK60)*(1+RSARet!AK60) -> 18755.342 | AM60: =(AL60-RSAInc!AL60)*(1+RSARet!AL60) -> 14941.07526 | AN60: =(AM60-RSAInc!AM60)*(1+RSARet!AM60) -> 12331.97361 | AO60: =(AN60-RSAInc!AN60)*(1+RSARet!AN60) -> 9580.192797 | AP60: =(AO60-RSAInc!AO60)*(1+RSARet!AO60) -> 7093.20105 | AQ60: =(AP60-RSAInc!AP60)*(1+RSARet!AP60) -> 5149.218977 | AR60: =(AQ60-RSAInc!AQ60)*(1+RSARet!AQ60) -> 3687.250247 | AS60: =(AR60-RSAInc!AR60)*(1+RSARet!AR60) -> 2484.522814 | AT60: =(AS60-RSAInc!AS60)*(1+RSARet!AS60) -> 1117.138851 | AU60: =(AT60-RSAInc!AT60)*(1+RSARet!AT60) -> -5.075475193e-12 | AW60: 109 | AX60: =IF(AW60="",0,LOOKUP(AW60,'Retiree Details and Assumptions'!D$40:D$85,'Retiree Details and Assumptions'!E$40:E$85)) -> 0.0004348127378 | AY60: =IF(AW60="","",LOOKUP(AW60,'Retiree Details and Assumptions'!D$40:D$85,'Retiree Details and Assumptions'!H$40:H$85)) -> 1
A61: 60 | B61: 125000 | C61: =(B61-RSAInc!B61)*(1+RSARet!B61) -> 125028.9361 | D61: =(C61-RSAInc!C61)*(1+RSARet!C61) -> 118740.2698 | E61: =(D61-RSAInc!D61)*(1+RSARet!D61) -> 117473.0028 | F61: =(E61-RSAInc!E61)*(1+RSARet!E61) -> 112470.5673 | G61: =(F61-RSAInc!F61)*(1+RSARet!F61) -> 109214.773 | H61: =(G61-RSAInc!G61)*(1+RSARet!G61) -> 112754.9975 | I61: =(H61-RSAInc!H61)*(1+RSARet!H61) -> 110148.9216 | J61: =(I61-RSAInc!I61)*(1+RSARet!I61) -> 103119.5395 | K61: =(J61-RSAInc!J61)*(1+RSARet!J61) -> 98739.77059 | L61: =(K61-RSAInc!K61)*(1+RSARet!K61) -> 95204.49921 | M61: =(L61-RSAInc!L61)*(1+RSARet!L61) -> 92633.39772 | N61: =(M61-RSAInc!M61)*(1+RSARet!M61) -> 88909.27605 | O61: =(N61-RSAInc!N61)*(1+RSARet!N61) -> 93427.6135 | P61: =(O61-RSAInc!O61)*(1+RSARet!O61) -> 89267.90974 | Q61: =(P61-RSAInc!P61)*(1+RSARet!P61) -> 93707.00407 | R61: =(Q61-RSAInc!Q61)*(1+RSARet!Q61) -> 94387.22081 | S61: =(R61-RSAInc!R61)*(1+RSARet!R61) -> 87920.35377 | T61: =(S61-RSAInc!S61)*(1+RSARet!S61) -> 82034.70477 | U61: =(T61-RSAInc!T61)*(1+RSARet!T61) -> 76155.28156 | V61: =(U61-RSAInc!U61)*(1+RSARet!U61) -> 70891.3707 | W61: =(V61-RSAInc!V61)*(1+RSARet!V61) -> 66338.93899 | X61: =(W61-RSAInc!W61)*(1+RSARet!W61) -> 62647.79385 | Y61: =(X61-RSAInc!X61)*(1+RSARet!X61) -> 61484.21573 | Z61: =(Y61-RSAInc!Y61)*(1+RSARet!Y61) -> 57630.77005 | AA61: =(Z61-RSAInc!Z61)*(1+RSARet!Z61) -> 55268.81245 | AB61: =(AA61-RSAInc!AA61)*(1+RSARet!AA61) -> 53989.84353 | AC61: =(AB61-RSAInc!AB61)*(1+RSARet!AB61) -> 51691.52986 | AD61: =(AC61-RSAInc!AC61)*(1+RSARet!AC61) -> 47936.06866 | AE61: =(AD61-RSAInc!AD61)*(1+RSARet!AD61) -> 43511.91107 | AF61: =(AE61-RSAInc!AE61)*(1+RSARet!AE61) -> 39823.70649 | AG61: =(AF61-RSAInc!AF61)*(1+RSARet!AF61) -> 37421.4399 | AH61: =(AG61-RSAInc!AG61)*(1+RSARet!AG61) -> 33521.24531 | AI61: =(AH61-RSAInc!AH61)*(1+RSARet!AH61) -> 29349.40106 | AJ61: =(AI61-RSAInc!AI61)*(1+RSARet!AI61) -> 25671.16488 | AK61: =(AJ61-RSAInc!AJ61)*(1+RSARet!AJ61) -> 20735.47085 | AL61: =(AK61-RSAInc!AK61)*(1+RSARet!AK61) -> 17161.26522 | AM61: =(AL61-RSAInc!AL61)*(1+RSARet!AL61) -> 13993.29711 | AN61: =(AM61-RSAInc!AM61)*(1+RSARet!AM61) -> 12164.41927 | AO61: =(AN61-RSAInc!AN61)*(1+RSARet!AN61) -> 10014.27354 | AP61: =(AO61-RSAInc!AO61)*(1+RSARet!AO61) -> 7746.461526 | AQ61: =(AP61-RSAInc!AP61)*(1+RSARet!AP61) -> 5776.761353 | AR61: =(AQ61-RSAInc!AQ61)*(1+RSARet!AQ61) -> 3833.741603 | AS61: =(AR61-RSAInc!AR61)*(1+RSARet!AR61) -> 2247.184642 | AT61: =(AS61-RSAInc!AS61)*(1+RSARet!AS61) -> 967.2570385 | AU61: =(AT61-RSAInc!AT61)*(1+RSARet!AT61) -> -4.504912628e-12 | AW61: 109 | AX61: =IF(AW61="",0,LOOKUP(AW61,'Retiree Details and Assumptions'!D$40:D$85,'Retiree Details and Assumptions'!E$40:E$85)) -> 0.0004348127378 | AY61: =IF(AW61="","",LOOKUP(AW61,'Retiree Details and Assumptions'!D$40:D$85,'Retiree Details and Assumptions'!H$40:H$85)) -> 1
A62: 61 | B62: 125000 | C62: =(B62-RSAInc!B62)*(1+RSARet!B62) -> 125124.3149 | D62: =(C62-RSAInc!C62)*(1+RSARet!C62) -> 122967.6546 | E62: =(D62-RSAInc!D62)*(1+RSARet!D62) -> 129131.3216 | F62: =(E62-RSAInc!E62)*(1+RSARet!E62) -> 121836.5759 | G62: =(F62-RSAInc!F62)*(1+RSARet!F62) -> 112568.0967 | H62: =(G62-RSAInc!G62)*(1+RSARet!G62) -> 111482.7086 | I62: =(H62-RSAInc!H62)*(1+RSARet!H62) -> 108347.638 | J62: =(I62-RSAInc!I62)*(1+RSARet!I62) -> 105328.5684 | K62: =(J62-RSAInc!J62)*(1+RSARet!J62) -> 99597.81477 | L62: =(K62-RSAInc!K62)*(1+RSARet!K62) -> 92912.73764 | M62: =(L62-RSAInc!L62)*(1+RSARet!L62) -> 89242.98571 | N62: =(M62-RSAInc!M62)*(1+RSARet!M62) -> 86430.98652 | O62: =(N62-RSAInc!N62)*(1+RSARet!N62) -> 84173.53863 | P62: =(O62-RSAInc!O62)*(1+RSARet!O62) -> 83917.72685 | Q62: =(P62-RSAInc!P62)*(1+RSARet!P62) -> 80381.34877 | R62: =(Q62-RSAInc!Q62)*(1+RSARet!Q62) -> 77415.75655 | S62: =(R62-RSAInc!R62)*(1+RSARet!R62) -> 75284.19857 | T62: =(S62-RSAInc!S62)*(1+RSARet!S62) -> 70722.95305 | U62: =(T62-RSAInc!T62)*(1+RSARet!T62) -> 70245.54803 | V62: =(U62-RSAInc!U62)*(1+RSARet!U62) -> 66306.31073 | W62: =(V62-RSAInc!V62)*(1+RSARet!V62) -> 67932.07452 | X62: =(W62-RSAInc!W62)*(1+RSARet!W62) -> 61201.23203 | Y62: =(X62-RSAInc!X62)*(1+RSARet!X62) -> 55517.48655 | Z62: =(Y62-RSAInc!Y62)*(1+RSARet!Y62) -> 51555.3373 | AA62: =(Z62-RSAInc!Z62)*(1+RSARet!Z62) -> 52759.83565 | AB62: =(AA62-RSAInc!AA62)*(1+RSARet!AA62) -> 49562.31973 | AC62: =(AB62-RSAInc!AB62)*(1+RSARet!AB62) -> 45191.56212 | AD62: =(AC62-RSAInc!AC62)*(1+RSARet!AC62) -> 43203.58021 | AE62: =(AD62-RSAInc!AD62)*(1+RSARet!AD62) -> 44250.79252 | AF62: =(AE62-RSAInc!AE62)*(1+RSARet!AE62) -> 39335.3272 | AG62: =(AF62-RSAInc!AF62)*(1+RSARet!AF62) -> 37925.9697 | AH62: =(AG62-RSAInc!AG62)*(1+RSARet!AG62) -> 33598.6203 | AI62: =(AH62-RSAInc!AH62)*(1+RSARet!AH62) -> 29547.26185 | AJ62: =(AI62-RSAInc!AI62)*(1+RSARet!AI62) -> 25310.03269 | AK62: =(AJ62-RSAInc!AJ62)*(1+RSARet!AJ62) -> 23340.89894 | AL62: =(AK62-RSAInc!AK62)*(1+RSARet!AK62) -> 20152.86608 | AM62: =(AL62-RSAInc!AL62)*(1+RSARet!AL62) -> 16613.47674 | AN62: =(AM62-RSAInc!AM62)*(1+RSARet!AM62) -> 13881.54688 | AO62: =(AN62-RSAInc!AN62)*(1+RSARet!AN62) -> 10989.48248 | AP62: =(AO62-RSAInc!AO62)*(1+RSARet!AO62) -> 8991.408588 | AQ62: =(AP62-RSAInc!AP62)*(1+RSARet!AP62) -> 7300.827232 | AR62: =(AQ62-RSAInc!AQ62)*(1+RSARet!AQ62) -> 5071.016562 | AS62: =(AR62-RSAInc!AR62)*(1+RSARet!AR62) -> 2983.522779 | AT62: =(AS62-RSAInc!AS62)*(1+RSARet!AS62) -> 1189.451076 | AU62: =(AT62-RSAInc!AT62)*(1+RSARet!AT62) -> -5.521019663e-12 | AW62: 109 | AX62: =IF(AW62="",0,LOOKUP(AW62,'Retiree Details and Assumptions'!D$40:D$85,'Retiree Details and Assumptions'!E$40:E$85)) -> 0.0004348127378 | AY62: =IF(AW62="","",LOOKUP(AW62,'Retiree Details and Assumptions'!D$40:D$85,'Retiree Details and Assumptions'!H$40:H$85)) -> 1
A63: 62 | B63: 125000 | C63: =(B63-RSAInc!B63)*(1+RSARet!B63) -> 119282.5663 | D63: =(C63-RSAInc!C63)*(1+RSARet!C63) -> 118412.8525 | E63: =(D63-RSAInc!D63)*(1+RSARet!D63) -> 129268.6275 | F63: =(E63-RSAInc!E63)*(1+RSARet!E63) -> 130664.1521 | G63: =(F63-RSAInc!F63)*(1+RSARet!F63) -> 132568.4106 | H63: =(G63-RSAInc!G63)*(1+RSARet!G63) -> 127502.2632 | I63: =(H63-RSAInc!H63)*(1+RSARet!H63) -> 127249.4919 | J63: =(I63-RSAInc!I63)*(1+RSARet!I63) -> 140660.8334 | K63: =(J63-RSAInc!J63)*(1+RSARet!J63) -> 141925.6381 | L63: =(K63-RSAInc!K63)*(1+RSARet!K63) -> 138211.363 | M63: =(L63-RSAInc!L63)*(1+RSARet!L63) -> 140876.6529 | N63: =(M63-RSAInc!M63)*(1+RSARet!M63) -> 131619.9599 | O63: =(N63-RSAInc!N63)*(1+RSARet!N63) -> 125332.3662 | P63: =(O63-RSAInc!O63)*(1+RSARet!O63) -> 128218.5644 | Q63: =(P63-RSAInc!P63)*(1+RSARet!P63) -> 124959.6483 | R63: =(Q63-RSAInc!Q63)*(1+RSARet!Q63) -> 127181.017 | S63: =(R63-RSAInc!R63)*(1+RSARet!R63) -> 123895.8183 | T63: =(S63-RSAInc!S63)*(1+RSARet!S63) -> 126300.4597 | U63: =(T63-RSAInc!T63)*(1+RSARet!T63) -> 109908.0663 | V63: =(U63-RSAInc!U63)*(1+RSARet!U63) -> 103609.4295 | W63: =(V63-RSAInc!V63)*(1+RSARet!V63) -> 101982.9195 | X63: =(W63-RSAInc!W63)*(1+RSARet!W63) -> 98898.47758 | Y63: =(X63-RSAInc!X63)*(1+RSARet!X63) -> 92454.90705 | Z63: =(Y63-RSAInc!Y63)*(1+RSARet!Y63) -> 88362.17106 | AA63: =(Z63-RSAInc!Z63)*(1+RSARet!Z63) -> 91219.16354 | AB63: =(AA63-RSAInc!AA63)*(1+RSARet!AA63) -> 90759.50883 | AC63: =(AB63-RSAInc!AB63)*(1+RSARet!AB63) -> 88054.98029 | AD63: =(AC63-RSAInc!AC63)*(1+RSARet!AC63) -> 86616.27439 | AE63: =(AD63-RSAInc!AD63)*(1+RSARet!AD63) -> 80241.14272 | AF63: =(AE63-RSAInc!AE63)*(1+RSARet!AE63) -> 75580.13599 | AG63: =(AF63-RSAInc!AF63)*(1+RSARet!AF63) -> 63541.03467 | AH63: =(AG63-RSAInc!AG63)*(1+RSARet!AG63) -> 54532.60214 | AI63: =(AH63-RSAInc!AH63)*(1+RSARet!AH63) -> 50288.63821 | AJ63: =(AI63-RSAInc!AI63)*(1+RSARet!AI63) -> 44050.51559 | AK63: =(AJ63-RSAInc!AJ63)*(1+RSARet!AJ63) -> 36863.98667 | AL63: =(AK63-RSAInc!AK63)*(1+RSARet!AK63) -> 31347.50391 | AM63: =(AL63-RSAInc!AL63)*(1+RSARet!AL63) -> 26767.38162 | AN63: =(AM63-RSAInc!AM63)*(1+RSARet!AM63) -> 21718.10328 | AO63: =(AN63-RSAInc!AN63)*(1+RSARet!AN63) -> 17630.19038 | AP63: =(AO63-RSAInc!AO63)*(1+RSARet!AO63) -> 13867.67349 | AQ63: =(AP63-RSAInc!AP63)*(1+RSARet!AP63) -> 10197.4341 | AR63: =(AQ63-RSAInc!AQ63)*(1+RSARet!AQ63) -> 6853.923372 | AS63: =(AR63-RSAInc!AR63)*(1+RSARet!AR63) -> 3995.697281 | AT63: =(AS63-RSAInc!AS63)*(1+RSARet!AS63) -> 1868.123686 | AU63: =(AT63-RSAInc!AT63)*(1+RSARet!AT63) -> -8.171446256e-12 | AW63: 109 | AX63: =IF(AW63="",0,LOOKUP(AW63,'Retiree Details and Assumptions'!D$40:D$85,'Retiree Details and Assumptions'!E$40:E$85)) -> 0.0004348127378 | AY63: =IF(AW63="","",LOOKUP(AW63,'Retiree Details and Assumptions'!D$40:D$85,'Retiree Details and Assumptions'!H$40:H$85)) -> 1
A64: 63 | B64: 125000 | C64: =(B64-RSAInc!B64)*(1+RSARet!B64) -> 132258.329 | D64: =(C64-RSAInc!C64)*(1+RSARet!C64) -> 127105.9154 | E64: =(D64-RSAInc!D64)*(1+RSARet!D64) -> 121962.2219 | F64: =(E64-RSAInc!E64)*(1+RSARet!E64) -> 128201.4906 | G64: =(F64-RSAInc!F64)*(1+RSARet!F64) -> 120554.4035 | H64: =(G64-RSAInc!G64)*(1+RSARet!G64) -> 111225.1123 | I64: =(H64-RSAInc!H64)*(1+RSARet!H64) -> 109551.456 | J64: =(I64-RSAInc!I64)*(1+RSARet!I64) -> 100337.3006 | K64: =(J64-RSAInc!J64)*(1+RSARet!J64) -> 97701.36795 | L64: =(K64-RSAInc!K64)*(1+RSARet!K64) -> 89206.47175 | M64: =(L64-RSAInc!L64)*(1+RSARet!L64) -> 85846.12256 | N64: =(M64-RSAInc!M64)*(1+RSARet!M64) -> 86526.27029 | O64: =(N64-RSAInc!N64)*(1+RSARet!N64) -> 80560.91589 | P64: =(O64-RSAInc!O64)*(1+RSARet!O64) -> 77794.87138 | Q64: =(P64-RSAInc!P64)*(1+RSARet!P64) -> 73370.244 | R64: =(Q64-RSAInc!Q64)*(1+RSARet!Q64) -> 70896.97939 | S64: =(R64-RSAInc!R64)*(1+RSARet!R64) -> 68743.21349 | T64: =(S64-RSAInc!S64)*(1+RSARet!S64) -> 65255.34555 | U64: =(T64-RSAInc!T64)*(1+RSARet!T64) -> 63054.62407 | V64: =(U64-RSAInc!U64)*(1+RSARet!U64) -> 61038.15239 | W64: =(V64-RSAInc!V64)*(1+RSARet!V64) -> 57231.34779 | X64: =(W64-RSAInc!W64)*(1+RSARet!W64) -> 55604.66722 | Y64: =(X64-RSAInc!X64)*(1+RSARet!X64) -> 53870.68311 | Z64: =(Y64-RSAInc!Y64)*(1+RSARet!Y64) -> 54674.84178 | AA64: =(Z64-RSAInc!Z64)*(1+RSARet!Z64) -> 54974.48138 | AB64: =(AA64-RSAInc!AA64)*(1+RSARet!AA64) -> 50968.52311 | AC64: =(AB64-RSAInc!AB64)*(1+RSARet!AB64) -> 48061.0945 | AD64: =(AC64-RSAInc!AC64)*(1+RSARet!AC64) -> 43770.0908 | AE64: =(AD64-RSAInc!AD64)*(1+RSARet!AD64) -> 39714.38422 | AF64: =(AE64-RSAInc!AE64)*(1+RSARet!AE64) -> 37318.75039 | AG64: =(AF64-RSAInc!AF64)*(1+RSARet!AF64) -> 33357.84507 | AH64: =(AG64-RSAInc!AG64)*(1+RSARet!AG64) -> 29608.90295 | AI64: =(AH64-RSAInc!AH64)*(1+RSARet!AH64) -> 26119.20336 | AJ64: =(AI64-RSAInc!AI64)*(1+RSARet!AI64) -> 23241.15594 | AK64: =(AJ64-RSAInc!AJ64)*(1+RSARet!AJ64) -> 20345.43542 | AL64: =(AK64-RSAInc!AK64)*(1+RSARet!AK64) -> 17305.92571 | AM64: =(AL64-RSAInc!AL64)*(1+RSARet!AL64) -> 15069.19544 | AN64: =(AM64-RSAInc!AM64)*(1+RSARet!AM64) -> 12581.71867 | AO64: =(AN64-RSAInc!AN64)*(1+RSARet!AN64) -> 10144.54522 | AP64: =(AO64-RSAInc!AO64)*(1+RSARet!AO64) -> 7944.388812 | AQ64: =(AP64-RSAInc!AP64)*(1+RSARet!AP64) -> 5893.036644 | AR64: =(AQ64-RSAInc!AQ64)*(1+RSARet!AQ64) -> 4005.809928 | AS64: =(AR64-RSAInc!AR64)*(1+RSARet!AR64) -> 2306.070642 | AT64: =(AS64-RSAInc!AS64)*(1+RSARet!AS64) -> 967.3973978 | AU64: =(AT64-RSAInc!AT64)*(1+RSARet!AT64) -> -4.776306881e-12 | AW64: 109 | AX64: =IF(AW64="",0,LOOKUP(AW64,'Retiree Details and Assumptions'!D$40:D$85,'Retiree Details and Assumptions'!E$40:E$85)) -> 0.0004348127378 | AY64: =IF(AW64="","",LOOKUP(AW64,'Retiree Details and Assumptions'!D$40:D$85,'Retiree Details and Assumptions'!H$40:H$85)) -> 1
A65: 64 | B65: 125000 | C65: =(B65-RSAInc!B65)*(1+RSARet!B65) -> 118294.5406 | D65: =(C65-RSAInc!C65)*(1+RSARet!C65) -> 112029.5767 | E65: =(D65-RSAInc!D65)*(1+RSARet!D65) -> 108254.0675 | F65: =(E65-RSAInc!E65)*(1+RSARet!E65) -> 101620.7347 | G65: =(F65-RSAInc!F65)*(1+RSARet!F65) -> 108360.829 | H65: =(G65-RSAInc!G65)*(1+RSARet!G65) -> 111179.0161 | I65: =(H65-RSAInc!H65)*(1+RSARet!H65) -> 106191.4889 | J65: =(I65-RSAInc!I65)*(1+RSARet!I65) -> 101918.3408 | K65: =(J65-RSAInc!J65)*(1+RSARet!J65) -> 100793.864 | L65: =(K65-RSAInc!K65)*(1+RSARet!K65) -> 96981.62895 | M65: =(L65-RSAInc!L65)*(1+RSARet!L65) -> 94024.86553 | N65: =(M65-RSAInc!M65)*(1+RSARet!M65) -> 88583.15038 | O65: =(N65-RSAInc!N65)*(1+RSARet!N65) -> 84378.26993 | P65: =(O65-RSAInc!O65)*(1+RSARet!O65) -> 85293.24397 | Q65: =(P65-RSAInc!P65)*(1+RSARet!P65) -> 79293.61106 | R65: =(Q65-RSAInc!Q65)*(1+RSARet!Q65) -> 75753.64771 | S65: =(R65-RSAInc!R65)*(1+RSARet!R65) -> 74094.25402 | T65: =(S65-RSAInc!S65)*(1+RSARet!S65) -> 68770.93077 | U65: =(T65-RSAInc!T65)*(1+RSARet!T65) -> 62661.02971 | V65: =(U65-RSAInc!U65)*(1+RSARet!U65) -> 59206.02399 | W65: =(V65-RSAInc!V65)*(1+RSARet!V65) -> 55244.50817 | X65: =(W65-RSAInc!W65)*(1+RSARet!W65) -> 56109.91378 | Y65: =(X65-RSAInc!X65)*(1+RSARet!X65) -> 59252.56385 | Z65: =(Y65-RSAInc!Y65)*(1+RSARet!Y65) -> 53985.10601 | AA65: =(Z65-RSAInc!Z65)*(1+RSARet!Z65) -> 50601.7935 | AB65: =(AA65-RSAInc!AA65)*(1+RSARet!AA65) -> 46462.58955 | AC65: =(AB65-RSAInc!AB65)*(1+RSARet!AB65) -> 40919.03567 | AD65: =(AC65-RSAInc!AC65)*(1+RSARet!AC65) -> 36237.6353 | AE65: =(AD65-RSAInc!AD65)*(1+RSARet!AD65) -> 34187.69743 | AF65: =(AE65-RSAInc!AE65)*(1+RSARet!AE65) -> 31412.81246 | AG65: =(AF65-RSAInc!AF65)*(1+RSARet!AF65) -> 27580.9991 | AH65: =(AG65-RSAInc!AG65)*(1+RSARet!AG65) -> 25000.43174 | AI65: =(AH65-RSAInc!AH65)*(1+RSARet!AH65) -> 22463.31954 | AJ65: =(AI65-RSAInc!AI65)*(1+RSARet!AI65) -> 20478.47945 | AK65: =(AJ65-RSAInc!AJ65)*(1+RSARet!AJ65) -> 18779.05845 | AL65: =(AK65-RSAInc!AK65)*(1+RSARet!AK65) -> 15926.60191 | AM65: =(AL65-RSAInc!AL65)*(1+RSARet!AL65) -> 13857.9964 | AN65: =(AM65-RSAInc!AM65)*(1+RSARet!AM65) -> 11137.36506 | AO65: =(AN65-RSAInc!AN65)*(1+RSARet!AN65) -> 8575.117967 | AP65: =(AO65-RSAInc!AO65)*(1+RSARet!AO65) -> 6651.058168 | AQ65: =(AP65-RSAInc!AP65)*(1+RSARet!AP65) -> 4761.040553 | AR65: =(AQ65-RSAInc!AQ65)*(1+RSARet!AQ65) -> 3230.291422 | AS65: =(AR65-RSAInc!AR65)*(1+RSARet!AR65) -> 1967.257923 | AT65: =(AS65-RSAInc!AS65)*(1+RSARet!AS65) -> 826.6176951 | AU65: =(AT65-RSAInc!AT65)*(1+RSARet!AT65) -> -3.789679187e-12 | AW65: 109 | AX65: =IF(AW65="",0,LOOKUP(AW65,'Retiree Details and Assumptions'!D$40:D$85,'Retiree Details and Assumptions'!E$40:E$85)) -> 0.0004348127378 | AY65: =IF(AW65="","",LOOKUP(AW65,'Retiree Details and Assumptions'!D$40:D$85,'Retiree Details and Assumptions'!H$40:H$85)) -> 1
A66: 65 | B66: =RSABal -> 125000 | C66: =(B66-RSAInc!B66)*(1+RSARet!B66) -> 117174.7011 | D66: =(C66-RSAInc!C66)*(1+RSARet!C66) -> 118817.8824 | E66: =(D66-RSAInc!D66)*(1+RSARet!D66) -> 115660.2236 | F66: =(E66-RSAInc!E66)*(1+RSARet!E66) -> 119572.2701 | G66: =(F66-RSAInc!F66)*(1+RSARet!F66) -> 111598.4498 | H66: =(G66-RSAInc!G66)*(1+RSARet!G66) -> 111960.2731 | I66: =(H66-RSAInc!H66)*(1+RSARet!H66) -> 107951.4962 | J66: =(I66-RSAInc!I66)*(1+RSARet!I66) -> 103585.6704 | K66: =(J66-RSAInc!J66)*(1+RSARet!J66) -> 109864.8057 | L66: =(K66-RSAInc!K66)*(1+RSARet!K66) -> 117477.292 | M66: =(L66-RSAInc!L66)*(1+RSARet!L66) -> 120997.2028 | N66: =(M66-RSAInc!M66)*(1+RSARet!M66) -> 115957.5222 | O66: =(N66-RSAInc!N66)*(1+RSARet!N66) -> 119454.1857 | P66: =(O66-RSAInc!O66)*(1+RSARet!O66) -> 106544.0196 | Q66: =(P66-RSAInc!P66)*(1+RSARet!P66) -> 103940.8945 | R66: =(Q66-RSAInc!Q66)*(1+RSARet!Q66) -> 107384.643 | S66: =(R66-RSAInc!R66)*(1+RSARet!R66) -> 103609.9509 | T66: =(S66-RSAInc!S66)*(1+RSARet!S66) -> 104371.9989 | U66: =(T66-RSAInc!T66)*(1+RSARet!T66) -> 95412.62886 | V66: =(U66-RSAInc!U66)*(1+RSARet!U66) -> 89173.03891 | W66: =(V66-RSAInc!V66)*(1+RSARet!V66) -> 89343.83981 | X66: =(W66-RSAInc!W66)*(1+RSARet!W66) -> 87384.86831 | Y66: =(X66-RSAInc!X66)*(1+RSARet!X66) -> 85801.6991 | Z66: =(Y66-RSAInc!Y66)*(1+RSARet!Y66) -> 87608.17499 | AA66: =(Z66-RSAInc!Z66)*(1+RSARet!Z66) -> 85325.41601 | AB66: =(AA66-RSAInc!AA66)*(1+RSARet!AA66) -> 81271.89652 | AC66: =(AB66-RSAInc!AB66)*(1+RSARet!AB66) -> 72550.16069 | AD66: =(AC66-RSAInc!AC66)*(1+RSARet!AC66) -> 67011.83877 | AE66: =(AD66-RSAInc!AD66)*(1+RSARet!AD66) -> 65912.75732 | AF66: =(AE66-RSAInc!AE66)*(1+RSARet!AE66) -> 61247.55363 | AG66: =(AF66-RSAInc!AF66)*(1+RSARet!AF66) -> 56134.6777 | AH66: =(AG66-RSAInc!AG66)*(1+RSARet!AG66) -> 51516.29459 | AI66: =(AH66-RSAInc!AH66)*(1+RSARet!AH66) -> 45906.91774 | AJ66: =(AI66-RSAInc!AI66)*(1+RSARet!AI66) -> 40836.04171 | AK66: =(AJ66-RSAInc!AJ66)*(1+RSARet!AJ66) -> 36088.36523 | AL66: =(AK66-RSAInc!AK66)*(1+RSARet!AK66) -> 29842.04262 | AM66: =(AL66-RSAInc!AL66)*(1+RSARet!AL66) -> 25173.43292 | AN66: =(AM66-RSAInc!AM66)*(1+RSARet!AM66) -> 21181.97627 | AO66: =(AN66-RSAInc!AN66)*(1+RSARet!AN66) -> 17961.90691 | AP66: =(AO66-RSAInc!AO66)*(1+RSARet!AO66) -> 13080.47847 | AQ66: =(AP66-RSAInc!AP66)*(1+RSARet!AP66) -> 8857.687854 | AR66: =(AQ66-RSAInc!AQ66)*(1+RSARet!AQ66) -> 5929.591939 | AS66: =(AR66-RSAInc!AR66)*(1+RSARet!AR66) -> 3531.035761 | AT66: =(AS66-RSAInc!AS66)*(1+RSARet!AS66) -> 1575.102935 | AU66: =(AT66-RSAInc!AT66)*(1+RSARet!AT66) -> -7.178205473e-12 | AW66: 109 | AX66: =IF(AW66="",0,LOOKUP(AW66,'Retiree Details and Assumptions'!D$40:D$85,'Retiree Details and Assumptions'!E$40:E$85)) -> 0.0004348127378 | AY66: =IF(AW66="","",LOOKUP(AW66,'Retiree Details and Assumptions'!D$40:D$85,'Retiree Details and Assumptions'!H$40:H$85)) -> 1
A67: 66 | B67: 125000 | C67: =(B67-RSAInc!B67)*(1+RSARet!B67) -> 120846.6955 | D67: =(C67-RSAInc!C67)*(1+RSARet!C67) -> 115723.4884 | E67: =(D67-RSAInc!D67)*(1+RSARet!D67) -> 121710.4845 | F67: =(E67-RSAInc!E67)*(1+RSARet!E67) -> 119415.6744 | G67: =(F67-RSAInc!F67)*(1+RSARet!F67) -> 128323.8443 | H67: =(G67-RSAInc!G67)*(1+RSARet!G67) -> 132841.1097 | I67: =(H67-RSAInc!H67)*(1+RSARet!H67) -> 137293.243 | J67: =(I67-RSAInc!I67)*(1+RSARet!I67) -> 133791.4156 | K67: =(J67-RSAInc!J67)*(1+RSARet!J67) -> 128956.8487 | L67: =(K67-RSAInc!K67)*(1+RSARet!K67) -> 129685.2537 | M67: =(L67-RSAInc!L67)*(1+RSARet!L67) -> 125816.7151 | N67: =(M67-RSAInc!M67)*(1+RSARet!M67) -> 123035.6317 | O67: =(N67-RSAInc!N67)*(1+RSARet!N67) -> 120034.9181 | P67: =(O67-RSAInc!O67)*(1+RSARet!O67) -> 115711.5474 | Q67: =(P67-RSAInc!P67)*(1+RSARet!P67) -> 108537.2179 | R67: =(Q67-RSAInc!Q67)*(1+RSARet!Q67) -> 108893.1938 | S67: =(R67-RSAInc!R67)*(1+RSARet!R67) -> 108332.9409 | T67: =(S67-RSAInc!S67)*(1+RSARet!S67) -> 102024.7555 | U67: =(T67-RSAInc!T67)*(1+RSARet!T67) -> 95738.46122 | V67: =(U67-RSAInc!U67)*(1+RSARet!U67) -> 89957.24548 | W67: =(V67-RSAInc!V67)*(1+RSARet!V67) -> 82683.97558 | X67: =(W67-RSAInc!W67)*(1+RSARet!W67) -> 77088.07881 | Y67: =(X67-RSAInc!X67)*(1+RSARet!X67) -> 79006.03301 | Z67: =(Y67-RSAInc!Y67)*(1+RSARet!Y67) -> 72289.9357 | AA67: =(Z67-RSAInc!Z67)*(1+RSARet!Z67) -> 65111.70966 | AB67: =(AA67-RSAInc!AA67)*(1+RSARet!AA67) -> 64060.37968 | AC67: =(AB67-RSAInc!AB67)*(1+RSARet!AB67) -> 59810.10561 | AD67: =(AC67-RSAInc!AC67)*(1+RSARet!AC67) -> 51379.01392 | AE67: =(AD67-RSAInc!AD67)*(1+RSARet!AD67) -> 46122.44571 | AF67: =(AE67-RSAInc!AE67)*(1+RSARet!AE67) -> 43971.91762 | AG67: =(AF67-RSAInc!AF67)*(1+RSARet!AF67) -> 40975.38368 | AH67: =(AG67-RSAInc!AG67)*(1+RSARet!AG67) -> 38884.29756 | AI67: =(AH67-RSAInc!AH67)*(1+RSARet!AH67) -> 34281.05195 | AJ67: =(AI67-RSAInc!AI67)*(1+RSARet!AI67) -> 30672.55911 | AK67: =(AJ67-RSAInc!AJ67)*(1+RSARet!AJ67) -> 26729.82184 | AL67: =(AK67-RSAInc!AK67)*(1+RSARet!AK67) -> 22873.71327 | AM67: =(AL67-RSAInc!AL67)*(1+RSARet!AL67) -> 19352.30605 | AN67: =(AM67-RSAInc!AM67)*(1+RSARet!AM67) -> 16569.5925 | AO67: =(AN67-RSAInc!AN67)*(1+RSARet!AN67) -> 13651.85056 | AP67: =(AO67-RSAInc!AO67)*(1+RSARet!AO67) -> 11005.54402 | AQ67: =(AP67-RSAInc!AP67)*(1+RSARet!AP67) -> 7533.698894 | AR67: =(AQ67-RSAInc!AQ67)*(1+RSARet!AQ67) -> 5284.580041 | AS67: =(AR67-RSAInc!AR67)*(1+RSARet!AR67) -> 3053.516178 | AT67: =(AS67-RSAInc!AS67)*(1+RSARet!AS67) -> 1402.974476 | AU67: =(AT67-RSAInc!AT67)*(1+RSARet!AT67) -> -6.246538447e-12 | AW67: =IF(65+COUNTIF(C67:AU67,">0")>109,"",65+COUNTIF(C67:AU67,">0")) -> 109 | AX67: =IF(AW67="",0,LOOKUP(AW67,'Retiree Details and Assumptions'!D$40:D$85,'Retiree Details and Assumptions'!E$40:E$85)) -> 0.0004348127378 | AY67: =IF(AW67="","",LOOKUP(AW67,'Retiree Details and Assumptions'!D$40:D$85,'Retiree Details and Assumptions'!H$40:H$85)) -> 1
A68: 67 | B68: 125000 | C68: =(B68-RSAInc!B68)*(1+RSARet!B68) -> 123069.1126 | D68: =(C68-RSAInc!C68)*(1+RSARet!C68) -> 120456.6999 | E68: =(D68-RSAInc!D68)*(1+RSARet!D68) -> 114994.7546 | F68: =(E68-RSAInc!E68)*(1+RSARet!E68) -> 107553.4727 | G68: =(F68-RSAInc!F68)*(1+RSARet!F68) -> 101795.2744 | H68: =(G68-RSAInc!G68)*(1+RSARet!G68) -> 96778.10042 | I68: =(H68-RSAInc!H68)*(1+RSARet!H68) -> 103472.7399 | J68: =(I68-RSAInc!I68)*(1+RSARet!I68) -> 107464.8897 | K68: =(J68-RSAInc!J68)*(1+RSARet!J68) -> 107036.7961 | L68: =(K68-RSAInc!K68)*(1+RSARet!K68) -> 121788.6209 | M68: =(L68-RSAInc!L68)*(1+RSARet!L68) -> 122506.2241 | N68: =(M68-RSAInc!M68)*(1+RSARet!M68) -> 115975.4295 | O68: =(N68-RSAInc!N68)*(1+RSARet!N68) -> 121651.4228 | P68: =(O68-RSAInc!O68)*(1+RSARet!O68) -> 125099.2808 | Q68: =(P68-RSAInc!P68)*(1+RSARet!P68) -> 125463.6074 | R68: =(Q68-RSAInc!Q68)*(1+RSARet!Q68) -> 116172.6525 | S68: =(R68-RSAInc!R68)*(1+RSARet!R68) -> 105213.5849 | T68: =(S68-RSAInc!S68)*(1+RSARet!S68) -> 102203.2479 | U68: =(T68-RSAInc!T68)*(1+RSARet!T68) -> 94853.33956 | V68: =(U68-RSAInc!U68)*(1+RSARet!U68) -> 91023.76841 | W68: =(V68-RSAInc!V68)*(1+RSARet!V68) -> 89383.58665 | X68: =(W68-RSAInc!W68)*(1+RSARet!W68) -> 88679.00969 | Y68: =(X68-RSAInc!X68)*(1+RSARet!X68) -> 86028.44567 | Z68: =(Y68-RSAInc!Y68)*(1+RSARet!Y68) -> 76388.84735 | AA68: =(Z68-RSAInc!Z68)*(1+RSARet!Z68) -> 71615.3399 | AB68: =(AA68-RSAInc!AA68)*(1+RSARet!AA68) -> 66804.40245 | AC68: =(AB68-RSAInc!AB68)*(1+RSARet!AB68) -> 62663.88616 | AD68: =(AC68-RSAInc!AC68)*(1+RSARet!AC68) -> 54797.4371 | AE68: =(AD68-RSAInc!AD68)*(1+RSARet!AD68) -> 48523.50267 | AF68: =(AE68-RSAInc!AE68)*(1+RSARet!AE68) -> 44341.48554 | AG68: =(AF68-RSAInc!AF68)*(1+RSARet!AF68) -> 40126.26886 | AH68: =(AG68-RSAInc!AG68)*(1+RSARet!AG68) -> 36829.13797 | AI68: =(AH68-RSAInc!AH68)*(1+RSARet!AH68) -> 30519.63488 | AJ68: =(AI68-RSAInc!AI68)*(1+RSARet!AI68) -> 27859.86482 | AK68: =(AJ68-RSAInc!AJ68)*(1+RSARet!AJ68) -> 26034.89007 | AL68: =(AK68-RSAInc!AK68)*(1+RSARet!AK68) -> 20710.18675 | AM68: =(AL68-RSAInc!AL68)*(1+RSARet!AL68) -> 18105.92629 | AN68: =(AM68-RSAInc!AM68)*(1+RSARet!AM68) -> 14897.55787 | AO68: =(AN68-RSAInc!AN68)*(1+RSARet!AN68) -> 11869.85286 | AP68: =(AO68-RSAInc!AO68)*(1+RSARet!AO68) -> 9091.110843 | AQ68: =(AP68-RSAInc!AP68)*(1+RSARet!AP68) -> 6474.009375 | AR68: =(AQ68-RSAInc!AQ68)*(1+RSARet!AQ68) -> 4685.32909 | AS68: =(AR68-RSAInc!AR68)*(1+RSARet!AR68) -> 2763.574123 | AT68: =(AS68-RSAInc!AS68)*(1+RSARet!AS68) -> 1373.600431 | AU68: =(AT68-RSAInc!AT68)*(1+RSARet!AT68) -> -6.29973099e-12 | AW68: 109 | AX68: =IF(AW68="",0,LOOKUP(AW68,'Retiree Details and Assumptions'!D$40:D$85,'Retiree Details and Assumptions'!E$40:E$85)) -> 0.0004348127378 | AY68: =IF(AW68="","",LOOKUP(AW68,'Retiree Details and Assumptions'!D$40:D$85,'Retiree Details and Assumptions'!H$40:H$85)) -> 1
A69: 68 | B69: 125000 | C69: =(B69-RSAInc!B69)*(1+RSARet!B69) -> 116229.5816 | D69: =(C69-RSAInc!C69)*(1+RSARet!C69) -> 111099.9744 | E69: =(D69-RSAInc!D69)*(1+RSARet!D69) -> 106407.7209 | F69: =(E69-RSAInc!E69)*(1+RSARet!E69) -> 102724.389 | G69: =(F69-RSAInc!F69)*(1+RSARet!F69) -> 108142.6674 | H69: =(G69-RSAInc!G69)*(1+RSARet!G69) -> 110144.9567 | I69: =(H69-RSAInc!H69)*(1+RSARet!H69) -> 104651.4991 | J69: =(I69-RSAInc!I69)*(1+RSARet!I69) -> 106800.9516 | K69: =(J69-RSAInc!J69)*(1+RSARet!J69) -> 100050.6394 | L69: =(K69-RSAInc!K69)*(1+RSARet!K69) -> 93946.51905 | M69: =(L69-RSAInc!L69)*(1+RSARet!L69) -> 91533.78901 | N69: =(M69-RSAInc!M69)*(1+RSARet!M69) -> 86550.47246 | O69: =(N69-RSAInc!N69)*(1+RSARet!N69) -> 84190.89261 | P69: =(O69-RSAInc!O69)*(1+RSARet!O69) -> 76653.78187 | Q69: =(P69-RSAInc!P69)*(1+RSARet!P69) -> 75660.74487 | R69: =(Q69-RSAInc!Q69)*(1+RSARet!Q69) -> 77324.25435 | S69: =(R69-RSAInc!R69)*(1+RSARet!R69) -> 74960.25188 | T69: =(S69-RSAInc!S69)*(1+RSARet!S69) -> 71403.08557 | U69: =(T69-RSAInc!T69)*(1+RSARet!T69) -> 69598.79634 | V69: =(U69-RSAInc!U69)*(1+RSARet!U69) -> 65530.5273 | W69: =(V69-RSAInc!V69)*(1+RSARet!V69) -> 65501.6174 | X69: =(W69-RSAInc!W69)*(1+RSARet!W69) -> 64324.07165 | Y69: =(X69-RSAInc!X69)*(1+RSARet!X69) -> 65236.50284 | Z69: =(Y69-RSAInc!Y69)*(1+RSARet!Y69) -> 60715.87116 | AA69: =(Z69-RSAInc!Z69)*(1+RSARet!Z69) -> 58522.85602 | AB69: =(AA69-RSAInc!AA69)*(1+RSARet!AA69) -> 56282.00502 | AC69: =(AB69-RSAInc!AB69)*(1+RSARet!AB69) -> 50909.69918 | AD69: =(AC69-RSAInc!AC69)*(1+RSARet!AC69) -> 48206.55158 | AE69: =(AD69-RSAInc!AD69)*(1+RSARet!AD69) -> 48223.22323 | AF69: =(AE69-RSAInc!AE69)*(1+RSARet!AE69) -> 44054.26071 | AG69: =(AF69-RSAInc!AF69)*(1+RSARet!AF69) -> 40389.05326 | AH69: =(AG69-RSAInc!AG69)*(1+RSARet!AG69) -> 35758.58133 | AI69: =(AH69-RSAInc!AH69)*(1+RSARet!AH69) -> 32780.68918 | AJ69: =(AI69-RSAInc!AI69)*(1+RSARet!AI69) -> 28490.96385 | AK69: =(AJ69-RSAInc!AJ69)*(1+RSARet!AJ69) -> 25173.13004 | AL69: =(AK69-RSAInc!AK69)*(1+RSARet!AK69) -> 21721.79548 | AM69: =(AL69-RSAInc!AL69)*(1+RSARet!AL69) -> 17920.34915 | AN69: =(AM69-RSAInc!AM69)*(1+RSARet!AM69) -> 15961.06602 | AO69: =(AN69-RSAInc!AN69)*(1+RSARet!AN69) -> 12842.17151 | AP69: =(AO69-RSAInc!AO69)*(1+RSARet!AO69) -> 10456.44759 | AQ69: =(AP69-RSAInc!AP69)*(1+RSARet!AP69) -> 7757.277171 | AR69: =(AQ69-RSAInc!AQ69)*(1+RSARet!AQ69) -> 5208.763591 | AS69: =(AR69-RSAInc!AR69)*(1+RSARet!AR69) -> 2948.901778 | AT69: =(AS69-RSAInc!AS69)*(1+RSARet!AS69) -> 1253.630369 | AU69: =(AT69-RSAInc!AT69)*(1+RSARet!AT69) -> -5.744095736e-12 | AW69: 109 | AX69: =IF(AW69="",0,LOOKUP(AW69,'Retiree Details and Assumptions'!D$40:D$85,'Retiree Details and Assumptions'!E$40:E$85)) -> 0.0004348127378 | AY69: =IF(AW69="","",LOOKUP(AW69,'Retiree Details and Assumptions'!D$40:D$85,'Retiree Details and Assumptions'!H$40:H$85)) -> 1
A70: 69 | B70: 125000 | C70: =(B70-RSAInc!B70)*(1+RSARet!B70) -> 126345.596 | D70: =(C70-RSAInc!C70)*(1+RSARet!C70) -> 130295.023 | E70: =(D70-RSAInc!D70)*(1+RSARet!D70) -> 125877.8044 | F70: =(E70-RSAInc!E70)*(1+RSARet!E70) -> 130577.9131 | G70: =(F70-RSAInc!F70)*(1+RSARet!F70) -> 125162.6937 | H70: =(G70-RSAInc!G70)*(1+RSARet!G70) -> 120430.3003 | I70: =(H70-RSAInc!H70)*(1+RSARet!H70) -> 116883.7822 | J70: =(I70-RSAInc!I70)*(1+RSARet!I70) -> 112994.4817 | K70: =(J70-RSAInc!J70)*(1+RSARet!J70) -> 103719.0845 | L70: =(K70-RSAInc!K70)*(1+RSARet!K70) -> 103201.9893 | M70: =(L70-RSAInc!L70)*(1+RSARet!L70) -> 96008.50293 | N70: =(M70-RSAInc!M70)*(1+RSARet!M70) -> 93208.77062 | O70: =(N70-RSAInc!N70)*(1+RSARet!N70) -> 89439.21538 | P70: =(O70-RSAInc!O70)*(1+RSARet!O70) -> 83692.65832 | Q70: =(P70-RSAInc!P70)*(1+RSARet!P70) -> 83495.15406 | R70: =(Q70-RSAInc!Q70)*(1+RSARet!Q70) -> 79263.70212 | S70: =(R70-RSAInc!R70)*(1+RSARet!R70) -> 74693.50675 | T70: =(S70-RSAInc!S70)*(1+RSARet!S70) -> 76354.37644 | U70: =(T70-RSAInc!T70)*(1+RSARet!T70) -> 70937.49459 | V70: =(U70-RSAInc!U70)*(1+RSARet!U70) -> 68160.96897 | W70: =(V70-RSAInc!V70)*(1+RSARet!V70) -> 62338.11815 | X70: =(W70-RSAInc!W70)*(1+RSARet!W70) -> 60335.57083 | Y70: =(X70-RSAInc!X70)*(1+RSARet!X70) -> 61268.86054 | Z70: =(Y70-RSAInc!Y70)*(1+RSARet!Y70) -> 58410.3124 | AA70: =(Z70-RSAInc!Z70)*(1+RSARet!Z70) -> 54043.54401 | AB70: =(AA70-RSAInc!AA70)*(1+RSARet!AA70) -> 49669.53376 | AC70: =(AB70-RSAInc!AB70)*(1+RSARet!AB70) -> 45863.06014 | AD70: =(AC70-RSAInc!AC70)*(1+RSARet!AC70) -> 46182.70116 | AE70: =(AD70-RSAInc!AD70)*(1+RSARet!AD70) -> 43831.94101 | AF70: =(AE70-RSAInc!AE70)*(1+RSARet!AE70) -> 40698.6563 | AG70: =(AF70-RSAInc!AF70)*(1+RSARet!AF70) -> 38059.40504 | AH70: =(AG70-RSAInc!AG70)*(1+RSARet!AG70) -> 34372.21374 | AI70: =(AH70-RSAInc!AH70)*(1+RSARet!AH70) -> 29755.47734 | AJ70: =(AI70-RSAInc!AI70)*(1+RSARet!AI70) -> 25478.90454 | AK70: =(AJ70-RSAInc!AJ70)*(1+RSARet!AJ70) -> 21104.15855 | AL70: =(AK70-RSAInc!AK70)*(1+RSARet!AK70) -> 18491.90751 | AM70: =(AL70-RSAInc!AL70)*(1+RSARet!AL70) -> 15870.39997 | AN70: =(AM70-RSAInc!AM70)*(1+RSARet!AM70) -> 12690.66894 | AO70: =(AN70-RSAInc!AN70)*(1+RSARet!AN70) -> 10288.71963 | AP70: =(AO70-RSAInc!AO70)*(1+RSARet!AO70) -> 7672.726982 | AQ70: =(AP70-RSAInc!AP70)*(1+RSARet!AP70) -> 5921.10098 | AR70: =(AQ70-RSAInc!AQ70)*(1+RSARet!AQ70) -> 4236.58033 | AS70: =(AR70-RSAInc!AR70)*(1+RSARet!AR70) -> 2362.70258 | AT70: =(AS70-RSAInc!AS70)*(1+RSARet!AS70) -> 1147.043398 | AU70: =(AT70-RSAInc!AT70)*(1+RSARet!AT70) -> -5.653456356e-12 | AW70: 109 | AX70: =IF(AW70="",0,LOOKUP(AW70,'Retiree Details and Assumptions'!D$40:D$85,'Retiree Details and Assumptions'!E$40:E$85)) -> 0.0004348127378 | AY70: =IF(AW70="","",LOOKUP(AW70,'Retiree Details and Assumptions'!D$40:D$85,'Retiree Details and Assumptions'!H$40:H$85)) -> 1
A71: 70 | B71: 125000 | C71: =(B71-RSAInc!B71)*(1+RSARet!B71) -> 119220.2415 | D71: =(C71-RSAInc!C71)*(1+RSARet!C71) -> 116018.5193 | E71: =(D71-RSAInc!D71)*(1+RSARet!D71) -> 120197.1332 | F71: =(E71-RSAInc!E71)*(1+RSARet!E71) -> 120072.5322 | G71: =(F71-RSAInc!F71)*(1+RSARet!F71) -> 120736.8689 | H71: =(G71-RSAInc!G71)*(1+RSARet!G71) -> 120757.3942 | I71: =(H71-RSAInc!H71)*(1+RSARet!H71) -> 112608.3885 | J71: =(I71-RSAInc!I71)*(1+RSARet!I71) -> 106095.3545 | K71: =(J71-RSAInc!J71)*(1+RSARet!J71) -> 98605.60081 | L71: =(K71-RSAInc!K71)*(1+RSARet!K71) -> 98297.03686 | M71: =(L71-RSAInc!L71)*(1+RSARet!L71) -> 100232.0878 | N71: =(M71-RSAInc!M71)*(1+RSARet!M71) -> 100124.9385 | O71: =(N71-RSAInc!N71)*(1+RSARet!N71) -> 91530.72097 | P71: =(O71-RSAInc!O71)*(1+RSARet!O71) -> 88766.085 | Q71: =(P71-RSAInc!P71)*(1+RSARet!P71) -> 87885.26274 | R71: =(Q71-RSAInc!Q71)*(1+RSARet!Q71) -> 89744.30104 | S71: =(R71-RSAInc!R71)*(1+RSARet!R71) -> 84643.60486 | T71: =(S71-RSAInc!S71)*(1+RSARet!S71) -> 83951.73262 | U71: =(T71-RSAInc!T71)*(1+RSARet!T71) -> 73936.35814 | V71: =(U71-RSAInc!U71)*(1+RSARet!U71) -> 70045.78371 | W71: =(V71-RSAInc!V71)*(1+RSARet!V71) -> 70908.47304 | X71: =(W71-RSAInc!W71)*(1+RSARet!W71) -> 65518.63265 | Y71: =(X71-RSAInc!X71)*(1+RSARet!X71) -> 61540.50416 | Z71: =(Y71-RSAInc!Y71)*(1+RSARet!Y71) -> 59582.03787 | AA71: =(Z71-RSAInc!Z71)*(1+RSARet!Z71) -> 56803.92753 | AB71: =(AA71-RSAInc!AA71)*(1+RSARet!AA71) -> 49449.12849 | AC71: =(AB71-RSAInc!AB71)*(1+RSARet!AB71) -> 46564.93737 | AD71: =(AC71-RSAInc!AC71)*(1+RSARet!AC71) -> 43482.8257 | AE71: =(AD71-RSAInc!AD71)*(1+RSARet!AD71) -> 37618.19184 | AF71: =(AE71-RSAInc!AE71)*(1+RSARet!AE71) -> 32189.54536 | AG71: =(AF71-RSAInc!AF71)*(1+RSARet!AF71) -> 29625.48982 | AH71: =(AG71-RSAInc!AG71)*(1+RSARet!AG71) -> 25909.21484 | AI71: =(AH71-RSAInc!AH71)*(1+RSARet!AH71) -> 22646.32083 | AJ71: =(AI71-RSAInc!AI71)*(1+RSARet!AI71) -> 19906.50385 | AK71: =(AJ71-RSAInc!AJ71)*(1+RSARet!AJ71) -> 18035.75893 | AL71: =(AK71-RSAInc!AK71)*(1+RSARet!AK71) -> 15907.84925 | AM71: =(AL71-RSAInc!AL71)*(1+RSARet!AL71) -> 12730.92099 | AN71: =(AM71-RSAInc!AM71)*(1+RSARet!AM71) -> 10501.59212 | AO71: =(AN71-RSAInc!AN71)*(1+RSARet!AN71) -> 8734.537735 | AP71: =(AO71-RSAInc!AO71)*(1+RSARet!AO71) -> 6801.666271 | AQ71: =(AP71-RSAInc!AP71)*(1+RSARet!AP71) -> 5409.082841 | AR71: =(AQ71-RSAInc!AQ71)*(1+RSARet!AQ71) -> 3878.697833 | AS71: =(AR71-RSAInc!AR71)*(1+RSARet!AR71) -> 2230.384 | AT71: =(AS71-RSAInc!AS71)*(1+RSARet!AS71) -> 985.7771423 | AU71: =(AT71-RSAInc!AT71)*(1+RSARet!AT71) -> -4.336488908e-12 | AW71: 109 | AX71: =IF(AW71="",0,LOOKUP(AW71,'Retiree Details and Assumptions'!D$40:D$85,'Retiree Details and Assumptions'!E$40:E$85)) -> 0.0004348127378 | AY71: =IF(AW71="","",LOOKUP(AW71,'Retiree Details and Assumptions'!D$40:D$85,'Retiree Details and Assumptions'!H$40:H$85)) -> 1
A72: 71 | B72: 125000 | C72: =(B72-RSAInc!B72)*(1+RSARet!B72) -> 121209.9735 | D72: =(C72-RSAInc!C72)*(1+RSARet!C72) -> 116682.0175 | E72: =(D72-RSAInc!D72)*(1+RSARet!D72) -> 115151.0594 | F72: =(E72-RSAInc!E72)*(1+RSARet!E72) -> 113974.1846 | G72: =(F72-RSAInc!F72)*(1+RSARet!F72) -> 113123.5852 | H72: =(G72-RSAInc!G72)*(1+RSARet!G72) -> 108292.9997 | I72: =(H72-RSAInc!H72)*(1+RSARet!H72) -> 109911.8682 | J72: =(I72-RSAInc!I72)*(1+RSARet!I72) -> 109714.0334 | K72: =(J72-RSAInc!J72)*(1+RSARet!J72) -> 107268.1724 | L72: =(K72-RSAInc!K72)*(1+RSARet!K72) -> 111551.7929 | M72: =(L72-RSAInc!L72)*(1+RSARet!L72) -> 104827.2979 | N72: =(M72-RSAInc!M72)*(1+RSARet!M72) -> 107919.0085 | O72: =(N72-RSAInc!N72)*(1+RSARet!N72) -> 103718.3831 | P72: =(O72-RSAInc!O72)*(1+RSARet!O72) -> 103308.5616 | Q72: =(P72-RSAInc!P72)*(1+RSARet!P72) -> 98877.1221 | R72: =(Q72-RSAInc!Q72)*(1+RSARet!Q72) -> 93581.14518 | S72: =(R72-RSAInc!R72)*(1+RSARet!R72) -> 89636.8919 | T72: =(S72-RSAInc!S72)*(1+RSARet!S72) -> 81251.58502 | U72: =(T72-RSAInc!T72)*(1+RSARet!T72) -> 81209.05446 | V72: =(U72-RSAInc!U72)*(1+RSARet!U72) -> 75460.05376 | W72: =(V72-RSAInc!V72)*(1+RSARet!V72) -> 69628.95531 | X72: =(W72-RSAInc!W72)*(1+RSARet!W72) -> 64584.65485 | Y72: =(X72-RSAInc!X72)*(1+RSARet!X72) -> 59686.31534 | Z72: =(Y72-RSAInc!Y72)*(1+RSARet!Y72) -> 56542.05329 | AA72: =(Z72-RSAInc!Z72)*(1+RSARet!Z72) -> 53940.5554 | AB72: =(AA72-RSAInc!AA72)*(1+RSARet!AA72) -> 47298.59545 | AC72: =(AB72-RSAInc!AB72)*(1+RSARet!AB72) -> 45612.42012 | AD72: =(AC72-RSAInc!AC72)*(1+RSARet!AC72) -> 41799.62759 | AE72: =(AD72-RSAInc!AD72)*(1+RSARet!AD72) -> 38465.22794 | AF72: =(AE72-RSAInc!AE72)*(1+RSARet!AE72) -> 33111.72857 | AG72: =(AF72-RSAInc!AF72)*(1+RSARet!AF72) -> 27976.40758 | AH72: =(AG72-RSAInc!AG72)*(1+RSARet!AG72) -> 25155.47668 | AI72: =(AH72-RSAInc!AH72)*(1+RSARet!AH72) -> 22001.56285 | AJ72: =(AI72-RSAInc!AI72)*(1+RSARet!AI72) -> 18031.90363 | AK72: =(AJ72-RSAInc!AJ72)*(1+RSARet!AJ72) -> 14904.20114 | AL72: =(AK72-RSAInc!AK72)*(1+RSARet!AK72) -> 12322.72859 | AM72: =(AL72-RSAInc!AL72)*(1+RSARet!AL72) -> 9763.544492 | AN72: =(AM72-RSAInc!AM72)*(1+RSARet!AM72) -> 8003.131781 | AO72: =(AN72-RSAInc!AN72)*(1+RSARet!AN72) -> 6476.097437 | AP72: =(AO72-RSAInc!AO72)*(1+RSARet!AO72) -> 4954.261227 | AQ72: =(AP72-RSAInc!AP72)*(1+RSARet!AP72) -> 3589.112103 | AR72: =(AQ72-RSAInc!AQ72)*(1+RSARet!AQ72) -> 2474.317884 | AS72: =(AR72-RSAInc!AR72)*(1+RSARet!AR72) -> 1467.244626 | AT72: =(AS72-RSAInc!AS72)*(1+RSARet!AS72) -> 651.9373527 | AU72: =(AT72-RSAInc!AT72)*(1+RSARet!AT72) -> -2.98493866e-12 | AW72: 109 | AX72: =IF(AW72="",0,LOOKUP(AW72,'Retiree Details and Assumptions'!D$40:D$85,'Retiree Details and Assumptions'!E$40:E$85)) -> 0.0004348127378 | AY72: =IF(AW72="","",LOOKUP(AW72,'Retiree Details and Assumptions'!D$40:D$85,'Retiree Details and Assumptions'!H$40:H$85)) -> 1
A73: 72 | B73: 125000 | C73: =(B73-RSAInc!B73)*(1+RSARet!B73) -> 121345.4668 | D73: =(C73-RSAInc!C73)*(1+RSARet!C73) -> 114351.6287 | E73: =(D73-RSAInc!D73)*(1+RSARet!D73) -> 109470.6061 | F73: =(E73-RSAInc!E73)*(1+RSARet!E73) -> 99840.48113 | G73: =(F73-RSAInc!F73)*(1+RSARet!F73) -> 98271.09545 | H73: =(G73-RSAInc!G73)*(1+RSARet!G73) -> 100690.4807 | I73: =(H73-RSAInc!H73)*(1+RSARet!H73) -> 103423.8638 | J73: =(I73-RSAInc!I73)*(1+RSARet!I73) -> 105324.2622 | K73: =(J73-RSAInc!J73)*(1+RSARet!J73) -> 103117.1695 | L73: =(K73-RSAInc!K73)*(1+RSARet!K73) -> 101756.6975 | M73: =(L73-RSAInc!L73)*(1+RSARet!L73) -> 96150.74752 | N73: =(M73-RSAInc!M73)*(1+RSARet!M73) -> 92895.56499 | O73: =(N73-RSAInc!N73)*(1+RSARet!N73) -> 88588.29665 | P73: =(O73-RSAInc!O73)*(1+RSARet!O73) -> 86207.47638 | Q73: =(P73-RSAInc!P73)*(1+RSARet!P73) -> 91627.65073 | R73: =(Q73-RSAInc!Q73)*(1+RSARet!Q73) -> 91264.5335 | S73: =(R73-RSAInc!R73)*(1+RSARet!R73) -> 90247.82488 | T73: =(S73-RSAInc!S73)*(1+RSARet!S73) -> 89990.79661 | U73: =(T73-RSAInc!T73)*(1+RSARet!T73) -> 96205.42667 | V73: =(U73-RSAInc!U73)*(1+RSARet!U73) -> 88661.23755 | W73: =(V73-RSAInc!V73)*(1+RSARet!V73) -> 84369.93014 | X73: =(W73-RSAInc!W73)*(1+RSARet!W73) -> 82263.47651 | Y73: =(X73-RSAInc!X73)*(1+RSARet!X73) -> 79338.19266 | Z73: =(Y73-RSAInc!Y73)*(1+RSARet!Y73) -> 72800.39249 | AA73: =(Z73-RSAInc!Z73)*(1+RSARet!Z73) -> 69956.45634 | AB73: =(AA73-RSAInc!AA73)*(1+RSARet!AA73) -> 66357.09341 | AC73: =(AB73-RSAInc!AB73)*(1+RSARet!AB73) -> 64090.86839 | AD73: =(AC73-RSAInc!AC73)*(1+RSARet!AC73) -> 58773.88773 | AE73: =(AD73-RSAInc!AD73)*(1+RSARet!AD73) -> 53046.96939 | AF73: =(AE73-RSAInc!AE73)*(1+RSARet!AE73) -> 52721.01651 | AG73: =(AF73-RSAInc!AF73)*(1+RSARet!AF73) -> 49511.33116 | AH73: =(AG73-RSAInc!AG73)*(1+RSARet!AG73) -> 43093.41529 | AI73: =(AH73-RSAInc!AH73)*(1+RSARet!AH73) -> 37382.93658 | AJ73: =(AI73-RSAInc!AI73)*(1+RSARet!AI73) -> 33220.03661 | AK73: =(AJ73-RSAInc!AJ73)*(1+RSARet!AJ73) -> 28537.035 | AL73: =(AK73-RSAInc!AK73)*(1+RSARet!AK73) -> 23782.55059 | AM73: =(AL73-RSAInc!AL73)*(1+RSARet!AL73) -> 19037.37448 | AN73: =(AM73-RSAInc!AM73)*(1+RSARet!AM73) -> 16036.15133 | AO73: =(AN73-RSAInc!AN73)*(1+RSARet!AN73) -> 13313.8193 | AP73: =(AO73-RSAInc!AO73)*(1+RSARet!AO73) -> 10271.53638 | AQ73: =(AP73-RSAInc!AP73)*(1+RSARet!AP73) -> 7405.820833 | AR73: =(AQ73-RSAInc!AQ73)*(1+RSARet!AQ73) -> 5067.758064 | AS73: =(AR73-RSAInc!AR73)*(1+RSARet!AR73) -> 3097.423343 | AT73: =(AS73-RSAInc!AS73)*(1+RSARet!AS73) -> 1347.921769 | AU73: =(AT73-RSAInc!AT73)*(1+RSARet!AT73) -> -5.903564666e-12 | AW73: 109 | AX73: =IF(AW73="",0,LOOKUP(AW73,'Retiree Details and Assumptions'!D$40:D$85,'Retiree Details and Assumptions'!E$40:E$85)) -> 0.0004348127378 | AY73: =IF(AW73="","",LOOKUP(AW73,'Retiree Details and Assumptions'!D$40:D$85,'Retiree Details and Assumptions'!H$40:H$85)) -> 1
A74: 73 | B74: 125000 | C74: =(B74-RSAInc!B74)*(1+RSARet!B74) -> 124513.0597 | D74: =(C74-RSAInc!C74)*(1+RSARet!C74) -> 117520.3664 | E74: =(D74-RSAInc!D74)*(1+RSARet!D74) -> 120402.6496 | F74: =(E74-RSAInc!E74)*(1+RSARet!E74) -> 118454.71 | G74: =(F74-RSAInc!F74)*(1+RSARet!F74) -> 120377.8666 | H74: =(G74-RSAInc!G74)*(1+RSARet!G74) -> 126031.9961 | I74: =(H74-RSAInc!H74)*(1+RSARet!H74) -> 121053.83 | J74: =(I74-RSAInc!I74)*(1+RSARet!I74) -> 116424.9811 | K74: =(J74-RSAInc!J74)*(1+RSARet!J74) -> 109633.012 | L74: =(K74-RSAInc!K74)*(1+RSARet!K74) -> 101615.7534 | M74: =(L74-RSAInc!L74)*(1+RSARet!L74) -> 99463.39579 | N74: =(M74-RSAInc!M74)*(1+RSARet!M74) -> 91849.49951 | O74: =(N74-RSAInc!N74)*(1+RSARet!N74) -> 83205.88776 | P74: =(O74-RSAInc!O74)*(1+RSARet!O74) -> 81568.57655 | Q74: =(P74-RSAInc!P74)*(1+RSARet!P74) -> 75668.47028 | R74: =(Q74-RSAInc!Q74)*(1+RSARet!Q74) -> 72038.90866 | S74: =(R74-RSAInc!R74)*(1+RSARet!R74) -> 73935.91981 | T74: =(S74-RSAInc!S74)*(1+RSARet!S74) -> 70156.59386 | U74: =(T74-RSAInc!T74)*(1+RSARet!T74) -> 69012.24573 | V74: =(U74-RSAInc!U74)*(1+RSARet!U74) -> 60159.61712 | W74: =(V74-RSAInc!V74)*(1+RSARet!V74) -> 59644.73323 | X74: =(W74-RSAInc!W74)*(1+RSARet!W74) -> 54687.75748 | Y74: =(X74-RSAInc!X74)*(1+RSARet!X74) -> 52006.07375 | Z74: =(Y74-RSAInc!Y74)*(1+RSARet!Y74) -> 47536.28482 | AA74: =(Z74-RSAInc!Z74)*(1+RSARet!Z74) -> 46206.71469 | AB74: =(AA74-RSAInc!AA74)*(1+RSARet!AA74) -> 42173.1463 | AC74: =(AB74-RSAInc!AB74)*(1+RSARet!AB74) -> 37444.66047 | AD74: =(AC74-RSAInc!AC74)*(1+RSARet!AC74) -> 35389.8631 | AE74: =(AD74-RSAInc!AD74)*(1+RSARet!AD74) -> 35607.01059 | AF74: =(AE74-RSAInc!AE74)*(1+RSARet!AE74) -> 32465.75384 | AG74: =(AF74-RSAInc!AF74)*(1+RSARet!AF74) -> 30003.47612 | AH74: =(AG74-RSAInc!AG74)*(1+RSARet!AG74) -> 26724.64576 | AI74: =(AH74-RSAInc!AH74)*(1+RSARet!AH74) -> 23743.28414 | AJ74: =(AI74-RSAInc!AI74)*(1+RSARet!AI74) -> 20648.71825 | AK74: =(AJ74-RSAInc!AJ74)*(1+RSARet!AJ74) -> 18572.07547 | AL74: =(AK74-RSAInc!AK74)*(1+RSARet!AK74) -> 15588.22384 | AM74: =(AL74-RSAInc!AL74)*(1+RSARet!AL74) -> 13216.06701 | AN74: =(AM74-RSAInc!AM74)*(1+RSARet!AM74) -> 10683.56421 | AO74: =(AN74-RSAInc!AN74)*(1+RSARet!AN74) -> 8645.993568 | AP74: =(AO74-RSAInc!AO74)*(1+RSARet!AO74) -> 6433.756069 | AQ74: =(AP74-RSAInc!AP74)*(1+RSARet!AP74) -> 4583.788424 | AR74: =(AQ74-RSAInc!AQ74)*(1+RSARet!AQ74) -> 3196.787506 | AS74: =(AR74-RSAInc!AR74)*(1+RSARet!AR74) -> 1822.146684 | AT74: =(AS74-RSAInc!AS74)*(1+RSARet!AS74) -> 798.439282 | AU74: =(AT74-RSAInc!AT74)*(1+RSARet!AT74) -> -3.626252511e-12 | AW74: 109 | AX74: =IF(AW74="",0,LOOKUP(AW74,'Retiree Details and Assumptions'!D$40:D$85,'Retiree Details and Assumptions'!E$40:E$85)) -> 0.0004348127378 | AY74: =IF(AW74="","",LOOKUP(AW74,'Retiree Details and Assumptions'!D$40:D$85,'Retiree Details and Assumptions'!H$40:H$85)) -> 1
A75: 74 | B75: 125000 | C75: =(B75-RSAInc!B75)*(1+RSARet!B75) -> 121565.0167 | D75: =(C75-RSAInc!C75)*(1+RSARet!C75) -> 122926.5609 | E75: =(D75-RSAInc!D75)*(1+RSARet!D75) -> 114560.8618 | F75: =(E75-RSAInc!E75)*(1+RSARet!E75) -> 111388.9094 | G75: =(F75-RSAInc!F75)*(1+RSARet!F75) -> 112723.1761 | H75: =(G75-RSAInc!G75)*(1+RSARet!G75) -> 107221.6137 | I75: =(H75-RSAInc!H75)*(1+RSARet!H75) -> 102245.6648 | J75: =(I75-RSAInc!I75)*(1+RSARet!I75) -> 100299.0101 | K75: =(J75-RSAInc!J75)*(1+RSARet!J75) -> 99663.66427 | L75: =(K75-RSAInc!K75)*(1+RSARet!K75) -> 98056.11122 | M75: =(L75-RSAInc!L75)*(1+RSARet!L75) -> 95167.93721 | N75: =(M75-RSAInc!M75)*(1+RSARet!M75) -> 94146.15579 | O75: =(N75-RSAInc!N75)*(1+RSARet!N75) -> 93866.89505 | P75: =(O75-RSAInc!O75)*(1+RSARet!O75) -> 88936.11692 | Q75: =(P75-RSAInc!P75)*(1+RSARet!P75) -> 81485.01059 | R75: =(Q75-RSAInc!Q75)*(1+RSARet!Q75) -> 79719.98063 | S75: =(R75-RSAInc!R75)*(1+RSARet!R75) -> 74227.61269 | T75: =(S75-RSAInc!S75)*(1+RSARet!S75) -> 72590.82211 | U75: =(T75-RSAInc!T75)*(1+RSARet!T75) -> 66959.7314 | V75: =(U75-RSAInc!U75)*(1+RSARet!U75) -> 60087.65704 | W75: =(V75-RSAInc!V75)*(1+RSARet!V75) -> 58818.81162 | X75: =(W75-RSAInc!W75)*(1+RSARet!W75) -> 58016.41589 | Y75: =(X75-RSAInc!X75)*(1+RSARet!X75) -> 56736.77626 | Z75: =(Y75-RSAInc!Y75)*(1+RSARet!Y75) -> 52852.73486 | AA75: =(Z75-RSAInc!Z75)*(1+RSARet!Z75) -> 50950.13763 | AB75: =(AA75-RSAInc!AA75)*(1+RSARet!AA75) -> 48567.96352 | AC75: =(AB75-RSAInc!AB75)*(1+RSARet!AB75) -> 44178.31186 | AD75: =(AC75-RSAInc!AC75)*(1+RSARet!AC75) -> 41548.69936 | AE75: =(AD75-RSAInc!AD75)*(1+RSARet!AD75) -> 39754.67349 | AF75: =(AE75-RSAInc!AE75)*(1+RSARet!AE75) -> 37111.31815 | AG75: =(AF75-RSAInc!AF75)*(1+RSARet!AF75) -> 33083.42076 | AH75: =(AG75-RSAInc!AG75)*(1+RSARet!AG75) -> 31228.23025 | AI75: =(AH75-RSAInc!AH75)*(1+RSARet!AH75) -> 28278.99475 | AJ75: =(AI75-RSAInc!AI75)*(1+RSARet!AI75) -> 26690.92273 | AK75: =(AJ75-RSAInc!AJ75)*(1+RSARet!AJ75) -> 24431.16453 | AL75: =(AK75-RSAInc!AK75)*(1+RSARet!AK75) -> 20880.35583 | AM75: =(AL75-RSAInc!AL75)*(1+RSARet!AL75) -> 16941.20779 | AN75: =(AM75-RSAInc!AM75)*(1+RSARet!AM75) -> 12711.98435 | AO75: =(AN75-RSAInc!AN75)*(1+RSARet!AN75) -> 10338.41302 | AP75: =(AO75-RSAInc!AO75)*(1+RSARet!AO75) -> 7612.559491 | AQ75: =(AP75-RSAInc!AP75)*(1+RSARet!AP75) -> 5645.683486 | AR75: =(AQ75-RSAInc!AQ75)*(1+RSARet!AQ75) -> 3635.121086 | AS75: =(AR75-RSAInc!AR75)*(1+RSARet!AR75) -> 2261.292246 | AT75: =(AS75-RSAInc!AS75)*(1+RSARet!AS75) -> 1044.154729 | AU75: =(AT75-RSAInc!AT75)*(1+RSARet!AT75) -> -4.631548836e-12 | AW75: 109 | AX75: =IF(AW75="",0,LOOKUP(AW75,'Retiree Details and Assumptions'!D$40:D$85,'Retiree Details and Assumptions'!E$40:E$85)) -> 0.0004348127378 | AY75: =IF(AW75="","",LOOKUP(AW75,'Retiree Details and Assumptions'!D$40:D$85,'Retiree Details and Assumptions'!H$40:H$85)) -> 1
A76: 75 | B76: 125000 | C76: =(B76-RSAInc!B76)*(1+RSARet!B76) -> 114489.0576 | D76: =(C76-RSAInc!C76)*(1+RSARet!C76) -> 107437.2855 | E76: =(D76-RSAInc!D76)*(1+RSARet!D76) -> 101609.1261 | F76: =(E76-RSAInc!E76)*(1+RSARet!E76) -> 95525.01735 | G76: =(F76-RSAInc!F76)*(1+RSARet!F76) -> 101580.3159 | H76: =(G76-RSAInc!G76)*(1+RSARet!G76) -> 102357.6533 | I76: =(H76-RSAInc!H76)*(1+RSARet!H76) -> 100807.3892 | J76: =(I76-RSAInc!I76)*(1+RSARet!I76) -> 102695.241 | K76: =(J76-RSAInc!J76)*(1+RSARet!J76) -> 103246.642 | L76: =(K76-RSAInc!K76)*(1+RSARet!K76) -> 98547.15984 | M76: =(L76-RSAInc!L76)*(1+RSARet!L76) -> 94158.64352 | N76: =(M76-RSAInc!M76)*(1+RSARet!M76) -> 92326.89811 | O76: =(N76-RSAInc!N76)*(1+RSARet!N76) -> 96086.81944 | P76: =(O76-RSAInc!O76)*(1+RSARet!O76) -> 91928.6937 | Q76: =(P76-RSAInc!P76)*(1+RSARet!P76) -> 92254.06281 | R76: =(Q76-RSAInc!Q76)*(1+RSARet!Q76) -> 84591.31326 | S76: =(R76-RSAInc!R76)*(1+RSARet!R76) -> 80655.07499 | T76: =(S76-RSAInc!S76)*(1+RSARet!S76) -> 80075.38088 | U76: =(T76-RSAInc!T76)*(1+RSARet!T76) -> 87263.29421 | V76: =(U76-RSAInc!U76)*(1+RSARet!U76) -> 81428.90443 | W76: =(V76-RSAInc!V76)*(1+RSARet!V76) -> 79423.36908 | X76: =(W76-RSAInc!W76)*(1+RSARet!W76) -> 69027.16031 | Y76: =(X76-RSAInc!X76)*(1+RSARet!X76) -> 68555.50021 | Z76: =(Y76-RSAInc!Y76)*(1+RSARet!Y76) -> 63464.97183 | AA76: =(Z76-RSAInc!Z76)*(1+RSARet!Z76) -> 60221.1697 | AB76: =(AA76-RSAInc!AA76)*(1+RSARet!AA76) -> 53626.7755 | AC76: =(AB76-RSAInc!AB76)*(1+RSARet!AB76) -> 48725.13788 | AD76: =(AC76-RSAInc!AC76)*(1+RSARet!AC76) -> 41266.84965 | AE76: =(AD76-RSAInc!AD76)*(1+RSARet!AD76) -> 38392.68194 | AF76: =(AE76-RSAInc!AE76)*(1+RSARet!AE76) -> 36819.84229 | AG76: =(AF76-RSAInc!AF76)*(1+RSARet!AF76) -> 33688.00295 | AH76: =(AG76-RSAInc!AG76)*(1+RSARet!AG76) -> 29203.40231 | AI76: =(AH76-RSAInc!AH76)*(1+RSARet!AH76) -> 26071.70894 | AJ76: =(AI76-RSAInc!AI76)*(1+RSARet!AI76) -> 22875.33236 | AK76: =(AJ76-RSAInc!AJ76)*(1+RSARet!AJ76) -> 20506.38003 | AL76: =(AK76-RSAInc!AK76)*(1+RSARet!AK76) -> 17353.54791 | AM76: =(AL76-RSAInc!AL76)*(1+RSARet!AL76) -> 14311.96431 | AN76: =(AM76-RSAInc!AM76)*(1+RSARet!AM76) -> 11454.20835 | AO76: =(AN76-RSAInc!AN76)*(1+RSARet!AN76) -> 9503.665972 | AP76: =(AO76-RSAInc!AO76)*(1+RSARet!AO76) -> 7205.039662 | AQ76: =(AP76-RSAInc!AP76)*(1+RSARet!AP76) -> 5331.07347 | AR76: =(AQ76-RSAInc!AQ76)*(1+RSARet!AQ76) -> 3701.928575 | AS76: =(AR76-RSAInc!AR76)*(1+RSARet!AR76) -> 2186.069362 | AT76: =(AS76-RSAInc!AS76)*(1+RSARet!AS76) -> 916.7474146 | AU76: =(AT76-RSAInc!AT76)*(1+RSARet!AT76) -> -3.795148735e-12 | AW76: 109 | AX76: =IF(AW76="",0,LOOKUP(AW76,'Retiree Details and Assumptions'!D$40:D$85,'Retiree Details and Assumptions'!E$40:E$85)) -> 0.0004348127378 | AY76: =IF(AW76="","",LOOKUP(AW76,'Retiree Details and Assumptions'!D$40:D$85,'Retiree Details and Assumptions'!H$40:H$85)) -> 1
A77: 76 | B77: 125000 | C77: =(B77-RSAInc!B77)*(1+RSARet!B77) -> 128761.453 | D77: =(C77-RSAInc!C77)*(1+RSARet!C77) -> 123048.3492 | E77: =(D77-RSAInc!D77)*(1+RSARet!D77) -> 124171.9494 | F77: =(E77-RSAInc!E77)*(1+RSARet!E77) -> 118081.1397 | G77: =(F77-RSAInc!F77)*(1+RSARet!F77) -> 109018.5993 | H77: =(G77-RSAInc!G77)*(1+RSARet!G77) -> 107574.0962 | I77: =(H77-RSAInc!H77)*(1+RSARet!H77) -> 107775.6071 | J77: =(I77-RSAInc!I77)*(1+RSARet!I77) -> 103384.076 | K77: =(J77-RSAInc!J77)*(1+RSARet!J77) -> 104254.1836 | L77: =(K77-RSAInc!K77)*(1+RSARet!K77) -> 102253.873 | M77: =(L77-RSAInc!L77)*(1+RSARet!L77) -> 99309.35767 | N77: =(M77-RSAInc!M77)*(1+RSARet!M77) -> 102073.7506 | O77: =(N77-RSAInc!N77)*(1+RSARet!N77) -> 102527.4556 | P77: =(O77-RSAInc!O77)*(1+RSARet!O77) -> 93190.99642 | Q77: =(P77-RSAInc!P77)*(1+RSARet!P77) -> 90135.67234 | R77: =(Q77-RSAInc!Q77)*(1+RSARet!Q77) -> 90889.99498 | S77: =(R77-RSAInc!R77)*(1+RSARet!R77) -> 86307.40272 | T77: =(S77-RSAInc!S77)*(1+RSARet!S77) -> 83423.1949 | U77: =(T77-RSAInc!T77)*(1+RSARet!T77) -> 84982.41654 | V77: =(U77-RSAInc!U77)*(1+RSARet!U77) -> 86417.79995 | W77: =(V77-RSAInc!V77)*(1+RSARet!V77) -> 83514.57619 | X77: =(W77-RSAInc!W77)*(1+RSARet!W77) -> 81450.07406 | Y77: =(X77-RSAInc!X77)*(1+RSARet!X77) -> 79203.83249 | Z77: =(Y77-RSAInc!Y77)*(1+RSARet!Y77) -> 83793.55544 | AA77: =(Z77-RSAInc!Z77)*(1+RSARet!Z77) -> 78146.96744 | AB77: =(AA77-RSAInc!AA77)*(1+RSARet!AA77) -> 74578.3129 | AC77: =(AB77-RSAInc!AB77)*(1+RSARet!AB77) -> 72609.53036 | AD77: =(AC77-RSAInc!AC77)*(1+RSARet!AC77) -> 70012.03305 | AE77: =(AD77-RSAInc!AD77)*(1+RSARet!AD77) -> 62731.82845 | AF77: =(AE77-RSAInc!AE77)*(1+RSARet!AE77) -> 58330.05533 | AG77: =(AF77-RSAInc!AF77)*(1+RSARet!AF77) -> 55155.43501 | AH77: =(AG77-RSAInc!AG77)*(1+RSARet!AG77) -> 49870.85434 | AI77: =(AH77-RSAInc!AH77)*(1+RSARet!AH77) -> 45170.78081 | AJ77: =(AI77-RSAInc!AI77)*(1+RSARet!AI77) -> 39443.96716 | AK77: =(AJ77-RSAInc!AJ77)*(1+RSARet!AJ77) -> 34407.28555 | AL77: =(AK77-RSAInc!AK77)*(1+RSARet!AK77) -> 30327.93282 | AM77: =(AL77-RSAInc!AL77)*(1+RSARet!AL77) -> 25226.73646 | AN77: =(AM77-RSAInc!AM77)*(1+RSARet!AM77) -> 22271.97905 | AO77: =(AN77-RSAInc!AN77)*(1+RSARet!AN77) -> 17598.78225 | AP77: =(AO77-RSAInc!AO77)*(1+RSARet!AO77) -> 13369.28774 | AQ77: =(AP77-RSAInc!AP77)*(1+RSARet!AP77) -> 9433.977456 | AR77: =(AQ77-RSAInc!AQ77)*(1+RSARet!AQ77) -> 6869.079466 | AS77: =(AR77-RSAInc!AR77)*(1+RSARet!AR77) -> 3981.617251 | AT77: =(AS77-RSAInc!AS77)*(1+RSARet!AS77) -> 1726.480077 | AU77: =(AT77-RSAInc!AT77)*(1+RSARet!AT77) -> -7.789986903e-12 | AW77: 109 | AX77: =IF(AW77="",0,LOOKUP(AW77,'Retiree Details and Assumptions'!D$40:D$85,'Retiree Details and Assumptions'!E$40:E$85)) -> 0.0004348127378 | AY77: =IF(AW77="","",LOOKUP(AW77,'Retiree Details and Assumptions'!D$40:D$85,'Retiree Details and Assumptions'!H$40:H$85)) -> 1
A78: 77 | B78: 125000 | C78: =(B78-RSAInc!B78)*(1+RSARet!B78) -> 125096.9673 | D78: =(C78-RSAInc!C78)*(1+RSARet!C78) -> 124752.2354 | E78: =(D78-RSAInc!D78)*(1+RSARet!D78) -> 123532.0409 | F78: =(E78-RSAInc!E78)*(1+RSARet!E78) -> 118580.5588 | G78: =(F78-RSAInc!F78)*(1+RSARet!F78) -> 119048.2166 | H78: =(G78-RSAInc!G78)*(1+RSARet!G78) -> 115513.6063 | I78: =(H78-RSAInc!H78)*(1+RSARet!H78) -> 110856.5154 | J78: =(I78-RSAInc!I78)*(1+RSARet!I78) -> 102681.1572 | K78: =(J78-RSAInc!J78)*(1+RSARet!J78) -> 99069.64726 | L78: =(K78-RSAInc!K78)*(1+RSARet!K78) -> 97611.07316 | M78: =(L78-RSAInc!L78)*(1+RSARet!L78) -> 97783.90225 | N78: =(M78-RSAInc!M78)*(1+RSARet!M78) -> 99217.19329 | O78: =(N78-RSAInc!N78)*(1+RSARet!N78) -> 95784.33359 | P78: =(O78-RSAInc!O78)*(1+RSARet!O78) -> 96083.66622 | Q78: =(P78-RSAInc!P78)*(1+RSARet!P78) -> 91567.72502 | R78: =(Q78-RSAInc!Q78)*(1+RSARet!Q78) -> 85087.32198 | S78: =(R78-RSAInc!R78)*(1+RSARet!R78) -> 80532.82163 | T78: =(S78-RSAInc!S78)*(1+RSARet!S78) -> 76059.68165 | U78: =(T78-RSAInc!T78)*(1+RSARet!T78) -> 71564.23261 | V78: =(U78-RSAInc!U78)*(1+RSARet!U78) -> 67751.94637 | W78: =(V78-RSAInc!V78)*(1+RSARet!V78) -> 64749.44339 | X78: =(W78-RSAInc!W78)*(1+RSARet!W78) -> 61396.12438 | Y78: =(X78-RSAInc!X78)*(1+RSARet!X78) -> 61218.95732 | Z78: =(Y78-RSAInc!Y78)*(1+RSARet!Y78) -> 58861.47896 | AA78: =(Z78-RSAInc!Z78)*(1+RSARet!Z78) -> 55545.24622 | AB78: =(AA78-RSAInc!AA78)*(1+RSARet!AA78) -> 50406.10214 | AC78: =(AB78-RSAInc!AB78)*(1+RSARet!AB78) -> 47955.17955 | AD78: =(AC78-RSAInc!AC78)*(1+RSARet!AC78) -> 44019.92924 | AE78: =(AD78-RSAInc!AD78)*(1+RSARet!AD78) -> 40005.34739 | AF78: =(AE78-RSAInc!AE78)*(1+RSARet!AE78) -> 39306.18867 | AG78: =(AF78-RSAInc!AF78)*(1+RSARet!AF78) -> 33894.11029 | AH78: =(AG78-RSAInc!AG78)*(1+RSARet!AG78) -> 28679.43506 | AI78: =(AH78-RSAInc!AH78)*(1+RSARet!AH78) -> 26499.0147 | AJ78: =(AI78-RSAInc!AI78)*(1+RSARet!AI78) -> 24096.15025 | AK78: =(AJ78-RSAInc!AJ78)*(1+RSARet!AJ78) -> 21873.36735 | AL78: =(AK78-RSAInc!AK78)*(1+RSARet!AK78) -> 17565.00878 | AM78: =(AL78-RSAInc!AL78)*(1+RSARet!AL78) -> 14911.57076 | AN78: =(AM78-RSAInc!AM78)*(1+RSARet!AM78) -> 12018.43583 | AO78: =(AN78-RSAInc!AN78)*(1+RSARet!AN78) -> 9962.465703 | AP78: =(AO78-RSAInc!AO78)*(1+RSARet!AO78) -> 7330.137925 | AQ78: =(AP78-RSAInc!AP78)*(1+RSARet!AP78) -> 5081.041363 | AR78: =(AQ78-RSAInc!AQ78)*(1+RSARet!AQ78) -> 3283.301397 | AS78: =(AR78-RSAInc!AR78)*(1+RSARet!AR78) -> 2005.109791 | AT78: =(AS78-RSAInc!AS78)*(1+RSARet!AS78) -> 823.582189 | AU78: =(AT78-RSAInc!AT78)*(1+RSARet!AT78) -> -3.771258902e-12 | AW78: 109 | AX78: =IF(AW78="",0,LOOKUP(AW78,'Retiree Details and Assumptions'!D$40:D$85,'Retiree Details and Assumptions'!E$40:E$85)) -> 0.0004348127378 | AY78: =IF(AW78="","",LOOKUP(AW78,'Retiree Details and Assumptions'!D$40:D$85,'Retiree Details and Assumptions'!H$40:H$85)) -> 1
A79: 78 | B79: 125000 | C79: =(B79-RSAInc!B79)*(1+RSARet!B79) -> 132022.4824 | D79: =(C79-RSAInc!C79)*(1+RSARet!C79) -> 129973.9532 | E79: =(D79-RSAInc!D79)*(1+RSARet!D79) -> 120605.742 | F79: =(E79-RSAInc!E79)*(1+RSARet!E79) -> 113755.5488 | G79: =(F79-RSAInc!F79)*(1+RSARet!F79) -> 110188.8633 | H79: =(G79-RSAInc!G79)*(1+RSARet!G79) -> 114038.7147 | I79: =(H79-RSAInc!H79)*(1+RSARet!H79) -> 113982.6678 | J79: =(I79-RSAInc!I79)*(1+RSARet!I79) -> 113205.7829 | K79: =(J79-RSAInc!J79)*(1+RSARet!J79) -> 111886.488 | L79: =(K79-RSAInc!K79)*(1+RSARet!K79) -> 109447.6722 | M79: =(L79-RSAInc!L79)*(1+RSARet!L79) -> 102462.7988 | N79: =(M79-RSAInc!M79)*(1+RSARet!M79) -> 99426.66304 | O79: =(N79-RSAInc!N79)*(1+RSARet!N79) -> 100773.3154 | P79: =(O79-RSAInc!O79)*(1+RSARet!O79) -> 102820.5003 | Q79: =(P79-RSAInc!P79)*(1+RSARet!P79) -> 101024.4899 | R79: =(Q79-RSAInc!Q79)*(1+RSARet!Q79) -> 99892.41807 | S79: =(R79-RSAInc!R79)*(1+RSARet!R79) -> 99873.05772 | T79: =(S79-RSAInc!S79)*(1+RSARet!S79) -> 102443.5288 | U79: =(T79-RSAInc!T79)*(1+RSARet!T79) -> 99416.73267 | V79: =(U79-RSAInc!U79)*(1+RSARet!U79) -> 91804.42336 | W79: =(V79-RSAInc!V79)*(1+RSARet!V79) -> 86410.58925 | X79: =(W79-RSAInc!W79)*(1+RSARet!W79) -> 80086.71377 | Y79: =(X79-RSAInc!X79)*(1+RSARet!X79) -> 74226.70516 | Z79: =(Y79-RSAInc!Y79)*(1+RSARet!Y79) -> 75159.40584 | AA79: =(Z79-RSAInc!Z79)*(1+RSARet!Z79) -> 71882.68013 | AB79: =(AA79-RSAInc!AA79)*(1+RSARet!AA79) -> 68097.61579 | AC79: =(AB79-RSAInc!AB79)*(1+RSARet!AB79) -> 64192.8072 | AD79: =(AC79-RSAInc!AC79)*(1+RSARet!AC79) -> 56522.15409 | AE79: =(AD79-RSAInc!AD79)*(1+RSARet!AD79) -> 55749.94355 | AF79: =(AE79-RSAInc!AE79)*(1+RSARet!AE79) -> 51589.33331 | AG79: =(AF79-RSAInc!AF79)*(1+RSARet!AF79) -> 44431.03294 | AH79: =(AG79-RSAInc!AG79)*(1+RSARet!AG79) -> 40063.76955 | AI79: =(AH79-RSAInc!AH79)*(1+RSARet!AH79) -> 36579.89848 | AJ79: =(AI79-RSAInc!AI79)*(1+RSARet!AI79) -> 30137.05556 | AK79: =(AJ79-RSAInc!AJ79)*(1+RSARet!AJ79) -> 27049.13341 | AL79: =(AK79-RSAInc!AK79)*(1+RSARet!AK79) -> 23611.47538 | AM79: =(AL79-RSAInc!AL79)*(1+RSARet!AL79) -> 20395.54519 | AN79: =(AM79-RSAInc!AM79)*(1+RSARet!AM79) -> 16840.56542 | AO79: =(AN79-RSAInc!AN79)*(1+RSARet!AN79) -> 13044.66614 | AP79: =(AO79-RSAInc!AO79)*(1+RSARet!AO79) -> 10201.05288 | AQ79: =(AP79-RSAInc!AP79)*(1+RSARet!AP79) -> 7517.002608 | AR79: =(AQ79-RSAInc!AQ79)*(1+RSARet!AQ79) -> 5934.710259 | AS79: =(AR79-RSAInc!AR79)*(1+RSARet!AR79) -> 3694.163588 | AT79: =(AS79-RSAInc!AS79)*(1+RSARet!AS79) -> 1608.854712 | AU79: =(AT79-RSAInc!AT79)*(1+RSARet!AT79) -> -7.536508343e-12 | AW79: 109 | AX79: =IF(AW79="",0,LOOKUP(AW79,'Retiree Details and Assumptions'!D$40:D$85,'Retiree Details and Assumptions'!E$40:E$85)) -> 0.0004348127378 | AY79: =IF(AW79="","",LOOKUP(AW79,'Retiree Details and Assumptions'!D$40:D$85,'Retiree Details and Assumptions'!H$40:H$85)) -> 1
A80: 79 | B80: 125000 | C80: =(B80-RSAInc!B80)*(1+RSARet!B80) -> 118498.5212 | D80: =(C80-RSAInc!C80)*(1+RSARet!C80) -> 115429.9979 | E80: =(D80-RSAInc!D80)*(1+RSARet!D80) -> 109572.5796 | F80: =(E80-RSAInc!E80)*(1+RSARet!E80) -> 111670.1251 | G80: =(F80-RSAInc!F80)*(1+RSARet!F80) -> 106464.8347 | H80: =(G80-RSAInc!G80)*(1+RSARet!G80) -> 97956.45055 | I80: =(H80-RSAInc!H80)*(1+RSARet!H80) -> 94313.62248 | J80: =(I80-RSAInc!I80)*(1+RSARet!I80) -> 95790.72884 | K80: =(J80-RSAInc!J80)*(1+RSARet!J80) -> 89970.67076 | L80: =(K80-RSAInc!K80)*(1+RSARet!K80) -> 86593.86399 | M80: =(L80-RSAInc!L80)*(1+RSARet!L80) -> 79469.50255 | N80: =(M80-RSAInc!M80)*(1+RSARet!M80) -> 75956.91681 | O80: =(N80-RSAInc!N80)*(1+RSARet!N80) -> 72942.81934 | P80: =(O80-RSAInc!O80)*(1+RSARet!O80) -> 69841.94388 | Q80: =(P80-RSAInc!P80)*(1+RSARet!P80) -> 66826.26609 | R80: =(Q80-RSAInc!Q80)*(1+RSARet!Q80) -> 63240.22159 | S80: =(R80-RSAInc!R80)*(1+RSARet!R80) -> 57618.23189 | T80: =(S80-RSAInc!S80)*(1+RSARet!S80) -> 56128.02014 | U80: =(T80-RSAInc!T80)*(1+RSARet!T80) -> 51153.28748 | V80: =(U80-RSAInc!U80)*(1+RSARet!U80) -> 47711.49548 | W80: =(V80-RSAInc!V80)*(1+RSARet!V80) -> 47889.93672 | X80: =(W80-RSAInc!W80)*(1+RSARet!W80) -> 47119.46696 | Y80: =(X80-RSAInc!X80)*(1+RSARet!X80) -> 45563.7198 | Z80: =(Y80-RSAInc!Y80)*(1+RSARet!Y80) -> 45001.14388 | AA80: =(Z80-RSAInc!Z80)*(1+RSARet!Z80) -> 40811.12895 | AB80: =(AA80-RSAInc!AA80)*(1+RSARet!AA80) -> 37122.21707 | AC80: =(AB80-RSAInc!AB80)*(1+RSARet!AB80) -> 34230.39954 | AD80: =(AC80-RSAInc!AC80)*(1+RSARet!AC80) -> 31752.81438 | AE80: =(AD80-RSAInc!AD80)*(1+RSARet!AD80) -> 30853.74735 | AF80: =(AE80-RSAInc!AE80)*(1+RSARet!AE80) -> 27759.41395 | AG80: =(AF80-RSAInc!AF80)*(1+RSARet!AF80) -> 25907.61913 | AH80: =(AG80-RSAInc!AG80)*(1+RSARet!AG80) -> 23997.56618 | AI80: =(AH80-RSAInc!AH80)*(1+RSARet!AH80) -> 21677.876 | AJ80: =(AI80-RSAInc!AI80)*(1+RSARet!AI80) -> 19227.28363 | AK80: =(AJ80-RSAInc!AJ80)*(1+RSARet!AJ80) -> 16711.86317 | AL80: =(AK80-RSAInc!AK80)*(1+RSARet!AK80) -> 14096.6239 | AM80: =(AL80-RSAInc!AL80)*(1+RSARet!AL80) -> 11992.84884 | AN80: =(AM80-RSAInc!AM80)*(1+RSARet!AM80) -> 9821.914475 | AO80: =(AN80-RSAInc!AN80)*(1+RSARet!AN80) -> 7876.137505 | AP80: =(AO80-RSAInc!AO80)*(1+RSARet!AO80) -> 6265.650775 | AQ80: =(AP80-RSAInc!AP80)*(1+RSARet!AP80) -> 4667.705071 | AR80: =(AQ80-RSAInc!AQ80)*(1+RSARet!AQ80) -> 3317.589612 | AS80: =(AR80-RSAInc!AR80)*(1+RSARet!AR80) -> 1943.095648 | AT80: =(AS80-RSAInc!AS80)*(1+RSARet!AS80) -> 864.9956355 | AU80: =(AT80-RSAInc!AT80)*(1+RSARet!AT80) -> -3.939868392e-12 | AW80: 109 | AX80: =IF(AW80="",0,LOOKUP(AW80,'Retiree Details and Assumptions'!D$40:D$85,'Retiree Details and Assumptions'!E$40:E$85)) -> 0.0004348127378 | AY80: =IF(AW80="","",LOOKUP(AW80,'Retiree Details and Assumptions'!D$40:D$85,'Retiree Details and Assumptions'!H$40:H$85)) -> 1
A81: 80 | B81: 125000 | C81: =(B81-RSAInc!B81)*(1+RSARet!B81) -> 118534.6059 | D81: =(C81-RSAInc!C81)*(1+RSARet!C81) -> 123380.9418 | E81: =(D81-RSAInc!D81)*(1+RSARet!D81) -> 125705.2101 | F81: =(E81-RSAInc!E81)*(1+RSARet!E81) -> 127740.1065 | G81: =(F81-RSAInc!F81)*(1+RSARet!F81) -> 121352.6988 | H81: =(G81-RSAInc!G81)*(1+RSARet!G81) -> 125722.0634 | I81: =(H81-RSAInc!H81)*(1+RSARet!H81) -> 121959.9785 | J81: =(I81-RSAInc!I81)*(1+RSARet!I81) -> 118273.4096 | K81: =(J81-RSAInc!J81)*(1+RSARet!J81) -> 116114.751 | L81: =(K81-RSAInc!K81)*(1+RSARet!K81) -> 114253.4462 | M81: =(L81-RSAInc!L81)*(1+RSARet!L81) -> 111351.6994 | N81: =(M81-RSAInc!M81)*(1+RSARet!M81) -> 109590.0267 | O81: =(N81-RSAInc!N81)*(1+RSARet!N81) -> 107023.4402 | P81: =(O81-RSAInc!O81)*(1+RSARet!O81) -> 100828.2966 | Q81: =(P81-RSAInc!P81)*(1+RSARet!P81) -> 104508.2605 | R81: =(Q81-RSAInc!Q81)*(1+RSARet!Q81) -> 96913.59173 | S81: =(R81-RSAInc!R81)*(1+RSARet!R81) -> 91868.25681 | T81: =(S81-RSAInc!S81)*(1+RSARet!S81) -> 88466.27134 | U81: =(T81-RSAInc!T81)*(1+RSARet!T81) -> 78744.05179 | V81: =(U81-RSAInc!U81)*(1+RSARet!U81) -> 74163.82581 | W81: =(V81-RSAInc!V81)*(1+RSARet!V81) -> 72380.97535 | X81: =(W81-RSAInc!W81)*(1+RSARet!W81) -> 68692.32995 | Y81: =(X81-RSAInc!X81)*(1+RSARet!X81) -> 64087.65316 | Z81: =(Y81-RSAInc!Y81)*(1+RSARet!Y81) -> 58203.31855 | AA81: =(Z81-RSAInc!Z81)*(1+RSARet!Z81) -> 58803.92081 | AB81: =(AA81-RSAInc!AA81)*(1+RSARet!AA81) -> 52024.87313 | AC81: =(AB81-RSAInc!AB81)*(1+RSARet!AB81) -> 46928.81087 | AD81: =(AC81-RSAInc!AC81)*(1+RSARet!AC81) -> 46147.86274 | AE81: =(AD81-RSAInc!AD81)*(1+RSARet!AD81) -> 43885.18962 | AF81: =(AE81-RSAInc!AE81)*(1+RSARet!AE81) -> 39094.30961 | AG81: =(AF81-RSAInc!AF81)*(1+RSARet!AF81) -> 32955.94043 | AH81: =(AG81-RSAInc!AG81)*(1+RSARet!AG81) -> 28974.70661 | AI81: =(AH81-RSAInc!AH81)*(1+RSARet!AH81) -> 25129.11138 | AJ81: =(AI81-RSAInc!AI81)*(1+RSARet!AI81) -> 22408.37416 | AK81: =(AJ81-RSAInc!AJ81)*(1+RSARet!AJ81) -> 20659.22133 | AL81: =(AK81-RSAInc!AK81)*(1+RSARet!AK81) -> 17895.4704 | AM81: =(AL81-RSAInc!AL81)*(1+RSARet!AL81) -> 14544.56161 | AN81: =(AM81-RSAInc!AM81)*(1+RSARet!AM81) -> 11809.25417 | AO81: =(AN81-RSAInc!AN81)*(1+RSARet!AN81) -> 8805.903153 | AP81: =(AO81-RSAInc!AO81)*(1+RSARet!AO81) -> 6665.048396 | AQ81: =(AP81-RSAInc!AP81)*(1+RSARet!AP81) -> 4705.168795 | AR81: =(AQ81-RSAInc!AQ81)*(1+RSARet!AQ81) -> 3088.990495 | AS81: =(AR81-RSAInc!AR81)*(1+RSARet!AR81) -> 1752.425878 | AT81: =(AS81-RSAInc!AS81)*(1+RSARet!AS81) -> 779.3360578 | AU81: =(AT81-RSAInc!AT81)*(1+RSARet!AT81) -> -3.357459079e-12 | AW81: 109 | AX81: =IF(AW81="",0,LOOKUP(AW81,'Retiree Details and Assumptions'!D$40:D$85,'Retiree Details and Assumptions'!E$40:E$85)) -> 0.0004348127378 | AY81: =IF(AW81="","",LOOKUP(AW81,'Retiree Details and Assumptions'!D$40:D$85,'Retiree Details and Assumptions'!H$40:H$85)) -> 1
A82: 81 | B82: 125000 | C82: =(B82-RSAInc!B82)*(1+RSARet!B82) -> 122081.686 | D82: =(C82-RSAInc!C82)*(1+RSARet!C82) -> 117002.9672 | E82: =(D82-RSAInc!D82)*(1+RSARet!D82) -> 111752.8667 | F82: =(E82-RSAInc!E82)*(1+RSARet!E82) -> 103820.2848 | G82: =(F82-RSAInc!F82)*(1+RSARet!F82) -> 106013.3382 | H82: =(G82-RSAInc!G82)*(1+RSARet!G82) -> 104734.847 | I82: =(H82-RSAInc!H82)*(1+RSARet!H82) -> 102007.3386 | J82: =(I82-RSAInc!I82)*(1+RSARet!I82) -> 100242.9276 | K82: =(J82-RSAInc!J82)*(1+RSARet!J82) -> 98992.35958 | L82: =(K82-RSAInc!K82)*(1+RSARet!K82) -> 99456.3927 | M82: =(L82-RSAInc!L82)*(1+RSARet!L82) -> 108308.4836 | N82: =(M82-RSAInc!M82)*(1+RSARet!M82) -> 107435.6185 | O82: =(N82-RSAInc!N82)*(1+RSARet!N82) -> 104111.0651 | P82: =(O82-RSAInc!O82)*(1+RSARet!O82) -> 99705.01787 | Q82: =(P82-RSAInc!P82)*(1+RSARet!P82) -> 92347.65324 | R82: =(Q82-RSAInc!Q82)*(1+RSARet!Q82) -> 98074.83357 | S82: =(R82-RSAInc!R82)*(1+RSARet!R82) -> 91305.34346 | T82: =(S82-RSAInc!S82)*(1+RSARet!S82) -> 86420.1636 | U82: =(T82-RSAInc!T82)*(1+RSARet!T82) -> 79986.75379 | V82: =(U82-RSAInc!U82)*(1+RSARet!U82) -> 79243.09808 | W82: =(V82-RSAInc!V82)*(1+RSARet!V82) -> 78398.45286 | X82: =(W82-RSAInc!W82)*(1+RSARet!W82) -> 72456.74692 | Y82: =(X82-RSAInc!X82)*(1+RSARet!X82) -> 66299.6931 | Z82: =(Y82-RSAInc!Y82)*(1+RSARet!Y82) -> 63576.26141 | AA82: =(Z82-RSAInc!Z82)*(1+RSARet!Z82) -> 66987.31814 | AB82: =(AA82-RSAInc!AA82)*(1+RSARet!AA82) -> 69217.45188 | AC82: =(AB82-RSAInc!AB82)*(1+RSARet!AB82) -> 60314.9385 | AD82: =(AC82-RSAInc!AC82)*(1+RSARet!AC82) -> 53996.81401 | AE82: =(AD82-RSAInc!AD82)*(1+RSARet!AD82) -> 50330.19388 | AF82: =(AE82-RSAInc!AE82)*(1+RSARet!AE82) -> 48914.5776 | AG82: =(AF82-RSAInc!AF82)*(1+RSARet!AF82) -> 44268.9179 | AH82: =(AG82-RSAInc!AG82)*(1+RSARet!AG82) -> 41139.67297 | AI82: =(AH82-RSAInc!AH82)*(1+RSARet!AH82) -> 39757.56224 | AJ82: =(AI82-RSAInc!AI82)*(1+RSARet!AI82) -> 34138.4989 | AK82: =(AJ82-RSAInc!AJ82)*(1+RSARet!AJ82) -> 29738.65385 | AL82: =(AK82-RSAInc!AK82)*(1+RSARet!AK82) -> 25749.70444 | AM82: =(AL82-RSAInc!AL82)*(1+RSARet!AL82) -> 23572.45618 | AN82: =(AM82-RSAInc!AM82)*(1+RSARet!AM82) -> 20077.60898 | AO82: =(AN82-RSAInc!AN82)*(1+RSARet!AN82) -> 16369.05842 | AP82: =(AO82-RSAInc!AO82)*(1+RSARet!AO82) -> 12883.24353 | AQ82: =(AP82-RSAInc!AP82)*(1+RSARet!AP82) -> 9251.770252 | AR82: =(AQ82-RSAInc!AQ82)*(1+RSARet!AQ82) -> 5634.884189 | AS82: =(AR82-RSAInc!AR82)*(1+RSARet!AR82) -> 3209.296872 | AT82: =(AS82-RSAInc!AS82)*(1+RSARet!AS82) -> 1447.721423 | AU82: =(AT82-RSAInc!AT82)*(1+RSARet!AT82) -> -6.285157964e-12 | AW82: 109 | AX82: =IF(AW82="",0,LOOKUP(AW82,'Retiree Details and Assumptions'!D$40:D$85,'Retiree Details and Assumptions'!E$40:E$85)) -> 0.0004348127378 | AY82: =IF(AW82="","",LOOKUP(AW82,'Retiree Details and Assumptions'!D$40:D$85,'Retiree Details and Assumptions'!H$40:H$85)) -> 1
A83: 82 | B83: 125000 | C83: =(B83-RSAInc!B83)*(1+RSARet!B83) -> 121528.5916 | D83: =(C83-RSAInc!C83)*(1+RSARet!C83) -> 125430.7085 | E83: =(D83-RSAInc!D83)*(1+RSARet!D83) -> 122467.8195 | F83: =(E83-RSAInc!E83)*(1+RSARet!E83) -> 116552.201 | G83: =(F83-RSAInc!F83)*(1+RSARet!F83) -> 116575.5537 | H83: =(G83-RSAInc!G83)*(1+RSARet!G83) -> 118046.505 | I83: =(H83-RSAInc!H83)*(1+RSARet!H83) -> 116849.2201 | J83: =(I83-RSAInc!I83)*(1+RSARet!I83) -> 105708.9457 | K83: =(J83-RSAInc!J83)*(1+RSARet!J83) -> 102573.2794 | L83: =(K83-RSAInc!K83)*(1+RSARet!K83) -> 97000.28371 | M83: =(L83-RSAInc!L83)*(1+RSARet!L83) -> 92380.87263 | N83: =(M83-RSAInc!M83)*(1+RSARet!M83) -> 88233.26726 | O83: =(N83-RSAInc!N83)*(1+RSARet!N83) -> 88433.37916 | P83: =(O83-RSAInc!O83)*(1+RSARet!O83) -> 85570.93549 | Q83: =(P83-RSAInc!P83)*(1+RSARet!P83) -> 84423.56153 | R83: =(Q83-RSAInc!Q83)*(1+RSARet!Q83) -> 79833.22872 | S83: =(R83-RSAInc!R83)*(1+RSARet!R83) -> 76357.05898 | T83: =(S83-RSAInc!S83)*(1+RSARet!S83) -> 76634.8236 | U83: =(T83-RSAInc!T83)*(1+RSARet!T83) -> 74512.32576 | V83: =(U83-RSAInc!U83)*(1+RSARet!U83) -> 78011.44043 | W83: =(V83-RSAInc!V83)*(1+RSARet!V83) -> 74314.84751 | X83: =(W83-RSAInc!W83)*(1+RSARet!W83) -> 75757.66321 | Y83: =(X83-RSAInc!X83)*(1+RSARet!X83) -> 77333.23954 | Z83: =(Y83-RSAInc!Y83)*(1+RSARet!Y83) -> 72160.90726 | AA83: =(Z83-RSAInc!Z83)*(1+RSARet!Z83) -> 68333.54752 | AB83: =(AA83-RSAInc!AA83)*(1+RSARet!AA83) -> 64769.5207 | AC83: =(AB83-RSAInc!AB83)*(1+RSARet!AB83) -> 59288.36445 | AD83: =(AC83-RSAInc!AC83)*(1+RSARet!AC83) -> 58846.69351 | AE83: =(AD83-RSAInc!AD83)*(1+RSARet!AD83) -> 50413.4536 | AF83: =(AE83-RSAInc!AE83)*(1+RSARet!AE83) -> 46126.7806 | AG83: =(AF83-RSAInc!AF83)*(1+RSARet!AF83) -> 42774.75394 | AH83: =(AG83-RSAInc!AG83)*(1+RSARet!AG83) -> 37508.12071 | AI83: =(AH83-RSAInc!AH83)*(1+RSARet!AH83) -> 31626.71246 | AJ83: =(AI83-RSAInc!AI83)*(1+RSARet!AI83) -> 27512.97321 | AK83: =(AJ83-RSAInc!AJ83)*(1+RSARet!AJ83) -> 22656.21371 | AL83: =(AK83-RSAInc!AK83)*(1+RSARet!AK83) -> 17811.62095 | AM83: =(AL83-RSAInc!AL83)*(1+RSARet!AL83) -> 14061.61991 | AN83: =(AM83-RSAInc!AM83)*(1+RSARet!AM83) -> 11654.53335 | AO83: =(AN83-RSAInc!AN83)*(1+RSARet!AN83) -> 8911.897118 | AP83: =(AO83-RSAInc!AO83)*(1+RSARet!AO83) -> 6752.245931 | AQ83: =(AP83-RSAInc!AP83)*(1+RSARet!AP83) -> 4732.708362 | AR83: =(AQ83-RSAInc!AQ83)*(1+RSARet!AQ83) -> 3186.523406 | AS83: =(AR83-RSAInc!AR83)*(1+RSARet!AR83) -> 1913.460608 | AT83: =(AS83-RSAInc!AS83)*(1+RSARet!AS83) -> 814.0329376 | AU83: =(AT83-RSAInc!AT83)*(1+RSARet!AT83) -> -3.670280799e-12 | AW83: 109 | AX83: =IF(AW83="",0,LOOKUP(AW83,'Retiree Details and Assumptions'!D$40:D$85,'Retiree Details and Assumptions'!E$40:E$85)) -> 0.0004348127378 | AY83: =IF(AW83="","",LOOKUP(AW83,'Retiree Details and Assumptions'!D$40:D$85,'Retiree Details and Assumptions'!H$40:H$85)) -> 1
A84: 83 | B84: 125000 | C84: =(B84-RSAInc!B84)*(1+RSARet!B84) -> 119643.435 | D84: =(C84-RSAInc!C84)*(1+RSARet!C84) -> 116487.864 | E84: =(D84-RSAInc!D84)*(1+RSARet!D84) -> 117303.1471 | F84: =(E84-RSAInc!E84)*(1+RSARet!E84) -> 108944.8742 | G84: =(F84-RSAInc!F84)*(1+RSARet!F84) -> 109322.192 | H84: =(G84-RSAInc!G84)*(1+RSARet!G84) -> 106398.4737 | I84: =(H84-RSAInc!H84)*(1+RSARet!H84) -> 107064.3716 | J84: =(I84-RSAInc!I84)*(1+RSARet!I84) -> 102009.7161 | K84: =(J84-RSAInc!J84)*(1+RSARet!J84) -> 93219.48913 | L84: =(K84-RSAInc!K84)*(1+RSARet!K84) -> 89657.63415 | M84: =(L84-RSAInc!L84)*(1+RSARet!L84) -> 88467.88727 | N84: =(M84-RSAInc!M84)*(1+RSARet!M84) -> 89797.26849 | O84: =(N84-RSAInc!N84)*(1+RSARet!N84) -> 86088.54569 | P84: =(O84-RSAInc!O84)*(1+RSARet!O84) -> 82371.32537 | Q84: =(P84-RSAInc!P84)*(1+RSARet!P84) -> 80326.27801 | R84: =(Q84-RSAInc!Q84)*(1+RSARet!Q84) -> 75498.51759 | S84: =(R84-RSAInc!R84)*(1+RSARet!R84) -> 71821.56833 | T84: =(S84-RSAInc!S84)*(1+RSARet!S84) -> 67853.39065 | U84: =(T84-RSAInc!T84)*(1+RSARet!T84) -> 62152.32886 | V84: =(U84-RSAInc!U84)*(1+RSARet!U84) -> 59197.57441 | W84: =(V84-RSAInc!V84)*(1+RSARet!V84) -> 58259.98763 | X84: =(W84-RSAInc!W84)*(1+RSARet!W84) -> 57340.04862 | Y84: =(X84-RSAInc!X84)*(1+RSARet!X84) -> 54549.86153 | Z84: =(Y84-RSAInc!Y84)*(1+RSARet!Y84) -> 51665.99597 | AA84: =(Z84-RSAInc!Z84)*(1+RSARet!Z84) -> 50742.13224 | AB84: =(AA84-RSAInc!AA84)*(1+RSARet!AA84) -> 50438.39768 | AC84: =(AB84-RSAInc!AB84)*(1+RSARet!AB84) -> 44871.75682 | AD84: =(AC84-RSAInc!AC84)*(1+RSARet!AC84) -> 38095.36281 | AE84: =(AD84-RSAInc!AD84)*(1+RSARet!AD84) -> 35705.04284 | AF84: =(AE84-RSAInc!AE84)*(1+RSARet!AE84) -> 32403.84893 | AG84: =(AF84-RSAInc!AF84)*(1+RSARet!AF84) -> 28211.87277 | AH84: =(AG84-RSAInc!AG84)*(1+RSARet!AG84) -> 24541.38415 | AI84: =(AH84-RSAInc!AH84)*(1+RSARet!AH84) -> 22375.03411 | AJ84: =(AI84-RSAInc!AI84)*(1+RSARet!AI84) -> 20528.73599 | AK84: =(AJ84-RSAInc!AJ84)*(1+RSARet!AJ84) -> 17765.41289 | AL84: =(AK84-RSAInc!AK84)*(1+RSARet!AK84) -> 15294.76487 | AM84: =(AL84-RSAInc!AL84)*(1+RSARet!AL84) -> 12945.27339 | AN84: =(AM84-RSAInc!AM84)*(1+RSARet!AM84) -> 10650.33728 | AO84: =(AN84-RSAInc!AN84)*(1+RSARet!AN84) -> 8748.294771 | AP84: =(AO84-RSAInc!AO84)*(1+RSARet!AO84) -> 6469.966984 | AQ84: =(AP84-RSAInc!AP84)*(1+RSARet!AP84) -> 4561.543167 | AR84: =(AQ84-RSAInc!AQ84)*(1+RSARet!AQ84) -> 3094.632521 | AS84: =(AR84-RSAInc!AR84)*(1+RSARet!AR84) -> 1824.086076 | AT84: =(AS84-RSAInc!AS84)*(1+RSARet!AS84) -> 823.196194 | AU84: =(AT84-RSAInc!AT84)*(1+RSARet!AT84) -> -3.57025188e-12 | AW84: 109 | AX84: =IF(AW84="",0,LOOKUP(AW84,'Retiree Details and Assumptions'!D$40:D$85,'Retiree Details and Assumptions'!E$40:E$85)) -> 0.0004348127378 | AY84: =IF(AW84="","",LOOKUP(AW84,'Retiree Details and Assumptions'!D$40:D$85,'Retiree Details and Assumptions'!H$40:H$85)) -> 1
A85: 84 | B85: 125000 | C85: =(B85-RSAInc!B85)*(1+RSARet!B85) -> 124333.3733 | D85: =(C85-RSAInc!C85)*(1+RSARet!C85) -> 119033.9161 | E85: =(D85-RSAInc!D85)*(1+RSARet!D85) -> 116120.3098 | F85: =(E85-RSAInc!E85)*(1+RSARet!E85) -> 117219.935 | G85: =(F85-RSAInc!F85)*(1+RSARet!F85) -> 108263.4369 | H85: =(G85-RSAInc!G85)*(1+RSARet!G85) -> 105121.3081 | I85: =(H85-RSAInc!H85)*(1+RSARet!H85) -> 109444.1554 | J85: =(I85-RSAInc!I85)*(1+RSARet!I85) -> 104469.1405 | K85: =(J85-RSAInc!J85)*(1+RSARet!J85) -> 95693.20549 | L85: =(K85-RSAInc!K85)*(1+RSARet!K85) -> 104090.6704 | M85: =(L85-RSAInc!L85)*(1+RSARet!L85) -> 105125.7577 | N85: =(M85-RSAInc!M85)*(1+RSARet!M85) -> 100161.5625 | O85: =(N85-RSAInc!N85)*(1+RSARet!N85) -> 98373.90224 | P85: =(O85-RSAInc!O85)*(1+RSARet!O85) -> 102288.2073 | Q85: =(P85-RSAInc!P85)*(1+RSARet!P85) -> 98188.82007 | R85: =(Q85-RSAInc!Q85)*(1+RSARet!Q85) -> 94511.29672 | S85: =(R85-RSAInc!R85)*(1+RSARet!R85) -> 96125.09111 | T85: =(S85-RSAInc!S85)*(1+RSARet!S85) -> 92475.16379 | U85: =(T85-RSAInc!T85)*(1+RSARet!T85) -> 92204.01055 | V85: =(U85-RSAInc!U85)*(1+RSARet!U85) -> 89620.05301 | W85: =(V85-RSAInc!V85)*(1+RSARet!V85) -> 79253.87109 | X85: =(W85-RSAInc!W85)*(1+RSARet!W85) -> 72265.41417 | Y85: =(X85-RSAInc!X85)*(1+RSARet!X85) -> 72160.16982 | Z85: =(Y85-RSAInc!Y85)*(1+RSARet!Y85) -> 67525.76031 | AA85: =(Z85-RSAInc!Z85)*(1+RSARet!Z85) -> 59161.04111 | AB85: =(AA85-RSAInc!AA85)*(1+RSARet!AA85) -> 53511.88356 | AC85: =(AB85-RSAInc!AB85)*(1+RSARet!AB85) -> 50921.99771 | AD85: =(AC85-RSAInc!AC85)*(1+RSARet!AC85) -> 45550.15988 | AE85: =(AD85-RSAInc!AD85)*(1+RSARet!AD85) -> 40899.32353 | AF85: =(AE85-RSAInc!AE85)*(1+RSARet!AE85) -> 39534.10894 | AG85: =(AF85-RSAInc!AF85)*(1+RSARet!AF85) -> 34855.62048 | AH85: =(AG85-RSAInc!AG85)*(1+RSARet!AG85) -> 32123.14509 | AI85: =(AH85-RSAInc!AH85)*(1+RSARet!AH85) -> 27311.82462 | AJ85: =(AI85-RSAInc!AI85)*(1+RSARet!AI85) -> 25528.60479 | AK85: =(AJ85-RSAInc!AJ85)*(1+RSARet!AJ85) -> 21836.00505 | AL85: =(AK85-RSAInc!AK85)*(1+RSARet!AK85) -> 19050.27091 | AM85: =(AL85-RSAInc!AL85)*(1+RSARet!AL85) -> 15425.9942 | AN85: =(AM85-RSAInc!AM85)*(1+RSARet!AM85) -> 12763.66866 | AO85: =(AN85-RSAInc!AN85)*(1+RSARet!AN85) -> 10134.18872 | AP85: =(AO85-RSAInc!AO85)*(1+RSARet!AO85) -> 7589.001415 | AQ85: =(AP85-RSAInc!AP85)*(1+RSARet!AP85) -> 5334.218736 | AR85: =(AQ85-RSAInc!AQ85)*(1+RSARet!AQ85) -> 3512.328096 | AS85: =(AR85-RSAInc!AR85)*(1+RSARet!AR85) -> 2050.759512 | AT85: =(AS85-RSAInc!AS85)*(1+RSARet!AS85) -> 903.6175579 | AU85: =(AT85-RSAInc!AT85)*(1+RSARet!AT85) -> -4.137477688e-12 | AW85: 109 | AX85: =IF(AW85="",0,LOOKUP(AW85,'Retiree Details and Assumptions'!D$40:D$85,'Retiree Details and Assumptions'!E$40:E$85)) -> 0.0004348127378 | AY85: =IF(AW85="","",LOOKUP(AW85,'Retiree Details and Assumptions'!D$40:D$85,'Retiree Details and Assumptions'!H$40:H$85)) -> 1
A86: 85 | B86: 125000 | C86: =(B86-RSAInc!B86)*(1+RSARet!B86) -> 123660.571 | D86: =(C86-RSAInc!C86)*(1+RSARet!C86) -> 124065.7952 | E86: =(D86-RSAInc!D86)*(1+RSARet!D86) -> 118261.0713 | F86: =(E86-RSAInc!E86)*(1+RSARet!E86) -> 123108.0069 | G86: =(F86-RSAInc!F86)*(1+RSARet!F86) -> 125418.8957 | H86: =(G86-RSAInc!G86)*(1+RSARet!G86) -> 127186.6525 | I86: =(H86-RSAInc!H86)*(1+RSARet!H86) -> 124319.2827 | J86: =(I86-RSAInc!I86)*(1+RSARet!I86) -> 125761.0182 | K86: =(J86-RSAInc!J86)*(1+RSARet!J86) -> 125089.8665 | L86: =(K86-RSAInc!K86)*(1+RSARet!K86) -> 131975.416 | M86: =(L86-RSAInc!L86)*(1+RSARet!L86) -> 122397.9351 | N86: =(M86-RSAInc!M86)*(1+RSARet!M86) -> 114940.6691 | O86: =(N86-RSAInc!N86)*(1+RSARet!N86) -> 108799.5396 | P86: =(O86-RSAInc!O86)*(1+RSARet!O86) -> 109959.6611 | Q86: =(P86-RSAInc!P86)*(1+RSARet!P86) -> 104090.0505 | R86: =(Q86-RSAInc!Q86)*(1+RSARet!Q86) -> 99900.65752 | S86: =(R86-RSAInc!R86)*(1+RSARet!R86) -> 90578.79786 | T86: =(S86-RSAInc!S86)*(1+RSARet!S86) -> 86970.18674 | U86: =(T86-RSAInc!T86)*(1+RSARet!T86) -> 83686.26777 | V86: =(U86-RSAInc!U86)*(1+RSARet!U86) -> 79429.84351 | W86: =(V86-RSAInc!V86)*(1+RSARet!V86) -> 76885.05344 | X86: =(W86-RSAInc!W86)*(1+RSARet!W86) -> 75119.75348 | Y86: =(X86-RSAInc!X86)*(1+RSARet!X86) -> 72707.83064 | Z86: =(Y86-RSAInc!Y86)*(1+RSARet!Y86) -> 68635.17712 | AA86: =(Z86-RSAInc!Z86)*(1+RSARet!Z86) -> 61787.63934 | AB86: =(AA86-RSAInc!AA86)*(1+RSARet!AA86) -> 55553.04205 | AC86: =(AB86-RSAInc!AB86)*(1+RSARet!AB86) -> 51650.28827 | AD86: =(AC86-RSAInc!AC86)*(1+RSARet!AC86) -> 47823.24777 | AE86: =(AD86-RSAInc!AD86)*(1+RSARet!AD86) -> 46434.50484 | AF86: =(AE86-RSAInc!AE86)*(1+RSARet!AE86) -> 41833.10847 | AG86: =(AF86-RSAInc!AF86)*(1+RSARet!AF86) -> 37288.82053 | AH86: =(AG86-RSAInc!AG86)*(1+RSARet!AG86) -> 34553.43676 | AI86: =(AH86-RSAInc!AH86)*(1+RSARet!AH86) -> 30514.01349 | AJ86: =(AI86-RSAInc!AI86)*(1+RSARet!AI86) -> 28147.42016 | AK86: =(AJ86-RSAInc!AJ86)*(1+RSARet!AJ86) -> 25239.28723 | AL86: =(AK86-RSAInc!AK86)*(1+RSARet!AK86) -> 21539.7079 | AM86: =(AL86-RSAInc!AL86)*(1+RSARet!AL86) -> 18351.78824 | AN86: =(AM86-RSAInc!AM86)*(1+RSARet!AM86) -> 14311.41722 | AO86: =(AN86-RSAInc!AN86)*(1+RSARet!AN86) -> 11909.31485 | AP86: =(AO86-RSAInc!AO86)*(1+RSARet!AO86) -> 9253.941558 | AQ86: =(AP86-RSAInc!AP86)*(1+RSARet!AP86) -> 6895.441342 | AR86: =(AQ86-RSAInc!AQ86)*(1+RSARet!AQ86) -> 4534.82658 | AS86: =(AR86-RSAInc!AR86)*(1+RSARet!AR86) -> 2635.983069 | AT86: =(AS86-RSAInc!AS86)*(1+RSARet!AS86) -> 1162.658069 | AU86: =(AT86-RSAInc!AT86)*(1+RSARet!AT86) -> -5.434805425e-12 | AW86: 109 | AX86: =IF(AW86="",0,LOOKUP(AW86,'Retiree Details and Assumptions'!D$40:D$85,'Retiree Details and Assumptions'!E$40:E$85)) -> 0.0004348127378 | AY86: =IF(AW86="","",LOOKUP(AW86,'Retiree Details and Assumptions'!D$40:D$85,'Retiree Details and Assumptions'!H$40:H$85)) -> 1
A87: 86 | B87: 125000 | C87: =(B87-RSAInc!B87)*(1+RSARet!B87) -> 127290.7798 | D87: =(C87-RSAInc!C87)*(1+RSARet!C87) -> 127116.1814 | E87: =(D87-RSAInc!D87)*(1+RSARet!D87) -> 125202.518 | F87: =(E87-RSAInc!E87)*(1+RSARet!E87) -> 129527.7753 | G87: =(F87-RSAInc!F87)*(1+RSARet!F87) -> 126099.1161 | H87: =(G87-RSAInc!G87)*(1+RSARet!G87) -> 120968.4307 | I87: =(H87-RSAInc!H87)*(1+RSARet!H87) -> 111175.8908 | J87: =(I87-RSAInc!I87)*(1+RSARet!I87) -> 111482.9613 | K87: =(J87-RSAInc!J87)*(1+RSARet!J87) -> 108070.8172 | L87: =(K87-RSAInc!K87)*(1+RSARet!K87) -> 120847.819 | M87: =(L87-RSAInc!L87)*(1+RSARet!L87) -> 124501.9936 | N87: =(M87-RSAInc!M87)*(1+RSARet!M87) -> 120005.8505 | O87: =(N87-RSAInc!N87)*(1+RSARet!N87) -> 116157.2097 | P87: =(O87-RSAInc!O87)*(1+RSARet!O87) -> 118329.0226 | Q87: =(P87-RSAInc!P87)*(1+RSARet!P87) -> 114999.9577 | R87: =(Q87-RSAInc!Q87)*(1+RSARet!Q87) -> 110875.288 | S87: =(R87-RSAInc!R87)*(1+RSARet!R87) -> 116065.3597 | T87: =(S87-RSAInc!S87)*(1+RSARet!S87) -> 112197.8722 | U87: =(T87-RSAInc!T87)*(1+RSARet!T87) -> 107310.8607 | V87: =(U87-RSAInc!U87)*(1+RSARet!U87) -> 107279.5166 | W87: =(V87-RSAInc!V87)*(1+RSARet!V87) -> 105261.38 | X87: =(W87-RSAInc!W87)*(1+RSARet!W87) -> 106636.8257 | Y87: =(X87-RSAInc!X87)*(1+RSARet!X87) -> 101762.2022 | Z87: =(Y87-RSAInc!Y87)*(1+RSARet!Y87) -> 98412.74864 | AA87: =(Z87-RSAInc!Z87)*(1+RSARet!Z87) -> 94942.24492 | AB87: =(AA87-RSAInc!AA87)*(1+RSARet!AA87) -> 87963.49185 | AC87: =(AB87-RSAInc!AB87)*(1+RSARet!AB87) -> 83726.0921 | AD87: =(AC87-RSAInc!AC87)*(1+RSARet!AC87) -> 76235.11453 | AE87: =(AD87-RSAInc!AD87)*(1+RSARet!AD87) -> 69129.17065 | AF87: =(AE87-RSAInc!AE87)*(1+RSARet!AE87) -> 63916.95618 | AG87: =(AF87-RSAInc!AF87)*(1+RSARet!AF87) -> 58775.89645 | AH87: =(AG87-RSAInc!AG87)*(1+RSARet!AG87) -> 50823.70083 | AI87: =(AH87-RSAInc!AH87)*(1+RSARet!AH87) -> 48391.22564 | AJ87: =(AI87-RSAInc!AI87)*(1+RSARet!AI87) -> 43608.86652 | AK87: =(AJ87-RSAInc!AJ87)*(1+RSARet!AJ87) -> 36366.12083 | AL87: =(AK87-RSAInc!AK87)*(1+RSARet!AK87) -> 29637.72854 | AM87: =(AL87-RSAInc!AL87)*(1+RSARet!AL87) -> 27978.34901 | AN87: =(AM87-RSAInc!AM87)*(1+RSARet!AM87) -> 23444.56711 | AO87: =(AN87-RSAInc!AN87)*(1+RSARet!AN87) -> 18475.25217 | AP87: =(AO87-RSAInc!AO87)*(1+RSARet!AO87) -> 13946.85296 | AQ87: =(AP87-RSAInc!AP87)*(1+RSARet!AP87) -> 9825.739669 | AR87: =(AQ87-RSAInc!AQ87)*(1+RSARet!AQ87) -> 7087.631537 | AS87: =(AR87-RSAInc!AR87)*(1+RSARet!AR87) -> 4236.287386 | AT87: =(AS87-RSAInc!AS87)*(1+RSARet!AS87) -> 1909.410428 | AU87: =(AT87-RSAInc!AT87)*(1+RSARet!AT87) -> -8.321059683e-12 | AW87: 109 | AX87: =IF(AW87="",0,LOOKUP(AW87,'Retiree Details and Assumptions'!D$40:D$85,'Retiree Details and Assumptions'!E$40:E$85)) -> 0.0004348127378 | AY87: =IF(AW87="","",LOOKUP(AW87,'Retiree Details and Assumptions'!D$40:D$85,'Retiree Details and Assumptions'!H$40:H$85)) -> 1
